Workbook

Sheet INTRO
A3: This is the main workbook for Republic Services' General Rate Case submission to the Washington Utilities & Transporation Commission
A5: The subject company of this filing is : | B5: 4183 - Allied Waste Services of Kent, Rabanco Co. & SeaTac Disposal (G-12, Tariff # 26)
A7: This file will need to be submitted through the WUTC eFile web portal is it's size before adding 'filing/division/test period specific' tabs is too large for email.
A8: This file is to be completed seperately from the Payroll model in order to keep the pay data confidential. Once both models are complete, this model
A9: will be transferred to a protected folder with the Payroll model which will then be moved into this model right after the "PF Adj" tab.
A11: Tab Color Legend
A12: Auditor Narrative & Internal Instructions
A13: SQL Source Data | C13: *Print Margin for All SQL Tabs are set to first 100 pages to avoid extremely large accidental print jobs
A14: Reference Tables
A15: Cost of Service
A16: Oracle Essbase Data Extraction from Lawson
A18: Note to auditor: Detailed SQL data is available upon request. We summarize some of the SQL data reports within this model as the filesize of full
A19: reports with every transaction is often 15+ MB and discusstions with WUTC staff has concluded that summarizing when possible is the best option.
A21: Table of Contents | B21: Tab # | C21: Formula Driven / Hardcode / HC with Formulas / Written | D21: Source of Hardcode (if any)
A22: G Cert Financial | B22: 2 | C22: Formulas
A23: RS Cap Structure | B23: 3 | C23: Hardcode | D23: Annual Reports
A24: Combined LG | B24: 4 | C24: Formulas
A25: MSW | B25: 5 | C25: Formulas
A26: RCY | B26: 6 | C26: Formulas
A27: YW | B27: 7 | C27: Formulas
A28: MF RCY | B28: 8 | C28: Formulas
A29: Alloc Summary | B29: 9 | C29: Formulas
A30: Proforma | B30: 10 | C30: Formulas
A31: PR Restate | B31: 11 | C31: Formulas
A32: PF Adj | B32: 12 | C32: Formulas
A33: PR Narrative | B33: 13 | C33: Written
A34: Summary & PF | B34: 14 | C34: Formulas
A35: PR vs. GL | B35: 15 | C35: Formulas
A36: Summary Calc & Lookup | B36: 16 | C36: Formulas & Hardcode ee Data | D36: Payroll employee reports
A37: PR Instructions | B37: 17 | C37: Written
A38: Summary PR Data | B38: 18 | C38: Hardcode | D38: PR295 from Lawson
A39: Lookup Data | B39: 19 | C39: Hardcode Tables
A40: Union Wage & Pension | B40: 20 | C40: Hardcode | D40: Union Contracts
A41: H&W | B41: 21 | C41: Hardcode | D41: Union Contracts
A42: L&I | B42: 22 | C42: Hardcode | D42: WA Dept. of Labor & Industries
A43: Rev Narrative & Instructions | B43: 23 | C43: Written
A44: Revenue Lookup | B44: 24 | C44: Formulas
A45: SQL Revenue Analysis | B45: 25 | C45: Hardcode with Formulas | D45: SQL Extract from Infopro
A46: Rev Ref Tables | B46: 26 | C46: Hardcode Tables | D46: Lookup info for Infopro
A47: Price Out Summ | B47: 27 | C47: Formulas
A48: Residential Price Out | B48: 28 | C48: Formulas and Hardcode Rate Data | D48: Tariff Pages
A49: Commercial (+MF) Price Out | B49: 29 | C49: Formulas and Hardcode Rate Data | D49: Tariff Pages
A50: Commercial Lift Instructions | B50: 30 | C50: Written
A51: Commercial Lifts | B51: 31 | C51: Hardcode with Formulas | D51: SQL Extract from Infopro
A52: IND (+MF) Price Out | B52: 32 | C52: Formulas and Hardcode Rate Data | D52: Tariff Pages
A53: Truck Hrs Sum | B53: 33 | C53: Formulas
A54: RESI WUTC Hrs | B54: 34 | C54: Formulas with Hardcode | D54: See "Route Detail Residential"
A55: RES Rt Hr Instructions | B55: EXTERNAL | C55: Written
A56: RES Pivot | B56: EXTERNAL | C56: Formulas - Pivot
A57: RES Route Detail | B57: EXTERNAL | C57: Hardcode with Formulas | D57: SQL Extract from Infopro
A58: Sample Routes | B58: EXTERNAL | C58: Formulas
A59: COM WUTC Hrs | B59: 35 | C59: Formulas
A60: COM Rt Hr Instructions | B60: 36 | C60: Written
A61: COM Pivot | B61: 37 | C61: Formulas - Pivot
A62: COM Route Detail | B62: 38 | C62: Hardcode with Formulas | D62: SQL Extract from Infopro
A63: IND Hrs Sum | B63: 39 | C63: Formulas
A64: IND Data | B64: 40 | C64: Hardcode with Formulas | D64: Report from Infopro
A65: Route Analysis - IND | B65: 41 | C65: Hardcode | D65: SQL Extract from Infopro
A66: Route Analysis - COM | B66: 42 | C66: Hardcode | D66: SQL Extract from Infopro
A67: Route Analysis - RESI | B67: 43 | C67: Hardcode | D67: SQL Extract from Infopro
A68: Contract Ref | B68: 44 | C68: Hardcode Tables | D68: Lookup info for Infopro
A69: Fuel Calc | B69: 45 | C69: Formulas
A70: Fuel Invoice Data Entry | B70: 46 | C70: Hardcode with Formulas | D70: Fuel Invoices
A71: Disposal Instructions | B71: 47 | C71: Written
A72: Disposal | B72: 48 | C72: Formulas
A73: Summary Disposal Data | B73: 49 | C73: Hardcode with Formulas
A74: Industrial Summary Data Confirmation | B74: 50 | C74: Hardcode with Formulas
A75: Non-Regulated Operations | B75: 51 | C75: Written
A76: Disposal Ref Tables | B76: 52 | C76: Hardcode Tables | D76: Lookup info for Infopro
A77: Ave Inv. Narrative | B77: 53 | C77: Written
A78: Ave Inv. Summary | B78: 54 | C78: Formulas
A79: AM260 Asset Listing | B79: 55 | C79: Formulas
A80: AM260 Data | B80: 56 | C80: Hardcode with Formulas | D80: Report from Lawson
A81: Asset Type Tables | B81: 57 | C81: Hardcode Tables | D81: Lookup info for Lawson
A82: Narrative | B82: 58 | C82: Written
A83: Container Counts | B83: 59 | C83: Formulas
A84: Container Data | B84: 60 | C84: Hardcode with Formulas | D84: SQL Extract from Infopro
A85: Container Ref Tables | B85: 61 | C85: Hardcode Tables | D85: Lookup info for Infopro
A86: Cost of Service | B86: 62 | C86: Formulas
A87: Meeks Data | B87: 63 | C87: Hardcode | D87: WUTC Data
A88: Essbase Narrative | B88: 64 | C88: Written
A89: P&L - ITD3 (Acct Desc) | B89: 65 | C89: Hardcode | D89: Essbase Extract from Lawson
A90: BS - BTD3 | B90: 66 | C90: Hardcode | D90: Essbase Extract from Lawson
A91: P&L - ITD3 (Acct #) | B91: 67 | C91: Hardcode | D91: Essbase Extract from Lawson
A92: STATS - XOST (IND, COM, RES) | B92: 68 | C92: Hardcode | D92: Essbase Extract from Lawson
A93: P&L - ITD2 Aff. Co. MRF | B93: 69 | C93: Hardcode | D93: Essbase Extract from Lawson
A94: G-12 FS | B94: 70 | C94: Hardcode | D94: Essbase Extract from Lawson
A95: BS - BTD2 Aff. Co. MRF | B95: 71 | C95: Hardcode | D95: Essbase Extract from Lawson
A96: MGmt Fee2014 Budget Pull | B96: 72 | C96: Hardcode | D96: Essbase Extract from Lawson
A97: Mgmt Fee - 2014 A53 Division Expense | B97: 73 | C97: Hardcode | D97: Essbase Extract from Lawson
A98: Filing Specific Tabs > | B98: 74 | C98: Written
B99: 75 | C99: Hardcode | D99: JE Backup from Fleet management system - Doissier
A100: Fuel Allocations | B100: 76 | C100: Hardcode with Formulas | D100: Essbase Extract from Lawson
B101: 77 | C101: Hardcode | D101: Report from Lawson
A102: L&I RETRO Credit JE | B102: 78 | C102: Hardcode | D102: Journal Entry
A103: Truck Depreciation Summary | B103: 79 | C103: Formulas
A104: Jan - Dec | B104: 80 - 92 | C104: Hardcode with Formulas | D104: Report from Lawson
B105: 93 | C105: Written
A106: Division Tons (XXX Tons) | B106: 94 | C106: Hardcode with Formulas | D106: Billing and County / Municipality Reporting Document
A107: MSW Tons | B107: 95 | C107: Hardcode with Formulas
B108: 96 | C108: Hardcode with Formulas
A109: YW Tons | B109: 97 | C109: Hardcode with Formulas

Sheet G-12 Cert Financial
A1: If this rate case pertains to G Certificate # 60, of which the only company is Division 4176, tariff # 27, Fiorito Enterprises, Inc. & Rabanco Companies, dba Kent-Meridian Disposal Company the only financials you need are in the Essbase Data workbook or provided in PDF form.
A2: If this rate case pertains to G Certificate # 12 (varios division info below) this tab will be populated with summarized financial data for each operating division to calculate total Certificate financial data.
A3: See Source Data: 4XXXITD2
A5: Division # | B5: 4183 | E5: 4172 | H5: 4197 | K5: 4487 | N5: 4175 | Q5: 4584 | T5: TOTAL
A6: Division Name | B6: Sea Tac Disposal | E6: Eastside Disposal | H6: Lynnwood Disposal | K6: Tri-County Disposal | N6: AW of Seattle | Q6: Robanco Recycling MRF | T6: Regulated / Unregulated
A7: Certificate & Tariff Number | B7: G-12 / Tariff 27 | E7: G-12 / Tariff 11 | H7: G-12 / Tariff 4 | K7: G-12 / Tariff 8 | N7: G-12 | Q7: G-12 | T7: G-12
A8: Regulated / Unregulated % | C8: =1-B8 -> 1 | F8: =1-E8 -> 1 | I8: =1-H8 -> 1 | L8: =1-K8 -> 1 | N8: 0 | O8: =1-N8 -> 1 | Q8: 0 | R8: =1-Q8 -> 1 | T8: =+T59/SUM(T59:U59) -> 0 | U8: =1-T8 -> 1
A11: Industrial O/S Total | B11: ='G-12 FS'!B6*B$8 -> 0 | C11: ='G-12 FS'!B6*C$8 -> 3379225.51 | E11: ='G-12 FS'!E6*E$8 -> 0 | F11: ='G-12 FS'!E6*F$8 -> 9079734.27 | H11: ='G-12 FS'!H6*H$8 -> 0 | I11: ='G-12 FS'!H6*I$8 -> 3113837.03 | K11: ='G-12 FS'!K6*K$8 -> 0 | L11: ='G-12 FS'!K6*L$8 -> 397626.87 | N11: ='G-12 FS'!N6*N$8 -> 0 | O11: ='G-12 FS'!N6*O$8 -> 8812552.65 | Q11: ='G-12 FS'!Q6*Q$8 -> 0 | R11: ='G-12 FS'!Q6*R$8 -> 0 | T11: =+B11+E11+H11+K11+N11+Q11 -> 0 | U11: 24782976.33
A12: Commercial O/S Total | B12: ='G-12 FS'!B7*B$8 -> 0 | C12: ='G-12 FS'!B7*C$8 -> 4328366.13 | E12: ='G-12 FS'!E7*E$8 -> 0 | F12: ='G-12 FS'!E7*F$8 -> 15991640.31 | H12: ='G-12 FS'!H7*H$8 -> 0 | I12: ='G-12 FS'!H7*I$8 -> 7487240.8 | K12: ='G-12 FS'!K7*K$8 -> 0 | L12: ='G-12 FS'!K7*L$8 -> 811366.53 | N12: ='G-12 FS'!N7*N$8 -> 0 | O12: ='G-12 FS'!N7*O$8 -> 11523573.26 | Q12: ='G-12 FS'!Q7*Q$8 -> 0 | R12: ='G-12 FS'!Q7*R$8 -> 0 | T12: 0 | U12: 40142187.03
A13: Residential O/S Total | B13: ='G-12 FS'!B8*B$8 -> 0 | C13: ='G-12 FS'!B8*C$8 -> 8338912.57 | E13: ='G-12 FS'!E8*E$8 -> 0 | F13: ='G-12 FS'!E8*F$8 -> 25542485.9 | H13: ='G-12 FS'!H8*H$8 -> 0 | I13: ='G-12 FS'!H8*I$8 -> 9986100.13 | K13: ='G-12 FS'!K8*K$8 -> 0 | L13: ='G-12 FS'!K8*L$8 -> 639502.94 | N13: ='G-12 FS'!N8*N$8 -> 0 | O13: ='G-12 FS'!N8*O$8 -> 0 | Q13: ='G-12 FS'!Q8*Q$8 -> 0 | R13: ='G-12 FS'!Q8*R$8 -> 0 | T13: 0 | U13: 44507001.54
A15: Industrial SOM RCY Revenue I/C | B15: ='G-12 FS'!B17*B$8 -> 0 | C15: ='G-12 FS'!B17*C$8 -> -1137483.41 | E15: ='G-12 FS'!E17*E$8 -> 0 | F15: ='G-12 FS'!E17*F$8 -> -164422.4 | H15: ='G-12 FS'!H17*H$8 -> 0 | I15: ='G-12 FS'!H17*I$8 -> -4984.56 | K15: ='G-12 FS'!K17*K$8 -> 0 | L15: ='G-12 FS'!K17*L$8 -> 106941.95 | N15: ='G-12 FS'!N17*N$8 -> 0 | O15: ='G-12 FS'!N17*O$8 -> -1836670.36 | Q15: ='G-12 FS'!Q17*Q$8 -> 0 | R15: ='G-12 FS'!Q17*R$8 -> 0 | T15: =+B15+E15+H15+K15+N15+Q15 -> 0 | U15: -3036618.78
A16: Commercial SOM RCY Revenue I/C | B16: ='G-12 FS'!B18*B$8 -> 0 | C16: ='G-12 FS'!B18*C$8 -> -267698.01 | E16: ='G-12 FS'!E18*E$8 -> 0 | F16: ='G-12 FS'!E18*F$8 -> -809168.59 | H16: ='G-12 FS'!H18*H$8 -> 0 | I16: ='G-12 FS'!H18*I$8 -> -219176.34 | K16: ='G-12 FS'!K18*K$8 -> 0 | L16: ='G-12 FS'!K18*L$8 -> 7489.2 | N16: ='G-12 FS'!N18*N$8 -> 0 | O16: ='G-12 FS'!N18*O$8 -> -664444.65 | Q16: ='G-12 FS'!Q18*Q$8 -> 0 | R16: ='G-12 FS'!Q18*R$8 -> 0 | T16: 0 | U16: -1952998.39
A17: Residential SOM RCY Revenue I/C | B17: ='G-12 FS'!B19*B$8 -> 0 | C17: ='G-12 FS'!B19*C$8 -> -704804.07 | E17: ='G-12 FS'!E19*E$8 -> 0 | F17: ='G-12 FS'!E19*F$8 -> -1815274.22 | H17: ='G-12 FS'!H19*H$8 -> 0 | I17: ='G-12 FS'!H19*I$8 -> -649597.41 | K17: ='G-12 FS'!K19*K$8 -> 0 | L17: ='G-12 FS'!K19*L$8 -> 1599.48 | N17: ='G-12 FS'!N19*N$8 -> 0 | O17: ='G-12 FS'!N19*O$8 -> 0 | Q17: ='G-12 FS'!Q19*Q$8 -> 0 | R17: ='G-12 FS'!Q19*R$8 -> 0 | T17: 0 | U17: -3168076.22
A19: Total Revenue | B19: =SUM(B10:B18) -> 0 | C19: =SUM(C10:C18) -> 13936518.72 | E19: =SUM(E10:E18) -> 0 | F19: =SUM(F10:F18) -> 47824995.27 | H19: =SUM(H10:H18) -> 0 | I19: =SUM(I10:I18) -> 19713419.65 | K19: =SUM(K10:K18) -> 0 | L19: =SUM(L10:L18) -> 1964526.97 | N19: =SUM(N10:N18) -> 0 | O19: =SUM(O10:O18) -> 17835010.9 | Q19: ='G-12 FS'!$Q29*Q$8 -> 0 | R19: ='G-12 FS'!$Q29*R$8 -> 20375577.27 | T19: =+B19+E19+H19+K19+N19+Q19 -> 0 | U19: =+C19+F19+I19+L19+O19+R19 -> 121650048.8
A21: Tipping & Disposal Costs | B21: =SUM('G-12 FS'!B31*B$8) -> 0 | C21: =SUM('G-12 FS'!B31*C$8) -> 1970772.68 | E21: =SUM('G-12 FS'!E31*E$8) -> 0 | F21: =SUM('G-12 FS'!E31*F$8) -> 18028167.72 | H21: =SUM('G-12 FS'!H31*H$8) -> 0 | I21: =SUM('G-12 FS'!H31*I$8) -> 6926637.27 | K21: =SUM('G-12 FS'!K31*K$8) -> 0 | L21: =SUM('G-12 FS'!K31*L$8) -> 97333.67 | N21: =SUM('G-12 FS'!N31*N$8) -> 0 | O21: =SUM('G-12 FS'!N31*O$8) -> 2792952.36 | Q21: =SUM('G-12 FS'!Q31*Q$8) -> 0 | R21: =SUM('G-12 FS'!Q31*R$8) -> 1853860.39 | T21: =+B21+E21+H21+K21+N21+Q21 -> 0 | U21: =+C21+F21+I21+L21+O21+R21 -> 31669724.09
A22: Cost of Goods Sold | B22: =SUM('G-12 FS'!B32*B$8) -> 0 | C22: =SUM('G-12 FS'!B32*C$8) -> 0 | E22: =SUM('G-12 FS'!E32*E$8) -> 0 | F22: =SUM('G-12 FS'!E32*F$8) -> 0 | H22: =SUM('G-12 FS'!H32*H$8) -> 0 | I22: =SUM('G-12 FS'!H32*I$8) -> 0 | K22: =SUM('G-12 FS'!K32*K$8) -> 0 | L22: =SUM('G-12 FS'!K32*L$8) -> 0 | N22: =SUM('G-12 FS'!N32*N$8) -> 0 | O22: =SUM('G-12 FS'!N32*O$8) -> 0 | Q22: =SUM('G-12 FS'!Q32*Q$8) -> 0 | R22: =SUM('G-12 FS'!Q32*R$8) -> 0 | T22: 0 | U22: 0
A23: Transportation | B23: =SUM('G-12 FS'!B33*B$8) -> 0 | C23: =SUM('G-12 FS'!B33*C$8) -> 1088.75 | E23: =SUM('G-12 FS'!E33*E$8) -> 0 | F23: =SUM('G-12 FS'!E33*F$8) -> 3542.57 | H23: =SUM('G-12 FS'!H33*H$8) -> 0 | I23: =SUM('G-12 FS'!H33*I$8) -> 104.58 | K23: =SUM('G-12 FS'!K33*K$8) -> 0 | L23: =SUM('G-12 FS'!K33*L$8) -> 0 | N23: =SUM('G-12 FS'!N33*N$8) -> 0 | O23: =SUM('G-12 FS'!N33*O$8) -> 2348.48 | Q23: =SUM('G-12 FS'!Q33*Q$8) -> 0 | R23: =SUM('G-12 FS'!Q33*R$8) -> 0 | T23: 0 | U23: 7084.38
A24: Subcontract | B24: =SUM('G-12 FS'!B34*B$8) -> 0 | C24: =SUM('G-12 FS'!B34*C$8) -> 0 | E24: =SUM('G-12 FS'!E34*E$8) -> 0 | F24: =SUM('G-12 FS'!E34*F$8) -> 0 | H24: =SUM('G-12 FS'!H34*H$8) -> 0 | I24: =SUM('G-12 FS'!H34*I$8) -> 0 | K24: =SUM('G-12 FS'!K34*K$8) -> 0 | L24: =SUM('G-12 FS'!K34*L$8) -> 0 | N24: =SUM('G-12 FS'!N34*N$8) -> 0 | O24: =SUM('G-12 FS'!N34*O$8) -> 0 | Q24: =SUM('G-12 FS'!Q34*Q$8) -> 0 | R24: =SUM('G-12 FS'!Q34*R$8) -> 284811.75 | T24: 0 | U24: 284811.75
A25: Franchise Fees / Taxes | B25: =SUM('G-12 FS'!B35*B$8) -> 0 | C25: =SUM('G-12 FS'!B35*C$8) -> 0 | E25: =SUM('G-12 FS'!E35*E$8) -> 0 | F25: =SUM('G-12 FS'!E35*F$8) -> 0 | H25: =SUM('G-12 FS'!H35*H$8) -> 0 | I25: =SUM('G-12 FS'!H35*I$8) -> 0 | K25: =SUM('G-12 FS'!K35*K$8) -> 0 | L25: =SUM('G-12 FS'!K35*L$8) -> 0 | N25: =SUM('G-12 FS'!N35*N$8) -> 0 | O25: =SUM('G-12 FS'!N35*O$8) -> 0 | Q25: =SUM('G-12 FS'!Q35*Q$8) -> 0 | R25: =SUM('G-12 FS'!Q35*R$8) -> 0 | T25: 0 | U25: 0
A26: COGS Other | B26: =SUM('G-12 FS'!B36*B$8) -> 0 | C26: =SUM('G-12 FS'!B36*C$8) -> 0 | E26: =SUM('G-12 FS'!E36*E$8) -> 0 | F26: =SUM('G-12 FS'!E36*F$8) -> 0 | H26: =SUM('G-12 FS'!H36*H$8) -> 0 | I26: =SUM('G-12 FS'!H36*I$8) -> 0 | K26: =SUM('G-12 FS'!K36*K$8) -> 0 | L26: =SUM('G-12 FS'!K36*L$8) -> 0 | N26: =SUM('G-12 FS'!N36*N$8) -> 0 | O26: =SUM('G-12 FS'!N36*O$8) -> 0 | Q26: =SUM('G-12 FS'!Q36*Q$8) -> 0 | R26: =SUM('G-12 FS'!Q36*R$8) -> 0 | T26: 0 | U26: 0
A27: Total Revenue Reductions | B27: =SUM(B20:B26) -> 0 | C27: =SUM(C20:C26) -> 1971861.43 | E27: =SUM(E20:E26) -> 0 | F27: =SUM(F20:F26) -> 18031710.29 | H27: =SUM(H20:H26) -> 0 | I27: =SUM(I20:I26) -> 6926741.85 | K27: =SUM(K20:K26) -> 0 | L27: =SUM(L20:L26) -> 97333.67 | N27: =SUM(N20:N26) -> 0 | O27: =SUM(O20:O26) -> 2795300.84 | Q27: =SUM(Q20:Q26) -> 0 | R27: =SUM(R20:R26) -> 2138672.14 | T27: 0 | U27: 31961620.22
A29: Net Revenue | B29: =+B19-B27 -> 0 | C29: =+C19-C27 -> 11964657.29 | E29: =+E19-E27 -> 0 | F29: =+F19-F27 -> 29793284.98 | H29: =+H19-H27 -> 0 | I29: =+I19-I27 -> 12786677.8 | K29: =+K19-K27 -> 0 | L29: =+L19-L27 -> 1867193.3 | N29: =+N19-N27 -> 0 | O29: =+O19-O27 -> 15039710.06 | Q29: =+Q19-Q27 -> 0 | R29: =+R19-R27 -> 18236905.13 | T29: =+B29+E29+H29+K29+N29+Q29 -> 0 | U29: =+C29+F29+I29+L29+O29+R29 -> 89688428.56
A31: Operating Labor | B31: ='G-12 FS'!B41*B$8 -> 0 | C31: ='G-12 FS'!B41*C$8 -> 5174284.49 | E31: ='G-12 FS'!E41*E$8 -> 0 | F31: ='G-12 FS'!E41*F$8 -> 12761202.98 | H31: ='G-12 FS'!H41*H$8 -> 0 | I31: ='G-12 FS'!H41*I$8 -> 4942594.05 | K31: ='G-12 FS'!K41*K$8 -> 0 | L31: ='G-12 FS'!K41*L$8 -> 651644.81 | N31: ='G-12 FS'!N41*N$8 -> 0 | O31: ='G-12 FS'!N41*O$8 -> 2973579.87 | Q31: ='G-12 FS'!Q41*Q$8 -> 0 | R31: ='G-12 FS'!Q41*R$8 -> 8144720.78 | T31: =+B31+E31+H31+K31+N31+Q31 -> 0 | U31: 34648026.98
A32: Supervisor Labor | B32: ='G-12 FS'!B42*B$8 -> 0 | C32: ='G-12 FS'!B42*C$8 -> 543212.81 | E32: ='G-12 FS'!E42*E$8 -> 0 | F32: ='G-12 FS'!E42*F$8 -> 1274932.94 | H32: ='G-12 FS'!H42*H$8 -> 0 | I32: ='G-12 FS'!H42*I$8 -> 447088.7 | K32: ='G-12 FS'!K42*K$8 -> 0 | L32: ='G-12 FS'!K42*L$8 -> 102040.36 | N32: ='G-12 FS'!N42*N$8 -> 0 | O32: ='G-12 FS'!N42*O$8 -> 601406.15 | Q32: ='G-12 FS'!Q42*Q$8 -> 0 | R32: ='G-12 FS'!Q42*R$8 -> 434634.97 | T32: 0 | U32: 3403315.93
A33: Equipment Operating | B33: ='G-12 FS'!B43*B$8 -> 0 | C33: ='G-12 FS'!B43*C$8 -> 688166.82 | E33: ='G-12 FS'!E43*E$8 -> 0 | F33: ='G-12 FS'!E43*F$8 -> 1462045.02 | H33: ='G-12 FS'!H43*H$8 -> 0 | I33: ='G-12 FS'!H43*I$8 -> 909143.11 | K33: ='G-12 FS'!K43*K$8 -> 0 | L33: ='G-12 FS'!K43*L$8 -> 233341.9 | N33: ='G-12 FS'!N43*N$8 -> 0 | O33: ='G-12 FS'!N43*O$8 -> 418589.87 | Q33: ='G-12 FS'!Q43*Q$8 -> 0 | R33: ='G-12 FS'!Q43*R$8 -> 575467.21 | T33: 0 | U33: 4286753.93
A34: Equipment Maintenance | B34: ='G-12 FS'!B44*B$8 -> 0 | C34: ='G-12 FS'!B44*C$8 -> 1303753.88 | E34: ='G-12 FS'!E44*E$8 -> 0 | F34: ='G-12 FS'!E44*F$8 -> 3243929.4 | H34: ='G-12 FS'!H44*H$8 -> 0 | I34: ='G-12 FS'!H44*I$8 -> 1470580.06 | K34: ='G-12 FS'!K44*K$8 -> 0 | L34: ='G-12 FS'!K44*L$8 -> 208500.17 | N34: ='G-12 FS'!N44*N$8 -> 0 | O34: ='G-12 FS'!N44*O$8 -> 734404.9 | Q34: ='G-12 FS'!Q44*Q$8 -> 0 | R34: ='G-12 FS'!Q44*R$8 -> 2693315.6
A35: Container Maintenance | B35: ='G-12 FS'!B45*B$8 -> 0 | C35: ='G-12 FS'!B45*C$8 -> 143775.25 | E35: ='G-12 FS'!E45*E$8 -> 0 | F35: ='G-12 FS'!E45*F$8 -> 368791.57 | H35: ='G-12 FS'!H45*H$8 -> 0 | I35: ='G-12 FS'!H45*I$8 -> 87657.68 | K35: ='G-12 FS'!K45*K$8 -> 0 | L35: ='G-12 FS'!K45*L$8 -> 0 | N35: ='G-12 FS'!N45*N$8 -> 0 | O35: ='G-12 FS'!N45*O$8 -> 277635.11 | Q35: ='G-12 FS'!Q45*Q$8 -> 0 | R35: ='G-12 FS'!Q45*R$8 -> 0 | T35: =+B35+E35+H35+K35+N35+Q35 -> 0 | U35: 877859.61
A36: Insurance Expense | B36: ='G-12 FS'!B46*B$8 -> 0 | C36: ='G-12 FS'!B46*C$8 -> 599046.84 | E36: ='G-12 FS'!E46*E$8 -> 0 | F36: ='G-12 FS'!E46*F$8 -> 1440327.88 | H36: ='G-12 FS'!H46*H$8 -> 0 | I36: ='G-12 FS'!H46*I$8 -> 450053.8 | K36: ='G-12 FS'!K46*K$8 -> 0 | L36: ='G-12 FS'!K46*L$8 -> 81842.99 | N36: ='G-12 FS'!N46*N$8 -> 0 | O36: ='G-12 FS'!N46*O$8 -> 329502.43 | Q36: ='G-12 FS'!Q46*Q$8 -> 0 | R36: ='G-12 FS'!Q46*R$8 -> 455019.31 | T36: 0 | U36: 3355793.25
A37: Occupancy / Facilty Expense | B37: ='G-12 FS'!B47*B$8 -> 0 | C37: ='G-12 FS'!B47*C$8 -> 191300.67 | E37: ='G-12 FS'!E47*E$8 -> 0 | F37: ='G-12 FS'!E47*F$8 -> 1190052.17 | H37: ='G-12 FS'!H47*H$8 -> 0 | I37: ='G-12 FS'!H47*I$8 -> 443239.5 | K37: ='G-12 FS'!K47*K$8 -> 0 | L37: ='G-12 FS'!K47*L$8 -> 2005.97 | N37: ='G-12 FS'!N47*N$8 -> 0 | O37: ='G-12 FS'!N47*O$8 -> 520452.96 | Q37: ='G-12 FS'!Q47*Q$8 -> 0 | R37: ='G-12 FS'!Q47*R$8 -> 1181321.35 | T37: 0 | U37: 3528372.62
A38: Other Operating Expense | B38: ='G-12 FS'!B48*B$8 -> 0 | C38: ='G-12 FS'!B48*C$8 -> 551420.3 | E38: ='G-12 FS'!E48*E$8 -> 0 | F38: ='G-12 FS'!E48*F$8 -> 2952061.19 | H38: ='G-12 FS'!H48*H$8 -> 0 | I38: ='G-12 FS'!H48*I$8 -> 502588.45 | K38: ='G-12 FS'!K48*K$8 -> 0 | L38: ='G-12 FS'!K48*L$8 -> 48853.55 | N38: ='G-12 FS'!N48*N$8 -> 0 | O38: ='G-12 FS'!N48*O$8 -> 458409.3 | Q38: ='G-12 FS'!Q48*Q$8 -> 0 | R38: ='G-12 FS'!Q48*R$8 -> 786117.36 | T38: 0 | U38: 5299450.15
A39: Pre-DD&A GOE | B39: =SUM(B30:B38) -> 0 | C39: =SUM(C30:C38) -> 9194961.06 | E39: =SUM(E30:E38) -> 0 | F39: =SUM(F30:F38) -> 24693343.15 | H39: =SUM(H30:H38) -> 0 | I39: =SUM(I30:I38) -> 9252945.35 | K39: =SUM(K30:K38) -> 0 | L39: =SUM(L30:L38) -> 1328229.75 | N39: =SUM(N30:N38) -> 0 | O39: =SUM(O30:O38) -> 6313980.59 | Q39: =SUM(Q30:Q38) -> 0 | R39: =SUM(R30:R38) -> 14270596.58 | T39: 0 | U39: 65054056.48
A41: Depreciation Total | B41: ='G-12 FS'!B51*B$8 -> 0 | C41: ='G-12 FS'!B51*C$8 -> 1708729.57 | E41: ='G-12 FS'!E51*E$8 -> 0 | F41: ='G-12 FS'!E51*F$8 -> 3553168.82 | H41: ='G-12 FS'!H51*H$8 -> 0 | I41: ='G-12 FS'!H51*I$8 -> 1186106.83 | K41: ='G-12 FS'!K51*K$8 -> 0 | L41: ='G-12 FS'!K51*L$8 -> 198397.34 | N41: ='G-12 FS'!N51*N$8 -> 0 | O41: ='G-12 FS'!N51*O$8 -> 344572.93 | Q41: ='G-12 FS'!Q51*Q$8 -> 0 | R41: ='G-12 FS'!Q51*R$8 -> 1349818.55 | T41: =+B41+E41+H41+K41+N41+Q41 -> 0 | U41: 8340794.04
A42: Amortization Total | T42: 0 | U42: 0
A43: Total DD&A | B43: =SUM(B40:B42) -> 0 | C43: =SUM(C40:C42) -> 1708729.57 | E43: =SUM(E40:E42) -> 0 | F43: =SUM(F40:F42) -> 3553168.82 | H43: =SUM(H40:H42) -> 0 | I43: =SUM(I40:I42) -> 1186106.83 | K43: =SUM(K40:K42) -> 0 | L43: =SUM(L40:L42) -> 198397.34 | N43: =SUM(N40:N42) -> 0 | O43: =SUM(O40:O42) -> 344572.93 | Q43: =SUM(Q40:Q42) -> 0 | R43: =SUM(R40:R42) -> 1349818.55 | T43: 0 | U43: 8340794.04
A45: GOE | B45: =+B39+B43 -> 0 | C45: =+C39+C43 -> 10903690.63 | E45: =+E39+E43 -> 0 | F45: =+F39+F43 -> 28246511.97 | H45: =+H39+H43 -> 0 | I45: =+I39+I43 -> 10439052.18 | K45: =+K39+K43 -> 0 | L45: =+L39+L43 -> 1526627.09 | N45: =+N39+N43 -> 0 | O45: =+O39+O43 -> 6658553.52 | Q45: =+Q39+Q43 -> 0 | R45: =+R39+R43 -> 15620415.13 | T45: =+B45+E45+H45+K45+N45+Q45 -> 0 | U45: =+C45+F45+I45+L45+O45+R45 -> 73394850.52
A47: Gross Operating Profit | B47: =+B29-B45 -> 0 | C47: =+C29-C45 -> 1060966.66 | E47: =+E29-E45 -> 0 | F47: =+F29-F45 -> 1546773.01 | H47: =+H29-H45 -> 0 | I47: =+I29-I45 -> 2347625.62 | K47: =+K29-K45 -> 0 | L47: =+L29-L45 -> 340566.21 | N47: =+N29-N45 -> 0 | O47: =+O29-O45 -> 8381156.54 | Q47: =+Q29-Q45 -> 0 | R47: =+R29-R45 -> 2616490 | T47: =+B47+E47+H47+K47+N47+Q47 -> 0 | U47: =+C47+F47+I47+L47+O47+R47 -> 16293578.04
A49: Sales & Cust Svc Payroll & Related | B49: ='G-12 FS'!B59*B$8 -> 0 | C49: ='G-12 FS'!B59*C$8 -> 270104.43 | E49: ='G-12 FS'!E59*E$8 -> 0 | F49: ='G-12 FS'!E59*F$8 -> 911621.83 | H49: ='G-12 FS'!H59*H$8 -> 0 | I49: ='G-12 FS'!H59*I$8 -> 398724.5 | K49: ='G-12 FS'!K59*K$8 -> 0 | L49: ='G-12 FS'!K59*L$8 -> 0 | N49: ='G-12 FS'!N59*N$8 -> 0 | O49: ='G-12 FS'!N59*O$8 -> 1012018.94 | Q49: ='G-12 FS'!Q59*Q$8 -> 0 | R49: ='G-12 FS'!Q59*R$8 -> 0 | T49: =+B49+E49+H49+K49+N49+Q49 -> 0 | U49: 2592469.7
A50: Sales Expense | B50: ='G-12 FS'!B60*B$8 -> 0 | C50: ='G-12 FS'!B60*C$8 -> 37606.99 | E50: ='G-12 FS'!E60*E$8 -> 0 | F50: ='G-12 FS'!E60*F$8 -> 49601.39 | H50: ='G-12 FS'!H60*H$8 -> 0 | I50: ='G-12 FS'!H60*I$8 -> 21979.69 | K50: ='G-12 FS'!K60*K$8 -> 0 | L50: ='G-12 FS'!K60*L$8 -> 0 | N50: ='G-12 FS'!N60*N$8 -> 0 | O50: ='G-12 FS'!N60*O$8 -> 43038.69 | Q50: ='G-12 FS'!Q60*Q$8 -> 0 | R50: ='G-12 FS'!Q60*R$8 -> 0 | T50: 0 | U50: 152226.76
A51: Total Sales & Customer Svc Exp | B51: =SUM(B48:B50) -> 0 | C51: =SUM(C48:C50) -> 307711.42 | E51: =SUM(E48:E50) -> 0 | F51: =SUM(F48:F50) -> 961223.22 | H51: =SUM(H48:H50) -> 0 | I51: =SUM(I48:I50) -> 420704.19 | K51: =SUM(K48:K50) -> 0 | L51: =SUM(L48:L50) -> 0 | N51: =SUM(N48:N50) -> 0 | O51: =SUM(O48:O50) -> 1055057.63 | Q51: =SUM(Q48:Q50) -> 0 | R51: =SUM(R48:R50) -> 0 | T51: 0 | U51: 2744696.46
A53: G&A Payroll & Related | B53: ='G-12 FS'!B63*B$8 -> 0 | C53: ='G-12 FS'!B63*C$8 -> 848567.46 | E53: ='G-12 FS'!E63*E$8 -> 0 | F53: ='G-12 FS'!E63*F$8 -> 822252.66 | H53: ='G-12 FS'!H63*H$8 -> 0 | I53: ='G-12 FS'!H63*I$8 -> 273657.72 | K53: ='G-12 FS'!K63*K$8 -> 0 | L53: ='G-12 FS'!K63*L$8 -> 136888.29 | N53: ='G-12 FS'!N63*N$8 -> 0 | O53: ='G-12 FS'!N63*O$8 -> 280524.93 | Q53: ='G-12 FS'!Q63*Q$8 -> 0 | R53: ='G-12 FS'!Q63*R$8 -> 411422.9 | T53: =+B53+E53+H53+K53+N53+Q53 -> 0 | U53: 2773313.96
A54: G&E Expense | B54: =SUM('G-12 FS'!B64:B66)*B$8 -> 0 | C54: =SUM('G-12 FS'!B64:B66)*C$8 -> 703977.74 | E54: =SUM('G-12 FS'!E64:E66)*E$8 -> 0 | F54: =SUM('G-12 FS'!E64:E66)*F$8 -> 2587804.62 | H54: =SUM('G-12 FS'!H64:H66)*H$8 -> 0 | I54: =SUM('G-12 FS'!H64:H66)*I$8 -> 1061806.33 | K54: =SUM('G-12 FS'!K64:K66)*K$8 -> 0 | L54: =SUM('G-12 FS'!K64:K66)*L$8 -> 137801.16 | N54: =SUM('G-12 FS'!N64:N66)*N$8 -> 0 | O54: =SUM('G-12 FS'!N64:N66)*O$8 -> 1034370.4 | Q54: =SUM('G-12 FS'!Q64:Q66)*Q$8 -> 0 | R54: =SUM('G-12 FS'!Q64:Q66)*R$8 -> 1016787.49 | T54: 0 | U54: 6542547.74
A55: Total G&A Expense | B55: =SUM(B52:B54) -> 0 | C55: =SUM(C52:C54) -> 1552545.2 | E55: =SUM(E52:E54) -> 0 | F55: =SUM(F52:F54) -> 3410057.28 | H55: =SUM(H52:H54) -> 0 | I55: =SUM(I52:I54) -> 1335464.05 | K55: =SUM(K52:K54) -> 0 | L55: =SUM(L52:L54) -> 274689.45 | N55: =SUM(N52:N54) -> 0 | O55: =SUM(O52:O54) -> 1314895.33 | Q55: =SUM(Q52:Q54) -> 0 | R55: =SUM(R52:R54) -> 1428210.39 | T55: 0 | U55: 9315861.7
A57: Total SG&A | B57: =+B51+B55 -> 0 | C57: =+C51+C55 -> 1860256.62 | E57: =+E51+E55 -> 0 | F57: =+F51+F55 -> 4371280.5 | H57: =+H51+H55 -> 0 | I57: =+I51+I55 -> 1756168.24 | K57: =+K51+K55 -> 0 | L57: =+L51+L55 -> 274689.45 | N57: =+N51+N55 -> 0 | O57: =+O51+O55 -> 2369952.96 | Q57: =+Q51+Q55 -> 0 | R57: =+R51+R55 -> 1428210.39 | T57: =+B57+E57+H57+K57+N57+Q57 -> 0 | U57: =+C57+F57+I57+L57+O57+R57 -> 12060558.16
A59: Operating Income | B59: =+B47-B57 -> 0 | C59: =+C47-C57 -> -799289.96 | E59: =+E47-E57 -> 0 | F59: =+F47-F57 -> -2824507.49 | H59: =+H47-H57 -> 0 | I59: =+I47-I57 -> 591457.38 | K59: =+K47-K57 -> 0 | L59: =+L47-L57 -> 65876.76 | N59: =+N47-N57 -> 0 | O59: =+O47-O57 -> 6011203.58 | Q59: =+Q47-Q57 -> 0 | R59: =+R47-R57 -> 1188279.61 | T59: =+B59+E59+H59+K59+N59+Q59 -> 0 | U59: =+C59+F59+I59+L59+O59+R59 -> 4233019.88

Sheet RS Cap Struct.
A2: CAPITAL STRUCTURE CALCULATION | B2: 2018 | C2: 2017 | D2: 2016 | E2: 2015
A3: Source: Republic Services, Inc Annual Report
A4: http://www.republicservices.com/investors
A5: Generally published each Feb/Mar of following year
A6: (in millions)
A8: Accounts Payable | B8: 761.5 | C8: 598.1 | D8: 553.8 | E8: 577.4 | F8: (pg 82)
A9: Notes Payable and current maturities of LTD | B9: 690.7 | C9: 706.7 | D9: 5.8 | E9: 5.5
A10: Deferred Revenue | B10: 338.7 | C10: 312.1 | D10: 312.9 | E10: 313.9
A11: Accrued Landfill and Environmental costs, current portion | B11: 130.6 | C11: 135.2 | D11: 142.7 | E11: 149.8
A12: Accrued Interest | B12: 68.5 | C12: 74.5 | D12: 71.8 | E12: 71.6
A13: Other Accrued Liabilities | B13: 728.6 | C13: 808.2 | D13: 725 | E13: 716.6
A14: Total Current Liabilities | B14: 2718.6 | C14: =SUM(C8:C13) -> 2634.8 | D14: =SUM(D8:D13) -> 1812 | E14: =SUM(E8:E13) -> 1834.8
A16: Long-term Debt, net of current maturities | B16: 7646.8 | C16: 7480.7 | D16: 7653.1 | E16: 7527.4
A17: Accrued Landfill and Environmental costs, net of current portion | B17: 1701.6 | C17: 1686.5 | D17: 1684.8 | E17: 1677.9
A18: Deferred Income Taxes and other long-term liabilities | B18: 1028.3 | C18: 796.4 | D18: 1210.2 | E18: 1131.8
A19: Self-insurance reserves, net of current portion | B19: 270.8 | C19: 275.4 | D19: 274.6 | E19: 278.1
A20: Other long-term liabilities | B20: 321.4 | C20: 312.1 | D20: 301.2 | E20: 309.3
A22: Total Liabilities | B22: 13687.5 | C22: =SUM(C14:C21) -> 13185.9 | D22: =SUM(D14:D21) -> 12935.9 | E22: =SUM(E14:E21) -> 12759.3
A24: Preferred Stock | B24: 0 | C24: 0 | D24: 0
A25: Common Stock | B25: 3.5 | C25: 3.5 | D25: 3.5 | E25: 3.5
A26: Additional Paid-in Capital | B26: 4924.9 | C26: 4839.6 | D26: 4764.5 | E26: 4677.7
A27: Retained Earnings | B27: 4750.5 | C27: 4152.5 | D27: 3324 | E27: 3138.3
A28: Treasury stock | B28: -1782.6 | C28: -1059.4 | D28: -414.9 | E28: -14.9
A29: Accumulated other comprehensive income (loss), net of tax | B29: 30.8 | C29: 22.6 | D29: 14.2 | E29: -30.5
A31: Non-controlling Interest | B31: 2.4 | C31: 2.3 | D31: 2.4 | E31: 2.5
A33: Total Stockholder's Equity | B33: 7929.5 | C33: =SUM(C23:C32) -> 7961.1 | D33: =SUM(D23:D32) -> 7693.7 | E33: =SUM(E23:E32) -> 7776.6
A35: Total Liabilities & Equity | B35: 21617 | C35: =+C22+C33 -> 21147 | D35: =+D22+D33 -> 20629.6 | E35: =+E22+E33 -> 20535.9
A37: Total Debt | B37: 8337.5 | C37: =C9+C16 -> 8187.4 | D37: =D9+D16 -> 7658.9 | E37: =E9+E16 -> 7532.9
A38: Total Net Equity | B38: 7898.7 | C38: =+C33-C29 -> 7938.5 | D38: =+D33-D29 -> 7679.5 | E38: =+E33-E29 -> 7807.1
A41: Debt Ratio | B41: 0.5135130141 | C41: =C37/SUM(C37:C38) -> 0.5077173987 | D41: =D37/SUM(D37:D38) -> 0.4993284828 | E41: =E37/SUM(E37:E38) -> 0.4910625815
A42: Equity Ratio | B42: 0.4864869859 | C42: =1-C41 -> 0.4922826013 | D42: =1-D41 -> 0.5006715172 | E42: =1-E41 -> 0.5089374185
A45: COST of DEBT CALCULATION
A46: Source: Republic Services, Inc Annual Report | B46: Pg 110/
A47: (in millions)
A49: As of: | B49: 43465 | C49: 43100 | D49: 42735 | E49: 42369
A50: Total Debt (Carrying Value) | B50: 8445.2 | C50: 8187.4 | D50: 7658.9 | E50: 7532.9 | F50: (pg 113)
A51: Interest paid | B51: 351 | C51: 326.9 | D51: 330.2 | E51: 327.6 | F51: (pg 116)
A52: Effective Interest Rate | B52: 0.04156207076 | C52: =C51/C50 -> 0.03992720522 | D52: =D51/D50 -> 0.0431132408 | E52: =E51/E50 -> 0.04348922726
A56: TAX RATE
A57: Source: Republic Services, Inc Annual Report | B57: Pg 115
A59: Effective Income Tax Rate | B59: 0.215 | C59: 0.002 | D59: 0.365 | E59: 0.373 | F59: (pg 118)

Sheet Combined LG 2018 V5.0c
B2: Public Companies | F2: Public Co | I2: LURITO - GALLAGHER FORMULA MODEL 2018 V5.0a | M2: Public Co | R2: CALCULATION TABLES | AH2: Revenue Senstive Taxes (RevS)
K3: (b) + (c) | M3: (d) + (e) | T3: Regession | V3: Regession | W3: Regession | X3: Regession | Z3: Adjusted | AA3: Hauler | AB3: Hauler | AC3: Hauler | AD3: Hauler | AE3: Hauler | AF3: Hauler | AG3: Revenue Req | AH3: Revenue | AI3: Revenue
B4: INPUTS - Test Year | H4: (a) | I4: (b) | J4: (c) | K4: (d) | L4: (e) | M4: (f) | T4: Before Tax | V4: Less | W4: Adjusted | X4: After Tax | Y4: Flotation Costs | Z4: After Tax | AA4: Weighted Cost | AB4: Weighted Cost | AC4: Weighted Cost | AD4: Adjusted | AE4: Before Tax | AF4: Before Tax | AG4: Before RevS | AH4: Increase Before | AI4: Increase After | AJ4: RevS | AK4: Total
B5: Operating Revenue | C5: ='Combined LG'!E5 -> 1876077.8 | F5: Line | I5: Historical | J5: Revenue | K5: Proforma | L5: Add: Revenue | M5: Revenue | T5: Profit Ratio | U5: BTROI | V5: WCDebt | W5: BTROE | X5: ROE | Y5: Basis Points | Z5: ROE | AA5: Equity | AB5: Equity BFT | AC5: Debt | AD5: BTROR | AE5: Profit Ratio | AF5: Operating Ratio | AG5: Taxes | AH5: RevS Taxes | AI5: RevS Taxes | AJ5: Taxes | AK5: Revenue Req
B6: Operating Expenses | C6: ='Combined LG'!E6 -> 1866332.881 | F6: No. | J6: Change | L6: Sensitive Taxes | M6: Requirement | R6: 1 | S6: =Revenue/Investment*100 -> 273.8288543 | T6: =EXP(y_inter1-(slope*LN(+S6))) -> 6.589647615 | U6: =(+S6*T6/100)/100 -> 0.1804435657 | V6: =regDebt_weighted -> 0.03586 | W6: =+U6-V6 -> 0.1445835657 | X6: =+((W6*(1-0.34))-Pfd_weighted)/Equity_percent -> 0.2594045155 | Y6: =+C15 -> 0.0025 | Z6: =+X6+Y6 -> 0.2619045155 | AA6: =Z6*equityP -> 0.1274131383 | AB6: =+AA6/(1-taxrate) -> 0.1623097304 | AC6: =debtP*Debt_Rate -> 0.02134266423 | AD6: =AC6+AB6 -> 0.1836523946 | AE6: =AD6/(S6/100) -> 0.06706831356 | AF6: =1-AE6 -> 0.9329316864 | AG6: =expenses/(AF6) -> 2000503.261 | AH6: =+AG6-Revenue -> 124425.4613 | AI6: =+AH6/$J$49 -> 136418.5019 | AJ6: =+AI6*$J$47 -> 3447.977636 | AK6: =ROUND(+AJ6+AG6,5) -> 2003951.239
B7: Investment | C7: ='Combined LG'!E7 -> 685127.8711 | F7: 1 | H7: Operating Revenue | I7: =IF(A64=TRUE,C5,0) -> 1876077.8 | J7: =(+$I8/($R50))-I7 -> 115184.9126 | K7: =+I7+J7 -> 1991262.713 | L7: =((+J7/J49*K35)-J7) -> 3191.911033 | M7: =IFERROR(+K7+L7,0.00001) -> 1994454.624 | R7: 2 | S7: =Revenue/Investment*100 -> 273.8288543 | T7: =EXP(y_inter1-(slope*LN(+S7))) -> 6.589647615 | U7: =(+S7*T7/100)/100 -> 0.1804435657 | V7: =regDebt_weighted -> 0.03586 | W7: =+U7-V7 -> 0.1445835657 | X7: =+((W7*(1-0.34))-Pfd_weighted)/Equity_percent -> 0.2594045155 | Y7: =+Y6 -> 0.0025 | Z7: =+X7+Y7 -> 0.2619045155 | AA7: =Z7*equityP -> 0.1274131383 | AB7: =+AA7/(1-taxrate) -> 0.1623097304 | AC7: =debtP*Debt_Rate -> 0.02134266423 | AD7: =AC7+AB7 -> 0.1836523946 | AE7: =AD7/(S7/100) -> 0.06706831356 | AF7: =1-AE7 -> 0.9329316864 | AG7: =expenses/(AF7) -> 2000503.261 | AH7: =+AG7-Revenue -> 124425.4613 | AI7: =+AH7/$J$49 -> 136418.5019 | AJ7: =+AI7*$J$47 -> 3447.977636 | AK7: =ROUND(+AJ7+AG7,5) -> 2003951.239
B8: Capital Structure-Debt % | C8: ='RS Cap Struct.'!B41 -> 0.5135130141 | F8: =+F7+1 -> 2 | H8: Operating Expenses | I8: =IF(A64=TRUE,C6,0) -> 1866332.881 | K8: =+I8 -> 1866332.881 | L8: =+L7 -> 3191.911033 | M8: =IFERROR(+K8+L8,0.00001) -> 1869524.792 | R8: 3 | S8: =Revenue/Investment*100 -> 273.8288543 | T8: =EXP(y_inter1-(slope*LN(+S8))) -> 6.589647615 | U8: =(+S8*T8/100)/100 -> 0.1804435657 | V8: =regDebt_weighted -> 0.03586 | W8: =+U8-V8 -> 0.1445835657 | X8: =+((W8*(1-0.34))-Pfd_weighted)/Equity_percent -> 0.2594045155 | Y8: =+Y7 -> 0.0025 | Z8: =+X8+Y8 -> 0.2619045155 | AA8: =Z8*equityP -> 0.1274131383 | AB8: =+AA8/(1-taxrate) -> 0.1623097304 | AC8: =debtP*Debt_Rate -> 0.02134266423 | AD8: =AC8+AB8 -> 0.1836523946 | AE8: =AD8/(S8/100) -> 0.06706831356 | AF8: =1-AE8 -> 0.9329316864 | AG8: =expenses/(AF8) -> 2000503.261 | AH8: =+AG8-Revenue -> 124425.4613 | AI8: =+AH8/$J$49 -> 136418.5019 | AJ8: =+AI8*$J$47 -> 3447.977636 | AK8: =ROUND(+AJ8+AG8,5) -> 2003951.239
B9: Capital Structure-Debt Rate | C9: ='RS Cap Struct.'!B52 -> 0.04156207076 | F9: =+F8+1 -> 3 | H9: Operating Income | I9: =+I7-I8 -> 9744.918728 | K9: =+K7-K8 -> 124929.8313 | M9: =+M7-M8 -> 124929.8313 | R9: 4 | S9: =Revenue/Investment*100 -> 273.8288543 | T9: =EXP(y_inter1-(slope*LN(+S9))) -> 6.589647615 | U9: =(+S9*T9/100)/100 -> 0.1804435657 | V9: =regDebt_weighted -> 0.03586 | W9: =+U9-V9 -> 0.1445835657 | X9: =+((W9*(1-0.34))-Pfd_weighted)/Equity_percent -> 0.2594045155 | Y9: =+Y8 -> 0.0025 | Z9: =+X9+Y9 -> 0.2619045155 | AA9: =Z9*equityP -> 0.1274131383 | AB9: =+AA9/(1-taxrate) -> 0.1623097304 | AC9: =debtP*Debt_Rate -> 0.02134266423 | AD9: =AC9+AB9 -> 0.1836523946 | AE9: =AD9/(S9/100) -> 0.06706831356 | AF9: =1-AE9 -> 0.9329316864 | AG9: =expenses/(AF9) -> 2000503.261 | AH9: =+AG9-Revenue -> 124425.4613 | AI9: =+AH9/$J$49 -> 136418.5019 | AJ9: =+AI9*$J$47 -> 3447.977636 | AK9: =ROUND(+AJ9+AG9,5) -> 2003951.239
B10: Federal Income Tax Rate | C10: ='RS Cap Struct.'!B59 -> 0.215 | F10: 4 | R10: 2nd Iteration
B11: B&O Tax Rate | C11: 0.015 | F11: 5 | H11: Interest Expense | I11: =+K11 -> 14622.45411 | K11: =+M27 -> 14622.45411 | M11: =+K11 -> 14622.45411 | R11: 1 | S11: =IF((AK6/Investment*100)>0,(AK6/Investment*100),0) -> 292.4930255 | T11: =EXP(y_inter1-(slope*LN(S11))) -> 6.299185651 | U11: =(+S11*T11/100)/100 -> 0.1842467869 | V11: =regDebt_weighted -> 0.03586 | W11: =+U11-V11 -> 0.1483867869 | X11: =+((W11*(1-0.34))-Pfd_weighted)/Equity_percent -> 0.2667013935 | Y11: =+Y9 -> 0.0025 | Z11: =+X11+Y11 -> 0.2692013935 | AA11: =Z11*equityP -> 0.1309629745 | AB11: =+AA11/(1-taxrate) -> 0.1668318147 | AC11: =debtP*Debt_Rate -> 0.02134266423 | AD11: =+AC11+AB11 -> 0.1881744789 | AE11: =+AD11/(S11/100) -> 0.0643346892 | AF11: =1-AE11 -> 0.9356653108 | AG11: =expenses/(AF11) -> 1994658.624 | AH11: =+AG11-Revenue -> 118580.8239 | AI11: =+AH11/$J$49 -> 130010.5154 | AJ11: =+AI11*$J$47 -> 3286.015778 | AK11: =ROUND(+AJ11+AG11,5) -> 1997944.64
B12: WUTC Fee | C12: 0.004275 | F12: 6 | H12: Income Tax Expense | I12: =IF(I14<0,0,+J38*I14) ->  | J12: =+K12-I12 ->  | K12: =+(K9-K11)*taxrate -> 23716.0861 | M12: =+K12 -> 23716.0861 | R12: 2 | S12: =IF((AK7/Investment*100)>0,(AK7/Investment*100),0) -> 292.4930255 | T12: =EXP(y_inter2-(slope*LN(+S12))) -> 6.209562007 | U12: =(+S12*T12/100)/100 -> 0.1816253579 | V12: =regDebt_weighted -> 0.03586 | W12: =+U12-V12 -> 0.1457653579 | X12: =+((W12*(1-0.34))-Pfd_weighted)/Equity_percent -> 0.2616719075 | Y12: =+Y11 -> 0.0025 | Z12: =+X12+Y12 -> 0.2641719075 | AA12: =Z12*equityP -> 0.128516195 | AB12: =+AA12/(1-taxrate) -> 0.1637148981 | AC12: =debtP*Debt_Rate -> 0.02134266423 | AD12: =+AC12+AB12 -> 0.1850575624 | AE12: =+AD12/(S12/100) -> 0.06326905131 | AF12: =1-AE12 -> 0.9367309487 | AG12: =expenses/(AF12) -> 1992389.473 | AH12: =+AG12-Revenue -> 116311.6731 | AI12: =+AH12/$J$49 -> 127522.6472 | AJ12: =+AI12*$J$47 -> 3223.134907 | AK12: =ROUND(+AJ12+AG12,5) -> 1995612.608
B13: City Tax | C13: 0 | F13: 7 | R13: 3 | S13: =IF((AK8/Investment*100)>0,(AK8/Investment*100),0) -> 292.4930255 | T13: =EXP(y_inter3-(slope*LN(S13))) -> 6.149189984 | U13: =(+S13*T13/100)/100 -> 0.1798595183 | V13: =regDebt_weighted -> 0.03586 | W13: =+U13-V13 -> 0.1439995183 | X13: =+((W13*(1-0.34))-Pfd_weighted)/Equity_percent -> 0.2582839595 | Y13: =+Y12 -> 0.0025 | Z13: =+X13+Y13 -> 0.2607839595 | AA13: =Z13*equityP -> 0.1268680024 | AB13: =+AA13/(1-taxrate) -> 0.1616152897 | AC13: =debtP*Debt_Rate -> 0.02134266423 | AD13: =+AC13+AB13 -> 0.1829579539 | AE13: =+AD13/(S13/100) -> 0.06255121934 | AF13: =1-AE13 -> 0.9374487807 | AG13: =expenses/(AF13) -> 1990863.842 | AH13: =+AG13-Revenue -> 114786.0421 | AI13: =+AH13/$J$49 -> 125849.9647 | AJ13: =+AI13*$J$47 -> 3180.857858 | AK13: =ROUND(+AJ13+AG13,5) -> 1994044.7
B14: Bad Debts | C14: 0.006 | F14: 8 | H14: Net Income | I14: =+I9-SUM(I11:I13) ->  | K14: =+K9-SUM(K11:K13) -> 86591.29112 | M14: =+M9-SUM(M11:M13) -> 86591.29112 | R14: 4 | S14: =IF((AK9/Investment*100)>0,(AK9/Investment*100),0) -> 292.4930255 | T14: =EXP(y_inter4-(slope*LN(S14))) -> 6.110571862 | U14: =(+S14*T14/100)/100 -> 0.1787299652 | V14: =regDebt_weighted -> 0.03586 | W14: =+U14-V14 -> 0.1428699652 | X14: =+((W14*(1-0.34))-Pfd_weighted)/Equity_percent -> 0.2561167936 | Y14: =+Y13 -> 0.0025 | Z14: =+X14+Y14 -> 0.2586167936 | AA14: =Z14*equityP -> 0.1258137044 | AB14: =+AA14/(1-taxrate) -> 0.1602722349 | AC14: =debtP*Debt_Rate -> 0.02134266423 | AD14: =+AC14+AB14 -> 0.1816148992 | AE14: =+AD14/(S14/100) -> 0.06209204436 | AF14: =1-AE14 -> 0.9379079556 | AG14: =expenses/(AF14) -> 1989889.168 | AH14: =+AG14-Revenue -> 113811.3678 | AI14: =+AH14/$J$49 -> 124781.344 | AJ14: =+AI14*$J$47 -> 3153.848471 | AK14: =ROUND(+AJ14+AG14,5) -> 1993043.016
B15: Basis Points - Flotation | C15: 0.0025 | F15: 9 | R15: 3rd Iteration
D16: Yes | F16: 10 | H16: Operating Ratio | I16: =+I8/I7 -> 0.9948056958 | K16: =+K8/K7 -> 0.937261 | M16: =+M8/M7 -> 0.9373614071 | R16: 1 | S16: =AK11/Investment*100 -> 291.6163134 | T16: =EXP(y_inter1-(slope*LN(+S16))) -> 6.312126711 | U16: =(+S16*T16/100)/100 -> 0.1840719121 | V16: =regDebt_weighted -> 0.03586 | W16: =+U16-V16 -> 0.1482119121 | X16: =+((W16*(1-0.34))-Pfd_weighted)/Equity_percent -> 0.2663658778 | Y16: =+Y14 -> 0.0025 | Z16: =+X16+Y16 -> 0.2688658778 | AA16: =Z16*equityP -> 0.1307997505 | AB16: =+AA16/(1-taxrate) -> 0.166623886 | AC16: =debtP*Debt_Rate -> 0.02134266423 | AD16: =+AC16+AB16 -> 0.1879665502 | AE16: =+AD16/(S16/100) -> 0.06445680218 | AF16: =1-AE16 -> 0.9355431978 | AG16: =expenses/(AF16) -> 1994918.979 | AH16: =+AG16-Revenue -> 118841.1793 | AI16: =+AH16/$J$49 -> 130295.9658 | AJ16: =+AI16*$J$47 -> 3293.230535 | AK16: =ROUND(+AJ16+AG16,5) -> 1998212.21
B17: Check when input is complete | D17: No | F17: 11 | R17: 2 | S17: =AK12/Investment*100 -> 291.2759343 | T17: =EXP(y_inter2-(slope*LN(+S17))) -> 6.227289178 | U17: =(+S17*T17/100)/100 -> 0.1813859473 | V17: =regDebt_weighted -> 0.03586 | W17: =+U17-V17 -> 0.1455259473 | X17: =+((W17*(1-0.34))-Pfd_weighted)/Equity_percent -> 0.2612125734 | Y17: =+Y16 -> 0.0025 | Z17: =+X17+Y17 -> 0.2637125734 | AA17: =Z17*equityP -> 0.128292735 | AB17: =+AA17/(1-taxrate) -> 0.1634302356 | AC17: =debtP*Debt_Rate -> 0.02134266423 | AD17: =+AC17+AB17 -> 0.1847728999 | AE17: =+AD17/(S17/100) -> 0.06343569038 | AF17: =1-AE17 -> 0.9365643096 | AG17: =expenses/(AF17) -> 1992743.971 | AH17: =+AG17-Revenue -> 116666.1708 | AI17: =+AH17/$J$49 -> 127911.314 | AJ17: =+AI17*$J$47 -> 3232.958462 | AK17: =ROUND(+AJ17+AG17,5) -> 1995976.929
F18: 12 | H18: Revenue Requirement | R18: 3 | S18: =AK13/Investment*100 -> 291.0470854 | T18: =EXP(y_inter3-(slope*LN(S18))) -> 6.170059426 | U18: =(+S18*T18/100)/100 -> 0.1795777813 | V18: =regDebt_weighted -> 0.03586 | W18: =+U18-V18 -> 0.1437177813 | X18: =+((W18*(1-0.34))-Pfd_weighted)/Equity_percent -> 0.2577434175 | Y18: =+Y17 -> 0.0025 | Z18: =+X18+Y18 -> 0.2602434175 | AA18: =Z18*equityP -> 0.1266050358 | AB18: =+AA18/(1-taxrate) -> 0.1612803004 | AC18: =debtP*Debt_Rate -> 0.02134266423 | AD18: =+AC18+AB18 -> 0.1826229646 | AE18: =+AD18/(S18/100) -> 0.06274687973 | AF18: =1-AE18 -> 0.9372531203 | AG18: =expenses/(AF18) -> 1991279.454 | AH18: =+AG18-Revenue -> 115201.6537 | AI18: =+AH18/$J$49 -> 126305.6359 | AJ18: =+AI18*$J$47 -> 3192.374948 | AK18: =ROUND(+AJ18+AG18,5) -> 1994471.829
B19: For Intial input: Uncheck Checkbox Until Completed | F19: 13 | I19: Historical Revenue | J19: =+Revenue -> 1876077.8 | L19: Revenue Increase before taxes | M19: =+J7 -> 115184.9126 | R19: 4 | S19: =AK14/Investment*100 -> 290.9008815 | T19: =EXP(y_inter4-(slope*LN(S19))) -> 6.133416827 | U19: =(+S19*T19/100)/100 -> 0.1784216361 | V19: =regDebt_weighted -> 0.03586 | W19: =+U19-V19 -> 0.1425616361 | X19: =+((W19*(1-0.34))-Pfd_weighted)/Equity_percent -> 0.2555252321 | Y19: =+Y18 -> 0.0025 | Z19: =+X19+Y19 -> 0.2580252321 | AA19: =Z19*equityP -> 0.1255259174 | AB19: =+AA19/(1-taxrate) -> 0.1599056273 | AC19: =debtP*Debt_Rate -> 0.02134266423 | AD19: =+AC19+AB19 -> 0.1812482915 | AE19: =+AD19/(S19/100) -> 0.06230585849 | AF19: =1-AE19 -> 0.9376941415 | AG19: =expenses/(AF19) -> 1990342.905 | AH19: =+AG19-Revenue -> 114265.1046 | AI19: =+AH19/$J$49 -> 125278.8154 | AJ19: =+AI19*$J$47 -> 3166.42206 | AK19: =ROUND(+AJ19+AG19,5) -> 1993509.327
F20: 14 | I20: Rate Increase | J20: =+J21-J19 -> 118376.8236 | L20: Rev Sensitive Taxes | M20: =+L8 -> 3191.911033 | R20: 4th Iteration
F21: 15 | I21: Revenue Requirement | J21: =+M7 -> 1994454.624 | L21: Rate Increase | M21: =+M19+M20 -> 118376.8236 | R21: 1 | S21: =AK16/Investment*100 -> 291.6553674 | T21: =EXP(y_inter1-(slope*LN(+S21))) -> 6.311548844 | U21: =(+S21*T21/100)/100 -> 0.1840797097 | V21: =regDebt_weighted -> 0.03586 | W21: =+U21-V21 -> 0.1482197097 | X21: =+((W21*(1-0.34))-Pfd_weighted)/Equity_percent -> 0.2663808384 | Y21: =+Y19 -> 0.0025 | Z21: =+X21+Y21 -> 0.2688808384 | AA21: =Z21*equityP -> 0.1308070286 | AB21: =+AA21/(1-taxrate) -> 0.1666331575 | AC21: =debtP*Debt_Rate -> 0.02134266423 | AD21: =+AC21+AB21 -> 0.1879758217 | AE21: =+AD21/(S21/100) -> 0.06445135003 | AF21: =1-AE21 -> 0.93554865 | AG21: =expenses/(AF21) -> 1994907.353 | AH21: =+AG21-Revenue -> 118829.5534 | AI21: =+AH21/$J$49 -> 130283.2193 | AJ21: =+AI21*$J$47 -> 3292.908367 | AK21: =ROUND(+AJ21+AG21,5) -> 1998200.262
F22: 16 | R22: 2 | S22: =AK17/Investment*100 -> 291.32911 | T22: =EXP(y_inter2-(slope*LN(+S22))) -> 6.226512059 | U22: =(+S22*T22/100)/100 -> 0.1813964217 | V22: =regDebt_weighted -> 0.03586 | W22: =+U22-V22 -> 0.1455364217 | X22: =+((W22*(1-0.34))-Pfd_weighted)/Equity_percent -> 0.2612326695 | Y22: =+Y21 -> 0.0025 | Z22: =+X22+Y22 -> 0.2637326695 | AA22: =Z22*equityP -> 0.1283025114 | AB22: =+AA22/(1-taxrate) -> 0.1634426897 | AC22: =debtP*Debt_Rate -> 0.02134266423 | AD22: =+AC22+AB22 -> 0.184785354 | AE22: =+AD22/(S22/100) -> 0.06342838653 | AF22: =1-AE22 -> 0.9365716135 | AG22: =expenses/(AF22) -> 1992728.43 | AH22: =+AG22-Revenue -> 116650.6304 | AI22: =+AH22/$J$49 -> 127894.2757 | AJ22: =+AI22*$J$47 -> 3232.527818 | AK22: =ROUND(+AJ22+AG22,5) -> 1995960.958
B23: 2018 Version Update Changes | F23: 17 | R23: 3 | S23: =AK18/Investment*100 -> 291.1094283 | T23: =EXP(y_inter3-(slope*LN(S23))) -> 6.169156024 | U23: =(+S23*T23/100)/100 -> 0.1795899483 | V23: =regDebt_weighted -> 0.03586 | W23: =+U23-V23 -> 0.1437299483 | X23: =+((W23*(1-0.34))-Pfd_weighted)/Equity_percent -> 0.2577667613 | Y23: =+Y22 -> 0.0025 | Z23: =+X23+Y23 -> 0.2602667613 | AA23: =Z23*equityP -> 0.1266163922 | AB23: =+AA23/(1-taxrate) -> 0.1612947672 | AC23: =debtP*Debt_Rate -> 0.02134266423 | AD23: =+AC23+AB23 -> 0.1826374314 | AE23: =+AD23/(S23/100) -> 0.06273841162 | AF23: =1-AE23 -> 0.9372615884 | AG23: =expenses/(AF23) -> 1991261.463 | AH23: =+AG23-Revenue -> 115183.6626 | AI23: =+AH23/$J$49 -> 126285.9107 | AJ23: =+AI23*$J$47 -> 3191.876393 | AK23: =ROUND(+AJ23+AG23,5) -> 1994453.339
B24: ● Allows Income Tax Rate Changes, | F24: 18 | H24: Captial Structure Financing Investment | K24: Financing Cost | R24: 4 | S24: =AK19/Investment*100 -> 290.9689433 | T24: =EXP(y_inter4-(slope*LN(S24))) -> 6.132435933 | U24: =(+S24*T24/100)/100 -> 0.1784348403 | V24: =regDebt_weighted -> 0.03586 | W24: =+U24-V24 -> 0.1425748403 | X24: =+((W24*(1-0.34))-Pfd_weighted)/Equity_percent -> 0.2555505657 | Y24: =+Y23 -> 0.0025 | Z24: =+X24+Y24 -> 0.2580505657 | AA24: =Z24*equityP -> 0.1255382419 | AB24: =+AA24/(1-taxrate) -> 0.1599213273 | AC24: =debtP*Debt_Rate -> 0.02134266423 | AD24: =+AC24+AB24 -> 0.1812639915 | AE24: =+AD24/(S24/100) -> 0.06229668 | AF24: =1-AE24 -> 0.93770332 | AG24: =expenses/(AF24) -> 1990323.423 | AH24: =+AG24-Revenue -> 114245.6226 | AI24: =+AH24/$J$49 -> 125257.4556 | AJ24: =+AI24*$J$47 -> 3165.88219 | AK24: =ROUND(+AJ24+AG24,5) -> 1993489.305
B25: ● Minimizes impact of changes in test-year revenue from | F25: 19 | H25: Type | I25: Percent | J25: Amount | K25: Cost of Capital | L25: Weighted | M25: Amount | R25: 5th Iteration
B26: resulting revenue requirment, | F26: 20 | H26: Equity | I26: =1-I27 -> 0.4864869859 | J26: =+I26*J28 -> 333305.793 | K26: =+K34 -> 0.2597953379 | L26: =+K26*I26 -> 0.1263870509 | M26: =+J26*K26 -> 86591.29112 | R26: 1 | S26: =AK21/Investment*100 -> 291.6536235 | T26: =EXP(y_inter1-(slope*LN(+S26))) -> 6.311574645 | U26: =(+S26*T26/100)/100 -> 0.1840793615 | V26: =regDebt_weighted -> 0.03586 | W26: =+U26-V26 -> 0.1482193615 | X26: =+((W26*(1-0.34))-Pfd_weighted)/Equity_percent -> 0.2663801704 | Y26: =+Y24 -> 0.0025 | Z26: =+X26+Y26 -> 0.2688801704 | AA26: =Z26*equityP -> 0.1308067036 | AB26: =+AA26/(1-taxrate) -> 0.1666327435 | AC26: =debtP*Debt_Rate -> 0.02134266423 | AD26: =+AC26+AB26 -> 0.1879754077 | AE26: =+AD26/(S26/100) -> 0.06445159346 | AF26: =1-AE26 -> 0.9355484065 | AG26: =expenses/(AF26) -> 1994907.872 | AH26: =+AG26-Revenue -> 118830.0725 | AI26: =+AH26/$J$49 -> 130283.7884 | AJ26: =+AI26*$J$47 -> 3292.922752 | AK26: =ROUND(+AJ26+AG26,5) -> 1998200.795
B27: ● Corrects interest rate transposition in LG. | F27: 21 | H27: Debt | I27: =IF(A64=TRUE,C8,0) -> 0.5135130141 | J27: =+I27*J28 -> 351822.0782 | K27: =IF(A64=TRUE,C9,0) -> 0.04156207076 | L27: =+K27*I27 -> 0.02134266423 | M27: =+K27*J27 -> 14622.45411 | R27: 2 | S27: =AK22/Investment*100 -> 291.3267789 | T27: =EXP(y_inter2-(slope*LN(+S27))) -> 6.226546121 | U27: =(+S27*T27/100)/100 -> 0.1813959625 | V27: =regDebt_weighted -> 0.03586 | W27: =+U27-V27 -> 0.1455359625 | X27: =+((W27*(1-0.34))-Pfd_weighted)/Equity_percent -> 0.2612317885 | Y27: =+Y26 -> 0.0025 | Z27: =+X27+Y27 -> 0.2637317885 | AA27: =Z27*equityP -> 0.1283020829 | AB27: =+AA27/(1-taxrate) -> 0.1634421438 | AC27: =debtP*Debt_Rate -> 0.02134266423 | AD27: =+AC27+AB27 -> 0.184784808 | AE27: =+AD27/(S27/100) -> 0.06342870667 | AF27: =1-AE27 -> 0.9365712933 | AG27: =expenses/(AF27) -> 1992729.112 | AH27: =+AG27-Revenue -> 116651.3116 | AI27: =+AH27/$J$49 -> 127895.0225 | AJ27: =+AI27*$J$47 -> 3232.546694 | AK27: =ROUND(+AJ27+AG27,5) -> 1995961.658
F28: 22 | H28: Total | I28: =SUM(I26:I27) -> 1 | J28: =IF(A64=TRUE,C7,0) -> 685127.8711 | L28: =SUM(L26:L27) -> 0.1477297151 | M28: =SUM(M26:M27) -> 101213.7452 | R28: 3 | S28: =AK23/Investment*100 -> 291.1067296 | T28: =EXP(y_inter3-(slope*LN(S28))) -> 6.169195124 | U28: =(+S28*T28/100)/100 -> 0.1795894217 | V28: =regDebt_weighted -> 0.03586 | W28: =+U28-V28 -> 0.1437294217 | X28: =+((W28*(1-0.34))-Pfd_weighted)/Equity_percent -> 0.2577657508 | Y28: =+Y27 -> 0.0025 | Z28: =+X28+Y28 -> 0.2602657508 | AA28: =Z28*equityP -> 0.1266159007 | AB28: =+AA28/(1-taxrate) -> 0.161294141 | AC28: =debtP*Debt_Rate -> 0.02134266423 | AD28: =+AC28+AB28 -> 0.1826368052 | AE28: =+AD28/(S28/100) -> 0.06273877813 | AF28: =1-AE28 -> 0.9372612219 | AG28: =expenses/(AF28) -> 1991262.241 | AH28: =+AG28-Revenue -> 115184.4412 | AI28: =+AH28/$J$49 -> 126286.7644 | AJ28: =+AI28*$J$47 -> 3191.897971 | AK28: =ROUND(+AJ28+AG28,5) -> 1994454.139
F29: 23 | R29: 4 | S29: =AK24/Investment*100 -> 290.9660209 | T29: =EXP(y_inter4-(slope*LN(S29))) -> 6.132478041 | U29: =(+S29*T29/100)/100 -> 0.1784342734 | V29: =regDebt_weighted -> 0.03586 | W29: =+U29-V29 -> 0.1425742734 | X29: =+((W29*(1-0.34))-Pfd_weighted)/Equity_percent -> 0.255549478 | Y29: =+Y28 -> 0.0025 | Z29: =+X29+Y29 -> 0.258049478 | AA29: =Z29*equityP -> 0.1255377128 | AB29: =+AA29/(1-taxrate) -> 0.1599206532 | AC29: =debtP*Debt_Rate -> 0.02134266423 | AD29: =+AC29+AB29 -> 0.1812633174 | AE29: =+AD29/(S29/100) -> 0.06229707403 | AF29: =1-AE29 -> 0.937702926 | AG29: =expenses/(AF29) -> 1990324.259 | AH29: =+AG29-Revenue -> 114246.459 | AI29: =+AH29/$J$49 -> 125258.3726 | AJ29: =+AI29*$J$47 -> 3165.905366 | AK29: =ROUND(+AJ29+AG29,5) -> 1993490.164
F30: 24 | J30: Before | K30: After | R30: 6th Iteration
F31: 25 | H31: Operating Statistics | J31: Income Tax | K31: Income Tax | R31: 1 | S31: =AK26/Investment*100 -> 291.6537014 | T31: =EXP(y_inter1-(slope*LN(+S31))) -> 6.311573493 | U31: =(+S31*T31/100)/100 -> 0.1840793771 | V31: =regDebt_weighted -> 0.03586 | W31: =+U31-V31 -> 0.1482193771 | X31: =+((W31*(1-0.34))-Pfd_weighted)/Equity_percent -> 0.2663802002 | Y31: =+Y29 -> 0.0025 | Z31: =+X31+Y31 -> 0.2688802002 | AA31: =Z31*equityP -> 0.1308067182 | AB31: =+AA31/(1-taxrate) -> 0.166632762 | AC31: =debtP*Debt_Rate -> 0.02134266423 | AD31: =+AC31+AB31 -> 0.1879754262 | AE31: =+AD31/(S31/100) -> 0.06445158259 | AF31: =1-AE31 -> 0.9355484174 | AG31: =expenses/(AF31) -> 1994907.849 | AH31: =+AG31-Revenue -> 118830.0493 | AI31: =+AH31/$J$49 -> 130283.763 | AJ31: =+AI31*$J$47 -> 3292.92211 | AK31: =ROUND(+AJ31+AG31,5) -> 1998200.771
F32: 26 | R32: 2 | S32: =AK27/Investment*100 -> 291.3268811 | T32: =EXP(y_inter2-(slope*LN(+S32))) -> 6.226544628 | U32: =(+S32*T32/100)/100 -> 0.1813959826 | V32: =regDebt_weighted -> 0.03586 | W32: =+U32-V32 -> 0.1455359826 | X32: =+((W32*(1-0.34))-Pfd_weighted)/Equity_percent -> 0.2612318272 | Y32: =+Y31 -> 0.0025 | Z32: =+X32+Y32 -> 0.2637318272 | AA32: =Z32*equityP -> 0.1283021017 | AB32: =+AA32/(1-taxrate) -> 0.1634421677 | AC32: =debtP*Debt_Rate -> 0.02134266423 | AD32: =+AC32+AB32 -> 0.184784832 | AE32: =+AD32/(S32/100) -> 0.06342869264 | AF32: =1-AE32 -> 0.9365713074 | AG32: =expenses/(AF32) -> 1992729.082 | AH32: =+AG32-Revenue -> 116651.2817 | AI32: =+AH32/$J$49 -> 127894.9898 | AJ32: =+AI32*$J$47 -> 3232.545867 | AK32: =ROUND(+AJ32+AG32,5) -> 1995961.628
F33: 27 | H33: Return on Investment | J33: =+K9/J28 -> 0.1823452768 | K33: =+(M14+M11)/J28 -> 0.1477297151 | R33: 3 | S33: =AK28/Investment*100 -> 291.1068464 | T33: =EXP(y_inter3-(slope*LN(S33))) -> 6.169193432 | U33: =(+S33*T33/100)/100 -> 0.1795894444 | V33: =regDebt_weighted -> 0.03586 | W33: =+U33-V33 -> 0.1437294444 | X33: =+((W33*(1-0.34))-Pfd_weighted)/Equity_percent -> 0.2577657946 | Y33: =+Y32 -> 0.0025 | Z33: =+X33+Y33 -> 0.2602657946 | AA33: =Z33*equityP -> 0.1266159219 | AB33: =+AA33/(1-taxrate) -> 0.1612941681 | AC33: =debtP*Debt_Rate -> 0.02134266423 | AD33: =+AC33+AB33 -> 0.1826368323 | AE33: =+AD33/(S33/100) -> 0.06273876227 | AF33: =1-AE33 -> 0.9372612377 | AG33: =expenses/(AF33) -> 1991262.208 | AH33: =+AG33-Revenue -> 115184.4075 | AI33: =+AH33/$J$49 -> 126286.7275 | AJ33: =+AI33*$J$47 -> 3191.897037 | AK33: =ROUND(+AJ33+AG33,5) -> 1994454.105
F34: 28 | H34: Return on Equity | J34: =+(M9-M11)/J26 -> 0.3309494751 | K34: =+M14/J26 -> 0.2597953379 | R34: 4 | S34: =AK29/Investment*100 -> 290.9661464 | T34: =EXP(y_inter4-(slope*LN(S34))) -> 6.132476234 | U34: =(+S34*T34/100)/100 -> 0.1784342977 | V34: =regDebt_weighted -> 0.03586 | W34: =+U34-V34 -> 0.1425742977 | X34: =+((W34*(1-0.34))-Pfd_weighted)/Equity_percent -> 0.2555495247 | Y34: =+Y33 -> 0.0025 | Z34: =+X34+Y34 -> 0.2580495247 | AA34: =Z34*equityP -> 0.1255377355 | AB34: =+AA34/(1-taxrate) -> 0.1599206822 | AC34: =debtP*Debt_Rate -> 0.02134266423 | AD34: =+AC34+AB34 -> 0.1812633464 | AE34: =+AD34/(S34/100) -> 0.06229705711 | AF34: =1-AE34 -> 0.9377029429 | AG34: =expenses/(AF34) -> 1990324.223 | AH34: =+AG34-Revenue -> 114246.4231 | AI34: =+AH34/$J$49 -> 125258.3332 | AJ34: =+AI34*$J$47 -> 3165.904371 | AK34: =ROUND(+AJ34+AG34,5) -> 1993490.127
F35: 29 | H35: Operating Ratio | J35: =+K8/K7 -> 0.937261 | K35: =+M8/M7 -> 0.9373614071 | R35: 7th Iteration
F36: 30 | H36: Profit Margin | J36: =+K9/K7 -> 0.062739 | K36: =+J36 -> 0.062739 | R36: 1 | S36: =AK31/Investment*100 -> 291.6536979 | T36: =EXP(y_inter1-(slope*LN(+S36))) -> 6.311573545 | U36: =(+S36*T36/100)/100 -> 0.1840793764 | V36: =regDebt_weighted -> 0.03586 | W36: =+U36-V36 -> 0.1482193764 | X36: =+((W36*(1-0.34))-Pfd_weighted)/Equity_percent -> 0.2663801989 | Y36: =+Y34 -> 0.0025 | Z36: =+X36+Y36 -> 0.2688801989 | AA36: =Z36*equityP -> 0.1308067175 | AB36: =+AA36/(1-taxrate) -> 0.1666327612 | AC36: =debtP*Debt_Rate -> 0.02134266423 | AD36: =+AC36+AB36 -> 0.1879754254 | AE36: =+AD36/(S36/100) -> 0.06445158308 | AF36: =1-AE36 -> 0.9355484169 | AG36: =expenses/(AF36) -> 1994907.85 | AH36: =+AG36-Revenue -> 118830.0503 | AI36: =+AH36/$J$49 -> 130283.7641 | AJ36: =+AI36*$J$47 -> 3292.922138 | AK36: =ROUND(+AJ36+AG36,5) -> 1998200.772
F37: 31 | H37: Final turnover | J37: =+S39/100 -> 2.90966141 | K37: =+J37 -> 2.90966141 | R37: 2 | S37: =AK32/Investment*100 -> 291.3268766 | T37: =EXP(y_inter2-(slope*LN(+S37))) -> 6.226544694 | U37: =(+S37*T37/100)/100 -> 0.1813959818 | V37: =regDebt_weighted -> 0.03586 | W37: =+U37-V37 -> 0.1455359818 | X37: =+((W37*(1-0.34))-Pfd_weighted)/Equity_percent -> 0.2612318255 | Y37: =+Y36 -> 0.0025 | Z37: =+X37+Y37 -> 0.2637318255 | AA37: =Z37*equityP -> 0.1283021008 | AB37: =+AA37/(1-taxrate) -> 0.1634421667 | AC37: =debtP*Debt_Rate -> 0.02134266423 | AD37: =+AC37+AB37 -> 0.1847848309 | AE37: =+AD37/(S37/100) -> 0.06342869325 | AF37: =1-AE37 -> 0.9365713067 | AG37: =expenses/(AF37) -> 1992729.083 | AH37: =+AG37-Revenue -> 116651.283 | AI37: =+AH37/$J$49 -> 127894.9912 | AJ37: =+AI37*$J$47 -> 3232.545903 | AK37: =ROUND(+AJ37+AG37,5) -> 1995961.629
F38: 32 | H38: Tax Rate | J38: =+C10 -> 0.215 | K38: =+J38 -> 0.215 | R38: 3 | S38: =AK33/Investment*100 -> 291.1068413 | T38: =EXP(y_inter3-(slope*LN(S38))) -> 6.169193505 | U38: =(+S38*T38/100)/100 -> 0.1795894435 | V38: =regDebt_weighted -> 0.03586 | W38: =+U38-V38 -> 0.1437294435 | X38: =+((W38*(1-0.34))-Pfd_weighted)/Equity_percent -> 0.2577657927 | Y38: =+Y37 -> 0.0025 | Z38: =+X38+Y38 -> 0.2602657927 | AA38: =Z38*equityP -> 0.126615921 | AB38: =+AA38/(1-taxrate) -> 0.1612941669 | AC38: =debtP*Debt_Rate -> 0.02134266423 | AD38: =+AC38+AB38 -> 0.1826368311 | AE38: =+AD38/(S38/100) -> 0.06273876296 | AF38: =1-AE38 -> 0.937261237 | AG38: =expenses/(AF38) -> 1991262.209 | AH38: =+AG38-Revenue -> 115184.409 | AI38: =+AH38/$J$49 -> 126286.7291 | AJ38: =+AI38*$J$47 -> 3191.897078 | AK38: =ROUND(+AJ38+AG38,5) -> 1994454.106
F39: 33 | R39: 4 | S39: =AK34/Investment*100 -> 290.966141 | T39: =EXP(y_inter4-(slope*LN(S39))) -> 6.132476311 | U39: =(+S39*T39/100)/100 -> 0.1784342967 | V39: =regDebt_weighted -> 0.03586 | W39: =+U39-V39 -> 0.1425742967 | X39: =+((W39*(1-0.34))-Pfd_weighted)/Equity_percent -> 0.2555495227 | Y39: =+Y38 -> 0.0025 | Z39: =+X39+Y39 -> 0.2580495227 | AA39: =Z39*equityP -> 0.1255377345 | AB39: =+AA39/(1-taxrate) -> 0.1599206809 | AC39: =debtP*Debt_Rate -> 0.02134266423 | AD39: =+AC39+AB39 -> 0.1812633451 | AE39: =+AD39/(S39/100) -> 0.06229705784 | AF39: =1-AE39 -> 0.9377029422 | AG39: =expenses/(AF39) -> 1990324.225 | AH39: =+AG39-Revenue -> 114246.4246 | AI39: =+AH39/$J$49 -> 125258.3349 | AJ39: =+AI39*$J$47 -> 3165.904414 | AK39: =ROUND(+AJ39+AG39,5) -> 1993490.129
F40: 34
F41: 35 | H41: Revenue Sensitive Taxes Charges | R41: Curve
F42: 36 | J42: Rate | K42: Taxes | R42: Lookup Table
F43: 37 | H43: B & O Tax | J43: =IF(A64=TRUE,C11,0) -> 0.015 | K43: =+J43*($J$7/$J$49) -> 1894.309219 | R43: 0 | S43: 1 | U43: Profit Margin | V43: =VLOOKUP(R48,R36:AG39,14) -> 0.06273876296
F44: 38 | H44: WUTC Fee | J44: =IF(A64=TRUE,C12,0) -> 0.004275 | K44: =+J44*($J$7/$J$49) -> 539.8781273 | R44: 50 | S44: 2 | U44: Operating Ratio | V44: =ROUND(1-V43,6) -> 0.937261
F45: 39 | H45: City Tax | J45: =IF(A64=TRUE,C13,0) -> 0 | K45: =+J45*($J$7/$J$49) -> 0 | R45: 125 | S45: 3 | U45: Percent Chg | V45: =+M7/Revenue-1 -> 0.0630980355
F46: 40 | H46: Bad Debts | J46: =IF(A64=TRUE,C14,0) -> 0.006 | K46: =+J46*($J$7/$J$49) -> 757.7236874 | R46: 401 | S46: 4
F47: 41 | H47: Revenue Sensitive | J47: =SUM(J43:J46) -> 0.025275 | K47: =+K43+K44+K45+K46 -> 3191.911033 | R47: =VLOOKUP(R48,R36:S39,2) -> 291.1068413 | S47: Curve turnover | X47: @EXP(5.72260-(.68367*@LN(T)))
F48: 42 | R48: =VLOOKUP(S36,R43:S46,2) -> 3 | S48: Curve No. Used | X48: @EXP(5.70827-(.68367*@LN(T)))
F49: 43 | H49: Conversion Factor | J49: =((K35)-J47) -> 0.9120864071 | X49: @EXP(5.69850-(.68367*@LN(T)))
R50: =+V44 -> 0.937261 | S50: Operating Ratio | X50: @EXP(5.69220-(.68367*@LN(T)))
S53: Base Utility from LG Sample Study | W53: Regression Results
S54: Percent | T54: Cost | U54: Weighted | W54: Y intercept (1) | X54: 5.7226 | Y54: Y intercept (3) | Z54: 5.6985
R55: Debt | S55: 0.562 | T55: 0.0638 | U55: =ROUND(+S55*T55,5) -> 0.03586 | W55: Y intercept (2) | X55: 5.70827 | Y55: Y intercept (4) | Z55: 5.6922
R56: Pfd. | S56: 0.094 | T56: 0.0659 | U56: =ROUND(+S56*T56,5) -> 0.00619
R57: Equity | S57: 0.344 | X57: Slope | Y57: 0.68367
S58: =SUM(S55:S57) -> 1
X60: Operating Statistics | Y60: Pre-tax | Z60: After Tax
X62: Return on Investment | Y62: =+J33 -> 0.1823452768 | Z62: 0.1477297151
X63: Return on Equity | Y63: 0.3309494751 | Z63: 0.2597953379
A64: TRUE | X64: Operating Ratio | Y64: 0.937261 | Z64: 0.9373614071
X65: Profit Margin | Y65: 0.062739 | Z65: 0.062739
X66: Final turnover | Y66: 2.90966141 | Z66: 2.90966141
X67: Tax Rate | Y67: 0.215 | Z67: 0.215

Sheet Combined LG
B1: NEW IMPROVED LURITO - GALLAGHER FORMULA | AE1: !??! | AF1: OP/RATIO | AI1: curve
G2: NOTE: | N2: FORMULAS | U2: 1st Revenue | V2: 1st Turnover | W2: M | X2: ROR | Y2: ROE | AA2: Adj ROE | AB2: Pre Tax ROE | AC2: Adj M | AD2: Revenues | AE2: Decision | AI2: lookup table
B3: !!! | C3: Revenue Requirement | E3: =E5+E4 ->  | F3: !!!<-- | H3: Red numbers are linked fields. | N3: 1. less than 50 | Q3: @EXP(5.72260-(.68367*@LN(T))) | U3: =$E$6*1.25 -> 2332916.102 | V3: ='Combined LG 2018 V5.0c'!S6 -> 273.8288543 | W3: =EXP(5.7226-(0.68367*LN(+V3))) -> 6.589647615 | X3: =(+W3*V3)/100 -> 18.04435657 | Y3: ='Combined LG 2018 V5.0c'!X6 -> 0.2594045155 | Z3: =+$E$18 -> 0.25 | AA3: =Y3+Z3 -> 0.5094045155 | AB3: =100*($E$15*$E$17+($E$16*(AA3/100))/(1-$E$19)) -> 2.278447204 | AC3: ='Combined LG 2018 V5.0c'!AE6 -> 0.06706831356 | AD3: =$E$6/(1-AC3) -> 2000503.261 | AE3: =IF(AD3=$U$3,"yes","not yet") -> not yet | AF3: =100*(1-AC3) -> 93.29316864 | AI3: 0 | AJ3: 1
B4: !!! | C4: Revenue Deficiency | E4: =SUM('MSW:MF RCY'!E4) ->  | F4: !!!<-- | H4: Yellow cells are input fields. | N4: 2. Between 50 and 125 | Q4: @EXP(5.70827-(.68367*@LN(T))) | U4: =$E$6*1.25 -> 2332916.102 | V4: ='Combined LG 2018 V5.0c'!S7 -> 273.8288543 | W4: ='Combined LG 2018 V5.0c'!T7 -> 6.589647615 | X4: =(+W4*V4)/100 -> 18.04435657 | Y4: ='Combined LG 2018 V5.0c'!X7 -> 0.2594045155 | Z4: =+$E$18 -> 0.25 | AA4: =Y4+Z4 -> 0.5094045155 | AB4: =100*($E$15*$E$17+($E$16*(AA4/100))/(1-$E$19)) -> 2.278447204 | AC4: ='Combined LG 2018 V5.0c'!AE7 -> 0.06706831356 | AD4: =$E$6/(1-AC4) -> 2000503.261 | AE4: =IF(AD4=$U$4,"yes","not yet") -> not yet | AF4: =100*(1-AC4) -> 93.29316864 | AI4: 50 | AJ4: 2
B5: * | C5: Revenue | E5: =SUM('MSW:MF RCY'!E5) -> 1876077.8 | F5: * p/f before rates | H5: Black are formula calculations | N5: 3. Between 125 and 140 | Q5: @EXP(5.69850-(.68367*@LN(T))) | U5: =$E$6*1.25 -> 2332916.102 | V5: ='Combined LG 2018 V5.0c'!S8 -> 273.8288543 | W5: ='Combined LG 2018 V5.0c'!T8 -> 6.589647615 | X5: =(+W5*V5)/100 -> 18.04435657 | Y5: ='Combined LG 2018 V5.0c'!X8 -> 0.2594045155 | Z5: =+$E$18 -> 0.25 | AA5: =Y5+Z5 -> 0.5094045155 | AB5: =100*($E$15*$E$17+($E$16*(AA5/100))/(1-$E$19)) -> 2.278447204 | AC5: ='Combined LG 2018 V5.0c'!AE8 -> 0.06706831356 | AD5: =$E$6/(1-AC5) -> 2000503.261 | AE5: =IF(AD5=$U$5,"yes","not yet") -> not yet | AF5: =100*(1-AC5) -> 93.29316864 | AI5: 125 | AJ5: 3
B6: * | C6: Expenses | E6: =SUM('MSW:MF RCY'!E6) -> 1866332.881 | F6: * p/f before rates | N6: 4. greater than 400 | Q6: @EXP(5.69220-(.68367*@LN(T))) | U6: =$E$6*1.25 -> 2332916.102 | V6: ='Combined LG 2018 V5.0c'!S9 -> 273.8288543 | W6: ='Combined LG 2018 V5.0c'!T9 -> 6.589647615 | X6: =(+W6*V6)/100 -> 18.04435657 | Y6: ='Combined LG 2018 V5.0c'!X9 -> 0.2594045155 | Z6: =+$E$18 -> 0.25 | AA6: =Y6+Z6 -> 0.5094045155 | AB6: =100*($E$15*$E$17+($E$16*(AA6/100))/(1-$E$19)) -> 2.278447204 | AC6: ='Combined LG 2018 V5.0c'!AE9 -> 0.06706831356 | AD6: =$E$6/(1-AC6) -> 2000503.261 | AE6: =IF(AD6=$U$6,"yes","not yet") -> not yet | AF6: =100*(1-AC6) -> 93.29316864 | AI6: 401 | AJ6: 4
B7: * | C7: Avg. Investment - | E7: =SUM('MSW:MF RCY'!E7) -> 685127.8711 | F7: * p/f before rates
C8: curve turnover | E8: =V3 -> 273.8288543 | F8: (calculated) | V8: 2nd Turnover | W8: M | X8: ROR | Y8: ROE | AI8: lookup tables
C9: final turnover | E9: =HLOOKUP($AJ$32,$AJ$26:$AR$30,$E$10+1) -> 291.1068413 | F9: (calculated) | V9: ='Combined LG 2018 V5.0c'!S11 -> 292.4930255 | W9: ='Combined LG 2018 V5.0c'!T11 -> 6.299185651 | X9: =(+W9*V9)/100 -> 18.42467869 | Y9: ='Combined LG 2018 V5.0c'!X11 -> 0.2667013935 | Z9: =+$E$18 -> 0.25 | AA9: =Y9+Z9 -> 0.5167013935 | AB9: =100*($E$15*$E$17+($E$16*(AA9/100))/(1-$E$19)) -> 2.282046529 | AC9: ='Combined LG 2018 V5.0c'!AE11 -> 0.0643346892 | AD9: =$E$6/(1-AC9) -> 1994658.624 | AE9: =IF(OR(OR(AD9=AD3,AD9=(AD3+1)),AD9=(AD8187-1)),"yes","not yet") -> not yet | AF9: =100*(1-AC9) -> 93.56653108
C10: curve No. used | E10: =VLOOKUP(E8,AI3:AJ6,2) -> 3 | F10: (calculated) | V10: ='Combined LG 2018 V5.0c'!S12 -> 292.4930255 | W10: ='Combined LG 2018 V5.0c'!T12 -> 6.209562007 | X10: =(+W10*V10)/100 -> 18.16253579 | Y10: ='Combined LG 2018 V5.0c'!X12 -> 0.2616719075 | Z10: =+$E$18 -> 0.25 | AA10: =Y10+Z10 -> 0.5116719075 | AB10: =100*($E$15*$E$17+($E$16*(AA10/100))/(1-$E$19)) -> 2.279565639 | AC10: ='Combined LG 2018 V5.0c'!AE12 -> 0.06326905131 | AD10: =$E$6/(1-AC10) -> 1992389.473 | AE10: =IF(OR(OR(AD10=AD4,AD10=(AD4+1)),AD10=(AD4-1)),"yes","not yet") -> not yet | AF10: =100*(1-AC10) -> 93.67309487
V11: ='Combined LG 2018 V5.0c'!S13 -> 292.4930255 | W11: ='Combined LG 2018 V5.0c'!T13 -> 6.149189984 | X11: =(+W11*V11)/100 -> 17.98595183 | Y11: ='Combined LG 2018 V5.0c'!X13 -> 0.2582839595 | Z11: =+$E$18 -> 0.25 | AA11: =Y11+Z11 -> 0.5082839595 | AB11: =100*($E$15*$E$17+($E$16*(AA11/100))/(1-$E$19)) -> 2.277894468 | AC11: ='Combined LG 2018 V5.0c'!AE13 -> 0.06255121934 | AD11: =$E$6/(1-AC11) -> 1990863.842 | AE11: =IF(OR(OR(AD11=AD5,AD11=(AD5+1)),AD11=(AD5-1)),"yes","not yet") -> not yet | AF11: =100*(1-AC11) -> 93.74487807 | AJ11: 1 | AK11: 2 | AL11: 3 | AM11: 4 | AN11: 5 | AO11: 6 | AP11: 7 | AQ11: 8 | AR11: 9
C12: Company actual | V12: ='Combined LG 2018 V5.0c'!S14 -> 292.4930255 | W12: ='Combined LG 2018 V5.0c'!T14 -> 6.110571862 | X12: =(+W12*V12)/100 -> 17.87299652 | Y12: ='Combined LG 2018 V5.0c'!X14 -> 0.2561167936 | Z12: =+$E$18 -> 0.25 | AA12: =Y12+Z12 -> 0.5061167936 | AB12: =100*($E$15*$E$17+($E$16*(AA12/100))/(1-$E$19)) -> 2.276825472 | AC12: ='Combined LG 2018 V5.0c'!AE14 -> 0.06209204436 | AD12: =$E$6/(1-AC12) -> 1989889.168 | AE12: =IF(OR(OR(AD12=AD6,AD12=(AD6+1)),AD12=(AD6-1)),"yes","not yet") -> not yet | AF12: =100*(1-AC12) -> 93.79079556 | AJ12: =AE3 -> not yet | AK12: =AE9 -> not yet | AL12: =AE15 -> not yet | AM12: =AE21 -> not yet | AN12: =AE27 -> not yet | AO12: =AE33 -> not yet | AP12: =AE39 -> yes | AQ12: =AE45 -> 0 | AR12: =AE51 -> 0
C13: capital structure: | E13: !!! | F13: OPERATING RATIO -> | H13: =HLOOKUP($AJ$23,$AJ$17:$AR$21,$E$10+1) -> 93.7261237 | I13: !!!<-- | AJ13: =AE4 -> not yet | AK13: =AE10 -> not yet | AL13: =AE16 -> not yet | AM13: =AE22 -> not yet | AN13: =AE28 -> not yet | AO13: =AE34 -> not yet | AP13: =AE40 -> yes | AQ13: =AE46 -> 0 | AR13: =AE52 -> 0
C14: - | D14: - | H14: = | V14: 3rd Turnover | W14: M | X14: ROR | Y14: ROE | AJ14: =AE5 -> not yet | AK14: =AE11 -> not yet | AL14: =AE17 -> not yet | AM14: =AE23 -> not yet | AN14: =AE29 -> not yet | AO14: =AE35 -> not yet | AP14: =AE41 -> yes | AQ14: =AE47 -> 0 | AR14: =AE53 -> 0
B15: * | C15: Actual Debt Ratio | E15: =+'RS Cap Struct.'!C41 -> 0.5077173987 | F15: Conversion factor data: | V15: ='Combined LG 2018 V5.0c'!S16 -> 291.6163134 | W15: ='Combined LG 2018 V5.0c'!T16 -> 6.312126711 | X15: =(+W15*V15)/100 -> 18.40719121 | Y15: ='Combined LG 2018 V5.0c'!X16 -> 0.2663658778 | Z15: =+$E$18 -> 0.25 | AA15: =Y15+Z15 -> 0.5163658778 | AB15: =100*($E$15*$E$17+($E$16*(AA15/100))/(1-$E$19)) -> 2.281881029 | AC15: ='Combined LG 2018 V5.0c'!AE16 -> 0.06445680218 | AD15: =$E$6/(1-AC15) -> 1994918.979 | AE15: =IF(OR(OR(AD15=AD9,AD15=(AD9+1)),AD15=(AD1-1)),"yes","not yet") -> not yet | AF15: =100*(1-AC15) -> 93.55431978 | AJ15: =AE6 -> not yet | AK15: =AE12 -> not yet | AL15: =AE18 -> not yet | AM15: =AE24 -> not yet | AN15: =AE30 -> not yet | AO15: =AE36 -> not yet | AP15: =AE42 -> yes | AQ15: =AE48 -> 0 | AR15: =AE54 -> 0
B16: * | C16: Actual Equity Ratio | E16: =1-E15 -> 0.4922826013 | F16: B & O Tax | H16: 0.015 | I16: * | V16: ='Combined LG 2018 V5.0c'!S17 -> 291.2759343 | W16: ='Combined LG 2018 V5.0c'!T17 -> 6.227289178 | X16: =(+W16*V16)/100 -> 18.13859473 | Y16: ='Combined LG 2018 V5.0c'!X17 -> 0.2612125734 | Z16: =+$E$18 -> 0.25 | AA16: =Y16+Z16 -> 0.5112125734 | AB16: =100*($E$15*$E$17+($E$16*(AA16/100))/(1-$E$19)) -> 2.279339063 | AC16: ='Combined LG 2018 V5.0c'!AE17 -> 0.06343569038 | AD16: =$E$6/(1-AC16) -> 1992743.971 | AE16: =IF(OR(OR(AD16=AD10,AD16=(AD10+1)),AD16=(AD10-1)),"yes","not yet") -> not yet | AF16: =100*(1-AC16) -> 93.65643096
B17: * | C17: Actual Cost of Debt | E17: =+'RS Cap Struct.'!C52 -> 0.03992720522 | F17: WUTC Fee | H17: 0.004275 | I17: * | V17: ='Combined LG 2018 V5.0c'!S18 -> 291.0470854 | W17: ='Combined LG 2018 V5.0c'!T18 -> 6.170059426 | X17: =(+W17*V17)/100 -> 17.95777813 | Y17: ='Combined LG 2018 V5.0c'!X18 -> 0.2577434175 | Z17: =+$E$18 -> 0.25 | AA17: =Y17+Z17 -> 0.5077434175 | AB17: =100*($E$15*$E$17+($E$16*(AA17/100))/(1-$E$19)) -> 2.277627836 | AC17: ='Combined LG 2018 V5.0c'!AE18 -> 0.06274687973 | AD17: =$E$6/(1-AC17) -> 1991279.454 | AE17: =IF(OR(OR(AD17=AD11,AD17=(AD11+1)),AD17=(AD11-1)),"yes","not yet") -> not yet | AF17: =100*(1-AC17) -> 93.72531203 | AJ17: =HLOOKUP(1,$AJ$11:$AR$15,$E$10+1) -> not yet | AK17: =HLOOKUP(2,$AJ$11:$AR$15,$E$10+1) -> not yet | AL17: =HLOOKUP(3,$AJ$11:$AR$15,$E$10+1) -> not yet | AM17: =HLOOKUP(4,$AJ$11:$AR$15,$E$10+1) -> not yet | AN17: =HLOOKUP(5,$AJ$11:$AR$15,$E$10+1) -> not yet | AO17: =HLOOKUP(6,$AJ$11:$AR$15,$E$10+1) -> not yet | AP17: =HLOOKUP(7,$AJ$11:$AR$15,$E$10+1) -> yes | AQ17: =HLOOKUP(8,$AJ$11:$AR$15,$E$10+1) -> 0 | AR17: =HLOOKUP(9,$AJ$11:$AR$15,$E$10+1) -> 0
B18: * | C18: Basis Points | E18: 0.25 | F18: City Tax | H18: 0 | I18: * | V18: ='Combined LG 2018 V5.0c'!S19 -> 290.9008815 | W18: ='Combined LG 2018 V5.0c'!T19 -> 6.133416827 | X18: =(+W18*V18)/100 -> 17.84216361 | Y18: ='Combined LG 2018 V5.0c'!X19 -> 0.2555252321 | Z18: =+$E$18 -> 0.25 | AA18: =Y18+Z18 -> 0.5055252321 | AB18: =100*($E$15*$E$17+($E$16*(AA18/100))/(1-$E$19)) -> 2.276533673 | AC18: ='Combined LG 2018 V5.0c'!AE19 -> 0.06230585849 | AD18: =$E$6/(1-AC18) -> 1990342.905 | AE18: =IF(OR(OR(AD18=AD12,AD18=(AD12+1)),AD18=(AD12-1)),"yes","not yet") -> not yet | AF18: =100*(1-AC18) -> 93.76941415 | AI18: 1 | AJ18: =AF3 -> 93.29316864 | AK18: =AF9 -> 93.56653108 | AL18: =AF15 -> 93.55431978 | AM18: =AF21 -> 93.554865 | AN18: =AF27 -> 93.55484065 | AO18: =AF33 -> 93.55484174 | AP18: =AF39 -> 93.55484169 | AQ18: =AF45 -> 0 | AR18: =AF51 -> 0
B19: * | C19: Tax Rate | E19: =+'RS Cap Struct.'!C59 -> 0.002 | F19: Bad Debts | H19: 0.006 | I19: * | AI19: 2 | AJ19: =AF4 -> 93.29316864 | AK19: =AF10 -> 93.67309487 | AL19: =AF16 -> 93.65643096 | AM19: =AF22 -> 93.65716135 | AN19: =AF28 -> 93.65712933 | AO19: =AF34 -> 93.65713074 | AP19: =AF40 -> 93.65713067 | AQ19: =AF46 -> 0 | AR19: =AF52 -> 0
H20: - | V20: 4th Turnover | W20: M | X20: ROR | Y20: ROE | AI20: 3 | AJ20: =AF5 -> 93.29316864 | AK20: =AF11 -> 93.74487807 | AL20: =AF17 -> 93.72531203 | AM20: =AF23 -> 93.72615884 | AN20: =AF29 -> 93.72612219 | AO20: =AF35 -> 93.72612377 | AP20: =AF41 -> 93.7261237 | AQ20: =AF47 -> 0 | AR20: =AF53 -> 0
F21: Revenue Sensitive | H21: =SUM(H16:H19) -> 0.025275 | V21: ='Combined LG 2018 V5.0c'!S21 -> 291.6553674 | W21: ='Combined LG 2018 V5.0c'!T21 -> 6.311548844 | X21: =(+W21*V21)/100 -> 18.40797097 | Y21: ='Combined LG 2018 V5.0c'!X21 -> 0.2663808384 | Z21: =+$E$18 -> 0.25 | AA21: =Y21+Z21 -> 0.5163808384 | AB21: =100*($E$15*$E$17+($E$16*(AA21/100))/(1-$E$19)) -> 2.281888409 | AC21: ='Combined LG 2018 V5.0c'!AE21 -> 0.06445135003 | AD21: =$E$6/(1-AC21) -> 1994907.353 | AE21: =IF(OR(OR(AD21=AD15,AD21=(AD15+1)),AD21=(AD7-1)),"yes","not yet") -> not yet | AF21: =100*(1-AC21) -> 93.554865 | AI21: 4 | AJ21: =AF6 -> 93.29316864 | AK21: =AF12 -> 93.79079556 | AL21: =AF18 -> 93.76941415 | AM21: =AF24 -> 93.770332 | AN21: =AF30 -> 93.7702926 | AO21: =AF36 -> 93.77029429 | AP21: =AF42 -> 93.77029422 | AQ21: =AF48 -> 0 | AR21: =AF54 -> 0
V22: ='Combined LG 2018 V5.0c'!S22 -> 291.32911 | W22: ='Combined LG 2018 V5.0c'!T22 -> 6.226512059 | X22: =(+W22*V22)/100 -> 18.13964217 | Y22: ='Combined LG 2018 V5.0c'!X22 -> 0.2612326695 | Z22: =+$E$18 -> 0.25 | AA22: =Y22+Z22 -> 0.5112326695 | AB22: =100*($E$15*$E$17+($E$16*(AA22/100))/(1-$E$19)) -> 2.279348976 | AC22: ='Combined LG 2018 V5.0c'!AE22 -> 0.06342838653 | AD22: =$E$6/(1-AC22) -> 1992728.43 | AE22: =IF(OR(OR(AD22=AD16,AD22=(AD16+1)),AD22=(AD16-1)),"yes","not yet") -> not yet | AF22: =100*(1-AC22) -> 93.65716135
F23: Conversion Factor | H23: =((+H13/100)-H21) -> 0.911986237 | V23: ='Combined LG 2018 V5.0c'!S23 -> 291.1094283 | W23: ='Combined LG 2018 V5.0c'!T23 -> 6.169156024 | X23: =(+W23*V23)/100 -> 17.95899483 | Y23: ='Combined LG 2018 V5.0c'!X23 -> 0.2577667613 | Z23: =+$E$18 -> 0.25 | AA23: =Y23+Z23 -> 0.5077667613 | AB23: =100*($E$15*$E$17+($E$16*(AA23/100))/(1-$E$19)) -> 2.277639351 | AC23: ='Combined LG 2018 V5.0c'!AE23 -> 0.06273841162 | AD23: =$E$6/(1-AC23) -> 1991261.463 | AE23: =IF(OR(OR(AD23=AD17,AD23=(AD17+1)),AD23=(AD17-1)),"yes","not yet") -> not yet | AF23: =100*(1-AC23) -> 93.72615884 | AJ23: yes
V24: ='Combined LG 2018 V5.0c'!S24 -> 290.9689433 | W24: ='Combined LG 2018 V5.0c'!T24 -> 6.132435933 | X24: =(+W24*V24)/100 -> 17.84348403 | Y24: ='Combined LG 2018 V5.0c'!X24 -> 0.2555505657 | Z24: =+$E$18 -> 0.25 | AA24: =Y24+Z24 -> 0.5055505657 | AB24: =100*($E$15*$E$17+($E$16*(AA24/100))/(1-$E$19)) -> 2.27654617 | AC24: ='Combined LG 2018 V5.0c'!AE24 -> 0.06229668 | AD24: =$E$6/(1-AC24) -> 1990323.423 | AE24: =IF(OR(OR(AD24=AD18,AD24=(AD18+1)),AD24=(AD18-1)),"yes","not yet") -> not yet | AF24: =100*(1-AC24) -> 93.770332 | AJ24: =HLOOKUP($AJ$23,$AJ$17:$AR$21,$E$10+1) -> 93.7261237
C26: Company Reference | V26: 5th Turnover | W26: M | X26: ROR | Y26: ROE | AJ26: =HLOOKUP(1,$AJ$11:$AR$15,$E$10+1) -> not yet | AK26: =HLOOKUP(2,$AJ$11:$AR$15,$E$10+1) -> not yet | AL26: =HLOOKUP(3,$AJ$11:$AR$15,$E$10+1) -> not yet | AM26: =HLOOKUP(4,$AJ$11:$AR$15,$E$10+1) -> not yet | AN26: =HLOOKUP(5,$AJ$11:$AR$15,$E$10+1) -> not yet | AO26: =HLOOKUP(6,$AJ$11:$AR$15,$E$10+1) -> not yet | AP26: =HLOOKUP(7,$AJ$11:$AR$15,$E$10+1) -> yes | AQ26: =HLOOKUP(8,$AJ$11:$AR$15,$E$10+1) -> 0 | AR26: =HLOOKUP(9,$AJ$11:$AR$15,$E$10+1) -> 0
C27: Annl Price Increase (PI) $ | E27: =+E4 ->  | V27: ='Combined LG 2018 V5.0c'!S26 -> 291.6536235 | W27: ='Combined LG 2018 V5.0c'!T26 -> 6.311574645 | X27: =(+W27*V27)/100 -> 18.40793615 | Y27: ='Combined LG 2018 V5.0c'!X26 -> 0.2663801704 | Z27: =+$E$18 -> 0.25 | AA27: =Y27+Z27 -> 0.5163801704 | AB27: =100*($E$15*$E$17+($E$16*(AA27/100))/(1-$E$19)) -> 2.281888079 | AC27: ='Combined LG 2018 V5.0c'!AE26 -> 0.06445159346 | AD27: =$E$6/(1-AC27) -> 1994907.872 | AE27: =IF(OR(OR(AD27=AD21,AD27=(AD21+1)),AD27=(AD13-1)),"yes","not yet") -> not yet | AF27: =100*(1-AC27) -> 93.55484065 | AI27: 1 | AJ27: =V3 -> 273.8288543 | AK27: =V9 -> 292.4930255 | AL27: =V15 -> 291.6163134 | AM27: =V21 -> 291.6553674 | AN27: =V27 -> 291.6536235 | AO27: =V33 -> 291.6537014 | AP27: =V39 -> 291.6536979 | AQ27: =V45 -> 0 | AR27: =V51 -> 0
C28: Monthly PI $ | E28: =+E27/12 ->  | V28: ='Combined LG 2018 V5.0c'!S27 -> 291.3267789 | W28: ='Combined LG 2018 V5.0c'!T27 -> 6.226546121 | X28: =(+W28*V28)/100 -> 18.13959625 | Y28: ='Combined LG 2018 V5.0c'!X27 -> 0.2612317885 | Z28: =+$E$18 -> 0.25 | AA28: =Y28+Z28 -> 0.5112317885 | AB28: =100*($E$15*$E$17+($E$16*(AA28/100))/(1-$E$19)) -> 2.279348542 | AC28: ='Combined LG 2018 V5.0c'!AE27 -> 0.06342870667 | AD28: =$E$6/(1-AC28) -> 1992729.112 | AE28: =IF(OR(OR(AD28=AD22,AD28=(AD22+1)),AD28=(AD22-1)),"yes","not yet") -> not yet | AF28: =100*(1-AC28) -> 93.65712933 | AI28: 2 | AJ28: =V4 -> 273.8288543 | AK28: =V10 -> 292.4930255 | AL28: =V16 -> 291.2759343 | AM28: =V22 -> 291.32911 | AN28: =V28 -> 291.3267789 | AO28: =V34 -> 291.3268811 | AP28: =V40 -> 291.3268766 | AQ28: =V46 -> 0 | AR28: =V52 -> 0
C29: Percentage PI | E29: =+E4/E5 ->  | V29: ='Combined LG 2018 V5.0c'!S28 -> 291.1067296 | W29: ='Combined LG 2018 V5.0c'!T28 -> 6.169195124 | X29: =(+W29*V29)/100 -> 17.95894217 | Y29: ='Combined LG 2018 V5.0c'!X28 -> 0.2577657508 | Z29: =+$E$18 -> 0.25 | AA29: =Y29+Z29 -> 0.5077657508 | AB29: =100*($E$15*$E$17+($E$16*(AA29/100))/(1-$E$19)) -> 2.277638852 | AC29: ='Combined LG 2018 V5.0c'!AE28 -> 0.06273877813 | AD29: =$E$6/(1-AC29) -> 1991262.241 | AE29: =IF(OR(OR(AD29=AD23,AD29=(AD23+1)),AD29=(AD23-1)),"yes","not yet") -> not yet | AF29: =100*(1-AC29) -> 93.72612219 | AI29: 3 | AJ29: =V5 -> 273.8288543 | AK29: =V11 -> 292.4930255 | AL29: =V17 -> 291.0470854 | AM29: =V23 -> 291.1094283 | AN29: =V29 -> 291.1067296 | AO29: =V35 -> 291.1068464 | AP29: =V41 -> 291.1068413 | AQ29: =V47 -> 0 | AR29: =V53 -> 0
V30: ='Combined LG 2018 V5.0c'!S29 -> 290.9660209 | W30: ='Combined LG 2018 V5.0c'!T29 -> 6.132478041 | X30: =(+W30*V30)/100 -> 17.84342734 | Y30: ='Combined LG 2018 V5.0c'!X29 -> 0.255549478 | Z30: =+$E$18 -> 0.25 | AA30: =Y30+Z30 -> 0.505549478 | AB30: =100*($E$15*$E$17+($E$16*(AA30/100))/(1-$E$19)) -> 2.276545633 | AC30: ='Combined LG 2018 V5.0c'!AE29 -> 0.06229707403 | AD30: =$E$6/(1-AC30) -> 1990324.259 | AE30: =IF(OR(OR(AD30=AD24,AD30=(AD24+1)),AD30=(AD24-1)),"yes","not yet") -> not yet | AF30: =100*(1-AC30) -> 93.7702926 | AI30: 4 | AJ30: =V6 -> 273.8288543 | AK30: =V12 -> 292.4930255 | AL30: =V18 -> 290.9008815 | AM30: =V24 -> 290.9689433 | AN30: =V30 -> 290.9660209 | AO30: =V36 -> 290.9661464 | AP30: =V42 -> 290.966141 | AQ30: =V48 -> 0 | AR30: =V54 -> 0
V32: 6th Turnover | W32: M | X32: ROR | Y32: ROE | AJ32: yes
C33: SLOBs | V33: ='Combined LG 2018 V5.0c'!S31 -> 291.6537014 | W33: ='Combined LG 2018 V5.0c'!T31 -> 6.311573493 | X33: =(+W33*V33)/100 -> 18.40793771 | Y33: ='Combined LG 2018 V5.0c'!X31 -> 0.2663802002 | Z33: =+$E$18 -> 0.25 | AA33: =Y33+Z33 -> 0.5163802002 | AB33: =100*($E$15*$E$17+($E$16*(AA33/100))/(1-$E$19)) -> 2.281888094 | AC33: ='Combined LG 2018 V5.0c'!AE31 -> 0.06445158259 | AD33: =ROUND($E$6/(1-AC33),0) -> 1994908 | AE33: =IF(OR(OR(AD33=AD27,AD33=(AD27+1)),AD33=(AD19-1)),"yes","not yet") -> not yet | AF33: =100*(1-AC33) -> 93.55484174 | AJ33: =HLOOKUP($AJ$32,$AJ$26:$AR$30,$E$10+1) -> 291.1068413
C34: MSW | E34: =MSW!E4 -> 118376.6567 | V34: ='Combined LG 2018 V5.0c'!S32 -> 291.3268811 | W34: ='Combined LG 2018 V5.0c'!T32 -> 6.226544628 | X34: =(+W34*V34)/100 -> 18.13959826 | Y34: ='Combined LG 2018 V5.0c'!X32 -> 0.2612318272 | Z34: =+$E$18 -> 0.25 | AA34: =Y34+Z34 -> 0.5112318272 | AB34: =100*($E$15*$E$17+($E$16*(AA34/100))/(1-$E$19)) -> 2.279348561 | AC34: ='Combined LG 2018 V5.0c'!AE32 -> 0.06342869264 | AD34: =ROUND($E$6/(1-AC34),0) -> 1992729 | AE34: =IF(OR(OR(AD34=AD28,AD34=(AD28+1)),AD34=(AD28-1)),"yes","not yet") -> not yet | AF34: =100*(1-AC34) -> 93.65713074
C35: RCY | E35: =RCY!E4 ->  | V35: ='Combined LG 2018 V5.0c'!S33 -> 291.1068464 | W35: ='Combined LG 2018 V5.0c'!T33 -> 6.169193432 | X35: =(+W35*V35)/100 -> 17.95894444 | Y35: ='Combined LG 2018 V5.0c'!X33 -> 0.2577657946 | Z35: =+$E$18 -> 0.25 | AA35: =Y35+Z35 -> 0.5077657946 | AB35: =100*($E$15*$E$17+($E$16*(AA35/100))/(1-$E$19)) -> 2.277638874 | AC35: ='Combined LG 2018 V5.0c'!AE33 -> 0.06273876227 | AD35: =ROUND($E$6/(1-AC35),0) -> 1991262 | AE35: =IF(OR(OR(AD35=AD29,AD35=(AD29+1)),AD35=(AD29-1)),"yes","not yet") -> not yet | AF35: =100*(1-AC35) -> 93.72612377 | AJ35: =HLOOKUP(1,$AJ$11:$AR$15,$E$10+1) -> not yet | AK35: =HLOOKUP(2,$AJ$11:$AR$15,$E$10+1) -> not yet | AL35: =HLOOKUP(3,$AJ$11:$AR$15,$E$10+1) -> not yet | AM35: =HLOOKUP(4,$AJ$11:$AR$15,$E$10+1) -> not yet | AN35: =HLOOKUP(5,$AJ$11:$AR$15,$E$10+1) -> not yet | AO35: =HLOOKUP(6,$AJ$11:$AR$15,$E$10+1) -> not yet | AP35: =HLOOKUP(7,$AJ$11:$AR$15,$E$10+1) -> yes | AQ35: =HLOOKUP(8,$AJ$11:$AR$15,$E$10+1) -> 0 | AR35: =HLOOKUP(9,$AJ$11:$AR$15,$E$10+1) -> 0
C36: YW | E36: =YW!E4 ->  | V36: ='Combined LG 2018 V5.0c'!S34 -> 290.9661464 | W36: ='Combined LG 2018 V5.0c'!T34 -> 6.132476234 | X36: =(+W36*V36)/100 -> 17.84342977 | Y36: ='Combined LG 2018 V5.0c'!X34 -> 0.2555495247 | Z36: =+$E$18 -> 0.25 | AA36: =Y36+Z36 -> 0.5055495247 | AB36: =100*($E$15*$E$17+($E$16*(AA36/100))/(1-$E$19)) -> 2.276545656 | AC36: ='Combined LG 2018 V5.0c'!AE34 -> 0.06229705711 | AD36: =ROUND($E$6/(1-AC36),0) -> 1990324 | AE36: =IF(OR(OR(AD36=AD30,AD36=(AD30+1)),AD36=(AD30-1)),"yes","not yet") -> not yet | AF36: =100*(1-AC36) -> 93.77029429 | AI36: 1 | AJ36: =AD3 -> 2000503.261 | AK36: =AD9 -> 1994658.624 | AL36: =AD15 -> 1994918.979 | AM36: =AD21 -> 1994907.353 | AN36: =AD27 -> 1994907.872 | AO36: =AD33 -> 1994908 | AP36: =AD39 -> 1994908 | AQ36: =AD45 -> 0 | AR36: =AD51 -> 0
C37: MF RCY | E37: ='MF RCY'!E4 ->  | AI37: 2 | AJ37: =AD4 -> 2000503.261 | AK37: =AD10 -> 1992389.473 | AL37: =AD16 -> 1992743.971 | AM37: =AD22 -> 1992728.43 | AN37: =AD28 -> 1992729.112 | AO37: =AD34 -> 1992729 | AP37: =AD40 -> 1992729 | AQ37: =AD46 -> 0 | AR37: =AD52 -> 0
C38: Combined | E38: =+E4 ->  | V38: 7th turnover | W38: M | X38: ROR | Y38: ROE | AI38: 3 | AJ38: =AD5 -> 2000503.261 | AK38: =AD11 -> 1990863.842 | AL38: =AD17 -> 1991279.454 | AM38: =AD23 -> 1991261.463 | AN38: =AD29 -> 1991262.241 | AO38: =AD35 -> 1991262 | AP38: =AD41 -> 1991262 | AQ38: =AD47 -> 0 | AR38: =AD53 -> 0
E39: =+E38-SUM(E34:E37) ->  | V39: ='Combined LG 2018 V5.0c'!S36 -> 291.6536979 | W39: ='Combined LG 2018 V5.0c'!T36 -> 6.311573545 | X39: =(+W39*V39)/100 -> 18.40793764 | Y39: ='Combined LG 2018 V5.0c'!X36 -> 0.2663801989 | Z39: =+$E$18 -> 0.25 | AA39: =Y39+Z39 -> 0.5163801989 | AB39: =100*($E$15*$E$17+($E$16*(AA39/100))/(1-$E$19)) -> 2.281888094 | AC39: ='Combined LG 2018 V5.0c'!AE36 -> 0.06445158308 | AD39: =ROUND($E$6/(1-AC39),0) -> 1994908 | AE39: =IF(OR(OR(AD39=AD33,AD39=(AD33+1)),AD39=(AD25-1)),"yes","not yet") -> yes | AF39: =100*(1-AC39) -> 93.55484169 | AI39: 4 | AJ39: =AD6 -> 2000503.261 | AK39: =AD12 -> 1989889.168 | AL39: =AD18 -> 1990342.905 | AM39: =AD24 -> 1990323.423 | AN39: =AD30 -> 1990324.259 | AO39: =AD36 -> 1990324 | AP39: =AD42 -> 1990324 | AQ39: =AD48 -> 0 | AR39: =AD54 -> 0
V40: ='Combined LG 2018 V5.0c'!S37 -> 291.3268766 | W40: ='Combined LG 2018 V5.0c'!T37 -> 6.226544694 | X40: =(+W40*V40)/100 -> 18.13959818 | Y40: ='Combined LG 2018 V5.0c'!X37 -> 0.2612318255 | Z40: =+$E$18 -> 0.25 | AA40: =Y40+Z40 -> 0.5112318255 | AB40: =100*($E$15*$E$17+($E$16*(AA40/100))/(1-$E$19)) -> 2.27934856 | AC40: ='Combined LG 2018 V5.0c'!AE37 -> 0.06342869325 | AD40: =ROUND($E$6/(1-AC40),0) -> 1992729 | AE40: =IF(OR(OR(AD40=AD34,AD40=(AD34+1)),AD40=(AD34-1)),"yes","not yet") -> yes | AF40: =100*(1-AC40) -> 93.65713067
V41: ='Combined LG 2018 V5.0c'!S38 -> 291.1068413 | W41: ='Combined LG 2018 V5.0c'!T38 -> 6.169193505 | X41: =(+W41*V41)/100 -> 17.95894435 | Y41: ='Combined LG 2018 V5.0c'!X38 -> 0.2577657927 | Z41: =+$E$18 -> 0.25 | AA41: =Y41+Z41 -> 0.5077657927 | AB41: =100*($E$15*$E$17+($E$16*(AA41/100))/(1-$E$19)) -> 2.277638873 | AC41: ='Combined LG 2018 V5.0c'!AE38 -> 0.06273876296 | AD41: =ROUND($E$6/(1-AC41),0) -> 1991262 | AE41: =IF(OR(OR(AD41=AD35,AD41=(AD35+1)),AD41=(AD35-1)),"yes","not yet") -> yes | AF41: =100*(1-AC41) -> 93.7261237 | AJ41: yes
V42: ='Combined LG 2018 V5.0c'!S39 -> 290.966141 | W42: ='Combined LG 2018 V5.0c'!T39 -> 6.132476311 | X42: =(+W42*V42)/100 -> 17.84342967 | Y42: ='Combined LG 2018 V5.0c'!X39 -> 0.2555495227 | Z42: =+$E$18 -> 0.25 | AA42: =Y42+Z42 -> 0.5055495227 | AB42: =100*($E$15*$E$17+($E$16*(AA42/100))/(1-$E$19)) -> 2.276545655 | AC42: ='Combined LG 2018 V5.0c'!AE39 -> 0.06229705784 | AD42: =ROUND($E$6/(1-AC42),0) -> 1990324 | AE42: =IF(OR(OR(AD42=AD36,AD42=(AD36+1)),AD42=(AD36-1)),"yes","not yet") -> yes | AF42: =100*(1-AC42) -> 93.77029422 | AJ42: =HLOOKUP($AJ$32,$AJ$35:$AR$39,$E$10+1) -> 1991262
V44: 8th turnover | W44: M | X44: ROR | Y44: ROE

Sheet MSW LG 2018 V5.0c
B2: Public Companies | F2: Public Co | I2: LURITO - GALLAGHER FORMULA MODEL 2018 V5.0a | M2: Public Co | R2: CALCULATION TABLES | AH2: Revenue Senstive Taxes (RevS)
K3: (b) + (c) | M3: (d) + (e) | T3: Regession | V3: Regession | W3: Regession | X3: Regession | Z3: Adjusted | AA3: Hauler | AB3: Hauler | AC3: Hauler | AD3: Hauler | AE3: Hauler | AF3: Hauler | AG3: Revenue Req | AH3: Revenue | AI3: Revenue
B4: INPUTS - Test Year | H4: (a) | I4: (b) | J4: (c) | K4: (d) | L4: (e) | M4: (f) | T4: Before Tax | V4: Less | W4: Adjusted | X4: After Tax | Y4: Flotation Costs | Z4: After Tax | AA4: Weighted Cost | AB4: Weighted Cost | AC4: Weighted Cost | AD4: Adjusted | AE4: Before Tax | AF4: Before Tax | AG4: Before RevS | AH4: Increase Before | AI4: Increase After | AJ4: RevS | AK4: Total
B5: Operating Revenue | C5: =MSW!E5 -> 1876077.8 | F5: Line | I5: Historical | J5: Revenue | K5: Proforma | L5: Add: Revenue | M5: Revenue | T5: Profit Ratio | U5: BTROI | V5: WCDebt | W5: BTROE | X5: ROE | Y5: Basis Points | Z5: ROE | AA5: Equity | AB5: Equity BFT | AC5: Debt | AD5: BTROR | AE5: Profit Ratio | AF5: Operating Ratio | AG5: Taxes | AH5: RevS Taxes | AI5: RevS Taxes | AJ5: Taxes | AK5: Revenue Req
B6: Operating Expenses | C6: =MSW!E6 -> 1866332.881 | F6: No. | J6: Change | L6: Sensitive Taxes | M6: Requirement | R6: 1 | S6: =Revenue/Investment*100 -> 273.8288543 | T6: =EXP(y_inter1-(slope*LN(+S6))) -> 6.589647615 | U6: =(+S6*T6/100)/100 -> 0.1804435657 | V6: =regDebt_weighted -> 0.03586 | W6: =+U6-V6 -> 0.1445835657 | X6: =+((W6*(1-0.34))-Pfd_weighted)/Equity_percent -> 0.2594045155 | Y6: =+C15 -> 0.0025 | Z6: =+X6+Y6 -> 0.2619045155 | AA6: =Z6*equityP -> 0.1274131383 | AB6: =+AA6/(1-taxrate) -> 0.1623097304 | AC6: =debtP*Debt_Rate -> 0.02134266423 | AD6: =AC6+AB6 -> 0.1836523946 | AE6: =AD6/(S6/100) -> 0.06706831356 | AF6: =1-AE6 -> 0.9329316864 | AG6: =expenses/(AF6) -> 2000503.261 | AH6: =+AG6-Revenue -> 124425.4613 | AI6: =+AH6/$J$49 -> 136418.5019 | AJ6: =+AI6*$J$47 -> 3447.977636 | AK6: =ROUND(+AJ6+AG6,5) -> 2003951.239
B7: Investment | C7: =MSW!E7 -> 685127.8711 | F7: 1 | H7: Operating Revenue | I7: =IF(A64=TRUE,C5,0) -> 1876077.8 | J7: =(+$I8/($R50))-I7 -> 115184.9126 | K7: =+I7+J7 -> 1991262.713 | L7: =((+J7/J49*K35)-J7) -> 3191.911033 | M7: =IFERROR(+K7+L7,0.00001) -> 1994454.624 | R7: 2 | S7: =Revenue/Investment*100 -> 273.8288543 | T7: =EXP(y_inter1-(slope*LN(+S7))) -> 6.589647615 | U7: =(+S7*T7/100)/100 -> 0.1804435657 | V7: =regDebt_weighted -> 0.03586 | W7: =+U7-V7 -> 0.1445835657 | X7: =+((W7*(1-0.34))-Pfd_weighted)/Equity_percent -> 0.2594045155 | Y7: =+Y6 -> 0.0025 | Z7: =+X7+Y7 -> 0.2619045155 | AA7: =Z7*equityP -> 0.1274131383 | AB7: =+AA7/(1-taxrate) -> 0.1623097304 | AC7: =debtP*Debt_Rate -> 0.02134266423 | AD7: =AC7+AB7 -> 0.1836523946 | AE7: =AD7/(S7/100) -> 0.06706831356 | AF7: =1-AE7 -> 0.9329316864 | AG7: =expenses/(AF7) -> 2000503.261 | AH7: =+AG7-Revenue -> 124425.4613 | AI7: =+AH7/$J$49 -> 136418.5019 | AJ7: =+AI7*$J$47 -> 3447.977636 | AK7: =ROUND(+AJ7+AG7,5) -> 2003951.239
B8: Capital Structure-Debt % | C8: 0.5135130141 | F8: =+F7+1 -> 2 | H8: Operating Expenses | I8: =IF(A64=TRUE,C6,0) -> 1866332.881 | K8: =+I8 -> 1866332.881 | L8: =+L7 -> 3191.911033 | M8: =IFERROR(+K8+L8,0.00001) -> 1869524.792 | R8: 3 | S8: =Revenue/Investment*100 -> 273.8288543 | T8: =EXP(y_inter1-(slope*LN(+S8))) -> 6.589647615 | U8: =(+S8*T8/100)/100 -> 0.1804435657 | V8: =regDebt_weighted -> 0.03586 | W8: =+U8-V8 -> 0.1445835657 | X8: =+((W8*(1-0.34))-Pfd_weighted)/Equity_percent -> 0.2594045155 | Y8: =+Y7 -> 0.0025 | Z8: =+X8+Y8 -> 0.2619045155 | AA8: =Z8*equityP -> 0.1274131383 | AB8: =+AA8/(1-taxrate) -> 0.1623097304 | AC8: =debtP*Debt_Rate -> 0.02134266423 | AD8: =AC8+AB8 -> 0.1836523946 | AE8: =AD8/(S8/100) -> 0.06706831356 | AF8: =1-AE8 -> 0.9329316864 | AG8: =expenses/(AF8) -> 2000503.261 | AH8: =+AG8-Revenue -> 124425.4613 | AI8: =+AH8/$J$49 -> 136418.5019 | AJ8: =+AI8*$J$47 -> 3447.977636 | AK8: =ROUND(+AJ8+AG8,5) -> 2003951.239
B9: Capital Structure-Debt Rate | C9: 0.04156207076 | F9: =+F8+1 -> 3 | H9: Operating Income | I9: =+I7-I8 -> 9744.918728 | K9: =+K7-K8 -> 124929.8313 | M9: =+M7-M8 -> 124929.8313 | R9: 4 | S9: =Revenue/Investment*100 -> 273.8288543 | T9: =EXP(y_inter1-(slope*LN(+S9))) -> 6.589647615 | U9: =(+S9*T9/100)/100 -> 0.1804435657 | V9: =regDebt_weighted -> 0.03586 | W9: =+U9-V9 -> 0.1445835657 | X9: =+((W9*(1-0.34))-Pfd_weighted)/Equity_percent -> 0.2594045155 | Y9: =+Y8 -> 0.0025 | Z9: =+X9+Y9 -> 0.2619045155 | AA9: =Z9*equityP -> 0.1274131383 | AB9: =+AA9/(1-taxrate) -> 0.1623097304 | AC9: =debtP*Debt_Rate -> 0.02134266423 | AD9: =AC9+AB9 -> 0.1836523946 | AE9: =AD9/(S9/100) -> 0.06706831356 | AF9: =1-AE9 -> 0.9329316864 | AG9: =expenses/(AF9) -> 2000503.261 | AH9: =+AG9-Revenue -> 124425.4613 | AI9: =+AH9/$J$49 -> 136418.5019 | AJ9: =+AI9*$J$47 -> 3447.977636 | AK9: =ROUND(+AJ9+AG9,5) -> 2003951.239
B10: Federal Income Tax Rate | C10: 0.215 | F10: 4 | R10: 2nd Iteration
B11: B&O Tax Rate | C11: 0.015 | F11: 5 | H11: Interest Expense | I11: =+K11 -> 14622.45411 | K11: =+M27 -> 14622.45411 | M11: =+K11 -> 14622.45411 | R11: 1 | S11: =IF((AK6/Investment*100)>0,(AK6/Investment*100),0) -> 292.4930255 | T11: =EXP(y_inter1-(slope*LN(S11))) -> 6.299185651 | U11: =(+S11*T11/100)/100 -> 0.1842467869 | V11: =regDebt_weighted -> 0.03586 | W11: =+U11-V11 -> 0.1483867869 | X11: =+((W11*(1-0.34))-Pfd_weighted)/Equity_percent -> 0.2667013935 | Y11: =+Y9 -> 0.0025 | Z11: =+X11+Y11 -> 0.2692013935 | AA11: =Z11*equityP -> 0.1309629745 | AB11: =+AA11/(1-taxrate) -> 0.1668318147 | AC11: =debtP*Debt_Rate -> 0.02134266423 | AD11: =+AC11+AB11 -> 0.1881744789 | AE11: =+AD11/(S11/100) -> 0.0643346892 | AF11: =1-AE11 -> 0.9356653108 | AG11: =expenses/(AF11) -> 1994658.624 | AH11: =+AG11-Revenue -> 118580.8239 | AI11: =+AH11/$J$49 -> 130010.5154 | AJ11: =+AI11*$J$47 -> 3286.015778 | AK11: =ROUND(+AJ11+AG11,5) -> 1997944.64
B12: WUTC Fee | C12: 0.004275 | F12: 6 | H12: Income Tax Expense | I12: =IF(I14<0,0,+J38*I14) ->  | J12: =+K12-I12 ->  | K12: =+(K9-K11)*taxrate -> 23716.0861 | M12: =+K12 -> 23716.0861 | R12: 2 | S12: =IF((AK7/Investment*100)>0,(AK7/Investment*100),0) -> 292.4930255 | T12: =EXP(y_inter2-(slope*LN(+S12))) -> 6.209562007 | U12: =(+S12*T12/100)/100 -> 0.1816253579 | V12: =regDebt_weighted -> 0.03586 | W12: =+U12-V12 -> 0.1457653579 | X12: =+((W12*(1-0.34))-Pfd_weighted)/Equity_percent -> 0.2616719075 | Y12: =+Y11 -> 0.0025 | Z12: =+X12+Y12 -> 0.2641719075 | AA12: =Z12*equityP -> 0.128516195 | AB12: =+AA12/(1-taxrate) -> 0.1637148981 | AC12: =debtP*Debt_Rate -> 0.02134266423 | AD12: =+AC12+AB12 -> 0.1850575624 | AE12: =+AD12/(S12/100) -> 0.06326905131 | AF12: =1-AE12 -> 0.9367309487 | AG12: =expenses/(AF12) -> 1992389.473 | AH12: =+AG12-Revenue -> 116311.6731 | AI12: =+AH12/$J$49 -> 127522.6472 | AJ12: =+AI12*$J$47 -> 3223.134907 | AK12: =ROUND(+AJ12+AG12,5) -> 1995612.608
B13: City Tax | C13: 0 | F13: 7 | R13: 3 | S13: =IF((AK8/Investment*100)>0,(AK8/Investment*100),0) -> 292.4930255 | T13: =EXP(y_inter3-(slope*LN(S13))) -> 6.149189984 | U13: =(+S13*T13/100)/100 -> 0.1798595183 | V13: =regDebt_weighted -> 0.03586 | W13: =+U13-V13 -> 0.1439995183 | X13: =+((W13*(1-0.34))-Pfd_weighted)/Equity_percent -> 0.2582839595 | Y13: =+Y12 -> 0.0025 | Z13: =+X13+Y13 -> 0.2607839595 | AA13: =Z13*equityP -> 0.1268680024 | AB13: =+AA13/(1-taxrate) -> 0.1616152897 | AC13: =debtP*Debt_Rate -> 0.02134266423 | AD13: =+AC13+AB13 -> 0.1829579539 | AE13: =+AD13/(S13/100) -> 0.06255121934 | AF13: =1-AE13 -> 0.9374487807 | AG13: =expenses/(AF13) -> 1990863.842 | AH13: =+AG13-Revenue -> 114786.0421 | AI13: =+AH13/$J$49 -> 125849.9647 | AJ13: =+AI13*$J$47 -> 3180.857858 | AK13: =ROUND(+AJ13+AG13,5) -> 1994044.7
B14: Bad Debts | C14: 0.006 | F14: 8 | H14: Net Income | I14: =+I9-SUM(I11:I13) ->  | K14: =+K9-SUM(K11:K13) -> 86591.29112 | M14: =+M9-SUM(M11:M13) -> 86591.29112 | R14: 4 | S14: =IF((AK9/Investment*100)>0,(AK9/Investment*100),0) -> 292.4930255 | T14: =EXP(y_inter4-(slope*LN(S14))) -> 6.110571862 | U14: =(+S14*T14/100)/100 -> 0.1787299652 | V14: =regDebt_weighted -> 0.03586 | W14: =+U14-V14 -> 0.1428699652 | X14: =+((W14*(1-0.34))-Pfd_weighted)/Equity_percent -> 0.2561167936 | Y14: =+Y13 -> 0.0025 | Z14: =+X14+Y14 -> 0.2586167936 | AA14: =Z14*equityP -> 0.1258137044 | AB14: =+AA14/(1-taxrate) -> 0.1602722349 | AC14: =debtP*Debt_Rate -> 0.02134266423 | AD14: =+AC14+AB14 -> 0.1816148992 | AE14: =+AD14/(S14/100) -> 0.06209204436 | AF14: =1-AE14 -> 0.9379079556 | AG14: =expenses/(AF14) -> 1989889.168 | AH14: =+AG14-Revenue -> 113811.3678 | AI14: =+AH14/$J$49 -> 124781.344 | AJ14: =+AI14*$J$47 -> 3153.848471 | AK14: =ROUND(+AJ14+AG14,5) -> 1993043.016
B15: Basis Points - Flotation | C15: 0.0025 | F15: 9 | R15: 3rd Iteration
D16: Yes | F16: 10 | H16: Operating Ratio | I16: =+I8/I7 -> 0.9948056958 | K16: =+K8/K7 -> 0.937261 | M16: =+M8/M7 -> 0.9373614071 | R16: 1 | S16: =AK11/Investment*100 -> 291.6163134 | T16: =EXP(y_inter1-(slope*LN(+S16))) -> 6.312126711 | U16: =(+S16*T16/100)/100 -> 0.1840719121 | V16: =regDebt_weighted -> 0.03586 | W16: =+U16-V16 -> 0.1482119121 | X16: =+((W16*(1-0.34))-Pfd_weighted)/Equity_percent -> 0.2663658778 | Y16: =+Y14 -> 0.0025 | Z16: =+X16+Y16 -> 0.2688658778 | AA16: =Z16*equityP -> 0.1307997505 | AB16: =+AA16/(1-taxrate) -> 0.166623886 | AC16: =debtP*Debt_Rate -> 0.02134266423 | AD16: =+AC16+AB16 -> 0.1879665502 | AE16: =+AD16/(S16/100) -> 0.06445680218 | AF16: =1-AE16 -> 0.9355431978 | AG16: =expenses/(AF16) -> 1994918.979 | AH16: =+AG16-Revenue -> 118841.1793 | AI16: =+AH16/$J$49 -> 130295.9658 | AJ16: =+AI16*$J$47 -> 3293.230535 | AK16: =ROUND(+AJ16+AG16,5) -> 1998212.21
B17: Check when input is complete | D17: No | F17: 11 | R17: 2 | S17: =AK12/Investment*100 -> 291.2759343 | T17: =EXP(y_inter2-(slope*LN(+S17))) -> 6.227289178 | U17: =(+S17*T17/100)/100 -> 0.1813859473 | V17: =regDebt_weighted -> 0.03586 | W17: =+U17-V17 -> 0.1455259473 | X17: =+((W17*(1-0.34))-Pfd_weighted)/Equity_percent -> 0.2612125734 | Y17: =+Y16 -> 0.0025 | Z17: =+X17+Y17 -> 0.2637125734 | AA17: =Z17*equityP -> 0.128292735 | AB17: =+AA17/(1-taxrate) -> 0.1634302356 | AC17: =debtP*Debt_Rate -> 0.02134266423 | AD17: =+AC17+AB17 -> 0.1847728999 | AE17: =+AD17/(S17/100) -> 0.06343569038 | AF17: =1-AE17 -> 0.9365643096 | AG17: =expenses/(AF17) -> 1992743.971 | AH17: =+AG17-Revenue -> 116666.1708 | AI17: =+AH17/$J$49 -> 127911.314 | AJ17: =+AI17*$J$47 -> 3232.958462 | AK17: =ROUND(+AJ17+AG17,5) -> 1995976.929
F18: 12 | H18: Revenue Requirement | R18: 3 | S18: =AK13/Investment*100 -> 291.0470854 | T18: =EXP(y_inter3-(slope*LN(S18))) -> 6.170059426 | U18: =(+S18*T18/100)/100 -> 0.1795777813 | V18: =regDebt_weighted -> 0.03586 | W18: =+U18-V18 -> 0.1437177813 | X18: =+((W18*(1-0.34))-Pfd_weighted)/Equity_percent -> 0.2577434175 | Y18: =+Y17 -> 0.0025 | Z18: =+X18+Y18 -> 0.2602434175 | AA18: =Z18*equityP -> 0.1266050358 | AB18: =+AA18/(1-taxrate) -> 0.1612803004 | AC18: =debtP*Debt_Rate -> 0.02134266423 | AD18: =+AC18+AB18 -> 0.1826229646 | AE18: =+AD18/(S18/100) -> 0.06274687973 | AF18: =1-AE18 -> 0.9372531203 | AG18: =expenses/(AF18) -> 1991279.454 | AH18: =+AG18-Revenue -> 115201.6537 | AI18: =+AH18/$J$49 -> 126305.6359 | AJ18: =+AI18*$J$47 -> 3192.374948 | AK18: =ROUND(+AJ18+AG18,5) -> 1994471.829
B19: For Intial input: Uncheck Checkbox Until Completed | F19: 13 | I19: Historical Revenue | J19: =+Revenue -> 1876077.8 | L19: Revenue Increase before taxes | M19: =+J7 -> 115184.9126 | R19: 4 | S19: =AK14/Investment*100 -> 290.9008815 | T19: =EXP(y_inter4-(slope*LN(S19))) -> 6.133416827 | U19: =(+S19*T19/100)/100 -> 0.1784216361 | V19: =regDebt_weighted -> 0.03586 | W19: =+U19-V19 -> 0.1425616361 | X19: =+((W19*(1-0.34))-Pfd_weighted)/Equity_percent -> 0.2555252321 | Y19: =+Y18 -> 0.0025 | Z19: =+X19+Y19 -> 0.2580252321 | AA19: =Z19*equityP -> 0.1255259174 | AB19: =+AA19/(1-taxrate) -> 0.1599056273 | AC19: =debtP*Debt_Rate -> 0.02134266423 | AD19: =+AC19+AB19 -> 0.1812482915 | AE19: =+AD19/(S19/100) -> 0.06230585849 | AF19: =1-AE19 -> 0.9376941415 | AG19: =expenses/(AF19) -> 1990342.905 | AH19: =+AG19-Revenue -> 114265.1046 | AI19: =+AH19/$J$49 -> 125278.8154 | AJ19: =+AI19*$J$47 -> 3166.42206 | AK19: =ROUND(+AJ19+AG19,5) -> 1993509.327
F20: 14 | I20: Rate Increase | J20: =+J21-J19 -> 118376.8236 | L20: Rev Sensitive Taxes | M20: =+L8 -> 3191.911033 | R20: 4th Iteration
F21: 15 | I21: Revenue Requirement | J21: =+M7 -> 1994454.624 | L21: Rate Increase | M21: =+M19+M20 -> 118376.8236 | R21: 1 | S21: =AK16/Investment*100 -> 291.6553674 | T21: =EXP(y_inter1-(slope*LN(+S21))) -> 6.311548844 | U21: =(+S21*T21/100)/100 -> 0.1840797097 | V21: =regDebt_weighted -> 0.03586 | W21: =+U21-V21 -> 0.1482197097 | X21: =+((W21*(1-0.34))-Pfd_weighted)/Equity_percent -> 0.2663808384 | Y21: =+Y19 -> 0.0025 | Z21: =+X21+Y21 -> 0.2688808384 | AA21: =Z21*equityP -> 0.1308070286 | AB21: =+AA21/(1-taxrate) -> 0.1666331575 | AC21: =debtP*Debt_Rate -> 0.02134266423 | AD21: =+AC21+AB21 -> 0.1879758217 | AE21: =+AD21/(S21/100) -> 0.06445135003 | AF21: =1-AE21 -> 0.93554865 | AG21: =expenses/(AF21) -> 1994907.353 | AH21: =+AG21-Revenue -> 118829.5534 | AI21: =+AH21/$J$49 -> 130283.2193 | AJ21: =+AI21*$J$47 -> 3292.908367 | AK21: =ROUND(+AJ21+AG21,5) -> 1998200.262
F22: 16 | R22: 2 | S22: =AK17/Investment*100 -> 291.32911 | T22: =EXP(y_inter2-(slope*LN(+S22))) -> 6.226512059 | U22: =(+S22*T22/100)/100 -> 0.1813964217 | V22: =regDebt_weighted -> 0.03586 | W22: =+U22-V22 -> 0.1455364217 | X22: =+((W22*(1-0.34))-Pfd_weighted)/Equity_percent -> 0.2612326695 | Y22: =+Y21 -> 0.0025 | Z22: =+X22+Y22 -> 0.2637326695 | AA22: =Z22*equityP -> 0.1283025114 | AB22: =+AA22/(1-taxrate) -> 0.1634426897 | AC22: =debtP*Debt_Rate -> 0.02134266423 | AD22: =+AC22+AB22 -> 0.184785354 | AE22: =+AD22/(S22/100) -> 0.06342838653 | AF22: =1-AE22 -> 0.9365716135 | AG22: =expenses/(AF22) -> 1992728.43 | AH22: =+AG22-Revenue -> 116650.6304 | AI22: =+AH22/$J$49 -> 127894.2757 | AJ22: =+AI22*$J$47 -> 3232.527818 | AK22: =ROUND(+AJ22+AG22,5) -> 1995960.958
B23: 2018 Version Update Changes | F23: 17 | R23: 3 | S23: =AK18/Investment*100 -> 291.1094283 | T23: =EXP(y_inter3-(slope*LN(S23))) -> 6.169156024 | U23: =(+S23*T23/100)/100 -> 0.1795899483 | V23: =regDebt_weighted -> 0.03586 | W23: =+U23-V23 -> 0.1437299483 | X23: =+((W23*(1-0.34))-Pfd_weighted)/Equity_percent -> 0.2577667613 | Y23: =+Y22 -> 0.0025 | Z23: =+X23+Y23 -> 0.2602667613 | AA23: =Z23*equityP -> 0.1266163922 | AB23: =+AA23/(1-taxrate) -> 0.1612947672 | AC23: =debtP*Debt_Rate -> 0.02134266423 | AD23: =+AC23+AB23 -> 0.1826374314 | AE23: =+AD23/(S23/100) -> 0.06273841162 | AF23: =1-AE23 -> 0.9372615884 | AG23: =expenses/(AF23) -> 1991261.463 | AH23: =+AG23-Revenue -> 115183.6626 | AI23: =+AH23/$J$49 -> 126285.9107 | AJ23: =+AI23*$J$47 -> 3191.876393 | AK23: =ROUND(+AJ23+AG23,5) -> 1994453.339
B24: ● Allows Income Tax Rate Changes, | F24: 18 | H24: Captial Structure Financing Investment | K24: Financing Cost | R24: 4 | S24: =AK19/Investment*100 -> 290.9689433 | T24: =EXP(y_inter4-(slope*LN(S24))) -> 6.132435933 | U24: =(+S24*T24/100)/100 -> 0.1784348403 | V24: =regDebt_weighted -> 0.03586 | W24: =+U24-V24 -> 0.1425748403 | X24: =+((W24*(1-0.34))-Pfd_weighted)/Equity_percent -> 0.2555505657 | Y24: =+Y23 -> 0.0025 | Z24: =+X24+Y24 -> 0.2580505657 | AA24: =Z24*equityP -> 0.1255382419 | AB24: =+AA24/(1-taxrate) -> 0.1599213273 | AC24: =debtP*Debt_Rate -> 0.02134266423 | AD24: =+AC24+AB24 -> 0.1812639915 | AE24: =+AD24/(S24/100) -> 0.06229668 | AF24: =1-AE24 -> 0.93770332 | AG24: =expenses/(AF24) -> 1990323.423 | AH24: =+AG24-Revenue -> 114245.6226 | AI24: =+AH24/$J$49 -> 125257.4556 | AJ24: =+AI24*$J$47 -> 3165.88219 | AK24: =ROUND(+AJ24+AG24,5) -> 1993489.305
B25: ● Minimizes impact of changes in test-year revenue from | F25: 19 | H25: Type | I25: Percent | J25: Amount | K25: Cost of Capital | L25: Weighted | M25: Amount | R25: 5th Iteration
B26: resulting revenue requirment, | F26: 20 | H26: Equity | I26: =1-I27 -> 0.4864869859 | J26: =+I26*J28 -> 333305.793 | K26: =+K34 -> 0.2597953379 | L26: =+K26*I26 -> 0.1263870509 | M26: =+J26*K26 -> 86591.29112 | R26: 1 | S26: =AK21/Investment*100 -> 291.6536235 | T26: =EXP(y_inter1-(slope*LN(+S26))) -> 6.311574645 | U26: =(+S26*T26/100)/100 -> 0.1840793615 | V26: =regDebt_weighted -> 0.03586 | W26: =+U26-V26 -> 0.1482193615 | X26: =+((W26*(1-0.34))-Pfd_weighted)/Equity_percent -> 0.2663801704 | Y26: =+Y24 -> 0.0025 | Z26: =+X26+Y26 -> 0.2688801704 | AA26: =Z26*equityP -> 0.1308067036 | AB26: =+AA26/(1-taxrate) -> 0.1666327435 | AC26: =debtP*Debt_Rate -> 0.02134266423 | AD26: =+AC26+AB26 -> 0.1879754077 | AE26: =+AD26/(S26/100) -> 0.06445159346 | AF26: =1-AE26 -> 0.9355484065 | AG26: =expenses/(AF26) -> 1994907.872 | AH26: =+AG26-Revenue -> 118830.0725 | AI26: =+AH26/$J$49 -> 130283.7884 | AJ26: =+AI26*$J$47 -> 3292.922752 | AK26: =ROUND(+AJ26+AG26,5) -> 1998200.795
B27: ● Corrects interest rate transposition in LG. | F27: 21 | H27: Debt | I27: =IF(A64=TRUE,C8,0) -> 0.5135130141 | J27: =+I27*J28 -> 351822.0782 | K27: =IF(A64=TRUE,C9,0) -> 0.04156207076 | L27: =+K27*I27 -> 0.02134266423 | M27: =+K27*J27 -> 14622.45411 | R27: 2 | S27: =AK22/Investment*100 -> 291.3267789 | T27: =EXP(y_inter2-(slope*LN(+S27))) -> 6.226546121 | U27: =(+S27*T27/100)/100 -> 0.1813959625 | V27: =regDebt_weighted -> 0.03586 | W27: =+U27-V27 -> 0.1455359625 | X27: =+((W27*(1-0.34))-Pfd_weighted)/Equity_percent -> 0.2612317885 | Y27: =+Y26 -> 0.0025 | Z27: =+X27+Y27 -> 0.2637317885 | AA27: =Z27*equityP -> 0.1283020829 | AB27: =+AA27/(1-taxrate) -> 0.1634421438 | AC27: =debtP*Debt_Rate -> 0.02134266423 | AD27: =+AC27+AB27 -> 0.184784808 | AE27: =+AD27/(S27/100) -> 0.06342870667 | AF27: =1-AE27 -> 0.9365712933 | AG27: =expenses/(AF27) -> 1992729.112 | AH27: =+AG27-Revenue -> 116651.3116 | AI27: =+AH27/$J$49 -> 127895.0225 | AJ27: =+AI27*$J$47 -> 3232.546694 | AK27: =ROUND(+AJ27+AG27,5) -> 1995961.658
F28: 22 | H28: Total | I28: =SUM(I26:I27) -> 1 | J28: =IF(A64=TRUE,C7,0) -> 685127.8711 | L28: =SUM(L26:L27) -> 0.1477297151 | M28: =SUM(M26:M27) -> 101213.7452 | R28: 3 | S28: =AK23/Investment*100 -> 291.1067296 | T28: =EXP(y_inter3-(slope*LN(S28))) -> 6.169195124 | U28: =(+S28*T28/100)/100 -> 0.1795894217 | V28: =regDebt_weighted -> 0.03586 | W28: =+U28-V28 -> 0.1437294217 | X28: =+((W28*(1-0.34))-Pfd_weighted)/Equity_percent -> 0.2577657508 | Y28: =+Y27 -> 0.0025 | Z28: =+X28+Y28 -> 0.2602657508 | AA28: =Z28*equityP -> 0.1266159007 | AB28: =+AA28/(1-taxrate) -> 0.161294141 | AC28: =debtP*Debt_Rate -> 0.02134266423 | AD28: =+AC28+AB28 -> 0.1826368052 | AE28: =+AD28/(S28/100) -> 0.06273877813 | AF28: =1-AE28 -> 0.9372612219 | AG28: =expenses/(AF28) -> 1991262.241 | AH28: =+AG28-Revenue -> 115184.4412 | AI28: =+AH28/$J$49 -> 126286.7644 | AJ28: =+AI28*$J$47 -> 3191.897971 | AK28: =ROUND(+AJ28+AG28,5) -> 1994454.139
F29: 23 | R29: 4 | S29: =AK24/Investment*100 -> 290.9660209 | T29: =EXP(y_inter4-(slope*LN(S29))) -> 6.132478041 | U29: =(+S29*T29/100)/100 -> 0.1784342734 | V29: =regDebt_weighted -> 0.03586 | W29: =+U29-V29 -> 0.1425742734 | X29: =+((W29*(1-0.34))-Pfd_weighted)/Equity_percent -> 0.255549478 | Y29: =+Y28 -> 0.0025 | Z29: =+X29+Y29 -> 0.258049478 | AA29: =Z29*equityP -> 0.1255377128 | AB29: =+AA29/(1-taxrate) -> 0.1599206532 | AC29: =debtP*Debt_Rate -> 0.02134266423 | AD29: =+AC29+AB29 -> 0.1812633174 | AE29: =+AD29/(S29/100) -> 0.06229707403 | AF29: =1-AE29 -> 0.937702926 | AG29: =expenses/(AF29) -> 1990324.259 | AH29: =+AG29-Revenue -> 114246.459 | AI29: =+AH29/$J$49 -> 125258.3726 | AJ29: =+AI29*$J$47 -> 3165.905366 | AK29: =ROUND(+AJ29+AG29,5) -> 1993490.164
F30: 24 | J30: Before | K30: After | R30: 6th Iteration
F31: 25 | H31: Operating Statistics | J31: Income Tax | K31: Income Tax | R31: 1 | S31: =AK26/Investment*100 -> 291.6537014 | T31: =EXP(y_inter1-(slope*LN(+S31))) -> 6.311573493 | U31: =(+S31*T31/100)/100 -> 0.1840793771 | V31: =regDebt_weighted -> 0.03586 | W31: =+U31-V31 -> 0.1482193771 | X31: =+((W31*(1-0.34))-Pfd_weighted)/Equity_percent -> 0.2663802002 | Y31: =+Y29 -> 0.0025 | Z31: =+X31+Y31 -> 0.2688802002 | AA31: =Z31*equityP -> 0.1308067182 | AB31: =+AA31/(1-taxrate) -> 0.166632762 | AC31: =debtP*Debt_Rate -> 0.02134266423 | AD31: =+AC31+AB31 -> 0.1879754262 | AE31: =+AD31/(S31/100) -> 0.06445158259 | AF31: =1-AE31 -> 0.9355484174 | AG31: =expenses/(AF31) -> 1994907.849 | AH31: =+AG31-Revenue -> 118830.0493 | AI31: =+AH31/$J$49 -> 130283.763 | AJ31: =+AI31*$J$47 -> 3292.92211 | AK31: =ROUND(+AJ31+AG31,5) -> 1998200.771
F32: 26 | R32: 2 | S32: =AK27/Investment*100 -> 291.3268811 | T32: =EXP(y_inter2-(slope*LN(+S32))) -> 6.226544628 | U32: =(+S32*T32/100)/100 -> 0.1813959826 | V32: =regDebt_weighted -> 0.03586 | W32: =+U32-V32 -> 0.1455359826 | X32: =+((W32*(1-0.34))-Pfd_weighted)/Equity_percent -> 0.2612318272 | Y32: =+Y31 -> 0.0025 | Z32: =+X32+Y32 -> 0.2637318272 | AA32: =Z32*equityP -> 0.1283021017 | AB32: =+AA32/(1-taxrate) -> 0.1634421677 | AC32: =debtP*Debt_Rate -> 0.02134266423 | AD32: =+AC32+AB32 -> 0.184784832 | AE32: =+AD32/(S32/100) -> 0.06342869264 | AF32: =1-AE32 -> 0.9365713074 | AG32: =expenses/(AF32) -> 1992729.082 | AH32: =+AG32-Revenue -> 116651.2817 | AI32: =+AH32/$J$49 -> 127894.9898 | AJ32: =+AI32*$J$47 -> 3232.545867 | AK32: =ROUND(+AJ32+AG32,5) -> 1995961.628
F33: 27 | H33: Return on Investment | J33: =+K9/J28 -> 0.1823452768 | K33: =+(M14+M11)/J28 -> 0.1477297151 | R33: 3 | S33: =AK28/Investment*100 -> 291.1068464 | T33: =EXP(y_inter3-(slope*LN(S33))) -> 6.169193432 | U33: =(+S33*T33/100)/100 -> 0.1795894444 | V33: =regDebt_weighted -> 0.03586 | W33: =+U33-V33 -> 0.1437294444 | X33: =+((W33*(1-0.34))-Pfd_weighted)/Equity_percent -> 0.2577657946 | Y33: =+Y32 -> 0.0025 | Z33: =+X33+Y33 -> 0.2602657946 | AA33: =Z33*equityP -> 0.1266159219 | AB33: =+AA33/(1-taxrate) -> 0.1612941681 | AC33: =debtP*Debt_Rate -> 0.02134266423 | AD33: =+AC33+AB33 -> 0.1826368323 | AE33: =+AD33/(S33/100) -> 0.06273876227 | AF33: =1-AE33 -> 0.9372612377 | AG33: =expenses/(AF33) -> 1991262.208 | AH33: =+AG33-Revenue -> 115184.4075 | AI33: =+AH33/$J$49 -> 126286.7275 | AJ33: =+AI33*$J$47 -> 3191.897037 | AK33: =ROUND(+AJ33+AG33,5) -> 1994454.105
F34: 28 | H34: Return on Equity | J34: =+(M9-M11)/J26 -> 0.3309494751 | K34: =+M14/J26 -> 0.2597953379 | R34: 4 | S34: =AK29/Investment*100 -> 290.9661464 | T34: =EXP(y_inter4-(slope*LN(S34))) -> 6.132476234 | U34: =(+S34*T34/100)/100 -> 0.1784342977 | V34: =regDebt_weighted -> 0.03586 | W34: =+U34-V34 -> 0.1425742977 | X34: =+((W34*(1-0.34))-Pfd_weighted)/Equity_percent -> 0.2555495247 | Y34: =+Y33 -> 0.0025 | Z34: =+X34+Y34 -> 0.2580495247 | AA34: =Z34*equityP -> 0.1255377355 | AB34: =+AA34/(1-taxrate) -> 0.1599206822 | AC34: =debtP*Debt_Rate -> 0.02134266423 | AD34: =+AC34+AB34 -> 0.1812633464 | AE34: =+AD34/(S34/100) -> 0.06229705711 | AF34: =1-AE34 -> 0.9377029429 | AG34: =expenses/(AF34) -> 1990324.223 | AH34: =+AG34-Revenue -> 114246.4231 | AI34: =+AH34/$J$49 -> 125258.3332 | AJ34: =+AI34*$J$47 -> 3165.904371 | AK34: =ROUND(+AJ34+AG34,5) -> 1993490.127
F35: 29 | H35: Operating Ratio | J35: =+K8/K7 -> 0.937261 | K35: =+M8/M7 -> 0.9373614071 | R35: 7th Iteration
F36: 30 | H36: Profit Margin | J36: =+K9/K7 -> 0.062739 | K36: =+J36 -> 0.062739 | R36: 1 | S36: =AK31/Investment*100 -> 291.6536979 | T36: =EXP(y_inter1-(slope*LN(+S36))) -> 6.311573545 | U36: =(+S36*T36/100)/100 -> 0.1840793764 | V36: =regDebt_weighted -> 0.03586 | W36: =+U36-V36 -> 0.1482193764 | X36: =+((W36*(1-0.34))-Pfd_weighted)/Equity_percent -> 0.2663801989 | Y36: =+Y34 -> 0.0025 | Z36: =+X36+Y36 -> 0.2688801989 | AA36: =Z36*equityP -> 0.1308067175 | AB36: =+AA36/(1-taxrate) -> 0.1666327612 | AC36: =debtP*Debt_Rate -> 0.02134266423 | AD36: =+AC36+AB36 -> 0.1879754254 | AE36: =+AD36/(S36/100) -> 0.06445158308 | AF36: =1-AE36 -> 0.9355484169 | AG36: =expenses/(AF36) -> 1994907.85 | AH36: =+AG36-Revenue -> 118830.0503 | AI36: =+AH36/$J$49 -> 130283.7641 | AJ36: =+AI36*$J$47 -> 3292.922138 | AK36: =ROUND(+AJ36+AG36,5) -> 1998200.772
F37: 31 | H37: Final turnover | J37: =+S39/100 -> 2.90966141 | K37: =+J37 -> 2.90966141 | R37: 2 | S37: =AK32/Investment*100 -> 291.3268766 | T37: =EXP(y_inter2-(slope*LN(+S37))) -> 6.226544694 | U37: =(+S37*T37/100)/100 -> 0.1813959818 | V37: =regDebt_weighted -> 0.03586 | W37: =+U37-V37 -> 0.1455359818 | X37: =+((W37*(1-0.34))-Pfd_weighted)/Equity_percent -> 0.2612318255 | Y37: =+Y36 -> 0.0025 | Z37: =+X37+Y37 -> 0.2637318255 | AA37: =Z37*equityP -> 0.1283021008 | AB37: =+AA37/(1-taxrate) -> 0.1634421667 | AC37: =debtP*Debt_Rate -> 0.02134266423 | AD37: =+AC37+AB37 -> 0.1847848309 | AE37: =+AD37/(S37/100) -> 0.06342869325 | AF37: =1-AE37 -> 0.9365713067 | AG37: =expenses/(AF37) -> 1992729.083 | AH37: =+AG37-Revenue -> 116651.283 | AI37: =+AH37/$J$49 -> 127894.9912 | AJ37: =+AI37*$J$47 -> 3232.545903 | AK37: =ROUND(+AJ37+AG37,5) -> 1995961.629
F38: 32 | H38: Tax Rate | J38: =+C10 -> 0.215 | K38: =+J38 -> 0.215 | R38: 3 | S38: =AK33/Investment*100 -> 291.1068413 | T38: =EXP(y_inter3-(slope*LN(S38))) -> 6.169193505 | U38: =(+S38*T38/100)/100 -> 0.1795894435 | V38: =regDebt_weighted -> 0.03586 | W38: =+U38-V38 -> 0.1437294435 | X38: =+((W38*(1-0.34))-Pfd_weighted)/Equity_percent -> 0.2577657927 | Y38: =+Y37 -> 0.0025 | Z38: =+X38+Y38 -> 0.2602657927 | AA38: =Z38*equityP -> 0.126615921 | AB38: =+AA38/(1-taxrate) -> 0.1612941669 | AC38: =debtP*Debt_Rate -> 0.02134266423 | AD38: =+AC38+AB38 -> 0.1826368311 | AE38: =+AD38/(S38/100) -> 0.06273876296 | AF38: =1-AE38 -> 0.937261237 | AG38: =expenses/(AF38) -> 1991262.209 | AH38: =+AG38-Revenue -> 115184.409 | AI38: =+AH38/$J$49 -> 126286.7291 | AJ38: =+AI38*$J$47 -> 3191.897078 | AK38: =ROUND(+AJ38+AG38,5) -> 1994454.106
F39: 33 | R39: 4 | S39: =AK34/Investment*100 -> 290.966141 | T39: =EXP(y_inter4-(slope*LN(S39))) -> 6.132476311 | U39: =(+S39*T39/100)/100 -> 0.1784342967 | V39: =regDebt_weighted -> 0.03586 | W39: =+U39-V39 -> 0.1425742967 | X39: =+((W39*(1-0.34))-Pfd_weighted)/Equity_percent -> 0.2555495227 | Y39: =+Y38 -> 0.0025 | Z39: =+X39+Y39 -> 0.2580495227 | AA39: =Z39*equityP -> 0.1255377345 | AB39: =+AA39/(1-taxrate) -> 0.1599206809 | AC39: =debtP*Debt_Rate -> 0.02134266423 | AD39: =+AC39+AB39 -> 0.1812633451 | AE39: =+AD39/(S39/100) -> 0.06229705784 | AF39: =1-AE39 -> 0.9377029422 | AG39: =expenses/(AF39) -> 1990324.225 | AH39: =+AG39-Revenue -> 114246.4246 | AI39: =+AH39/$J$49 -> 125258.3349 | AJ39: =+AI39*$J$47 -> 3165.904414 | AK39: =ROUND(+AJ39+AG39,5) -> 1993490.129
F40: 34
F41: 35 | H41: Revenue Sensitive Taxes Charges | R41: Curve
F42: 36 | J42: Rate | K42: Taxes | R42: Lookup Table
F43: 37 | H43: B & O Tax | J43: =IF(A64=TRUE,C11,0) -> 0.015 | K43: =+J43*($J$7/$J$49) -> 1894.309219 | R43: 0 | S43: 1 | U43: Profit Margin | V43: =VLOOKUP(R48,R36:AG39,14) -> 0.06273876296
F44: 38 | H44: WUTC Fee | J44: =IF(A64=TRUE,C12,0) -> 0.004275 | K44: =+J44*($J$7/$J$49) -> 539.8781273 | R44: 50 | S44: 2 | U44: Operating Ratio | V44: =ROUND(1-V43,6) -> 0.937261
F45: 39 | H45: City Tax | J45: =IF(A64=TRUE,C13,0) -> 0 | K45: =+J45*($J$7/$J$49) -> 0 | R45: 125 | S45: 3 | U45: Percent Chg | V45: =+M7/Revenue-1 -> 0.0630980355
F46: 40 | H46: Bad Debts | J46: =IF(A64=TRUE,C14,0) -> 0.006 | K46: =+J46*($J$7/$J$49) -> 757.7236874 | R46: 401 | S46: 4
F47: 41 | H47: Revenue Sensitive | J47: =SUM(J43:J46) -> 0.025275 | K47: =+K43+K44+K45+K46 -> 3191.911033 | R47: =VLOOKUP(R48,R36:S39,2) -> 291.1068413 | S47: Curve turnover | X47: @EXP(5.72260-(.68367*@LN(T)))
F48: 42 | R48: =VLOOKUP(S36,R43:S46,2) -> 3 | S48: Curve No. Used | X48: @EXP(5.70827-(.68367*@LN(T)))
F49: 43 | H49: Conversion Factor | J49: =((K35)-J47) -> 0.9120864071 | X49: @EXP(5.69850-(.68367*@LN(T)))
R50: =+V44 -> 0.937261 | S50: Operating Ratio | X50: @EXP(5.69220-(.68367*@LN(T)))
S53: Base Utility from LG Sample Study | W53: Regression Results
S54: Percent | T54: Cost | U54: Weighted | W54: Y intercept (1) | X54: 5.7226 | Y54: Y intercept (3) | Z54: 5.6985
R55: Debt | S55: 0.562 | T55: 0.0638 | U55: =ROUND(+S55*T55,5) -> 0.03586 | W55: Y intercept (2) | X55: 5.70827 | Y55: Y intercept (4) | Z55: 5.6922
R56: Pfd. | S56: 0.094 | T56: 0.0659 | U56: =ROUND(+S56*T56,5) -> 0.00619
R57: Equity | S57: 0.344 | X57: Slope | Y57: 0.68367
S58: =SUM(S55:S57) -> 1
X60: Operating Statistics | Y60: Pre-tax | Z60: After Tax
X62: Return on Investment | Y62: =+J33 -> 0.1823452768 | Z62: 0.1477297151
X63: Return on Equity | Y63: 0.3309494751 | Z63: 0.2597953379
A64: TRUE | X64: Operating Ratio | Y64: 0.937261 | Z64: 0.9373614071
X65: Profit Margin | Y65: 0.062739 | Z65: 0.062739
X66: Final turnover | Y66: 2.90966141 | Z66: 2.90966141
X67: Tax Rate | Y67: 0.215 | Z67: 0.215

Sheet MSW
B1: NEW IMPROVED LURITO - GALLAGHER FORMULA | AE1: !??! | AF1: OP/RATIO | AI1: curve
G2: NOTE: | N2: FORMULAS | U2: 1st Revenue | V2: 1st Turnover | W2: M | X2: ROR | Y2: ROE | AA2: Adj ROE | AB2: Pre Tax ROE | AC2: Adj M | AD2: Revenues | AE2: Decision | AI2: lookup table
B3: !!! | C3: Revenue Requirement | E3: =E5+E4 -> 1994454.457 | F3: !!!<-- | H3: Red numbers are input/linked fields. | N3: 1. less than 50 | Q3: @EXP(5.72260-(.68367*@LN(T))) | U3: =$E$6*1.25 -> 2332916.102 | V3: ='MSW LG 2018 V5.0c'!S6 -> 273.8288543 | W3: =EXP(5.7226-(0.68367*LN(+V3))) -> 6.589647615 | X3: =(+W3*V3)/100 -> 18.04435657 | Y3: ='MSW LG 2018 V5.0c'!X6 -> 0.2594045155 | Z3: =+$E$18 -> 0.25 | AA3: =Y3+Z3 -> 0.5094045155 | AB3: =100*($E$15*$E$17+($E$16*(AA3/100))/(1-$E$19)) -> 2.278447204 | AC3: ='MSW LG 2018 V5.0c'!AE6 -> 0.06706831356 | AD3: =$E$6/(1-AC3) -> 2000503.261 | AE3: =IF(AD3=$U$3,"yes","not yet") -> not yet | AF3: =100*(1-AC3) -> 93.29316864 | AI3: 0 | AJ3: 1
B4: !!! | C4: Revenue Deficiency | E4: =(+E6-((H13/100)*E5))/H23 -> 118376.6567 | F4: !!!<-- | H4: Black are formula calculations | N4: 2. Between 50 and 125 | Q4: @EXP(5.70827-(.68367*@LN(T))) | U4: =$E$6*1.25 -> 2332916.102 | V4: ='MSW LG 2018 V5.0c'!S7 -> 273.8288543 | W4: ='MSW LG 2018 V5.0c'!T7 -> 6.589647615 | X4: =(+W4*V4)/100 -> 18.04435657 | Y4: ='MSW LG 2018 V5.0c'!X7 -> 0.2594045155 | Z4: =+$E$18 -> 0.25 | AA4: =Y4+Z4 -> 0.5094045155 | AB4: =100*($E$15*$E$17+($E$16*(AA4/100))/(1-$E$19)) -> 2.278447204 | AC4: ='MSW LG 2018 V5.0c'!AE7 -> 0.06706831356 | AD4: =$E$6/(1-AC4) -> 2000503.261 | AE4: =IF(AD4=$U$4,"yes","not yet") -> not yet | AF4: =100*(1-AC4) -> 93.29316864 | AI4: 50 | AJ4: 2
B5: * | C5: Revenue | E5: =Proforma!O26 -> 1876077.8 | F5: * p/f before rates | N5: 3. Between 125 and 140 | Q5: @EXP(5.69850-(.68367*@LN(T))) | U5: =$E$6*1.25 -> 2332916.102 | V5: ='MSW LG 2018 V5.0c'!S8 -> 273.8288543 | W5: ='MSW LG 2018 V5.0c'!T8 -> 6.589647615 | X5: =(+W5*V5)/100 -> 18.04435657 | Y5: ='MSW LG 2018 V5.0c'!X8 -> 0.2594045155 | Z5: =+$E$18 -> 0.25 | AA5: =Y5+Z5 -> 0.5094045155 | AB5: =100*($E$15*$E$17+($E$16*(AA5/100))/(1-$E$19)) -> 2.278447204 | AC5: ='MSW LG 2018 V5.0c'!AE8 -> 0.06706831356 | AD5: =$E$6/(1-AC5) -> 2000503.261 | AE5: =IF(AD5=$U$5,"yes","not yet") -> not yet | AF5: =100*(1-AC5) -> 93.29316864 | AI5: 125 | AJ5: 3
B6: * | C6: Expenses | E6: =+Proforma!O391 -> 1866332.881 | F6: * p/f before rates | N6: 4. greater than 400 | Q6: @EXP(5.69220-(.68367*@LN(T))) | U6: =$E$6*1.25 -> 2332916.102 | V6: ='MSW LG 2018 V5.0c'!S9 -> 273.8288543 | W6: ='MSW LG 2018 V5.0c'!T9 -> 6.589647615 | X6: =(+W6*V6)/100 -> 18.04435657 | Y6: ='MSW LG 2018 V5.0c'!X9 -> 0.2594045155 | Z6: =+$E$18 -> 0.25 | AA6: =Y6+Z6 -> 0.5094045155 | AB6: =100*($E$15*$E$17+($E$16*(AA6/100))/(1-$E$19)) -> 2.278447204 | AC6: ='MSW LG 2018 V5.0c'!AE9 -> 0.06706831356 | AD6: =$E$6/(1-AC6) -> 2000503.261 | AE6: =IF(AD6=$U$6,"yes","not yet") -> not yet | AF6: =100*(1-AC6) -> 93.29316864 | AI6: 401 | AJ6: 4
B7: * | C7: Avg. Investment - | E7: =SUM('Ave Inv. Summary'!I66:J66) -> 685127.8711 | F7: * p/f before rates
C8: curve turnover | E8: =V3 -> 273.8288543 | F8: (calculated) | V8: 2nd Turnover | W8: M | X8: ROR | Y8: ROE | AI8: lookup tables
C9: final turnover | E9: =HLOOKUP($AJ$32,$AJ$26:$AR$30,$E$10+1) -> 291.1068413 | F9: (calculated) | V9: ='MSW LG 2018 V5.0c'!S11 -> 292.4930255 | W9: ='MSW LG 2018 V5.0c'!T11 -> 6.299185651 | X9: =(+W9*V9)/100 -> 18.42467869 | Y9: ='MSW LG 2018 V5.0c'!X11 -> 0.2667013935 | Z9: =+$E$18 -> 0.25 | AA9: =Y9+Z9 -> 0.5167013935 | AB9: =100*($E$15*$E$17+($E$16*(AA9/100))/(1-$E$19)) -> 2.282046529 | AC9: ='MSW LG 2018 V5.0c'!AE11 -> 0.0643346892 | AD9: =$E$6/(1-AC9) -> 1994658.624 | AE9: =IF(OR(OR(AD9=AD3,AD9=(AD3+1)),AD9=(AD8187-1)),"yes","not yet") -> not yet | AF9: =100*(1-AC9) -> 93.56653108
C10: curve No. used | E10: =VLOOKUP(E8,AI3:AJ6,2) -> 3 | F10: (calculated) | V10: ='MSW LG 2018 V5.0c'!S12 -> 292.4930255 | W10: ='MSW LG 2018 V5.0c'!T12 -> 6.209562007 | X10: =(+W10*V10)/100 -> 18.16253579 | Y10: ='MSW LG 2018 V5.0c'!X12 -> 0.2616719075 | Z10: =+$E$18 -> 0.25 | AA10: =Y10+Z10 -> 0.5116719075 | AB10: =100*($E$15*$E$17+($E$16*(AA10/100))/(1-$E$19)) -> 2.279565639 | AC10: ='MSW LG 2018 V5.0c'!AE12 -> 0.06326905131 | AD10: =$E$6/(1-AC10) -> 1992389.473 | AE10: =IF(OR(OR(AD10=AD4,AD10=(AD4+1)),AD10=(AD4-1)),"yes","not yet") -> not yet | AF10: =100*(1-AC10) -> 93.67309487
V11: ='MSW LG 2018 V5.0c'!S13 -> 292.4930255 | W11: ='MSW LG 2018 V5.0c'!T13 -> 6.149189984 | X11: =(+W11*V11)/100 -> 17.98595183 | Y11: ='MSW LG 2018 V5.0c'!X13 -> 0.2582839595 | Z11: =+$E$18 -> 0.25 | AA11: =Y11+Z11 -> 0.5082839595 | AB11: =100*($E$15*$E$17+($E$16*(AA11/100))/(1-$E$19)) -> 2.277894468 | AC11: ='MSW LG 2018 V5.0c'!AE13 -> 0.06255121934 | AD11: =$E$6/(1-AC11) -> 1990863.842 | AE11: =IF(OR(OR(AD11=AD5,AD11=(AD5+1)),AD11=(AD5-1)),"yes","not yet") -> not yet | AF11: =100*(1-AC11) -> 93.74487807 | AJ11: 1 | AK11: 2 | AL11: 3 | AM11: 4 | AN11: 5 | AO11: 6 | AP11: 7 | AQ11: 8 | AR11: 9
C12: Company actual | V12: ='MSW LG 2018 V5.0c'!S14 -> 292.4930255 | W12: ='MSW LG 2018 V5.0c'!T14 -> 6.110571862 | X12: =(+W12*V12)/100 -> 17.87299652 | Y12: ='MSW LG 2018 V5.0c'!X14 -> 0.2561167936 | Z12: =+$E$18 -> 0.25 | AA12: =Y12+Z12 -> 0.5061167936 | AB12: =100*($E$15*$E$17+($E$16*(AA12/100))/(1-$E$19)) -> 2.276825472 | AC12: ='MSW LG 2018 V5.0c'!AE14 -> 0.06209204436 | AD12: =$E$6/(1-AC12) -> 1989889.168 | AE12: =IF(OR(OR(AD12=AD6,AD12=(AD6+1)),AD12=(AD6-1)),"yes","not yet") -> not yet | AF12: =100*(1-AC12) -> 93.79079556 | AJ12: =AE3 -> not yet | AK12: =AE9 -> not yet | AL12: =AE15 -> not yet | AM12: =AE21 -> not yet | AN12: =AE27 -> not yet | AO12: =AE33 -> not yet | AP12: =AE39 -> yes | AQ12: =AE45 -> 0 | AR12: =AE51 -> 0
C13: capital structure: | E13: !!! | F13: OPERATING RATIO -> | H13: =HLOOKUP($AJ$23,$AJ$17:$AR$21,$E$10+1) -> 93.7261237 | I13: !!!<-- | AJ13: =AE4 -> not yet | AK13: =AE10 -> not yet | AL13: =AE16 -> not yet | AM13: =AE22 -> not yet | AN13: =AE28 -> not yet | AO13: =AE34 -> not yet | AP13: =AE40 -> yes | AQ13: =AE46 -> 0 | AR13: =AE52 -> 0
C14: - | D14: - | H14: = | V14: 3rd Turnover | W14: M | X14: ROR | Y14: ROE | AJ14: =AE5 -> not yet | AK14: =AE11 -> not yet | AL14: =AE17 -> not yet | AM14: =AE23 -> not yet | AN14: =AE29 -> not yet | AO14: =AE35 -> not yet | AP14: =AE41 -> yes | AQ14: =AE47 -> 0 | AR14: =AE53 -> 0
B15: * | C15: Actual Debt Ratio | E15: =+'Combined LG'!E15 -> 0.5077173987 | F15: Conversion factor data: | V15: ='MSW LG 2018 V5.0c'!S16 -> 291.6163134 | W15: ='MSW LG 2018 V5.0c'!T16 -> 6.312126711 | X15: =(+W15*V15)/100 -> 18.40719121 | Y15: ='MSW LG 2018 V5.0c'!X16 -> 0.2663658778 | Z15: =+$E$18 -> 0.25 | AA15: =Y15+Z15 -> 0.5163658778 | AB15: =100*($E$15*$E$17+($E$16*(AA15/100))/(1-$E$19)) -> 2.281881029 | AC15: ='MSW LG 2018 V5.0c'!AE16 -> 0.06445680218 | AD15: =$E$6/(1-AC15) -> 1994918.979 | AE15: =IF(OR(OR(AD15=AD9,AD15=(AD9+1)),AD15=(AD1-1)),"yes","not yet") -> not yet | AF15: =100*(1-AC15) -> 93.55431978 | AJ15: =AE6 -> not yet | AK15: =AE12 -> not yet | AL15: =AE18 -> not yet | AM15: =AE24 -> not yet | AN15: =AE30 -> not yet | AO15: =AE36 -> not yet | AP15: =AE42 -> yes | AQ15: =AE48 -> 0 | AR15: =AE54 -> 0
B16: * | C16: Actual Equity Ratio | E16: =+'Combined LG'!E16 -> 0.4922826013 | F16: B & O Tax | H16: =+'Combined LG'!H16 -> 0.015 | I16: * | V16: ='MSW LG 2018 V5.0c'!S17 -> 291.2759343 | W16: ='MSW LG 2018 V5.0c'!T17 -> 6.227289178 | X16: =(+W16*V16)/100 -> 18.13859473 | Y16: ='MSW LG 2018 V5.0c'!X17 -> 0.2612125734 | Z16: =+$E$18 -> 0.25 | AA16: =Y16+Z16 -> 0.5112125734 | AB16: =100*($E$15*$E$17+($E$16*(AA16/100))/(1-$E$19)) -> 2.279339063 | AC16: ='MSW LG 2018 V5.0c'!AE17 -> 0.06343569038 | AD16: =$E$6/(1-AC16) -> 1992743.971 | AE16: =IF(OR(OR(AD16=AD10,AD16=(AD10+1)),AD16=(AD10-1)),"yes","not yet") -> not yet | AF16: =100*(1-AC16) -> 93.65643096
B17: * | C17: Actual Cost of Debt | E17: =+'Combined LG'!E17 -> 0.03992720522 | F17: WUTC Fee | H17: =+'Combined LG'!H17 -> 0.004275 | I17: * | V17: ='MSW LG 2018 V5.0c'!S18 -> 291.0470854 | W17: ='MSW LG 2018 V5.0c'!T18 -> 6.170059426 | X17: =(+W17*V17)/100 -> 17.95777813 | Y17: ='MSW LG 2018 V5.0c'!X18 -> 0.2577434175 | Z17: =+$E$18 -> 0.25 | AA17: =Y17+Z17 -> 0.5077434175 | AB17: =100*($E$15*$E$17+($E$16*(AA17/100))/(1-$E$19)) -> 2.277627836 | AC17: ='MSW LG 2018 V5.0c'!AE18 -> 0.06274687973 | AD17: =$E$6/(1-AC17) -> 1991279.454 | AE17: =IF(OR(OR(AD17=AD11,AD17=(AD11+1)),AD17=(AD11-1)),"yes","not yet") -> not yet | AF17: =100*(1-AC17) -> 93.72531203 | AJ17: =HLOOKUP(1,$AJ$11:$AR$15,$E$10+1) -> not yet | AK17: =HLOOKUP(2,$AJ$11:$AR$15,$E$10+1) -> not yet | AL17: =HLOOKUP(3,$AJ$11:$AR$15,$E$10+1) -> not yet | AM17: =HLOOKUP(4,$AJ$11:$AR$15,$E$10+1) -> not yet | AN17: =HLOOKUP(5,$AJ$11:$AR$15,$E$10+1) -> not yet | AO17: =HLOOKUP(6,$AJ$11:$AR$15,$E$10+1) -> not yet | AP17: =HLOOKUP(7,$AJ$11:$AR$15,$E$10+1) -> yes | AQ17: =HLOOKUP(8,$AJ$11:$AR$15,$E$10+1) -> 0 | AR17: =HLOOKUP(9,$AJ$11:$AR$15,$E$10+1) -> 0
B18: * | C18: Basis Points | E18: 0.25 | F18: City Tax | H18: =+'Combined LG'!H18 -> 0 | I18: * | V18: ='MSW LG 2018 V5.0c'!S19 -> 290.9008815 | W18: ='MSW LG 2018 V5.0c'!T19 -> 6.133416827 | X18: =(+W18*V18)/100 -> 17.84216361 | Y18: ='MSW LG 2018 V5.0c'!X19 -> 0.2555252321 | Z18: =+$E$18 -> 0.25 | AA18: =Y18+Z18 -> 0.5055252321 | AB18: =100*($E$15*$E$17+($E$16*(AA18/100))/(1-$E$19)) -> 2.276533673 | AC18: ='MSW LG 2018 V5.0c'!AE19 -> 0.06230585849 | AD18: =$E$6/(1-AC18) -> 1990342.905 | AE18: =IF(OR(OR(AD18=AD12,AD18=(AD12+1)),AD18=(AD12-1)),"yes","not yet") -> not yet | AF18: =100*(1-AC18) -> 93.76941415 | AI18: 1 | AJ18: =AF3 -> 93.29316864 | AK18: =AF9 -> 93.56653108 | AL18: =AF15 -> 93.55431978 | AM18: =AF21 -> 93.554865 | AN18: =AF27 -> 93.55484065 | AO18: =AF33 -> 93.55484174 | AP18: =AF39 -> 93.55484169 | AQ18: =AF45 -> 0 | AR18: =AF51 -> 0
B19: * | C19: Tax Rate | E19: =+'Combined LG'!E19 -> 0.002 | F19: Bad Debts | H19: =+'Combined LG'!H19 -> 0.006 | I19: * | AI19: 2 | AJ19: =AF4 -> 93.29316864 | AK19: =AF10 -> 93.67309487 | AL19: =AF16 -> 93.65643096 | AM19: =AF22 -> 93.65716135 | AN19: =AF28 -> 93.65712933 | AO19: =AF34 -> 93.65713074 | AP19: =AF40 -> 93.65713067 | AQ19: =AF46 -> 0 | AR19: =AF52 -> 0
H20: - | V20: 4th Turnover | W20: M | X20: ROR | Y20: ROE | AI20: 3 | AJ20: =AF5 -> 93.29316864 | AK20: =AF11 -> 93.74487807 | AL20: =AF17 -> 93.72531203 | AM20: =AF23 -> 93.72615884 | AN20: =AF29 -> 93.72612219 | AO20: =AF35 -> 93.72612377 | AP20: =AF41 -> 93.7261237 | AQ20: =AF47 -> 0 | AR20: =AF53 -> 0
F21: Revenue Sensitive | H21: =SUM(H16:H19) -> 0.025275 | V21: ='MSW LG 2018 V5.0c'!S21 -> 291.6553674 | W21: ='MSW LG 2018 V5.0c'!T21 -> 6.311548844 | X21: =(+W21*V21)/100 -> 18.40797097 | Y21: ='MSW LG 2018 V5.0c'!X21 -> 0.2663808384 | Z21: =+$E$18 -> 0.25 | AA21: =Y21+Z21 -> 0.5163808384 | AB21: =100*($E$15*$E$17+($E$16*(AA21/100))/(1-$E$19)) -> 2.281888409 | AC21: ='MSW LG 2018 V5.0c'!AE21 -> 0.06445135003 | AD21: =$E$6/(1-AC21) -> 1994907.353 | AE21: =IF(OR(OR(AD21=AD15,AD21=(AD15+1)),AD21=(AD7-1)),"yes","not yet") -> not yet | AF21: =100*(1-AC21) -> 93.554865 | AI21: 4 | AJ21: =AF6 -> 93.29316864 | AK21: =AF12 -> 93.79079556 | AL21: =AF18 -> 93.76941415 | AM21: =AF24 -> 93.770332 | AN21: =AF30 -> 93.7702926 | AO21: =AF36 -> 93.77029429 | AP21: =AF42 -> 93.77029422 | AQ21: =AF48 -> 0 | AR21: =AF54 -> 0
V22: ='MSW LG 2018 V5.0c'!S22 -> 291.32911 | W22: ='MSW LG 2018 V5.0c'!T22 -> 6.226512059 | X22: =(+W22*V22)/100 -> 18.13964217 | Y22: ='MSW LG 2018 V5.0c'!X22 -> 0.2612326695 | Z22: =+$E$18 -> 0.25 | AA22: =Y22+Z22 -> 0.5112326695 | AB22: =100*($E$15*$E$17+($E$16*(AA22/100))/(1-$E$19)) -> 2.279348976 | AC22: ='MSW LG 2018 V5.0c'!AE22 -> 0.06342838653 | AD22: =$E$6/(1-AC22) -> 1992728.43 | AE22: =IF(OR(OR(AD22=AD16,AD22=(AD16+1)),AD22=(AD16-1)),"yes","not yet") -> not yet | AF22: =100*(1-AC22) -> 93.65716135
F23: Conversion Factor | H23: =((+H13/100)-H21) -> 0.911986237 | V23: ='MSW LG 2018 V5.0c'!S23 -> 291.1094283 | W23: ='MSW LG 2018 V5.0c'!T23 -> 6.169156024 | X23: =(+W23*V23)/100 -> 17.95899483 | Y23: ='MSW LG 2018 V5.0c'!X23 -> 0.2577667613 | Z23: =+$E$18 -> 0.25 | AA23: =Y23+Z23 -> 0.5077667613 | AB23: =100*($E$15*$E$17+($E$16*(AA23/100))/(1-$E$19)) -> 2.277639351 | AC23: ='MSW LG 2018 V5.0c'!AE23 -> 0.06273841162 | AD23: =$E$6/(1-AC23) -> 1991261.463 | AE23: =IF(OR(OR(AD23=AD17,AD23=(AD17+1)),AD23=(AD17-1)),"yes","not yet") -> not yet | AF23: =100*(1-AC23) -> 93.72615884 | AJ23: yes
V24: ='MSW LG 2018 V5.0c'!S24 -> 290.9689433 | W24: ='MSW LG 2018 V5.0c'!T24 -> 6.132435933 | X24: =(+W24*V24)/100 -> 17.84348403 | Y24: ='MSW LG 2018 V5.0c'!X24 -> 0.2555505657 | Z24: =+$E$18 -> 0.25 | AA24: =Y24+Z24 -> 0.5055505657 | AB24: =100*($E$15*$E$17+($E$16*(AA24/100))/(1-$E$19)) -> 2.27654617 | AC24: ='MSW LG 2018 V5.0c'!AE24 -> 0.06229668 | AD24: =$E$6/(1-AC24) -> 1990323.423 | AE24: =IF(OR(OR(AD24=AD18,AD24=(AD18+1)),AD24=(AD18-1)),"yes","not yet") -> not yet | AF24: =100*(1-AC24) -> 93.770332 | AJ24: =HLOOKUP($AJ$23,$AJ$17:$AR$21,$E$10+1) -> 93.7261237
C26: Company Reference | V26: 5th Turnover | W26: M | X26: ROR | Y26: ROE | AJ26: =HLOOKUP(1,$AJ$11:$AR$15,$E$10+1) -> not yet | AK26: =HLOOKUP(2,$AJ$11:$AR$15,$E$10+1) -> not yet | AL26: =HLOOKUP(3,$AJ$11:$AR$15,$E$10+1) -> not yet | AM26: =HLOOKUP(4,$AJ$11:$AR$15,$E$10+1) -> not yet | AN26: =HLOOKUP(5,$AJ$11:$AR$15,$E$10+1) -> not yet | AO26: =HLOOKUP(6,$AJ$11:$AR$15,$E$10+1) -> not yet | AP26: =HLOOKUP(7,$AJ$11:$AR$15,$E$10+1) -> yes | AQ26: =HLOOKUP(8,$AJ$11:$AR$15,$E$10+1) -> 0 | AR26: =HLOOKUP(9,$AJ$11:$AR$15,$E$10+1) -> 0
C27: Annl Price Increase (PI) $ | E27: =+E4 -> 118376.6567 | V27: ='MSW LG 2018 V5.0c'!S26 -> 291.6536235 | W27: ='MSW LG 2018 V5.0c'!T26 -> 6.311574645 | X27: =(+W27*V27)/100 -> 18.40793615 | Y27: ='MSW LG 2018 V5.0c'!X26 -> 0.2663801704 | Z27: =+$E$18 -> 0.25 | AA27: =Y27+Z27 -> 0.5163801704 | AB27: =100*($E$15*$E$17+($E$16*(AA27/100))/(1-$E$19)) -> 2.281888079 | AC27: ='MSW LG 2018 V5.0c'!AE26 -> 0.06445159346 | AD27: =$E$6/(1-AC27) -> 1994907.872 | AE27: =IF(OR(OR(AD27=AD21,AD27=(AD21+1)),AD27=(AD13-1)),"yes","not yet") -> not yet | AF27: =100*(1-AC27) -> 93.55484065 | AI27: 1 | AJ27: =V3 -> 273.8288543 | AK27: =V9 -> 292.4930255 | AL27: =V15 -> 291.6163134 | AM27: =V21 -> 291.6553674 | AN27: =V27 -> 291.6536235 | AO27: =V33 -> 291.6537014 | AP27: =V39 -> 291.6536979 | AQ27: =V45 -> 0 | AR27: =V51 -> 0
C28: Monthly PI $ | E28: =+E27/12 -> 9864.721388 | V28: ='MSW LG 2018 V5.0c'!S27 -> 291.3267789 | W28: ='MSW LG 2018 V5.0c'!T27 -> 6.226546121 | X28: =(+W28*V28)/100 -> 18.13959625 | Y28: ='MSW LG 2018 V5.0c'!X27 -> 0.2612317885 | Z28: =+$E$18 -> 0.25 | AA28: =Y28+Z28 -> 0.5112317885 | AB28: =100*($E$15*$E$17+($E$16*(AA28/100))/(1-$E$19)) -> 2.279348542 | AC28: ='MSW LG 2018 V5.0c'!AE27 -> 0.06342870667 | AD28: =$E$6/(1-AC28) -> 1992729.112 | AE28: =IF(OR(OR(AD28=AD22,AD28=(AD22+1)),AD28=(AD22-1)),"yes","not yet") -> not yet | AF28: =100*(1-AC28) -> 93.65712933 | AI28: 2 | AJ28: =V4 -> 273.8288543 | AK28: =V10 -> 292.4930255 | AL28: =V16 -> 291.2759343 | AM28: =V22 -> 291.32911 | AN28: =V28 -> 291.3267789 | AO28: =V34 -> 291.3268811 | AP28: =V40 -> 291.3268766 | AQ28: =V46 -> 0 | AR28: =V52 -> 0
C29: Percentage PI | E29: =+E4/(E5-Proforma!O12) -> 0.06632196274 | V29: ='MSW LG 2018 V5.0c'!S28 -> 291.1067296 | W29: ='MSW LG 2018 V5.0c'!T28 -> 6.169195124 | X29: =(+W29*V29)/100 -> 17.95894217 | Y29: ='MSW LG 2018 V5.0c'!X28 -> 0.2577657508 | Z29: =+$E$18 -> 0.25 | AA29: =Y29+Z29 -> 0.5077657508 | AB29: =100*($E$15*$E$17+($E$16*(AA29/100))/(1-$E$19)) -> 2.277638852 | AC29: ='MSW LG 2018 V5.0c'!AE28 -> 0.06273877813 | AD29: =$E$6/(1-AC29) -> 1991262.241 | AE29: =IF(OR(OR(AD29=AD23,AD29=(AD23+1)),AD29=(AD23-1)),"yes","not yet") -> not yet | AF29: =100*(1-AC29) -> 93.72612219 | AI29: 3 | AJ29: =V5 -> 273.8288543 | AK29: =V11 -> 292.4930255 | AL29: =V17 -> 291.0470854 | AM29: =V23 -> 291.1094283 | AN29: =V29 -> 291.1067296 | AO29: =V35 -> 291.1068464 | AP29: =V41 -> 291.1068413 | AQ29: =V47 -> 0 | AR29: =V53 -> 0
V30: ='MSW LG 2018 V5.0c'!S29 -> 290.9660209 | W30: ='MSW LG 2018 V5.0c'!T29 -> 6.132478041 | X30: =(+W30*V30)/100 -> 17.84342734 | Y30: ='MSW LG 2018 V5.0c'!X29 -> 0.255549478 | Z30: =+$E$18 -> 0.25 | AA30: =Y30+Z30 -> 0.505549478 | AB30: =100*($E$15*$E$17+($E$16*(AA30/100))/(1-$E$19)) -> 2.276545633 | AC30: ='MSW LG 2018 V5.0c'!AE29 -> 0.06229707403 | AD30: =$E$6/(1-AC30) -> 1990324.259 | AE30: =IF(OR(OR(AD30=AD24,AD30=(AD24+1)),AD30=(AD24-1)),"yes","not yet") -> not yet | AF30: =100*(1-AC30) -> 93.7702926 | AI30: 4 | AJ30: =V6 -> 273.8288543 | AK30: =V12 -> 292.4930255 | AL30: =V18 -> 290.9008815 | AM30: =V24 -> 290.9689433 | AN30: =V30 -> 290.9660209 | AO30: =V36 -> 290.9661464 | AP30: =V42 -> 290.966141 | AQ30: =V48 -> 0 | AR30: =V54 -> 0
V32: 6th Turnover | W32: M | X32: ROR | Y32: ROE | AJ32: yes
V33: ='MSW LG 2018 V5.0c'!S31 -> 291.6537014 | W33: ='MSW LG 2018 V5.0c'!T31 -> 6.311573493 | X33: =(+W33*V33)/100 -> 18.40793771 | Y33: ='MSW LG 2018 V5.0c'!X31 -> 0.2663802002 | Z33: =+$E$18 -> 0.25 | AA33: =Y33+Z33 -> 0.5163802002 | AB33: =100*($E$15*$E$17+($E$16*(AA33/100))/(1-$E$19)) -> 2.281888094 | AC33: ='MSW LG 2018 V5.0c'!AE31 -> 0.06445158259 | AD33: =ROUND($E$6/(1-AC33),0) -> 1994908 | AE33: =IF(OR(OR(AD33=AD27,AD33=(AD27+1)),AD33=(AD19-1)),"yes","not yet") -> not yet | AF33: =100*(1-AC33) -> 93.55484174 | AJ33: =HLOOKUP($AJ$32,$AJ$26:$AR$30,$E$10+1) -> 291.1068413
V34: ='MSW LG 2018 V5.0c'!S32 -> 291.3268811 | W34: ='MSW LG 2018 V5.0c'!T32 -> 6.226544628 | X34: =(+W34*V34)/100 -> 18.13959826 | Y34: ='MSW LG 2018 V5.0c'!X32 -> 0.2612318272 | Z34: =+$E$18 -> 0.25 | AA34: =Y34+Z34 -> 0.5112318272 | AB34: =100*($E$15*$E$17+($E$16*(AA34/100))/(1-$E$19)) -> 2.279348561 | AC34: ='MSW LG 2018 V5.0c'!AE32 -> 0.06342869264 | AD34: =ROUND($E$6/(1-AC34),0) -> 1992729 | AE34: =IF(OR(OR(AD34=AD28,AD34=(AD28+1)),AD34=(AD28-1)),"yes","not yet") -> not yet | AF34: =100*(1-AC34) -> 93.65713074
V35: ='MSW LG 2018 V5.0c'!S33 -> 291.1068464 | W35: ='MSW LG 2018 V5.0c'!T33 -> 6.169193432 | X35: =(+W35*V35)/100 -> 17.95894444 | Y35: ='MSW LG 2018 V5.0c'!X33 -> 0.2577657946 | Z35: =+$E$18 -> 0.25 | AA35: =Y35+Z35 -> 0.5077657946 | AB35: =100*($E$15*$E$17+($E$16*(AA35/100))/(1-$E$19)) -> 2.277638874 | AC35: ='MSW LG 2018 V5.0c'!AE33 -> 0.06273876227 | AD35: =ROUND($E$6/(1-AC35),0) -> 1991262 | AE35: =IF(OR(OR(AD35=AD29,AD35=(AD29+1)),AD35=(AD29-1)),"yes","not yet") -> not yet | AF35: =100*(1-AC35) -> 93.72612377 | AJ35: =HLOOKUP(1,$AJ$11:$AR$15,$E$10+1) -> not yet | AK35: =HLOOKUP(2,$AJ$11:$AR$15,$E$10+1) -> not yet | AL35: =HLOOKUP(3,$AJ$11:$AR$15,$E$10+1) -> not yet | AM35: =HLOOKUP(4,$AJ$11:$AR$15,$E$10+1) -> not yet | AN35: =HLOOKUP(5,$AJ$11:$AR$15,$E$10+1) -> not yet | AO35: =HLOOKUP(6,$AJ$11:$AR$15,$E$10+1) -> not yet | AP35: =HLOOKUP(7,$AJ$11:$AR$15,$E$10+1) -> yes | AQ35: =HLOOKUP(8,$AJ$11:$AR$15,$E$10+1) -> 0 | AR35: =HLOOKUP(9,$AJ$11:$AR$15,$E$10+1) -> 0
V36: ='MSW LG 2018 V5.0c'!S34 -> 290.9661464 | W36: ='MSW LG 2018 V5.0c'!T34 -> 6.132476234 | X36: =(+W36*V36)/100 -> 17.84342977 | Y36: ='MSW LG 2018 V5.0c'!X34 -> 0.2555495247 | Z36: =+$E$18 -> 0.25 | AA36: =Y36+Z36 -> 0.5055495247 | AB36: =100*($E$15*$E$17+($E$16*(AA36/100))/(1-$E$19)) -> 2.276545656 | AC36: ='MSW LG 2018 V5.0c'!AE34 -> 0.06229705711 | AD36: =ROUND($E$6/(1-AC36),0) -> 1990324 | AE36: =IF(OR(OR(AD36=AD30,AD36=(AD30+1)),AD36=(AD30-1)),"yes","not yet") -> not yet | AF36: =100*(1-AC36) -> 93.77029429 | AI36: 1 | AJ36: =AD3 -> 2000503.261 | AK36: =AD9 -> 1994658.624 | AL36: =AD15 -> 1994918.979 | AM36: =AD21 -> 1994907.353 | AN36: =AD27 -> 1994907.872 | AO36: =AD33 -> 1994908 | AP36: =AD39 -> 1994908 | AQ36: =AD45 -> 0 | AR36: =AD51 -> 0
AI37: 2 | AJ37: =AD4 -> 2000503.261 | AK37: =AD10 -> 1992389.473 | AL37: =AD16 -> 1992743.971 | AM37: =AD22 -> 1992728.43 | AN37: =AD28 -> 1992729.112 | AO37: =AD34 -> 1992729 | AP37: =AD40 -> 1992729 | AQ37: =AD46 -> 0 | AR37: =AD52 -> 0
V38: 7th turnover | W38: M | X38: ROR | Y38: ROE | AI38: 3 | AJ38: =AD5 -> 2000503.261 | AK38: =AD11 -> 1990863.842 | AL38: =AD17 -> 1991279.454 | AM38: =AD23 -> 1991261.463 | AN38: =AD29 -> 1991262.241 | AO38: =AD35 -> 1991262 | AP38: =AD41 -> 1991262 | AQ38: =AD47 -> 0 | AR38: =AD53 -> 0
V39: ='MSW LG 2018 V5.0c'!S36 -> 291.6536979 | W39: ='MSW LG 2018 V5.0c'!T36 -> 6.311573545 | X39: =(+W39*V39)/100 -> 18.40793764 | Y39: ='MSW LG 2018 V5.0c'!X36 -> 0.2663801989 | Z39: =+$E$18 -> 0.25 | AA39: =Y39+Z39 -> 0.5163801989 | AB39: =100*($E$15*$E$17+($E$16*(AA39/100))/(1-$E$19)) -> 2.281888094 | AC39: ='MSW LG 2018 V5.0c'!AE36 -> 0.06445158308 | AD39: =ROUND($E$6/(1-AC39),0) -> 1994908 | AE39: =IF(OR(OR(AD39=AD33,AD39=(AD33+1)),AD39=(AD25-1)),"yes","not yet") -> yes | AF39: =100*(1-AC39) -> 93.55484169 | AI39: 4 | AJ39: =AD6 -> 2000503.261 | AK39: =AD12 -> 1989889.168 | AL39: =AD18 -> 1990342.905 | AM39: =AD24 -> 1990323.423 | AN39: =AD30 -> 1990324.259 | AO39: =AD36 -> 1990324 | AP39: =AD42 -> 1990324 | AQ39: =AD48 -> 0 | AR39: =AD54 -> 0
V40: ='MSW LG 2018 V5.0c'!S37 -> 291.3268766 | W40: ='MSW LG 2018 V5.0c'!T37 -> 6.226544694 | X40: =(+W40*V40)/100 -> 18.13959818 | Y40: ='MSW LG 2018 V5.0c'!X37 -> 0.2612318255 | Z40: =+$E$18 -> 0.25 | AA40: =Y40+Z40 -> 0.5112318255 | AB40: =100*($E$15*$E$17+($E$16*(AA40/100))/(1-$E$19)) -> 2.27934856 | AC40: ='MSW LG 2018 V5.0c'!AE37 -> 0.06342869325 | AD40: =ROUND($E$6/(1-AC40),0) -> 1992729 | AE40: =IF(OR(OR(AD40=AD34,AD40=(AD34+1)),AD40=(AD34-1)),"yes","not yet") -> yes | AF40: =100*(1-AC40) -> 93.65713067
V41: ='MSW LG 2018 V5.0c'!S38 -> 291.1068413 | W41: ='MSW LG 2018 V5.0c'!T38 -> 6.169193505 | X41: =(+W41*V41)/100 -> 17.95894435 | Y41: ='MSW LG 2018 V5.0c'!X38 -> 0.2577657927 | Z41: =+$E$18 -> 0.25 | AA41: =Y41+Z41 -> 0.5077657927 | AB41: =100*($E$15*$E$17+($E$16*(AA41/100))/(1-$E$19)) -> 2.277638873 | AC41: ='MSW LG 2018 V5.0c'!AE38 -> 0.06273876296 | AD41: =ROUND($E$6/(1-AC41),0) -> 1991262 | AE41: =IF(OR(OR(AD41=AD35,AD41=(AD35+1)),AD41=(AD35-1)),"yes","not yet") -> yes | AF41: =100*(1-AC41) -> 93.7261237 | AJ41: yes
V42: ='MSW LG 2018 V5.0c'!S39 -> 290.966141 | W42: ='MSW LG 2018 V5.0c'!T39 -> 6.132476311 | X42: =(+W42*V42)/100 -> 17.84342967 | Y42: ='MSW LG 2018 V5.0c'!X39 -> 0.2555495227 | Z42: =+$E$18 -> 0.25 | AA42: =Y42+Z42 -> 0.5055495227 | AB42: =100*($E$15*$E$17+($E$16*(AA42/100))/(1-$E$19)) -> 2.276545655 | AC42: ='MSW LG 2018 V5.0c'!AE39 -> 0.06229705784 | AD42: =ROUND($E$6/(1-AC42),0) -> 1990324 | AE42: =IF(OR(OR(AD42=AD36,AD42=(AD36+1)),AD42=(AD36-1)),"yes","not yet") -> yes | AF42: =100*(1-AC42) -> 93.77029422 | AJ42: =HLOOKUP($AJ$32,$AJ$35:$AR$39,$E$10+1) -> 1991262
V44: 8th turnover | W44: M | X44: ROR | Y44: ROE

Sheet RCY LG 2018 V5.0c
B2: Public Companies | F2: Public Co | I2: LURITO - GALLAGHER FORMULA MODEL 2018 V5.0a | M2: Public Co | R2: CALCULATION TABLES | AH2: Revenue Senstive Taxes (RevS)
K3: (b) + (c) | M3: (d) + (e) | T3: Regession | V3: Regession | W3: Regession | X3: Regession | Z3: Adjusted | AA3: Hauler | AB3: Hauler | AC3: Hauler | AD3: Hauler | AE3: Hauler | AF3: Hauler | AG3: Revenue Req | AH3: Revenue | AI3: Revenue
B4: INPUTS - Test Year | H4: (a) | I4: (b) | J4: (c) | K4: (d) | L4: (e) | M4: (f) | T4: Before Tax | V4: Less | W4: Adjusted | X4: After Tax | Y4: Flotation Costs | Z4: After Tax | AA4: Weighted Cost | AB4: Weighted Cost | AC4: Weighted Cost | AD4: Adjusted | AE4: Before Tax | AF4: Before Tax | AG4: Before RevS | AH4: Increase Before | AI4: Increase After | AJ4: RevS | AK4: Total
B5: Operating Revenue | C5: =RCY!E5 -> 0 | F5: Line | I5: Historical | J5: Revenue | K5: Proforma | L5: Add: Revenue | M5: Revenue | T5: Profit Ratio | U5: BTROI | V5: WCDebt | W5: BTROE | X5: ROE | Y5: Basis Points | Z5: ROE | AA5: Equity | AB5: Equity BFT | AC5: Debt | AD5: BTROR | AE5: Profit Ratio | AF5: Operating Ratio | AG5: Taxes | AH5: RevS Taxes | AI5: RevS Taxes | AJ5: Taxes | AK5: Revenue Req
B6: Operating Expenses | C6: =RCY!E6 -> 0 | F6: No. | J6: Change | L6: Sensitive Taxes | M6: Requirement | R6: 1 | S6: =Revenue/Investment*100 ->  | T6: =EXP(y_inter1-(slope*LN(+S6))) ->  | U6: =(+S6*T6/100)/100 ->  | V6: =regDebt_weighted -> 0.03586 | W6: =+U6-V6 ->  | X6: =+((W6*(1-0.34))-Pfd_weighted)/Equity_percent ->  | Y6: =+C15 -> 0.0025 | Z6: =+X6+Y6 ->  | AA6: =Z6*equityP ->  | AB6: =+AA6/(1-taxrate) ->  | AC6: =debtP*Debt_Rate -> 0.02134266423 | AD6: =AC6+AB6 ->  | AE6: =AD6/(S6/100) ->  | AF6: =1-AE6 ->  | AG6: =expenses/(AF6) ->  | AH6: =+AG6-Revenue ->  | AI6: =+AH6/$J$49 ->  | AJ6: =+AI6*$J$47 ->  | AK6: =ROUND(+AJ6+AG6,5) -> 
B7: Investment | C7: =RCY!E7 -> 0 | F7: 1 | H7: Operating Revenue | I7: =IF(A64=TRUE,C5,0) -> 0 | J7: =(+$I8/($R50))-I7 ->  | K7: =+I7+J7 ->  | L7: =((+J7/J49*K35)-J7) ->  | M7: =IFERROR(+K7+L7,0.00001) -> 1e-05 | R7: 2 | S7: =Revenue/Investment*100 ->  | T7: =EXP(y_inter1-(slope*LN(+S7))) ->  | U7: =(+S7*T7/100)/100 ->  | V7: =regDebt_weighted -> 0.03586 | W7: =+U7-V7 ->  | X7: =+((W7*(1-0.34))-Pfd_weighted)/Equity_percent ->  | Y7: =+Y6 -> 0.0025 | Z7: =+X7+Y7 ->  | AA7: =Z7*equityP ->  | AB7: =+AA7/(1-taxrate) ->  | AC7: =debtP*Debt_Rate -> 0.02134266423 | AD7: =AC7+AB7 ->  | AE7: =AD7/(S7/100) ->  | AF7: =1-AE7 ->  | AG7: =expenses/(AF7) ->  | AH7: =+AG7-Revenue ->  | AI7: =+AH7/$J$49 ->  | AJ7: =+AI7*$J$47 ->  | AK7: =ROUND(+AJ7+AG7,5) -> 
B8: Capital Structure-Debt % | C8: 0.5135130141 | F8: =+F7+1 -> 2 | H8: Operating Expenses | I8: =IF(A64=TRUE,C6,0) -> 0 | K8: =+I8 -> 0 | L8: =+L7 ->  | M8: =IFERROR(+K8+L8,0.00001) -> 1e-05 | R8: 3 | S8: =Revenue/Investment*100 ->  | T8: =EXP(y_inter1-(slope*LN(+S8))) ->  | U8: =(+S8*T8/100)/100 ->  | V8: =regDebt_weighted -> 0.03586 | W8: =+U8-V8 ->  | X8: =+((W8*(1-0.34))-Pfd_weighted)/Equity_percent ->  | Y8: =+Y7 -> 0.0025 | Z8: =+X8+Y8 ->  | AA8: =Z8*equityP ->  | AB8: =+AA8/(1-taxrate) ->  | AC8: =debtP*Debt_Rate -> 0.02134266423 | AD8: =AC8+AB8 ->  | AE8: =AD8/(S8/100) ->  | AF8: =1-AE8 ->  | AG8: =expenses/(AF8) ->  | AH8: =+AG8-Revenue ->  | AI8: =+AH8/$J$49 ->  | AJ8: =+AI8*$J$47 ->  | AK8: =ROUND(+AJ8+AG8,5) -> 
B9: Capital Structure-Debt Rate | C9: 0.04156207076 | F9: =+F8+1 -> 3 | H9: Operating Income | I9: =+I7-I8 -> 0 | K9: =+K7-K8 ->  | M9: =+M7-M8 -> 0 | R9: 4 | S9: =Revenue/Investment*100 ->  | T9: =EXP(y_inter1-(slope*LN(+S9))) ->  | U9: =(+S9*T9/100)/100 ->  | V9: =regDebt_weighted -> 0.03586 | W9: =+U9-V9 ->  | X9: =+((W9*(1-0.34))-Pfd_weighted)/Equity_percent ->  | Y9: =+Y8 -> 0.0025 | Z9: =+X9+Y9 ->  | AA9: =Z9*equityP ->  | AB9: =+AA9/(1-taxrate) ->  | AC9: =debtP*Debt_Rate -> 0.02134266423 | AD9: =AC9+AB9 ->  | AE9: =AD9/(S9/100) ->  | AF9: =1-AE9 ->  | AG9: =expenses/(AF9) ->  | AH9: =+AG9-Revenue ->  | AI9: =+AH9/$J$49 ->  | AJ9: =+AI9*$J$47 ->  | AK9: =ROUND(+AJ9+AG9,5) -> 
B10: Federal Income Tax Rate | C10: 0.215 | F10: 4 | R10: 2nd Iteration
B11: B&O Tax Rate | C11: 0.015 | F11: 5 | H11: Interest Expense | I11: =+K11 -> 0 | K11: =+M27 -> 0 | M11: =+K11 -> 0 | R11: 1 | S11: =IF((AK6/Investment*100)>0,(AK6/Investment*100),0) ->  | T11: =EXP(y_inter1-(slope*LN(S11))) ->  | U11: =(+S11*T11/100)/100 ->  | V11: =regDebt_weighted -> 0.03586 | W11: =+U11-V11 ->  | X11: =+((W11*(1-0.34))-Pfd_weighted)/Equity_percent ->  | Y11: =+Y9 -> 0.0025 | Z11: =+X11+Y11 ->  | AA11: =Z11*equityP ->  | AB11: =+AA11/(1-taxrate) ->  | AC11: =debtP*Debt_Rate -> 0.02134266423 | AD11: =+AC11+AB11 ->  | AE11: =+AD11/(S11/100) ->  | AF11: =1-AE11 ->  | AG11: =expenses/(AF11) ->  | AH11: =+AG11-Revenue ->  | AI11: =+AH11/$J$49 ->  | AJ11: =+AI11*$J$47 ->  | AK11: =ROUND(+AJ11+AG11,5) -> 
B12: WUTC Fee | C12: 0.004275 | F12: 6 | H12: Income Tax Expense | I12: =IF(I14<0,0,+J38*I14) ->  | J12: =+K12-I12 ->  | K12: =+(K9-K11)*taxrate ->  | M12: =+K12 ->  | R12: 2 | S12: =IF((AK7/Investment*100)>0,(AK7/Investment*100),0) ->  | T12: =EXP(y_inter2-(slope*LN(+S12))) ->  | U12: =(+S12*T12/100)/100 ->  | V12: =regDebt_weighted -> 0.03586 | W12: =+U12-V12 ->  | X12: =+((W12*(1-0.34))-Pfd_weighted)/Equity_percent ->  | Y12: =+Y11 -> 0.0025 | Z12: =+X12+Y12 ->  | AA12: =Z12*equityP ->  | AB12: =+AA12/(1-taxrate) ->  | AC12: =debtP*Debt_Rate -> 0.02134266423 | AD12: =+AC12+AB12 ->  | AE12: =+AD12/(S12/100) ->  | AF12: =1-AE12 ->  | AG12: =expenses/(AF12) ->  | AH12: =+AG12-Revenue ->  | AI12: =+AH12/$J$49 ->  | AJ12: =+AI12*$J$47 ->  | AK12: =ROUND(+AJ12+AG12,5) -> 
B13: City Tax | C13: 0 | F13: 7 | R13: 3 | S13: =IF((AK8/Investment*100)>0,(AK8/Investment*100),0) ->  | T13: =EXP(y_inter3-(slope*LN(S13))) ->  | U13: =(+S13*T13/100)/100 ->  | V13: =regDebt_weighted -> 0.03586 | W13: =+U13-V13 ->  | X13: =+((W13*(1-0.34))-Pfd_weighted)/Equity_percent ->  | Y13: =+Y12 -> 0.0025 | Z13: =+X13+Y13 ->  | AA13: =Z13*equityP ->  | AB13: =+AA13/(1-taxrate) ->  | AC13: =debtP*Debt_Rate -> 0.02134266423 | AD13: =+AC13+AB13 ->  | AE13: =+AD13/(S13/100) ->  | AF13: =1-AE13 ->  | AG13: =expenses/(AF13) ->  | AH13: =+AG13-Revenue ->  | AI13: =+AH13/$J$49 ->  | AJ13: =+AI13*$J$47 ->  | AK13: =ROUND(+AJ13+AG13,5) -> 
B14: Bad Debts | C14: 0.006 | F14: 8 | H14: Net Income | I14: =+I9-SUM(I11:I13) ->  | K14: =+K9-SUM(K11:K13) ->  | M14: =+M9-SUM(M11:M13) ->  | R14: 4 | S14: =IF((AK9/Investment*100)>0,(AK9/Investment*100),0) ->  | T14: =EXP(y_inter4-(slope*LN(S14))) ->  | U14: =(+S14*T14/100)/100 ->  | V14: =regDebt_weighted -> 0.03586 | W14: =+U14-V14 ->  | X14: =+((W14*(1-0.34))-Pfd_weighted)/Equity_percent ->  | Y14: =+Y13 -> 0.0025 | Z14: =+X14+Y14 ->  | AA14: =Z14*equityP ->  | AB14: =+AA14/(1-taxrate) ->  | AC14: =debtP*Debt_Rate -> 0.02134266423 | AD14: =+AC14+AB14 ->  | AE14: =+AD14/(S14/100) ->  | AF14: =1-AE14 ->  | AG14: =expenses/(AF14) ->  | AH14: =+AG14-Revenue ->  | AI14: =+AH14/$J$49 ->  | AJ14: =+AI14*$J$47 ->  | AK14: =ROUND(+AJ14+AG14,5) -> 
B15: Basis Points - Flotation | C15: 0.0025 | F15: 9 | R15: 3rd Iteration
D16: Yes | F16: 10 | H16: Operating Ratio | I16: =+I8/I7 ->  | K16: =+K8/K7 ->  | M16: =+M8/M7 -> 1 | R16: 1 | S16: =AK11/Investment*100 ->  | T16: =EXP(y_inter1-(slope*LN(+S16))) ->  | U16: =(+S16*T16/100)/100 ->  | V16: =regDebt_weighted -> 0.03586 | W16: =+U16-V16 ->  | X16: =+((W16*(1-0.34))-Pfd_weighted)/Equity_percent ->  | Y16: =+Y14 -> 0.0025 | Z16: =+X16+Y16 ->  | AA16: =Z16*equityP ->  | AB16: =+AA16/(1-taxrate) ->  | AC16: =debtP*Debt_Rate -> 0.02134266423 | AD16: =+AC16+AB16 ->  | AE16: =+AD16/(S16/100) ->  | AF16: =1-AE16 ->  | AG16: =expenses/(AF16) ->  | AH16: =+AG16-Revenue ->  | AI16: =+AH16/$J$49 ->  | AJ16: =+AI16*$J$47 ->  | AK16: =ROUND(+AJ16+AG16,5) -> 
B17: Check when input is complete | D17: No | F17: 11 | R17: 2 | S17: =AK12/Investment*100 ->  | T17: =EXP(y_inter2-(slope*LN(+S17))) ->  | U17: =(+S17*T17/100)/100 ->  | V17: =regDebt_weighted -> 0.03586 | W17: =+U17-V17 ->  | X17: =+((W17*(1-0.34))-Pfd_weighted)/Equity_percent ->  | Y17: =+Y16 -> 0.0025 | Z17: =+X17+Y17 ->  | AA17: =Z17*equityP ->  | AB17: =+AA17/(1-taxrate) ->  | AC17: =debtP*Debt_Rate -> 0.02134266423 | AD17: =+AC17+AB17 ->  | AE17: =+AD17/(S17/100) ->  | AF17: =1-AE17 ->  | AG17: =expenses/(AF17) ->  | AH17: =+AG17-Revenue ->  | AI17: =+AH17/$J$49 ->  | AJ17: =+AI17*$J$47 ->  | AK17: =ROUND(+AJ17+AG17,5) -> 
F18: 12 | H18: Revenue Requirement | R18: 3 | S18: =AK13/Investment*100 ->  | T18: =EXP(y_inter3-(slope*LN(S18))) ->  | U18: =(+S18*T18/100)/100 ->  | V18: =regDebt_weighted -> 0.03586 | W18: =+U18-V18 ->  | X18: =+((W18*(1-0.34))-Pfd_weighted)/Equity_percent ->  | Y18: =+Y17 -> 0.0025 | Z18: =+X18+Y18 ->  | AA18: =Z18*equityP ->  | AB18: =+AA18/(1-taxrate) ->  | AC18: =debtP*Debt_Rate -> 0.02134266423 | AD18: =+AC18+AB18 ->  | AE18: =+AD18/(S18/100) ->  | AF18: =1-AE18 ->  | AG18: =expenses/(AF18) ->  | AH18: =+AG18-Revenue ->  | AI18: =+AH18/$J$49 ->  | AJ18: =+AI18*$J$47 ->  | AK18: =ROUND(+AJ18+AG18,5) -> 
B19: For Intial input: Uncheck Checkbox Until Completed | F19: 13 | I19: Historical Revenue | J19: =+Revenue -> 0 | L19: Revenue Increase before taxes | M19: =+J7 ->  | R19: 4 | S19: =AK14/Investment*100 ->  | T19: =EXP(y_inter4-(slope*LN(S19))) ->  | U19: =(+S19*T19/100)/100 ->  | V19: =regDebt_weighted -> 0.03586 | W19: =+U19-V19 ->  | X19: =+((W19*(1-0.34))-Pfd_weighted)/Equity_percent ->  | Y19: =+Y18 -> 0.0025 | Z19: =+X19+Y19 ->  | AA19: =Z19*equityP ->  | AB19: =+AA19/(1-taxrate) ->  | AC19: =debtP*Debt_Rate -> 0.02134266423 | AD19: =+AC19+AB19 ->  | AE19: =+AD19/(S19/100) ->  | AF19: =1-AE19 ->  | AG19: =expenses/(AF19) ->  | AH19: =+AG19-Revenue ->  | AI19: =+AH19/$J$49 ->  | AJ19: =+AI19*$J$47 ->  | AK19: =ROUND(+AJ19+AG19,5) -> 
F20: 14 | I20: Rate Increase | J20: =+J21-J19 -> 1e-05 | L20: Rev Sensitive Taxes | M20: =+L8 ->  | R20: 4th Iteration
F21: 15 | I21: Revenue Requirement | J21: =+M7 -> 1e-05 | L21: Rate Increase | M21: =+M19+M20 ->  | R21: 1 | S21: =AK16/Investment*100 ->  | T21: =EXP(y_inter1-(slope*LN(+S21))) ->  | U21: =(+S21*T21/100)/100 ->  | V21: =regDebt_weighted -> 0.03586 | W21: =+U21-V21 ->  | X21: =+((W21*(1-0.34))-Pfd_weighted)/Equity_percent ->  | Y21: =+Y19 -> 0.0025 | Z21: =+X21+Y21 ->  | AA21: =Z21*equityP ->  | AB21: =+AA21/(1-taxrate) ->  | AC21: =debtP*Debt_Rate -> 0.02134266423 | AD21: =+AC21+AB21 ->  | AE21: =+AD21/(S21/100) ->  | AF21: =1-AE21 ->  | AG21: =expenses/(AF21) ->  | AH21: =+AG21-Revenue ->  | AI21: =+AH21/$J$49 ->  | AJ21: =+AI21*$J$47 ->  | AK21: =ROUND(+AJ21+AG21,5) -> 
F22: 16 | R22: 2 | S22: =AK17/Investment*100 ->  | T22: =EXP(y_inter2-(slope*LN(+S22))) ->  | U22: =(+S22*T22/100)/100 ->  | V22: =regDebt_weighted -> 0.03586 | W22: =+U22-V22 ->  | X22: =+((W22*(1-0.34))-Pfd_weighted)/Equity_percent ->  | Y22: =+Y21 -> 0.0025 | Z22: =+X22+Y22 ->  | AA22: =Z22*equityP ->  | AB22: =+AA22/(1-taxrate) ->  | AC22: =debtP*Debt_Rate -> 0.02134266423 | AD22: =+AC22+AB22 ->  | AE22: =+AD22/(S22/100) ->  | AF22: =1-AE22 ->  | AG22: =expenses/(AF22) ->  | AH22: =+AG22-Revenue ->  | AI22: =+AH22/$J$49 ->  | AJ22: =+AI22*$J$47 ->  | AK22: =ROUND(+AJ22+AG22,5) -> 
B23: 2018 Version Update Changes | F23: 17 | R23: 3 | S23: =AK18/Investment*100 ->  | T23: =EXP(y_inter3-(slope*LN(S23))) ->  | U23: =(+S23*T23/100)/100 ->  | V23: =regDebt_weighted -> 0.03586 | W23: =+U23-V23 ->  | X23: =+((W23*(1-0.34))-Pfd_weighted)/Equity_percent ->  | Y23: =+Y22 -> 0.0025 | Z23: =+X23+Y23 ->  | AA23: =Z23*equityP ->  | AB23: =+AA23/(1-taxrate) ->  | AC23: =debtP*Debt_Rate -> 0.02134266423 | AD23: =+AC23+AB23 ->  | AE23: =+AD23/(S23/100) ->  | AF23: =1-AE23 ->  | AG23: =expenses/(AF23) ->  | AH23: =+AG23-Revenue ->  | AI23: =+AH23/$J$49 ->  | AJ23: =+AI23*$J$47 ->  | AK23: =ROUND(+AJ23+AG23,5) -> 
B24: ● Allows Income Tax Rate Changes, | F24: 18 | H24: Captial Structure Financing Investment | K24: Financing Cost | R24: 4 | S24: =AK19/Investment*100 ->  | T24: =EXP(y_inter4-(slope*LN(S24))) ->  | U24: =(+S24*T24/100)/100 ->  | V24: =regDebt_weighted -> 0.03586 | W24: =+U24-V24 ->  | X24: =+((W24*(1-0.34))-Pfd_weighted)/Equity_percent ->  | Y24: =+Y23 -> 0.0025 | Z24: =+X24+Y24 ->  | AA24: =Z24*equityP ->  | AB24: =+AA24/(1-taxrate) ->  | AC24: =debtP*Debt_Rate -> 0.02134266423 | AD24: =+AC24+AB24 ->  | AE24: =+AD24/(S24/100) ->  | AF24: =1-AE24 ->  | AG24: =expenses/(AF24) ->  | AH24: =+AG24-Revenue ->  | AI24: =+AH24/$J$49 ->  | AJ24: =+AI24*$J$47 ->  | AK24: =ROUND(+AJ24+AG24,5) -> 
B25: ● Minimizes impact of changes in test-year revenue from | F25: 19 | H25: Type | I25: Percent | J25: Amount | K25: Cost of Capital | L25: Weighted | M25: Amount | R25: 5th Iteration
B26: resulting revenue requirment, | F26: 20 | H26: Equity | I26: =1-I27 -> 0.4864869859 | J26: =+I26*J28 -> 0 | K26: =+K34 ->  | L26: =+K26*I26 ->  | M26: =+J26*K26 ->  | R26: 1 | S26: =AK21/Investment*100 ->  | T26: =EXP(y_inter1-(slope*LN(+S26))) ->  | U26: =(+S26*T26/100)/100 ->  | V26: =regDebt_weighted -> 0.03586 | W26: =+U26-V26 ->  | X26: =+((W26*(1-0.34))-Pfd_weighted)/Equity_percent ->  | Y26: =+Y24 -> 0.0025 | Z26: =+X26+Y26 ->  | AA26: =Z26*equityP ->  | AB26: =+AA26/(1-taxrate) ->  | AC26: =debtP*Debt_Rate -> 0.02134266423 | AD26: =+AC26+AB26 ->  | AE26: =+AD26/(S26/100) ->  | AF26: =1-AE26 ->  | AG26: =expenses/(AF26) ->  | AH26: =+AG26-Revenue ->  | AI26: =+AH26/$J$49 ->  | AJ26: =+AI26*$J$47 ->  | AK26: =ROUND(+AJ26+AG26,5) -> 
B27: ● Corrects interest rate transposition in LG. | F27: 21 | H27: Debt | I27: =IF(A64=TRUE,C8,0) -> 0.5135130141 | J27: =+I27*J28 -> 0 | K27: =IF(A64=TRUE,C9,0) -> 0.04156207076 | L27: =+K27*I27 -> 0.02134266423 | M27: =+K27*J27 -> 0 | R27: 2 | S27: =AK22/Investment*100 ->  | T27: =EXP(y_inter2-(slope*LN(+S27))) ->  | U27: =(+S27*T27/100)/100 ->  | V27: =regDebt_weighted -> 0.03586 | W27: =+U27-V27 ->  | X27: =+((W27*(1-0.34))-Pfd_weighted)/Equity_percent ->  | Y27: =+Y26 -> 0.0025 | Z27: =+X27+Y27 ->  | AA27: =Z27*equityP ->  | AB27: =+AA27/(1-taxrate) ->  | AC27: =debtP*Debt_Rate -> 0.02134266423 | AD27: =+AC27+AB27 ->  | AE27: =+AD27/(S27/100) ->  | AF27: =1-AE27 ->  | AG27: =expenses/(AF27) ->  | AH27: =+AG27-Revenue ->  | AI27: =+AH27/$J$49 ->  | AJ27: =+AI27*$J$47 ->  | AK27: =ROUND(+AJ27+AG27,5) -> 
F28: 22 | H28: Total | I28: =SUM(I26:I27) -> 1 | J28: =IF(A64=TRUE,C7,0) -> 0 | L28: =SUM(L26:L27) ->  | M28: =SUM(M26:M27) ->  | R28: 3 | S28: =AK23/Investment*100 ->  | T28: =EXP(y_inter3-(slope*LN(S28))) ->  | U28: =(+S28*T28/100)/100 ->  | V28: =regDebt_weighted -> 0.03586 | W28: =+U28-V28 ->  | X28: =+((W28*(1-0.34))-Pfd_weighted)/Equity_percent ->  | Y28: =+Y27 -> 0.0025 | Z28: =+X28+Y28 ->  | AA28: =Z28*equityP ->  | AB28: =+AA28/(1-taxrate) ->  | AC28: =debtP*Debt_Rate -> 0.02134266423 | AD28: =+AC28+AB28 ->  | AE28: =+AD28/(S28/100) ->  | AF28: =1-AE28 ->  | AG28: =expenses/(AF28) ->  | AH28: =+AG28-Revenue ->  | AI28: =+AH28/$J$49 ->  | AJ28: =+AI28*$J$47 ->  | AK28: =ROUND(+AJ28+AG28,5) -> 
F29: 23 | R29: 4 | S29: =AK24/Investment*100 ->  | T29: =EXP(y_inter4-(slope*LN(S29))) ->  | U29: =(+S29*T29/100)/100 ->  | V29: =regDebt_weighted -> 0.03586 | W29: =+U29-V29 ->  | X29: =+((W29*(1-0.34))-Pfd_weighted)/Equity_percent ->  | Y29: =+Y28 -> 0.0025 | Z29: =+X29+Y29 ->  | AA29: =Z29*equityP ->  | AB29: =+AA29/(1-taxrate) ->  | AC29: =debtP*Debt_Rate -> 0.02134266423 | AD29: =+AC29+AB29 ->  | AE29: =+AD29/(S29/100) ->  | AF29: =1-AE29 ->  | AG29: =expenses/(AF29) ->  | AH29: =+AG29-Revenue ->  | AI29: =+AH29/$J$49 ->  | AJ29: =+AI29*$J$47 ->  | AK29: =ROUND(+AJ29+AG29,5) -> 
F30: 24 | J30: Before | K30: After | R30: 6th Iteration
F31: 25 | H31: Operating Statistics | J31: Income Tax | K31: Income Tax | R31: 1 | S31: =AK26/Investment*100 ->  | T31: =EXP(y_inter1-(slope*LN(+S31))) ->  | U31: =(+S31*T31/100)/100 ->  | V31: =regDebt_weighted -> 0.03586 | W31: =+U31-V31 ->  | X31: =+((W31*(1-0.34))-Pfd_weighted)/Equity_percent ->  | Y31: =+Y29 -> 0.0025 | Z31: =+X31+Y31 ->  | AA31: =Z31*equityP ->  | AB31: =+AA31/(1-taxrate) ->  | AC31: =debtP*Debt_Rate -> 0.02134266423 | AD31: =+AC31+AB31 ->  | AE31: =+AD31/(S31/100) ->  | AF31: =1-AE31 ->  | AG31: =expenses/(AF31) ->  | AH31: =+AG31-Revenue ->  | AI31: =+AH31/$J$49 ->  | AJ31: =+AI31*$J$47 ->  | AK31: =ROUND(+AJ31+AG31,5) -> 
F32: 26 | R32: 2 | S32: =AK27/Investment*100 ->  | T32: =EXP(y_inter2-(slope*LN(+S32))) ->  | U32: =(+S32*T32/100)/100 ->  | V32: =regDebt_weighted -> 0.03586 | W32: =+U32-V32 ->  | X32: =+((W32*(1-0.34))-Pfd_weighted)/Equity_percent ->  | Y32: =+Y31 -> 0.0025 | Z32: =+X32+Y32 ->  | AA32: =Z32*equityP ->  | AB32: =+AA32/(1-taxrate) ->  | AC32: =debtP*Debt_Rate -> 0.02134266423 | AD32: =+AC32+AB32 ->  | AE32: =+AD32/(S32/100) ->  | AF32: =1-AE32 ->  | AG32: =expenses/(AF32) ->  | AH32: =+AG32-Revenue ->  | AI32: =+AH32/$J$49 ->  | AJ32: =+AI32*$J$47 ->  | AK32: =ROUND(+AJ32+AG32,5) -> 
F33: 27 | H33: Return on Investment | J33: =+K9/J28 ->  | K33: =+(M14+M11)/J28 ->  | R33: 3 | S33: =AK28/Investment*100 ->  | T33: =EXP(y_inter3-(slope*LN(S33))) ->  | U33: =(+S33*T33/100)/100 ->  | V33: =regDebt_weighted -> 0.03586 | W33: =+U33-V33 ->  | X33: =+((W33*(1-0.34))-Pfd_weighted)/Equity_percent ->  | Y33: =+Y32 -> 0.0025 | Z33: =+X33+Y33 ->  | AA33: =Z33*equityP ->  | AB33: =+AA33/(1-taxrate) ->  | AC33: =debtP*Debt_Rate -> 0.02134266423 | AD33: =+AC33+AB33 ->  | AE33: =+AD33/(S33/100) ->  | AF33: =1-AE33 ->  | AG33: =expenses/(AF33) ->  | AH33: =+AG33-Revenue ->  | AI33: =+AH33/$J$49 ->  | AJ33: =+AI33*$J$47 ->  | AK33: =ROUND(+AJ33+AG33,5) -> 
F34: 28 | H34: Return on Equity | J34: =+(M9-M11)/J26 ->  | K34: =+M14/J26 ->  | R34: 4 | S34: =AK29/Investment*100 ->  | T34: =EXP(y_inter4-(slope*LN(S34))) ->  | U34: =(+S34*T34/100)/100 ->  | V34: =regDebt_weighted -> 0.03586 | W34: =+U34-V34 ->  | X34: =+((W34*(1-0.34))-Pfd_weighted)/Equity_percent ->  | Y34: =+Y33 -> 0.0025 | Z34: =+X34+Y34 ->  | AA34: =Z34*equityP ->  | AB34: =+AA34/(1-taxrate) ->  | AC34: =debtP*Debt_Rate -> 0.02134266423 | AD34: =+AC34+AB34 ->  | AE34: =+AD34/(S34/100) ->  | AF34: =1-AE34 ->  | AG34: =expenses/(AF34) ->  | AH34: =+AG34-Revenue ->  | AI34: =+AH34/$J$49 ->  | AJ34: =+AI34*$J$47 ->  | AK34: =ROUND(+AJ34+AG34,5) -> 
F35: 29 | H35: Operating Ratio | J35: =+K8/K7 ->  | K35: =+M8/M7 -> 1 | R35: 7th Iteration
F36: 30 | H36: Profit Margin | J36: =+K9/K7 ->  | K36: =+J36 ->  | R36: 1 | S36: =AK31/Investment*100 ->  | T36: =EXP(y_inter1-(slope*LN(+S36))) ->  | U36: =(+S36*T36/100)/100 ->  | V36: =regDebt_weighted -> 0.03586 | W36: =+U36-V36 ->  | X36: =+((W36*(1-0.34))-Pfd_weighted)/Equity_percent ->  | Y36: =+Y34 -> 0.0025 | Z36: =+X36+Y36 ->  | AA36: =Z36*equityP ->  | AB36: =+AA36/(1-taxrate) ->  | AC36: =debtP*Debt_Rate -> 0.02134266423 | AD36: =+AC36+AB36 ->  | AE36: =+AD36/(S36/100) ->  | AF36: =1-AE36 ->  | AG36: =expenses/(AF36) ->  | AH36: =+AG36-Revenue ->  | AI36: =+AH36/$J$49 ->  | AJ36: =+AI36*$J$47 ->  | AK36: =ROUND(+AJ36+AG36,5) -> 
F37: 31 | H37: Final turnover | J37: =+S39/100 ->  | K37: =+J37 ->  | R37: 2 | S37: =AK32/Investment*100 ->  | T37: =EXP(y_inter2-(slope*LN(+S37))) ->  | U37: =(+S37*T37/100)/100 ->  | V37: =regDebt_weighted -> 0.03586 | W37: =+U37-V37 ->  | X37: =+((W37*(1-0.34))-Pfd_weighted)/Equity_percent ->  | Y37: =+Y36 -> 0.0025 | Z37: =+X37+Y37 ->  | AA37: =Z37*equityP ->  | AB37: =+AA37/(1-taxrate) ->  | AC37: =debtP*Debt_Rate -> 0.02134266423 | AD37: =+AC37+AB37 ->  | AE37: =+AD37/(S37/100) ->  | AF37: =1-AE37 ->  | AG37: =expenses/(AF37) ->  | AH37: =+AG37-Revenue ->  | AI37: =+AH37/$J$49 ->  | AJ37: =+AI37*$J$47 ->  | AK37: =ROUND(+AJ37+AG37,5) -> 
F38: 32 | H38: Tax Rate | J38: =+C10 -> 0.215 | K38: =+J38 -> 0.215 | R38: 3 | S38: =AK33/Investment*100 ->  | T38: =EXP(y_inter3-(slope*LN(S38))) ->  | U38: =(+S38*T38/100)/100 ->  | V38: =regDebt_weighted -> 0.03586 | W38: =+U38-V38 ->  | X38: =+((W38*(1-0.34))-Pfd_weighted)/Equity_percent ->  | Y38: =+Y37 -> 0.0025 | Z38: =+X38+Y38 ->  | AA38: =Z38*equityP ->  | AB38: =+AA38/(1-taxrate) ->  | AC38: =debtP*Debt_Rate -> 0.02134266423 | AD38: =+AC38+AB38 ->  | AE38: =+AD38/(S38/100) ->  | AF38: =1-AE38 ->  | AG38: =expenses/(AF38) ->  | AH38: =+AG38-Revenue ->  | AI38: =+AH38/$J$49 ->  | AJ38: =+AI38*$J$47 ->  | AK38: =ROUND(+AJ38+AG38,5) -> 
F39: 33 | R39: 4 | S39: =AK34/Investment*100 ->  | T39: =EXP(y_inter4-(slope*LN(S39))) ->  | U39: =(+S39*T39/100)/100 ->  | V39: =regDebt_weighted -> 0.03586 | W39: =+U39-V39 ->  | X39: =+((W39*(1-0.34))-Pfd_weighted)/Equity_percent ->  | Y39: =+Y38 -> 0.0025 | Z39: =+X39+Y39 ->  | AA39: =Z39*equityP ->  | AB39: =+AA39/(1-taxrate) ->  | AC39: =debtP*Debt_Rate -> 0.02134266423 | AD39: =+AC39+AB39 ->  | AE39: =+AD39/(S39/100) ->  | AF39: =1-AE39 ->  | AG39: =expenses/(AF39) ->  | AH39: =+AG39-Revenue ->  | AI39: =+AH39/$J$49 ->  | AJ39: =+AI39*$J$47 ->  | AK39: =ROUND(+AJ39+AG39,5) -> 
F40: 34
F41: 35 | H41: Revenue Sensitive Taxes Charges | R41: Curve
F42: 36 | J42: Rate | K42: Taxes | R42: Lookup Table
F43: 37 | H43: B & O Tax | J43: =IF(A64=TRUE,C11,0) -> 0.015 | K43: =+J43*($J$7/$J$49) ->  | R43: 0 | S43: 1 | U43: Profit Margin | V43: =VLOOKUP(R48,R36:AG39,14) -> 
F44: 38 | H44: WUTC Fee | J44: =IF(A64=TRUE,C12,0) -> 0.004275 | K44: =+J44*($J$7/$J$49) ->  | R44: 50 | S44: 2 | U44: Operating Ratio | V44: =ROUND(1-V43,6) -> 
F45: 39 | H45: City Tax | J45: =IF(A64=TRUE,C13,0) -> 0 | K45: =+J45*($J$7/$J$49) ->  | R45: 125 | S45: 3 | U45: Percent Chg | V45: =+M7/Revenue-1 -> 
F46: 40 | H46: Bad Debts | J46: =IF(A64=TRUE,C14,0) -> 0.006 | K46: =+J46*($J$7/$J$49) ->  | R46: 401 | S46: 4
F47: 41 | H47: Revenue Sensitive | J47: =SUM(J43:J46) -> 0.025275 | K47: =+K43+K44+K45+K46 ->  | R47: =VLOOKUP(R48,R36:S39,2) ->  | S47: Curve turnover | X47: @EXP(5.72260-(.68367*@LN(T)))
F48: 42 | R48: =VLOOKUP(S36,R43:S46,2) ->  | S48: Curve No. Used | X48: @EXP(5.70827-(.68367*@LN(T)))
F49: 43 | H49: Conversion Factor | J49: =((K35)-J47) -> 0.974725 | X49: @EXP(5.69850-(.68367*@LN(T)))
R50: =+V44 ->  | S50: Operating Ratio | X50: @EXP(5.69220-(.68367*@LN(T)))
S53: Base Utility from LG Sample Study | W53: Regression Results
S54: Percent | T54: Cost | U54: Weighted | W54: Y intercept (1) | X54: 5.7226 | Y54: Y intercept (3) | Z54: 5.6985
R55: Debt | S55: 0.562 | T55: 0.0638 | U55: =ROUND(+S55*T55,5) -> 0.03586 | W55: Y intercept (2) | X55: 5.70827 | Y55: Y intercept (4) | Z55: 5.6922
R56: Pfd. | S56: 0.094 | T56: 0.0659 | U56: =ROUND(+S56*T56,5) -> 0.00619
R57: Equity | S57: 0.344 | X57: Slope | Y57: 0.68367
S58: =SUM(S55:S57) -> 1
X60: Operating Statistics | Y60: Pre-tax | Z60: After Tax
X62: Return on Investment | Y62: =+J33 -> 
X63: Return on Equity
A64: TRUE | X64: Operating Ratio | Z64: 1
X65: Profit Margin
X66: Final turnover
X67: Tax Rate | Y67: 0.215 | Z67: 0.215

Sheet RCY
B1: NEW IMPROVED LURITO - GALLAGHER FORMULA | AE1: !??! | AF1: OP/RATIO | AI1: curve
G2: NOTE: | N2: FORMULAS | U2: 1st Revenue | V2: 1st Turnover | W2: M | X2: ROR | Y2: ROE | AA2: Adj ROE | AB2: Pre Tax ROE | AC2: Adj M | AD2: Revenues | AE2: Decision | AI2: lookup table
B3: !!! | C3: Revenue Requirement | E3: =E5+E4 ->  | F3: !!!<-- | H3: Red numbers are input/linked fields. | N3: 1. less than 50 | Q3: @EXP(5.72260-(.68367*@LN(T))) | U3: =$E$6*1.25 -> 0 | V3: ='RCY LG 2018 V5.0c'!S6 ->  | W3: =EXP(5.7226-(0.68367*LN(+V3))) ->  | X3: =(+W3*V3)/100 ->  | Y3: ='RCY LG 2018 V5.0c'!X6 ->  | Z3: =+$E$18 -> 0.25 | AA3: =Y3+Z3 ->  | AB3: =100*($E$15*$E$17+($E$16*(AA3/100))/(1-$E$19)) ->  | AC3: ='RCY LG 2018 V5.0c'!AE6 ->  | AD3: =$E$6/(1-AC3) ->  | AE3: =IF(AD3=$U$3,"yes","not yet") ->  | AF3: =100*(1-AC3) ->  | AI3: 0 | AJ3: 1
B4: !!! | C4: Revenue Deficiency | E4: =(+E6-((H13/100)*E5))/H23 ->  | F4: !!!<-- | H4: Black are formula calculations | N4: 2. Between 50 and 125 | Q4: @EXP(5.70827-(.68367*@LN(T))) | U4: =$E$6*1.25 -> 0 | V4: ='RCY LG 2018 V5.0c'!S7 ->  | W4: ='RCY LG 2018 V5.0c'!T7 ->  | X4: =(+W4*V4)/100 ->  | Y4: ='RCY LG 2018 V5.0c'!X7 ->  | Z4: =+$E$18 -> 0.25 | AA4: =Y4+Z4 ->  | AB4: =100*($E$15*$E$17+($E$16*(AA4/100))/(1-$E$19)) ->  | AC4: ='RCY LG 2018 V5.0c'!AE7 ->  | AD4: =$E$6/(1-AC4) ->  | AE4: =IF(AD4=$U$4,"yes","not yet") ->  | AF4: =100*(1-AC4) ->  | AI4: 50 | AJ4: 2
B5: * | C5: Revenue | E5: =Proforma!P26 -> 0 | F5: * p/f before rates | N5: 3. Between 125 and 140 | Q5: @EXP(5.69850-(.68367*@LN(T))) | U5: =$E$6*1.25 -> 0 | V5: ='RCY LG 2018 V5.0c'!S8 ->  | W5: ='RCY LG 2018 V5.0c'!T8 ->  | X5: =(+W5*V5)/100 ->  | Y5: ='RCY LG 2018 V5.0c'!X8 ->  | Z5: =+$E$18 -> 0.25 | AA5: =Y5+Z5 ->  | AB5: =100*($E$15*$E$17+($E$16*(AA5/100))/(1-$E$19)) ->  | AC5: ='RCY LG 2018 V5.0c'!AE8 ->  | AD5: =$E$6/(1-AC5) ->  | AE5: =IF(AD5=$U$5,"yes","not yet") ->  | AF5: =100*(1-AC5) ->  | AI5: 125 | AJ5: 3
B6: * | C6: Expenses | E6: =+Proforma!P391 -> 0 | F6: * p/f before rates | N6: 4. greater than 400 | Q6: @EXP(5.69220-(.68367*@LN(T))) | U6: =$E$6*1.25 -> 0 | V6: ='RCY LG 2018 V5.0c'!S9 ->  | W6: ='RCY LG 2018 V5.0c'!T9 ->  | X6: =(+W6*V6)/100 ->  | Y6: ='RCY LG 2018 V5.0c'!X9 ->  | Z6: =+$E$18 -> 0.25 | AA6: =Y6+Z6 ->  | AB6: =100*($E$15*$E$17+($E$16*(AA6/100))/(1-$E$19)) ->  | AC6: ='RCY LG 2018 V5.0c'!AE9 ->  | AD6: =$E$6/(1-AC6) ->  | AE6: =IF(AD6=$U$6,"yes","not yet") ->  | AF6: =100*(1-AC6) ->  | AI6: 401 | AJ6: 4
B7: * | C7: Avg. Investment - | E7: ='Ave Inv. Summary'!K66 -> 0 | F7: * p/f before rates
C8: curve turnover | E8: =V3 ->  | F8: (calculated) | V8: 2nd Turnover | W8: M | X8: ROR | Y8: ROE | AI8: lookup tables
C9: final turnover | E9: =HLOOKUP($AJ$32,$AJ$26:$AR$30,$E$10+1) ->  | F9: (calculated) | V9: ='RCY LG 2018 V5.0c'!S11 ->  | W9: ='RCY LG 2018 V5.0c'!T11 ->  | X9: =(+W9*V9)/100 ->  | Y9: ='RCY LG 2018 V5.0c'!X11 ->  | Z9: =+$E$18 -> 0.25 | AA9: =Y9+Z9 ->  | AB9: =100*($E$15*$E$17+($E$16*(AA9/100))/(1-$E$19)) ->  | AC9: ='RCY LG 2018 V5.0c'!AE11 ->  | AD9: =$E$6/(1-AC9) ->  | AE9: =IF(OR(OR(AD9=AD3,AD9=(AD3+1)),AD9=(AD8187-1)),"yes","not yet") ->  | AF9: =100*(1-AC9) -> 
C10: curve No. used | E10: =VLOOKUP(E8,AI3:AJ6,2) ->  | F10: (calculated) | V10: ='RCY LG 2018 V5.0c'!S12 ->  | W10: ='RCY LG 2018 V5.0c'!T12 ->  | X10: =(+W10*V10)/100 ->  | Y10: ='RCY LG 2018 V5.0c'!X12 ->  | Z10: =+$E$18 -> 0.25 | AA10: =Y10+Z10 ->  | AB10: =100*($E$15*$E$17+($E$16*(AA10/100))/(1-$E$19)) ->  | AC10: ='RCY LG 2018 V5.0c'!AE12 ->  | AD10: =$E$6/(1-AC10) ->  | AE10: =IF(OR(OR(AD10=AD4,AD10=(AD4+1)),AD10=(AD4-1)),"yes","not yet") ->  | AF10: =100*(1-AC10) -> 
V11: ='RCY LG 2018 V5.0c'!S13 ->  | W11: ='RCY LG 2018 V5.0c'!T13 ->  | X11: =(+W11*V11)/100 ->  | Y11: ='RCY LG 2018 V5.0c'!X13 ->  | Z11: =+$E$18 -> 0.25 | AA11: =Y11+Z11 ->  | AB11: =100*($E$15*$E$17+($E$16*(AA11/100))/(1-$E$19)) ->  | AC11: ='RCY LG 2018 V5.0c'!AE13 ->  | AD11: =$E$6/(1-AC11) ->  | AE11: =IF(OR(OR(AD11=AD5,AD11=(AD5+1)),AD11=(AD5-1)),"yes","not yet") ->  | AF11: =100*(1-AC11) ->  | AJ11: 1 | AK11: 2 | AL11: 3 | AM11: 4 | AN11: 5 | AO11: 6 | AP11: 7 | AQ11: 8 | AR11: 9
C12: Company actual | V12: ='RCY LG 2018 V5.0c'!S14 ->  | W12: ='RCY LG 2018 V5.0c'!T14 ->  | X12: =(+W12*V12)/100 ->  | Y12: ='RCY LG 2018 V5.0c'!X14 ->  | Z12: =+$E$18 -> 0.25 | AA12: =Y12+Z12 ->  | AB12: =100*($E$15*$E$17+($E$16*(AA12/100))/(1-$E$19)) ->  | AC12: ='RCY LG 2018 V5.0c'!AE14 ->  | AD12: =$E$6/(1-AC12) ->  | AE12: =IF(OR(OR(AD12=AD6,AD12=(AD6+1)),AD12=(AD6-1)),"yes","not yet") ->  | AF12: =100*(1-AC12) ->  | AJ12: =AE3 ->  | AK12: =AE9 ->  | AL12: =AE15 ->  | AM12: =AE21 ->  | AN12: =AE27 ->  | AO12: =AE33 ->  | AP12: =AE39 ->  | AQ12: =AE45 -> 0 | AR12: =AE51 -> 0
C13: capital structure: | E13: !!! | F13: OPERATING RATIO -> | H13: =HLOOKUP($AJ$23,$AJ$17:$AR$21,$E$10+1) ->  | I13: !!!<-- | AJ13: =AE4 ->  | AK13: =AE10 ->  | AL13: =AE16 ->  | AM13: =AE22 ->  | AN13: =AE28 ->  | AO13: =AE34 ->  | AP13: =AE40 ->  | AQ13: =AE46 -> 0 | AR13: =AE52 -> 0
C14: - | D14: - | H14: = | V14: 3rd Turnover | W14: M | X14: ROR | Y14: ROE | AJ14: =AE5 ->  | AK14: =AE11 ->  | AL14: =AE17 ->  | AM14: =AE23 ->  | AN14: =AE29 ->  | AO14: =AE35 ->  | AP14: =AE41 ->  | AQ14: =AE47 -> 0 | AR14: =AE53 -> 0
B15: * | C15: Actual Debt Ratio | E15: =+'Combined LG'!E15 -> 0.5077173987 | F15: Conversion factor data: | V15: ='RCY LG 2018 V5.0c'!S16 ->  | W15: ='RCY LG 2018 V5.0c'!T16 ->  | X15: =(+W15*V15)/100 ->  | Y15: ='RCY LG 2018 V5.0c'!X16 ->  | Z15: =+$E$18 -> 0.25 | AA15: =Y15+Z15 ->  | AB15: =100*($E$15*$E$17+($E$16*(AA15/100))/(1-$E$19)) ->  | AC15: ='RCY LG 2018 V5.0c'!AE16 ->  | AD15: =$E$6/(1-AC15) ->  | AE15: =IF(OR(OR(AD15=AD9,AD15=(AD9+1)),AD15=(AD1-1)),"yes","not yet") ->  | AF15: =100*(1-AC15) ->  | AJ15: =AE6 ->  | AK15: =AE12 ->  | AL15: =AE18 ->  | AM15: =AE24 ->  | AN15: =AE30 ->  | AO15: =AE36 ->  | AP15: =AE42 ->  | AQ15: =AE48 -> 0 | AR15: =AE54 -> 0
B16: * | C16: Actual Equity Ratio | E16: =+'Combined LG'!E16 -> 0.4922826013 | F16: B & O Tax | H16: =+'Combined LG'!H16 -> 0.015 | I16: * | V16: ='RCY LG 2018 V5.0c'!S17 ->  | W16: ='RCY LG 2018 V5.0c'!T17 ->  | X16: =(+W16*V16)/100 ->  | Y16: ='RCY LG 2018 V5.0c'!X17 ->  | Z16: =+$E$18 -> 0.25 | AA16: =Y16+Z16 ->  | AB16: =100*($E$15*$E$17+($E$16*(AA16/100))/(1-$E$19)) ->  | AC16: ='RCY LG 2018 V5.0c'!AE17 ->  | AD16: =$E$6/(1-AC16) ->  | AE16: =IF(OR(OR(AD16=AD10,AD16=(AD10+1)),AD16=(AD10-1)),"yes","not yet") ->  | AF16: =100*(1-AC16) -> 
B17: * | C17: Actual Cost of Debt | E17: =+'Combined LG'!E17 -> 0.03992720522 | F17: WUTC Fee | H17: =+'Combined LG'!H17 -> 0.004275 | I17: * | V17: ='RCY LG 2018 V5.0c'!S18 ->  | W17: ='RCY LG 2018 V5.0c'!T18 ->  | X17: =(+W17*V17)/100 ->  | Y17: ='RCY LG 2018 V5.0c'!X18 ->  | Z17: =+$E$18 -> 0.25 | AA17: =Y17+Z17 ->  | AB17: =100*($E$15*$E$17+($E$16*(AA17/100))/(1-$E$19)) ->  | AC17: ='RCY LG 2018 V5.0c'!AE18 ->  | AD17: =$E$6/(1-AC17) ->  | AE17: =IF(OR(OR(AD17=AD11,AD17=(AD11+1)),AD17=(AD11-1)),"yes","not yet") ->  | AF17: =100*(1-AC17) ->  | AJ17: =HLOOKUP(1,$AJ$11:$AR$15,$E$10+1) ->  | AK17: =HLOOKUP(2,$AJ$11:$AR$15,$E$10+1) ->  | AL17: =HLOOKUP(3,$AJ$11:$AR$15,$E$10+1) ->  | AM17: =HLOOKUP(4,$AJ$11:$AR$15,$E$10+1) ->  | AN17: =HLOOKUP(5,$AJ$11:$AR$15,$E$10+1) ->  | AO17: =HLOOKUP(6,$AJ$11:$AR$15,$E$10+1) ->  | AP17: =HLOOKUP(7,$AJ$11:$AR$15,$E$10+1) ->  | AQ17: =HLOOKUP(8,$AJ$11:$AR$15,$E$10+1) ->  | AR17: =HLOOKUP(9,$AJ$11:$AR$15,$E$10+1) -> 
B18: * | C18: Basis Points | E18: 0.25 | F18: City Tax | H18: =+'Combined LG'!H18 -> 0 | I18: * | V18: ='RCY LG 2018 V5.0c'!S19 ->  | W18: ='RCY LG 2018 V5.0c'!T19 ->  | X18: =(+W18*V18)/100 ->  | Y18: ='RCY LG 2018 V5.0c'!X19 ->  | Z18: =+$E$18 -> 0.25 | AA18: =Y18+Z18 ->  | AB18: =100*($E$15*$E$17+($E$16*(AA18/100))/(1-$E$19)) ->  | AC18: ='RCY LG 2018 V5.0c'!AE19 ->  | AD18: =$E$6/(1-AC18) ->  | AE18: =IF(OR(OR(AD18=AD12,AD18=(AD12+1)),AD18=(AD12-1)),"yes","not yet") ->  | AF18: =100*(1-AC18) ->  | AI18: 1 | AJ18: =AF3 ->  | AK18: =AF9 ->  | AL18: =AF15 ->  | AM18: =AF21 ->  | AN18: =AF27 ->  | AO18: =AF33 ->  | AP18: =AF39 ->  | AQ18: =AF45 -> 0 | AR18: =AF51 -> 0
B19: * | C19: Tax Rate | E19: =+'Combined LG'!E19 -> 0.002 | F19: Bad Debts | H19: =+'Combined LG'!H19 -> 0.006 | I19: * | AI19: 2 | AJ19: =AF4 ->  | AK19: =AF10 ->  | AL19: =AF16 ->  | AM19: =AF22 ->  | AN19: =AF28 ->  | AO19: =AF34 ->  | AP19: =AF40 ->  | AQ19: =AF46 -> 0 | AR19: =AF52 -> 0
H20: - | V20: 4th Turnover | W20: M | X20: ROR | Y20: ROE | AI20: 3 | AJ20: =AF5 ->  | AK20: =AF11 ->  | AL20: =AF17 ->  | AM20: =AF23 ->  | AN20: =AF29 ->  | AO20: =AF35 ->  | AP20: =AF41 ->  | AQ20: =AF47 -> 0 | AR20: =AF53 -> 0
F21: Revenue Sensitive | H21: =SUM(H16:H19) -> 0.025275 | V21: ='RCY LG 2018 V5.0c'!S21 ->  | W21: ='RCY LG 2018 V5.0c'!T21 ->  | X21: =(+W21*V21)/100 ->  | Y21: ='RCY LG 2018 V5.0c'!X21 ->  | Z21: =+$E$18 -> 0.25 | AA21: =Y21+Z21 ->  | AB21: =100*($E$15*$E$17+($E$16*(AA21/100))/(1-$E$19)) ->  | AC21: ='RCY LG 2018 V5.0c'!AE21 ->  | AD21: =$E$6/(1-AC21) ->  | AE21: =IF(OR(OR(AD21=AD15,AD21=(AD15+1)),AD21=(AD7-1)),"yes","not yet") ->  | AF21: =100*(1-AC21) ->  | AI21: 4 | AJ21: =AF6 ->  | AK21: =AF12 ->  | AL21: =AF18 ->  | AM21: =AF24 ->  | AN21: =AF30 ->  | AO21: =AF36 ->  | AP21: =AF42 ->  | AQ21: =AF48 -> 0 | AR21: =AF54 -> 0
V22: ='RCY LG 2018 V5.0c'!S22 ->  | W22: ='RCY LG 2018 V5.0c'!T22 ->  | X22: =(+W22*V22)/100 ->  | Y22: ='RCY LG 2018 V5.0c'!X22 ->  | Z22: =+$E$18 -> 0.25 | AA22: =Y22+Z22 ->  | AB22: =100*($E$15*$E$17+($E$16*(AA22/100))/(1-$E$19)) ->  | AC22: ='RCY LG 2018 V5.0c'!AE22 ->  | AD22: =$E$6/(1-AC22) ->  | AE22: =IF(OR(OR(AD22=AD16,AD22=(AD16+1)),AD22=(AD16-1)),"yes","not yet") ->  | AF22: =100*(1-AC22) -> 
F23: Conversion Factor | H23: =((+H13/100)-H21) ->  | V23: ='RCY LG 2018 V5.0c'!S23 ->  | W23: ='RCY LG 2018 V5.0c'!T23 ->  | X23: =(+W23*V23)/100 ->  | Y23: ='RCY LG 2018 V5.0c'!X23 ->  | Z23: =+$E$18 -> 0.25 | AA23: =Y23+Z23 ->  | AB23: =100*($E$15*$E$17+($E$16*(AA23/100))/(1-$E$19)) ->  | AC23: ='RCY LG 2018 V5.0c'!AE23 ->  | AD23: =$E$6/(1-AC23) ->  | AE23: =IF(OR(OR(AD23=AD17,AD23=(AD17+1)),AD23=(AD17-1)),"yes","not yet") ->  | AF23: =100*(1-AC23) ->  | AJ23: yes
V24: ='RCY LG 2018 V5.0c'!S24 ->  | W24: ='RCY LG 2018 V5.0c'!T24 ->  | X24: =(+W24*V24)/100 ->  | Y24: ='RCY LG 2018 V5.0c'!X24 ->  | Z24: =+$E$18 -> 0.25 | AA24: =Y24+Z24 ->  | AB24: =100*($E$15*$E$17+($E$16*(AA24/100))/(1-$E$19)) ->  | AC24: ='RCY LG 2018 V5.0c'!AE24 ->  | AD24: =$E$6/(1-AC24) ->  | AE24: =IF(OR(OR(AD24=AD18,AD24=(AD18+1)),AD24=(AD18-1)),"yes","not yet") ->  | AF24: =100*(1-AC24) ->  | AJ24: =HLOOKUP($AJ$23,$AJ$17:$AR$21,$E$10+1) -> 
C26: Company Reference | V26: 5th Turnover | W26: M | X26: ROR | Y26: ROE | AJ26: =HLOOKUP(1,$AJ$11:$AR$15,$E$10+1) ->  | AK26: =HLOOKUP(2,$AJ$11:$AR$15,$E$10+1) ->  | AL26: =HLOOKUP(3,$AJ$11:$AR$15,$E$10+1) ->  | AM26: =HLOOKUP(4,$AJ$11:$AR$15,$E$10+1) ->  | AN26: =HLOOKUP(5,$AJ$11:$AR$15,$E$10+1) ->  | AO26: =HLOOKUP(6,$AJ$11:$AR$15,$E$10+1) ->  | AP26: =HLOOKUP(7,$AJ$11:$AR$15,$E$10+1) ->  | AQ26: =HLOOKUP(8,$AJ$11:$AR$15,$E$10+1) ->  | AR26: =HLOOKUP(9,$AJ$11:$AR$15,$E$10+1) -> 
C27: Annl Price Increase (PI) $ | E27: =+E4 ->  | V27: ='RCY LG 2018 V5.0c'!S26 ->  | W27: ='RCY LG 2018 V5.0c'!T26 ->  | X27: =(+W27*V27)/100 ->  | Y27: ='RCY LG 2018 V5.0c'!X26 ->  | Z27: =+$E$18 -> 0.25 | AA27: =Y27+Z27 ->  | AB27: =100*($E$15*$E$17+($E$16*(AA27/100))/(1-$E$19)) ->  | AC27: ='RCY LG 2018 V5.0c'!AE26 ->  | AD27: =$E$6/(1-AC27) ->  | AE27: =IF(OR(OR(AD27=AD21,AD27=(AD21+1)),AD27=(AD13-1)),"yes","not yet") ->  | AF27: =100*(1-AC27) ->  | AI27: 1 | AJ27: =V3 ->  | AK27: =V9 ->  | AL27: =V15 ->  | AM27: =V21 ->  | AN27: =V27 ->  | AO27: =V33 ->  | AP27: =V39 ->  | AQ27: =V45 -> 0 | AR27: =V51 -> 0
C28: Monthly PI $ | E28: =+E27/12 ->  | V28: ='RCY LG 2018 V5.0c'!S27 ->  | W28: ='RCY LG 2018 V5.0c'!T27 ->  | X28: =(+W28*V28)/100 ->  | Y28: ='RCY LG 2018 V5.0c'!X27 ->  | Z28: =+$E$18 -> 0.25 | AA28: =Y28+Z28 ->  | AB28: =100*($E$15*$E$17+($E$16*(AA28/100))/(1-$E$19)) ->  | AC28: ='RCY LG 2018 V5.0c'!AE27 ->  | AD28: =$E$6/(1-AC28) ->  | AE28: =IF(OR(OR(AD28=AD22,AD28=(AD22+1)),AD28=(AD22-1)),"yes","not yet") ->  | AF28: =100*(1-AC28) ->  | AI28: 2 | AJ28: =V4 ->  | AK28: =V10 ->  | AL28: =V16 ->  | AM28: =V22 ->  | AN28: =V28 ->  | AO28: =V34 ->  | AP28: =V40 ->  | AQ28: =V46 -> 0 | AR28: =V52 -> 0
C29: Percentage PI | E29: =+E4/E5 ->  | V29: ='RCY LG 2018 V5.0c'!S28 ->  | W29: ='RCY LG 2018 V5.0c'!T28 ->  | X29: =(+W29*V29)/100 ->  | Y29: ='RCY LG 2018 V5.0c'!X28 ->  | Z29: =+$E$18 -> 0.25 | AA29: =Y29+Z29 ->  | AB29: =100*($E$15*$E$17+($E$16*(AA29/100))/(1-$E$19)) ->  | AC29: ='RCY LG 2018 V5.0c'!AE28 ->  | AD29: =$E$6/(1-AC29) ->  | AE29: =IF(OR(OR(AD29=AD23,AD29=(AD23+1)),AD29=(AD23-1)),"yes","not yet") ->  | AF29: =100*(1-AC29) ->  | AI29: 3 | AJ29: =V5 ->  | AK29: =V11 ->  | AL29: =V17 ->  | AM29: =V23 ->  | AN29: =V29 ->  | AO29: =V35 ->  | AP29: =V41 ->  | AQ29: =V47 -> 0 | AR29: =V53 -> 0
V30: ='RCY LG 2018 V5.0c'!S29 ->  | W30: ='RCY LG 2018 V5.0c'!T29 ->  | X30: =(+W30*V30)/100 ->  | Y30: ='RCY LG 2018 V5.0c'!X29 ->  | Z30: =+$E$18 -> 0.25 | AA30: =Y30+Z30 ->  | AB30: =100*($E$15*$E$17+($E$16*(AA30/100))/(1-$E$19)) ->  | AC30: ='RCY LG 2018 V5.0c'!AE29 ->  | AD30: =$E$6/(1-AC30) ->  | AE30: =IF(OR(OR(AD30=AD24,AD30=(AD24+1)),AD30=(AD24-1)),"yes","not yet") ->  | AF30: =100*(1-AC30) ->  | AI30: 4 | AJ30: =V6 ->  | AK30: =V12 ->  | AL30: =V18 ->  | AM30: =V24 ->  | AN30: =V30 ->  | AO30: =V36 ->  | AP30: =V42 ->  | AQ30: =V48 -> 0 | AR30: =V54 -> 0
V32: 6th Turnover | W32: M | X32: ROR | Y32: ROE | AJ32: yes
V33: ='RCY LG 2018 V5.0c'!S31 ->  | W33: ='RCY LG 2018 V5.0c'!T31 ->  | X33: =(+W33*V33)/100 ->  | Y33: ='RCY LG 2018 V5.0c'!X31 ->  | Z33: =+$E$18 -> 0.25 | AA33: =Y33+Z33 ->  | AB33: =100*($E$15*$E$17+($E$16*(AA33/100))/(1-$E$19)) ->  | AC33: ='RCY LG 2018 V5.0c'!AE31 ->  | AD33: =ROUND($E$6/(1-AC33),0) ->  | AE33: =IF(OR(OR(AD33=AD27,AD33=(AD27+1)),AD33=(AD19-1)),"yes","not yet") ->  | AF33: =100*(1-AC33) ->  | AJ33: =HLOOKUP($AJ$32,$AJ$26:$AR$30,$E$10+1) -> 
V34: ='RCY LG 2018 V5.0c'!S32 ->  | W34: ='RCY LG 2018 V5.0c'!T32 ->  | X34: =(+W34*V34)/100 ->  | Y34: ='RCY LG 2018 V5.0c'!X32 ->  | Z34: =+$E$18 -> 0.25 | AA34: =Y34+Z34 ->  | AB34: =100*($E$15*$E$17+($E$16*(AA34/100))/(1-$E$19)) ->  | AC34: ='RCY LG 2018 V5.0c'!AE32 ->  | AD34: =ROUND($E$6/(1-AC34),0) ->  | AE34: =IF(OR(OR(AD34=AD28,AD34=(AD28+1)),AD34=(AD28-1)),"yes","not yet") ->  | AF34: =100*(1-AC34) -> 
V35: ='RCY LG 2018 V5.0c'!S33 ->  | W35: ='RCY LG 2018 V5.0c'!T33 ->  | X35: =(+W35*V35)/100 ->  | Y35: ='RCY LG 2018 V5.0c'!X33 ->  | Z35: =+$E$18 -> 0.25 | AA35: =Y35+Z35 ->  | AB35: =100*($E$15*$E$17+($E$16*(AA35/100))/(1-$E$19)) ->  | AC35: ='RCY LG 2018 V5.0c'!AE33 ->  | AD35: =ROUND($E$6/(1-AC35),0) ->  | AE35: =IF(OR(OR(AD35=AD29,AD35=(AD29+1)),AD35=(AD29-1)),"yes","not yet") ->  | AF35: =100*(1-AC35) ->  | AJ35: =HLOOKUP(1,$AJ$11:$AR$15,$E$10+1) ->  | AK35: =HLOOKUP(2,$AJ$11:$AR$15,$E$10+1) ->  | AL35: =HLOOKUP(3,$AJ$11:$AR$15,$E$10+1) ->  | AM35: =HLOOKUP(4,$AJ$11:$AR$15,$E$10+1) ->  | AN35: =HLOOKUP(5,$AJ$11:$AR$15,$E$10+1) ->  | AO35: =HLOOKUP(6,$AJ$11:$AR$15,$E$10+1) ->  | AP35: =HLOOKUP(7,$AJ$11:$AR$15,$E$10+1) ->  | AQ35: =HLOOKUP(8,$AJ$11:$AR$15,$E$10+1) ->  | AR35: =HLOOKUP(9,$AJ$11:$AR$15,$E$10+1) -> 
V36: ='RCY LG 2018 V5.0c'!S34 ->  | W36: ='RCY LG 2018 V5.0c'!T34 ->  | X36: =(+W36*V36)/100 ->  | Y36: ='RCY LG 2018 V5.0c'!X34 ->  | Z36: =+$E$18 -> 0.25 | AA36: =Y36+Z36 ->  | AB36: =100*($E$15*$E$17+($E$16*(AA36/100))/(1-$E$19)) ->  | AC36: ='RCY LG 2018 V5.0c'!AE34 ->  | AD36: =ROUND($E$6/(1-AC36),0) ->  | AE36: =IF(OR(OR(AD36=AD30,AD36=(AD30+1)),AD36=(AD30-1)),"yes","not yet") ->  | AF36: =100*(1-AC36) ->  | AI36: 1 | AJ36: =AD3 ->  | AK36: =AD9 ->  | AL36: =AD15 ->  | AM36: =AD21 ->  | AN36: =AD27 ->  | AO36: =AD33 ->  | AP36: =AD39 ->  | AQ36: =AD45 -> 0 | AR36: =AD51 -> 0
AI37: 2 | AJ37: =AD4 ->  | AK37: =AD10 ->  | AL37: =AD16 ->  | AM37: =AD22 ->  | AN37: =AD28 ->  | AO37: =AD34 ->  | AP37: =AD40 ->  | AQ37: =AD46 -> 0 | AR37: =AD52 -> 0
V38: 7th turnover | W38: M | X38: ROR | Y38: ROE | AI38: 3 | AJ38: =AD5 ->  | AK38: =AD11 ->  | AL38: =AD17 ->  | AM38: =AD23 ->  | AN38: =AD29 ->  | AO38: =AD35 ->  | AP38: =AD41 ->  | AQ38: =AD47 -> 0 | AR38: =AD53 -> 0
V39: ='RCY LG 2018 V5.0c'!S36 ->  | W39: ='RCY LG 2018 V5.0c'!T36 ->  | X39: =(+W39*V39)/100 ->  | Y39: ='RCY LG 2018 V5.0c'!X36 ->  | Z39: =+$E$18 -> 0.25 | AA39: =Y39+Z39 ->  | AB39: =100*($E$15*$E$17+($E$16*(AA39/100))/(1-$E$19)) ->  | AC39: ='RCY LG 2018 V5.0c'!AE36 ->  | AD39: =ROUND($E$6/(1-AC39),0) ->  | AE39: =IF(OR(OR(AD39=AD33,AD39=(AD33+1)),AD39=(AD25-1)),"yes","not yet") ->  | AF39: =100*(1-AC39) ->  | AI39: 4 | AJ39: =AD6 ->  | AK39: =AD12 ->  | AL39: =AD18 ->  | AM39: =AD24 ->  | AN39: =AD30 ->  | AO39: =AD36 ->  | AP39: =AD42 ->  | AQ39: =AD48 -> 0 | AR39: =AD54 -> 0
V40: ='RCY LG 2018 V5.0c'!S37 ->  | W40: ='RCY LG 2018 V5.0c'!T37 ->  | X40: =(+W40*V40)/100 ->  | Y40: ='RCY LG 2018 V5.0c'!X37 ->  | Z40: =+$E$18 -> 0.25 | AA40: =Y40+Z40 ->  | AB40: =100*($E$15*$E$17+($E$16*(AA40/100))/(1-$E$19)) ->  | AC40: ='RCY LG 2018 V5.0c'!AE37 ->  | AD40: =ROUND($E$6/(1-AC40),0) ->  | AE40: =IF(OR(OR(AD40=AD34,AD40=(AD34+1)),AD40=(AD34-1)),"yes","not yet") ->  | AF40: =100*(1-AC40) -> 
V41: ='RCY LG 2018 V5.0c'!S38 ->  | W41: ='RCY LG 2018 V5.0c'!T38 ->  | X41: =(+W41*V41)/100 ->  | Y41: ='RCY LG 2018 V5.0c'!X38 ->  | Z41: =+$E$18 -> 0.25 | AA41: =Y41+Z41 ->  | AB41: =100*($E$15*$E$17+($E$16*(AA41/100))/(1-$E$19)) ->  | AC41: ='RCY LG 2018 V5.0c'!AE38 ->  | AD41: =ROUND($E$6/(1-AC41),0) ->  | AE41: =IF(OR(OR(AD41=AD35,AD41=(AD35+1)),AD41=(AD35-1)),"yes","not yet") ->  | AF41: =100*(1-AC41) ->  | AJ41: yes
V42: ='RCY LG 2018 V5.0c'!S39 ->  | W42: ='RCY LG 2018 V5.0c'!T39 ->  | X42: =(+W42*V42)/100 ->  | Y42: ='RCY LG 2018 V5.0c'!X39 ->  | Z42: =+$E$18 -> 0.25 | AA42: =Y42+Z42 ->  | AB42: =100*($E$15*$E$17+($E$16*(AA42/100))/(1-$E$19)) ->  | AC42: ='RCY LG 2018 V5.0c'!AE39 ->  | AD42: =ROUND($E$6/(1-AC42),0) ->  | AE42: =IF(OR(OR(AD42=AD36,AD42=(AD36+1)),AD42=(AD36-1)),"yes","not yet") ->  | AF42: =100*(1-AC42) ->  | AJ42: =HLOOKUP($AJ$32,$AJ$35:$AR$39,$E$10+1) -> 
V44: 8th turnover | W44: M | X44: ROR | Y44: ROE

Sheet YW LG 2018 V5.0c
B2: Public Companies | F2: Public Co | I2: LURITO - GALLAGHER FORMULA MODEL 2018 V5.0a | M2: Public Co | R2: CALCULATION TABLES | AH2: Revenue Senstive Taxes (RevS)
K3: (b) + (c) | M3: (d) + (e) | T3: Regession | V3: Regession | W3: Regession | X3: Regession | Z3: Adjusted | AA3: Hauler | AB3: Hauler | AC3: Hauler | AD3: Hauler | AE3: Hauler | AF3: Hauler | AG3: Revenue Req | AH3: Revenue | AI3: Revenue
B4: INPUTS - Test Year | H4: (a) | I4: (b) | J4: (c) | K4: (d) | L4: (e) | M4: (f) | T4: Before Tax | V4: Less | W4: Adjusted | X4: After Tax | Y4: Flotation Costs | Z4: After Tax | AA4: Weighted Cost | AB4: Weighted Cost | AC4: Weighted Cost | AD4: Adjusted | AE4: Before Tax | AF4: Before Tax | AG4: Before RevS | AH4: Increase Before | AI4: Increase After | AJ4: RevS | AK4: Total
B5: Operating Revenue | C5: =YW!E5 -> 0 | F5: Line | I5: Historical | J5: Revenue | K5: Proforma | L5: Add: Revenue | M5: Revenue | T5: Profit Ratio | U5: BTROI | V5: WCDebt | W5: BTROE | X5: ROE | Y5: Basis Points | Z5: ROE | AA5: Equity | AB5: Equity BFT | AC5: Debt | AD5: BTROR | AE5: Profit Ratio | AF5: Operating Ratio | AG5: Taxes | AH5: RevS Taxes | AI5: RevS Taxes | AJ5: Taxes | AK5: Revenue Req
B6: Operating Expenses | C6: =YW!E6 -> 0 | F6: No. | J6: Change | L6: Sensitive Taxes | M6: Requirement | R6: 1 | S6: =Revenue/Investment*100 ->  | T6: =EXP(y_inter1-(slope*LN(+S6))) ->  | U6: =(+S6*T6/100)/100 ->  | V6: =regDebt_weighted -> 0.03586 | W6: =+U6-V6 ->  | X6: =+((W6*(1-0.34))-Pfd_weighted)/Equity_percent ->  | Y6: =+C15 -> 0.0025 | Z6: =+X6+Y6 ->  | AA6: =Z6*equityP ->  | AB6: =+AA6/(1-taxrate) ->  | AC6: =debtP*Debt_Rate -> 0.02134266423 | AD6: =AC6+AB6 ->  | AE6: =AD6/(S6/100) ->  | AF6: =1-AE6 ->  | AG6: =expenses/(AF6) ->  | AH6: =+AG6-Revenue ->  | AI6: =+AH6/$J$49 ->  | AJ6: =+AI6*$J$47 ->  | AK6: =ROUND(+AJ6+AG6,5) -> 
B7: Investment | C7: =YW!E7 -> 0 | F7: 1 | H7: Operating Revenue | I7: =IF(A64=TRUE,C5,0) -> 0 | J7: =(+$I8/($R50))-I7 ->  | K7: =+I7+J7 ->  | L7: =((+J7/J49*K35)-J7) ->  | M7: =IFERROR(+K7+L7,0.00001) -> 1e-05 | R7: 2 | S7: =Revenue/Investment*100 ->  | T7: =EXP(y_inter1-(slope*LN(+S7))) ->  | U7: =(+S7*T7/100)/100 ->  | V7: =regDebt_weighted -> 0.03586 | W7: =+U7-V7 ->  | X7: =+((W7*(1-0.34))-Pfd_weighted)/Equity_percent ->  | Y7: =+Y6 -> 0.0025 | Z7: =+X7+Y7 ->  | AA7: =Z7*equityP ->  | AB7: =+AA7/(1-taxrate) ->  | AC7: =debtP*Debt_Rate -> 0.02134266423 | AD7: =AC7+AB7 ->  | AE7: =AD7/(S7/100) ->  | AF7: =1-AE7 ->  | AG7: =expenses/(AF7) ->  | AH7: =+AG7-Revenue ->  | AI7: =+AH7/$J$49 ->  | AJ7: =+AI7*$J$47 ->  | AK7: =ROUND(+AJ7+AG7,5) -> 
B8: Capital Structure-Debt % | C8: 0.5135130141 | F8: =+F7+1 -> 2 | H8: Operating Expenses | I8: =IF(A64=TRUE,C6,0) -> 0 | K8: =+I8 -> 0 | L8: =+L7 ->  | M8: =IFERROR(+K8+L8,0.00001) -> 1e-05 | R8: 3 | S8: =Revenue/Investment*100 ->  | T8: =EXP(y_inter1-(slope*LN(+S8))) ->  | U8: =(+S8*T8/100)/100 ->  | V8: =regDebt_weighted -> 0.03586 | W8: =+U8-V8 ->  | X8: =+((W8*(1-0.34))-Pfd_weighted)/Equity_percent ->  | Y8: =+Y7 -> 0.0025 | Z8: =+X8+Y8 ->  | AA8: =Z8*equityP ->  | AB8: =+AA8/(1-taxrate) ->  | AC8: =debtP*Debt_Rate -> 0.02134266423 | AD8: =AC8+AB8 ->  | AE8: =AD8/(S8/100) ->  | AF8: =1-AE8 ->  | AG8: =expenses/(AF8) ->  | AH8: =+AG8-Revenue ->  | AI8: =+AH8/$J$49 ->  | AJ8: =+AI8*$J$47 ->  | AK8: =ROUND(+AJ8+AG8,5) -> 
B9: Capital Structure-Debt Rate | C9: 0.04156207076 | F9: =+F8+1 -> 3 | H9: Operating Income | I9: =+I7-I8 -> 0 | K9: =+K7-K8 ->  | M9: =+M7-M8 -> 0 | R9: 4 | S9: =Revenue/Investment*100 ->  | T9: =EXP(y_inter1-(slope*LN(+S9))) ->  | U9: =(+S9*T9/100)/100 ->  | V9: =regDebt_weighted -> 0.03586 | W9: =+U9-V9 ->  | X9: =+((W9*(1-0.34))-Pfd_weighted)/Equity_percent ->  | Y9: =+Y8 -> 0.0025 | Z9: =+X9+Y9 ->  | AA9: =Z9*equityP ->  | AB9: =+AA9/(1-taxrate) ->  | AC9: =debtP*Debt_Rate -> 0.02134266423 | AD9: =AC9+AB9 ->  | AE9: =AD9/(S9/100) ->  | AF9: =1-AE9 ->  | AG9: =expenses/(AF9) ->  | AH9: =+AG9-Revenue ->  | AI9: =+AH9/$J$49 ->  | AJ9: =+AI9*$J$47 ->  | AK9: =ROUND(+AJ9+AG9,5) -> 
B10: Federal Income Tax Rate | C10: 0.215 | F10: 4 | R10: 2nd Iteration
B11: B&O Tax Rate | C11: 0.015 | F11: 5 | H11: Interest Expense | I11: =+K11 -> 0 | K11: =+M27 -> 0 | M11: =+K11 -> 0 | R11: 1 | S11: =IF((AK6/Investment*100)>0,(AK6/Investment*100),0) ->  | T11: =EXP(y_inter1-(slope*LN(S11))) ->  | U11: =(+S11*T11/100)/100 ->  | V11: =regDebt_weighted -> 0.03586 | W11: =+U11-V11 ->  | X11: =+((W11*(1-0.34))-Pfd_weighted)/Equity_percent ->  | Y11: =+Y9 -> 0.0025 | Z11: =+X11+Y11 ->  | AA11: =Z11*equityP ->  | AB11: =+AA11/(1-taxrate) ->  | AC11: =debtP*Debt_Rate -> 0.02134266423 | AD11: =+AC11+AB11 ->  | AE11: =+AD11/(S11/100) ->  | AF11: =1-AE11 ->  | AG11: =expenses/(AF11) ->  | AH11: =+AG11-Revenue ->  | AI11: =+AH11/$J$49 ->  | AJ11: =+AI11*$J$47 ->  | AK11: =ROUND(+AJ11+AG11,5) -> 
B12: WUTC Fee | C12: 0.004275 | F12: 6 | H12: Income Tax Expense | I12: =IF(I14<0,0,+J38*I14) ->  | J12: =+K12-I12 ->  | K12: =+(K9-K11)*taxrate ->  | M12: =+K12 ->  | R12: 2 | S12: =IF((AK7/Investment*100)>0,(AK7/Investment*100),0) ->  | T12: =EXP(y_inter2-(slope*LN(+S12))) ->  | U12: =(+S12*T12/100)/100 ->  | V12: =regDebt_weighted -> 0.03586 | W12: =+U12-V12 ->  | X12: =+((W12*(1-0.34))-Pfd_weighted)/Equity_percent ->  | Y12: =+Y11 -> 0.0025 | Z12: =+X12+Y12 ->  | AA12: =Z12*equityP ->  | AB12: =+AA12/(1-taxrate) ->  | AC12: =debtP*Debt_Rate -> 0.02134266423 | AD12: =+AC12+AB12 ->  | AE12: =+AD12/(S12/100) ->  | AF12: =1-AE12 ->  | AG12: =expenses/(AF12) ->  | AH12: =+AG12-Revenue ->  | AI12: =+AH12/$J$49 ->  | AJ12: =+AI12*$J$47 ->  | AK12: =ROUND(+AJ12+AG12,5) -> 
B13: City Tax | C13: 0 | F13: 7 | R13: 3 | S13: =IF((AK8/Investment*100)>0,(AK8/Investment*100),0) ->  | T13: =EXP(y_inter3-(slope*LN(S13))) ->  | U13: =(+S13*T13/100)/100 ->  | V13: =regDebt_weighted -> 0.03586 | W13: =+U13-V13 ->  | X13: =+((W13*(1-0.34))-Pfd_weighted)/Equity_percent ->  | Y13: =+Y12 -> 0.0025 | Z13: =+X13+Y13 ->  | AA13: =Z13*equityP ->  | AB13: =+AA13/(1-taxrate) ->  | AC13: =debtP*Debt_Rate -> 0.02134266423 | AD13: =+AC13+AB13 ->  | AE13: =+AD13/(S13/100) ->  | AF13: =1-AE13 ->  | AG13: =expenses/(AF13) ->  | AH13: =+AG13-Revenue ->  | AI13: =+AH13/$J$49 ->  | AJ13: =+AI13*$J$47 ->  | AK13: =ROUND(+AJ13+AG13,5) -> 
B14: Bad Debts | C14: 0.006 | F14: 8 | H14: Net Income | I14: =+I9-SUM(I11:I13) ->  | K14: =+K9-SUM(K11:K13) ->  | M14: =+M9-SUM(M11:M13) ->  | R14: 4 | S14: =IF((AK9/Investment*100)>0,(AK9/Investment*100),0) ->  | T14: =EXP(y_inter4-(slope*LN(S14))) ->  | U14: =(+S14*T14/100)/100 ->  | V14: =regDebt_weighted -> 0.03586 | W14: =+U14-V14 ->  | X14: =+((W14*(1-0.34))-Pfd_weighted)/Equity_percent ->  | Y14: =+Y13 -> 0.0025 | Z14: =+X14+Y14 ->  | AA14: =Z14*equityP ->  | AB14: =+AA14/(1-taxrate) ->  | AC14: =debtP*Debt_Rate -> 0.02134266423 | AD14: =+AC14+AB14 ->  | AE14: =+AD14/(S14/100) ->  | AF14: =1-AE14 ->  | AG14: =expenses/(AF14) ->  | AH14: =+AG14-Revenue ->  | AI14: =+AH14/$J$49 ->  | AJ14: =+AI14*$J$47 ->  | AK14: =ROUND(+AJ14+AG14,5) -> 
B15: Basis Points - Flotation | C15: 0.0025 | F15: 9 | R15: 3rd Iteration
D16: Yes | F16: 10 | H16: Operating Ratio | I16: =+I8/I7 ->  | K16: =+K8/K7 ->  | M16: =+M8/M7 -> 1 | R16: 1 | S16: =AK11/Investment*100 ->  | T16: =EXP(y_inter1-(slope*LN(+S16))) ->  | U16: =(+S16*T16/100)/100 ->  | V16: =regDebt_weighted -> 0.03586 | W16: =+U16-V16 ->  | X16: =+((W16*(1-0.34))-Pfd_weighted)/Equity_percent ->  | Y16: =+Y14 -> 0.0025 | Z16: =+X16+Y16 ->  | AA16: =Z16*equityP ->  | AB16: =+AA16/(1-taxrate) ->  | AC16: =debtP*Debt_Rate -> 0.02134266423 | AD16: =+AC16+AB16 ->  | AE16: =+AD16/(S16/100) ->  | AF16: =1-AE16 ->  | AG16: =expenses/(AF16) ->  | AH16: =+AG16-Revenue ->  | AI16: =+AH16/$J$49 ->  | AJ16: =+AI16*$J$47 ->  | AK16: =ROUND(+AJ16+AG16,5) -> 
B17: Check when input is complete | D17: No | F17: 11 | R17: 2 | S17: =AK12/Investment*100 ->  | T17: =EXP(y_inter2-(slope*LN(+S17))) ->  | U17: =(+S17*T17/100)/100 ->  | V17: =regDebt_weighted -> 0.03586 | W17: =+U17-V17 ->  | X17: =+((W17*(1-0.34))-Pfd_weighted)/Equity_percent ->  | Y17: =+Y16 -> 0.0025 | Z17: =+X17+Y17 ->  | AA17: =Z17*equityP ->  | AB17: =+AA17/(1-taxrate) ->  | AC17: =debtP*Debt_Rate -> 0.02134266423 | AD17: =+AC17+AB17 ->  | AE17: =+AD17/(S17/100) ->  | AF17: =1-AE17 ->  | AG17: =expenses/(AF17) ->  | AH17: =+AG17-Revenue ->  | AI17: =+AH17/$J$49 ->  | AJ17: =+AI17*$J$47 ->  | AK17: =ROUND(+AJ17+AG17,5) -> 
F18: 12 | H18: Revenue Requirement | R18: 3 | S18: =AK13/Investment*100 ->  | T18: =EXP(y_inter3-(slope*LN(S18))) ->  | U18: =(+S18*T18/100)/100 ->  | V18: =regDebt_weighted -> 0.03586 | W18: =+U18-V18 ->  | X18: =+((W18*(1-0.34))-Pfd_weighted)/Equity_percent ->  | Y18: =+Y17 -> 0.0025 | Z18: =+X18+Y18 ->  | AA18: =Z18*equityP ->  | AB18: =+AA18/(1-taxrate) ->  | AC18: =debtP*Debt_Rate -> 0.02134266423 | AD18: =+AC18+AB18 ->  | AE18: =+AD18/(S18/100) ->  | AF18: =1-AE18 ->  | AG18: =expenses/(AF18) ->  | AH18: =+AG18-Revenue ->  | AI18: =+AH18/$J$49 ->  | AJ18: =+AI18*$J$47 ->  | AK18: =ROUND(+AJ18+AG18,5) -> 
B19: For Intial input: Uncheck Checkbox Until Completed | F19: 13 | I19: Historical Revenue | J19: =+Revenue -> 0 | L19: Revenue Increase before taxes | M19: =+J7 ->  | R19: 4 | S19: =AK14/Investment*100 ->  | T19: =EXP(y_inter4-(slope*LN(S19))) ->  | U19: =(+S19*T19/100)/100 ->  | V19: =regDebt_weighted -> 0.03586 | W19: =+U19-V19 ->  | X19: =+((W19*(1-0.34))-Pfd_weighted)/Equity_percent ->  | Y19: =+Y18 -> 0.0025 | Z19: =+X19+Y19 ->  | AA19: =Z19*equityP ->  | AB19: =+AA19/(1-taxrate) ->  | AC19: =debtP*Debt_Rate -> 0.02134266423 | AD19: =+AC19+AB19 ->  | AE19: =+AD19/(S19/100) ->  | AF19: =1-AE19 ->  | AG19: =expenses/(AF19) ->  | AH19: =+AG19-Revenue ->  | AI19: =+AH19/$J$49 ->  | AJ19: =+AI19*$J$47 ->  | AK19: =ROUND(+AJ19+AG19,5) -> 
F20: 14 | I20: Rate Increase | J20: =+J21-J19 -> 1e-05 | L20: Rev Sensitive Taxes | M20: =+L8 ->  | R20: 4th Iteration
F21: 15 | I21: Revenue Requirement | J21: =+M7 -> 1e-05 | L21: Rate Increase | M21: =+M19+M20 ->  | R21: 1 | S21: =AK16/Investment*100 ->  | T21: =EXP(y_inter1-(slope*LN(+S21))) ->  | U21: =(+S21*T21/100)/100 ->  | V21: =regDebt_weighted -> 0.03586 | W21: =+U21-V21 ->  | X21: =+((W21*(1-0.34))-Pfd_weighted)/Equity_percent ->  | Y21: =+Y19 -> 0.0025 | Z21: =+X21+Y21 ->  | AA21: =Z21*equityP ->  | AB21: =+AA21/(1-taxrate) ->  | AC21: =debtP*Debt_Rate -> 0.02134266423 | AD21: =+AC21+AB21 ->  | AE21: =+AD21/(S21/100) ->  | AF21: =1-AE21 ->  | AG21: =expenses/(AF21) ->  | AH21: =+AG21-Revenue ->  | AI21: =+AH21/$J$49 ->  | AJ21: =+AI21*$J$47 ->  | AK21: =ROUND(+AJ21+AG21,5) -> 
F22: 16 | R22: 2 | S22: =AK17/Investment*100 ->  | T22: =EXP(y_inter2-(slope*LN(+S22))) ->  | U22: =(+S22*T22/100)/100 ->  | V22: =regDebt_weighted -> 0.03586 | W22: =+U22-V22 ->  | X22: =+((W22*(1-0.34))-Pfd_weighted)/Equity_percent ->  | Y22: =+Y21 -> 0.0025 | Z22: =+X22+Y22 ->  | AA22: =Z22*equityP ->  | AB22: =+AA22/(1-taxrate) ->  | AC22: =debtP*Debt_Rate -> 0.02134266423 | AD22: =+AC22+AB22 ->  | AE22: =+AD22/(S22/100) ->  | AF22: =1-AE22 ->  | AG22: =expenses/(AF22) ->  | AH22: =+AG22-Revenue ->  | AI22: =+AH22/$J$49 ->  | AJ22: =+AI22*$J$47 ->  | AK22: =ROUND(+AJ22+AG22,5) -> 
B23: 2018 Version Update Changes | F23: 17 | R23: 3 | S23: =AK18/Investment*100 ->  | T23: =EXP(y_inter3-(slope*LN(S23))) ->  | U23: =(+S23*T23/100)/100 ->  | V23: =regDebt_weighted -> 0.03586 | W23: =+U23-V23 ->  | X23: =+((W23*(1-0.34))-Pfd_weighted)/Equity_percent ->  | Y23: =+Y22 -> 0.0025 | Z23: =+X23+Y23 ->  | AA23: =Z23*equityP ->  | AB23: =+AA23/(1-taxrate) ->  | AC23: =debtP*Debt_Rate -> 0.02134266423 | AD23: =+AC23+AB23 ->  | AE23: =+AD23/(S23/100) ->  | AF23: =1-AE23 ->  | AG23: =expenses/(AF23) ->  | AH23: =+AG23-Revenue ->  | AI23: =+AH23/$J$49 ->  | AJ23: =+AI23*$J$47 ->  | AK23: =ROUND(+AJ23+AG23,5) -> 
B24: ● Allows Income Tax Rate Changes, | F24: 18 | H24: Captial Structure Financing Investment | K24: Financing Cost | R24: 4 | S24: =AK19/Investment*100 ->  | T24: =EXP(y_inter4-(slope*LN(S24))) ->  | U24: =(+S24*T24/100)/100 ->  | V24: =regDebt_weighted -> 0.03586 | W24: =+U24-V24 ->  | X24: =+((W24*(1-0.34))-Pfd_weighted)/Equity_percent ->  | Y24: =+Y23 -> 0.0025 | Z24: =+X24+Y24 ->  | AA24: =Z24*equityP ->  | AB24: =+AA24/(1-taxrate) ->  | AC24: =debtP*Debt_Rate -> 0.02134266423 | AD24: =+AC24+AB24 ->  | AE24: =+AD24/(S24/100) ->  | AF24: =1-AE24 ->  | AG24: =expenses/(AF24) ->  | AH24: =+AG24-Revenue ->  | AI24: =+AH24/$J$49 ->  | AJ24: =+AI24*$J$47 ->  | AK24: =ROUND(+AJ24+AG24,5) -> 
B25: ● Minimizes impact of changes in test-year revenue from | F25: 19 | H25: Type | I25: Percent | J25: Amount | K25: Cost of Capital | L25: Weighted | M25: Amount | R25: 5th Iteration
B26: resulting revenue requirment, | F26: 20 | H26: Equity | I26: =1-I27 -> 0.4864869859 | J26: =+I26*J28 -> 0 | K26: =+K34 ->  | L26: =+K26*I26 ->  | M26: =+J26*K26 ->  | R26: 1 | S26: =AK21/Investment*100 ->  | T26: =EXP(y_inter1-(slope*LN(+S26))) ->  | U26: =(+S26*T26/100)/100 ->  | V26: =regDebt_weighted -> 0.03586 | W26: =+U26-V26 ->  | X26: =+((W26*(1-0.34))-Pfd_weighted)/Equity_percent ->  | Y26: =+Y24 -> 0.0025 | Z26: =+X26+Y26 ->  | AA26: =Z26*equityP ->  | AB26: =+AA26/(1-taxrate) ->  | AC26: =debtP*Debt_Rate -> 0.02134266423 | AD26: =+AC26+AB26 ->  | AE26: =+AD26/(S26/100) ->  | AF26: =1-AE26 ->  | AG26: =expenses/(AF26) ->  | AH26: =+AG26-Revenue ->  | AI26: =+AH26/$J$49 ->  | AJ26: =+AI26*$J$47 ->  | AK26: =ROUND(+AJ26+AG26,5) -> 
B27: ● Corrects interest rate transposition in LG. | F27: 21 | H27: Debt | I27: =IF(A64=TRUE,C8,0) -> 0.5135130141 | J27: =+I27*J28 -> 0 | K27: =IF(A64=TRUE,C9,0) -> 0.04156207076 | L27: =+K27*I27 -> 0.02134266423 | M27: =+K27*J27 -> 0 | R27: 2 | S27: =AK22/Investment*100 ->  | T27: =EXP(y_inter2-(slope*LN(+S27))) ->  | U27: =(+S27*T27/100)/100 ->  | V27: =regDebt_weighted -> 0.03586 | W27: =+U27-V27 ->  | X27: =+((W27*(1-0.34))-Pfd_weighted)/Equity_percent ->  | Y27: =+Y26 -> 0.0025 | Z27: =+X27+Y27 ->  | AA27: =Z27*equityP ->  | AB27: =+AA27/(1-taxrate) ->  | AC27: =debtP*Debt_Rate -> 0.02134266423 | AD27: =+AC27+AB27 ->  | AE27: =+AD27/(S27/100) ->  | AF27: =1-AE27 ->  | AG27: =expenses/(AF27) ->  | AH27: =+AG27-Revenue ->  | AI27: =+AH27/$J$49 ->  | AJ27: =+AI27*$J$47 ->  | AK27: =ROUND(+AJ27+AG27,5) -> 
F28: 22 | H28: Total | I28: =SUM(I26:I27) -> 1 | J28: =IF(A64=TRUE,C7,0) -> 0 | L28: =SUM(L26:L27) ->  | M28: =SUM(M26:M27) ->  | R28: 3 | S28: =AK23/Investment*100 ->  | T28: =EXP(y_inter3-(slope*LN(S28))) ->  | U28: =(+S28*T28/100)/100 ->  | V28: =regDebt_weighted -> 0.03586 | W28: =+U28-V28 ->  | X28: =+((W28*(1-0.34))-Pfd_weighted)/Equity_percent ->  | Y28: =+Y27 -> 0.0025 | Z28: =+X28+Y28 ->  | AA28: =Z28*equityP ->  | AB28: =+AA28/(1-taxrate) ->  | AC28: =debtP*Debt_Rate -> 0.02134266423 | AD28: =+AC28+AB28 ->  | AE28: =+AD28/(S28/100) ->  | AF28: =1-AE28 ->  | AG28: =expenses/(AF28) ->  | AH28: =+AG28-Revenue ->  | AI28: =+AH28/$J$49 ->  | AJ28: =+AI28*$J$47 ->  | AK28: =ROUND(+AJ28+AG28,5) -> 
F29: 23 | R29: 4 | S29: =AK24/Investment*100 ->  | T29: =EXP(y_inter4-(slope*LN(S29))) ->  | U29: =(+S29*T29/100)/100 ->  | V29: =regDebt_weighted -> 0.03586 | W29: =+U29-V29 ->  | X29: =+((W29*(1-0.34))-Pfd_weighted)/Equity_percent ->  | Y29: =+Y28 -> 0.0025 | Z29: =+X29+Y29 ->  | AA29: =Z29*equityP ->  | AB29: =+AA29/(1-taxrate) ->  | AC29: =debtP*Debt_Rate -> 0.02134266423 | AD29: =+AC29+AB29 ->  | AE29: =+AD29/(S29/100) ->  | AF29: =1-AE29 ->  | AG29: =expenses/(AF29) ->  | AH29: =+AG29-Revenue ->  | AI29: =+AH29/$J$49 ->  | AJ29: =+AI29*$J$47 ->  | AK29: =ROUND(+AJ29+AG29,5) -> 
F30: 24 | J30: Before | K30: After | R30: 6th Iteration
F31: 25 | H31: Operating Statistics | J31: Income Tax | K31: Income Tax | R31: 1 | S31: =AK26/Investment*100 ->  | T31: =EXP(y_inter1-(slope*LN(+S31))) ->  | U31: =(+S31*T31/100)/100 ->  | V31: =regDebt_weighted -> 0.03586 | W31: =+U31-V31 ->  | X31: =+((W31*(1-0.34))-Pfd_weighted)/Equity_percent ->  | Y31: =+Y29 -> 0.0025 | Z31: =+X31+Y31 ->  | AA31: =Z31*equityP ->  | AB31: =+AA31/(1-taxrate) ->  | AC31: =debtP*Debt_Rate -> 0.02134266423 | AD31: =+AC31+AB31 ->  | AE31: =+AD31/(S31/100) ->  | AF31: =1-AE31 ->  | AG31: =expenses/(AF31) ->  | AH31: =+AG31-Revenue ->  | AI31: =+AH31/$J$49 ->  | AJ31: =+AI31*$J$47 ->  | AK31: =ROUND(+AJ31+AG31,5) -> 
F32: 26 | R32: 2 | S32: =AK27/Investment*100 ->  | T32: =EXP(y_inter2-(slope*LN(+S32))) ->  | U32: =(+S32*T32/100)/100 ->  | V32: =regDebt_weighted -> 0.03586 | W32: =+U32-V32 ->  | X32: =+((W32*(1-0.34))-Pfd_weighted)/Equity_percent ->  | Y32: =+Y31 -> 0.0025 | Z32: =+X32+Y32 ->  | AA32: =Z32*equityP ->  | AB32: =+AA32/(1-taxrate) ->  | AC32: =debtP*Debt_Rate -> 0.02134266423 | AD32: =+AC32+AB32 ->  | AE32: =+AD32/(S32/100) ->  | AF32: =1-AE32 ->  | AG32: =expenses/(AF32) ->  | AH32: =+AG32-Revenue ->  | AI32: =+AH32/$J$49 ->  | AJ32: =+AI32*$J$47 ->  | AK32: =ROUND(+AJ32+AG32,5) -> 
F33: 27 | H33: Return on Investment | J33: =+K9/J28 ->  | K33: =+(M14+M11)/J28 ->  | R33: 3 | S33: =AK28/Investment*100 ->  | T33: =EXP(y_inter3-(slope*LN(S33))) ->  | U33: =(+S33*T33/100)/100 ->  | V33: =regDebt_weighted -> 0.03586 | W33: =+U33-V33 ->  | X33: =+((W33*(1-0.34))-Pfd_weighted)/Equity_percent ->  | Y33: =+Y32 -> 0.0025 | Z33: =+X33+Y33 ->  | AA33: =Z33*equityP ->  | AB33: =+AA33/(1-taxrate) ->  | AC33: =debtP*Debt_Rate -> 0.02134266423 | AD33: =+AC33+AB33 ->  | AE33: =+AD33/(S33/100) ->  | AF33: =1-AE33 ->  | AG33: =expenses/(AF33) ->  | AH33: =+AG33-Revenue ->  | AI33: =+AH33/$J$49 ->  | AJ33: =+AI33*$J$47 ->  | AK33: =ROUND(+AJ33+AG33,5) -> 
F34: 28 | H34: Return on Equity | J34: =+(M9-M11)/J26 ->  | K34: =+M14/J26 ->  | R34: 4 | S34: =AK29/Investment*100 ->  | T34: =EXP(y_inter4-(slope*LN(S34))) ->  | U34: =(+S34*T34/100)/100 ->  | V34: =regDebt_weighted -> 0.03586 | W34: =+U34-V34 ->  | X34: =+((W34*(1-0.34))-Pfd_weighted)/Equity_percent ->  | Y34: =+Y33 -> 0.0025 | Z34: =+X34+Y34 ->  | AA34: =Z34*equityP ->  | AB34: =+AA34/(1-taxrate) ->  | AC34: =debtP*Debt_Rate -> 0.02134266423 | AD34: =+AC34+AB34 ->  | AE34: =+AD34/(S34/100) ->  | AF34: =1-AE34 ->  | AG34: =expenses/(AF34) ->  | AH34: =+AG34-Revenue ->  | AI34: =+AH34/$J$49 ->  | AJ34: =+AI34*$J$47 ->  | AK34: =ROUND(+AJ34+AG34,5) -> 
F35: 29 | H35: Operating Ratio | J35: =+K8/K7 ->  | K35: =+M8/M7 -> 1 | R35: 7th Iteration
F36: 30 | H36: Profit Margin | J36: =+K9/K7 ->  | K36: =+J36 ->  | R36: 1 | S36: =AK31/Investment*100 ->  | T36: =EXP(y_inter1-(slope*LN(+S36))) ->  | U36: =(+S36*T36/100)/100 ->  | V36: =regDebt_weighted -> 0.03586 | W36: =+U36-V36 ->  | X36: =+((W36*(1-0.34))-Pfd_weighted)/Equity_percent ->  | Y36: =+Y34 -> 0.0025 | Z36: =+X36+Y36 ->  | AA36: =Z36*equityP ->  | AB36: =+AA36/(1-taxrate) ->  | AC36: =debtP*Debt_Rate -> 0.02134266423 | AD36: =+AC36+AB36 ->  | AE36: =+AD36/(S36/100) ->  | AF36: =1-AE36 ->  | AG36: =expenses/(AF36) ->  | AH36: =+AG36-Revenue ->  | AI36: =+AH36/$J$49 ->  | AJ36: =+AI36*$J$47 ->  | AK36: =ROUND(+AJ36+AG36,5) -> 
F37: 31 | H37: Final turnover | J37: =+S39/100 ->  | K37: =+J37 ->  | R37: 2 | S37: =AK32/Investment*100 ->  | T37: =EXP(y_inter2-(slope*LN(+S37))) ->  | U37: =(+S37*T37/100)/100 ->  | V37: =regDebt_weighted -> 0.03586 | W37: =+U37-V37 ->  | X37: =+((W37*(1-0.34))-Pfd_weighted)/Equity_percent ->  | Y37: =+Y36 -> 0.0025 | Z37: =+X37+Y37 ->  | AA37: =Z37*equityP ->  | AB37: =+AA37/(1-taxrate) ->  | AC37: =debtP*Debt_Rate -> 0.02134266423 | AD37: =+AC37+AB37 ->  | AE37: =+AD37/(S37/100) ->  | AF37: =1-AE37 ->  | AG37: =expenses/(AF37) ->  | AH37: =+AG37-Revenue ->  | AI37: =+AH37/$J$49 ->  | AJ37: =+AI37*$J$47 ->  | AK37: =ROUND(+AJ37+AG37,5) -> 
F38: 32 | H38: Tax Rate | J38: =+C10 -> 0.215 | K38: =+J38 -> 0.215 | R38: 3 | S38: =AK33/Investment*100 ->  | T38: =EXP(y_inter3-(slope*LN(S38))) ->  | U38: =(+S38*T38/100)/100 ->  | V38: =regDebt_weighted -> 0.03586 | W38: =+U38-V38 ->  | X38: =+((W38*(1-0.34))-Pfd_weighted)/Equity_percent ->  | Y38: =+Y37 -> 0.0025 | Z38: =+X38+Y38 ->  | AA38: =Z38*equityP ->  | AB38: =+AA38/(1-taxrate) ->  | AC38: =debtP*Debt_Rate -> 0.02134266423 | AD38: =+AC38+AB38 ->  | AE38: =+AD38/(S38/100) ->  | AF38: =1-AE38 ->  | AG38: =expenses/(AF38) ->  | AH38: =+AG38-Revenue ->  | AI38: =+AH38/$J$49 ->  | AJ38: =+AI38*$J$47 ->  | AK38: =ROUND(+AJ38+AG38,5) -> 
F39: 33 | R39: 4 | S39: =AK34/Investment*100 ->  | T39: =EXP(y_inter4-(slope*LN(S39))) ->  | U39: =(+S39*T39/100)/100 ->  | V39: =regDebt_weighted -> 0.03586 | W39: =+U39-V39 ->  | X39: =+((W39*(1-0.34))-Pfd_weighted)/Equity_percent ->  | Y39: =+Y38 -> 0.0025 | Z39: =+X39+Y39 ->  | AA39: =Z39*equityP ->  | AB39: =+AA39/(1-taxrate) ->  | AC39: =debtP*Debt_Rate -> 0.02134266423 | AD39: =+AC39+AB39 ->  | AE39: =+AD39/(S39/100) ->  | AF39: =1-AE39 ->  | AG39: =expenses/(AF39) ->  | AH39: =+AG39-Revenue ->  | AI39: =+AH39/$J$49 ->  | AJ39: =+AI39*$J$47 ->  | AK39: =ROUND(+AJ39+AG39,5) -> 
F40: 34
F41: 35 | H41: Revenue Sensitive Taxes Charges | R41: Curve
F42: 36 | J42: Rate | K42: Taxes | R42: Lookup Table
F43: 37 | H43: B & O Tax | J43: =IF(A64=TRUE,C11,0) -> 0.015 | K43: =+J43*($J$7/$J$49) ->  | R43: 0 | S43: 1 | U43: Profit Margin | V43: =VLOOKUP(R48,R36:AG39,14) -> 
F44: 38 | H44: WUTC Fee | J44: =IF(A64=TRUE,C12,0) -> 0.004275 | K44: =+J44*($J$7/$J$49) ->  | R44: 50 | S44: 2 | U44: Operating Ratio | V44: =ROUND(1-V43,6) -> 
F45: 39 | H45: City Tax | J45: =IF(A64=TRUE,C13,0) -> 0 | K45: =+J45*($J$7/$J$49) ->  | R45: 125 | S45: 3 | U45: Percent Chg | V45: =+M7/Revenue-1 -> 
F46: 40 | H46: Bad Debts | J46: =IF(A64=TRUE,C14,0) -> 0.006 | K46: =+J46*($J$7/$J$49) ->  | R46: 401 | S46: 4
F47: 41 | H47: Revenue Sensitive | J47: =SUM(J43:J46) -> 0.025275 | K47: =+K43+K44+K45+K46 ->  | R47: =VLOOKUP(R48,R36:S39,2) ->  | S47: Curve turnover | X47: @EXP(5.72260-(.68367*@LN(T)))
F48: 42 | R48: =VLOOKUP(S36,R43:S46,2) ->  | S48: Curve No. Used | X48: @EXP(5.70827-(.68367*@LN(T)))
F49: 43 | H49: Conversion Factor | J49: =((K35)-J47) -> 0.974725 | X49: @EXP(5.69850-(.68367*@LN(T)))
R50: =+V44 ->  | S50: Operating Ratio | X50: @EXP(5.69220-(.68367*@LN(T)))
S53: Base Utility from LG Sample Study | W53: Regression Results
S54: Percent | T54: Cost | U54: Weighted | W54: Y intercept (1) | X54: 5.7226 | Y54: Y intercept (3) | Z54: 5.6985
R55: Debt | S55: 0.562 | T55: 0.0638 | U55: =ROUND(+S55*T55,5) -> 0.03586 | W55: Y intercept (2) | X55: 5.70827 | Y55: Y intercept (4) | Z55: 5.6922
R56: Pfd. | S56: 0.094 | T56: 0.0659 | U56: =ROUND(+S56*T56,5) -> 0.00619
R57: Equity | S57: 0.344 | X57: Slope | Y57: 0.68367
S58: =SUM(S55:S57) -> 1
X60: Operating Statistics | Y60: Pre-tax | Z60: After Tax
X62: Return on Investment | Y62: =+J33 -> 
X63: Return on Equity
A64: TRUE | X64: Operating Ratio | Z64: 1
X65: Profit Margin
X66: Final turnover
X67: Tax Rate | Y67: 0.215 | Z67: 0.215

Sheet YW
B1: NEW IMPROVED LURITO - GALLAGHER FORMULA | AE1: !??! | AF1: OP/RATIO | AI1: curve
G2: NOTE: | N2: FORMULAS | U2: 1st Revenue | V2: 1st Turnover | W2: M | X2: ROR | Y2: ROE | AA2: Adj ROE | AB2: Pre Tax ROE | AC2: Adj M | AD2: Revenues | AE2: Decision | AI2: lookup table
B3: !!! | C3: Revenue Requirement | E3: =E5+E4 ->  | F3: !!!<-- | H3: Red numbers are input/linked fields. | N3: 1. less than 50 | Q3: @EXP(5.72260-(.68367*@LN(T))) | U3: =$E$6*1.25 -> 0 | V3: ='YW LG 2018 V5.0c'!S6 ->  | W3: =EXP(5.7226-(0.68367*LN(+V3))) ->  | X3: =(+W3*V3)/100 ->  | Y3: ='YW LG 2018 V5.0c'!X6 ->  | Z3: =+$E$18 -> 0.25 | AA3: =Y3+Z3 ->  | AB3: =100*($E$15*$E$17+($E$16*(AA3/100))/(1-$E$19)) ->  | AC3: ='YW LG 2018 V5.0c'!AE6 ->  | AD3: =$E$6/(1-AC3) ->  | AE3: =IF(AD3=$U$3,"yes","not yet") ->  | AF3: =100*(1-AC3) ->  | AI3: 0 | AJ3: 1
B4: !!! | C4: Revenue Deficiency | E4: =(+E6-((H13/100)*E5))/H23 ->  | F4: !!!<-- | H4: Black are formula calculations | N4: 2. Between 50 and 125 | Q4: @EXP(5.70827-(.68367*@LN(T))) | U4: =$E$6*1.25 -> 0 | V4: ='YW LG 2018 V5.0c'!S7 ->  | W4: ='YW LG 2018 V5.0c'!T7 ->  | X4: =(+W4*V4)/100 ->  | Y4: ='YW LG 2018 V5.0c'!X7 ->  | Z4: =+$E$18 -> 0.25 | AA4: =Y4+Z4 ->  | AB4: =100*($E$15*$E$17+($E$16*(AA4/100))/(1-$E$19)) ->  | AC4: ='YW LG 2018 V5.0c'!AE7 ->  | AD4: =$E$6/(1-AC4) ->  | AE4: =IF(AD4=$U$4,"yes","not yet") ->  | AF4: =100*(1-AC4) ->  | AI4: 50 | AJ4: 2
B5: * | C5: Revenue | E5: =Proforma!Q26 -> 0 | F5: * p/f before rates | N5: 3. Between 125 and 140 | Q5: @EXP(5.69850-(.68367*@LN(T))) | U5: =$E$6*1.25 -> 0 | V5: ='YW LG 2018 V5.0c'!S8 ->  | W5: ='YW LG 2018 V5.0c'!T8 ->  | X5: =(+W5*V5)/100 ->  | Y5: ='YW LG 2018 V5.0c'!X8 ->  | Z5: =+$E$18 -> 0.25 | AA5: =Y5+Z5 ->  | AB5: =100*($E$15*$E$17+($E$16*(AA5/100))/(1-$E$19)) ->  | AC5: ='YW LG 2018 V5.0c'!AE8 ->  | AD5: =$E$6/(1-AC5) ->  | AE5: =IF(AD5=$U$5,"yes","not yet") ->  | AF5: =100*(1-AC5) ->  | AI5: 125 | AJ5: 3
B6: * | C6: Expenses | E6: =+Proforma!Q391 -> 0 | F6: * p/f before rates | N6: 4. greater than 400 | Q6: @EXP(5.69220-(.68367*@LN(T))) | U6: =$E$6*1.25 -> 0 | V6: ='YW LG 2018 V5.0c'!S9 ->  | W6: ='YW LG 2018 V5.0c'!T9 ->  | X6: =(+W6*V6)/100 ->  | Y6: ='YW LG 2018 V5.0c'!X9 ->  | Z6: =+$E$18 -> 0.25 | AA6: =Y6+Z6 ->  | AB6: =100*($E$15*$E$17+($E$16*(AA6/100))/(1-$E$19)) ->  | AC6: ='YW LG 2018 V5.0c'!AE9 ->  | AD6: =$E$6/(1-AC6) ->  | AE6: =IF(AD6=$U$6,"yes","not yet") ->  | AF6: =100*(1-AC6) ->  | AI6: 401 | AJ6: 4
B7: * | C7: Avg. Investment - | E7: ='Ave Inv. Summary'!L66 -> 0 | F7: * p/f before rates
C8: curve turnover | E8: =V3 ->  | F8: (calculated) | V8: 2nd Turnover | W8: M | X8: ROR | Y8: ROE | AI8: lookup tables
C9: final turnover | E9: =HLOOKUP($AJ$32,$AJ$26:$AR$30,$E$10+1) ->  | F9: (calculated) | V9: ='YW LG 2018 V5.0c'!S11 ->  | W9: ='YW LG 2018 V5.0c'!T11 ->  | X9: =(+W9*V9)/100 ->  | Y9: ='YW LG 2018 V5.0c'!X11 ->  | Z9: =+$E$18 -> 0.25 | AA9: =Y9+Z9 ->  | AB9: =100*($E$15*$E$17+($E$16*(AA9/100))/(1-$E$19)) ->  | AC9: ='YW LG 2018 V5.0c'!AE11 ->  | AD9: =$E$6/(1-AC9) ->  | AE9: =IF(OR(OR(AD9=AD3,AD9=(AD3+1)),AD9=(AD8187-1)),"yes","not yet") ->  | AF9: =100*(1-AC9) -> 
C10: curve No. used | E10: =VLOOKUP(E8,AI3:AJ6,2) ->  | F10: (calculated) | V10: ='YW LG 2018 V5.0c'!S12 ->  | W10: ='YW LG 2018 V5.0c'!T12 ->  | X10: =(+W10*V10)/100 ->  | Y10: ='YW LG 2018 V5.0c'!X12 ->  | Z10: =+$E$18 -> 0.25 | AA10: =Y10+Z10 ->  | AB10: =100*($E$15*$E$17+($E$16*(AA10/100))/(1-$E$19)) ->  | AC10: ='YW LG 2018 V5.0c'!AE12 ->  | AD10: =$E$6/(1-AC10) ->  | AE10: =IF(OR(OR(AD10=AD4,AD10=(AD4+1)),AD10=(AD4-1)),"yes","not yet") ->  | AF10: =100*(1-AC10) -> 
V11: ='YW LG 2018 V5.0c'!S13 ->  | W11: ='YW LG 2018 V5.0c'!T13 ->  | X11: =(+W11*V11)/100 ->  | Y11: ='YW LG 2018 V5.0c'!X13 ->  | Z11: =+$E$18 -> 0.25 | AA11: =Y11+Z11 ->  | AB11: =100*($E$15*$E$17+($E$16*(AA11/100))/(1-$E$19)) ->  | AC11: ='YW LG 2018 V5.0c'!AE13 ->  | AD11: =$E$6/(1-AC11) ->  | AE11: =IF(OR(OR(AD11=AD5,AD11=(AD5+1)),AD11=(AD5-1)),"yes","not yet") ->  | AF11: =100*(1-AC11) ->  | AJ11: 1 | AK11: 2 | AL11: 3 | AM11: 4 | AN11: 5 | AO11: 6 | AP11: 7 | AQ11: 8 | AR11: 9
C12: Company actual | V12: ='YW LG 2018 V5.0c'!S14 ->  | W12: ='YW LG 2018 V5.0c'!T14 ->  | X12: =(+W12*V12)/100 ->  | Y12: ='YW LG 2018 V5.0c'!X14 ->  | Z12: =+$E$18 -> 0.25 | AA12: =Y12+Z12 ->  | AB12: =100*($E$15*$E$17+($E$16*(AA12/100))/(1-$E$19)) ->  | AC12: ='YW LG 2018 V5.0c'!AE14 ->  | AD12: =$E$6/(1-AC12) ->  | AE12: =IF(OR(OR(AD12=AD6,AD12=(AD6+1)),AD12=(AD6-1)),"yes","not yet") ->  | AF12: =100*(1-AC12) ->  | AJ12: =AE3 ->  | AK12: =AE9 ->  | AL12: =AE15 ->  | AM12: =AE21 ->  | AN12: =AE27 ->  | AO12: =AE33 ->  | AP12: =AE39 ->  | AQ12: =AE45 -> 0 | AR12: =AE51 -> 0
C13: capital structure: | E13: !!! | F13: OPERATING RATIO -> | H13: =HLOOKUP($AJ$23,$AJ$17:$AR$21,$E$10+1) ->  | I13: !!!<-- | AJ13: =AE4 ->  | AK13: =AE10 ->  | AL13: =AE16 ->  | AM13: =AE22 ->  | AN13: =AE28 ->  | AO13: =AE34 ->  | AP13: =AE40 ->  | AQ13: =AE46 -> 0 | AR13: =AE52 -> 0
C14: - | D14: - | H14: = | V14: 3rd Turnover | W14: M | X14: ROR | Y14: ROE | AJ14: =AE5 ->  | AK14: =AE11 ->  | AL14: =AE17 ->  | AM14: =AE23 ->  | AN14: =AE29 ->  | AO14: =AE35 ->  | AP14: =AE41 ->  | AQ14: =AE47 -> 0 | AR14: =AE53 -> 0
B15: * | C15: Actual Debt Ratio | E15: =+'Combined LG'!E15 -> 0.5077173987 | F15: Conversion factor data: | V15: ='YW LG 2018 V5.0c'!S16 ->  | W15: ='YW LG 2018 V5.0c'!T16 ->  | X15: =(+W15*V15)/100 ->  | Y15: ='YW LG 2018 V5.0c'!X16 ->  | Z15: =+$E$18 -> 0.25 | AA15: =Y15+Z15 ->  | AB15: =100*($E$15*$E$17+($E$16*(AA15/100))/(1-$E$19)) ->  | AC15: ='YW LG 2018 V5.0c'!AE16 ->  | AD15: =$E$6/(1-AC15) ->  | AE15: =IF(OR(OR(AD15=AD9,AD15=(AD9+1)),AD15=(AD1-1)),"yes","not yet") ->  | AF15: =100*(1-AC15) ->  | AJ15: =AE6 ->  | AK15: =AE12 ->  | AL15: =AE18 ->  | AM15: =AE24 ->  | AN15: =AE30 ->  | AO15: =AE36 ->  | AP15: =AE42 ->  | AQ15: =AE48 -> 0 | AR15: =AE54 -> 0
B16: * | C16: Actual Equity Ratio | E16: =+'Combined LG'!E16 -> 0.4922826013 | F16: B & O Tax | H16: =+'Combined LG'!H16 -> 0.015 | I16: * | V16: ='YW LG 2018 V5.0c'!S17 ->  | W16: ='YW LG 2018 V5.0c'!T17 ->  | X16: =(+W16*V16)/100 ->  | Y16: ='YW LG 2018 V5.0c'!X17 ->  | Z16: =+$E$18 -> 0.25 | AA16: =Y16+Z16 ->  | AB16: =100*($E$15*$E$17+($E$16*(AA16/100))/(1-$E$19)) ->  | AC16: ='YW LG 2018 V5.0c'!AE17 ->  | AD16: =$E$6/(1-AC16) ->  | AE16: =IF(OR(OR(AD16=AD10,AD16=(AD10+1)),AD16=(AD10-1)),"yes","not yet") ->  | AF16: =100*(1-AC16) -> 
B17: * | C17: Actual Cost of Debt | E17: =+'Combined LG'!E17 -> 0.03992720522 | F17: WUTC Fee | H17: =+'Combined LG'!H17 -> 0.004275 | I17: * | V17: ='YW LG 2018 V5.0c'!S18 ->  | W17: ='YW LG 2018 V5.0c'!T18 ->  | X17: =(+W17*V17)/100 ->  | Y17: ='YW LG 2018 V5.0c'!X18 ->  | Z17: =+$E$18 -> 0.25 | AA17: =Y17+Z17 ->  | AB17: =100*($E$15*$E$17+($E$16*(AA17/100))/(1-$E$19)) ->  | AC17: ='YW LG 2018 V5.0c'!AE18 ->  | AD17: =$E$6/(1-AC17) ->  | AE17: =IF(OR(OR(AD17=AD11,AD17=(AD11+1)),AD17=(AD11-1)),"yes","not yet") ->  | AF17: =100*(1-AC17) ->  | AJ17: =HLOOKUP(1,$AJ$11:$AR$15,$E$10+1) ->  | AK17: =HLOOKUP(2,$AJ$11:$AR$15,$E$10+1) ->  | AL17: =HLOOKUP(3,$AJ$11:$AR$15,$E$10+1) ->  | AM17: =HLOOKUP(4,$AJ$11:$AR$15,$E$10+1) ->  | AN17: =HLOOKUP(5,$AJ$11:$AR$15,$E$10+1) ->  | AO17: =HLOOKUP(6,$AJ$11:$AR$15,$E$10+1) ->  | AP17: =HLOOKUP(7,$AJ$11:$AR$15,$E$10+1) ->  | AQ17: =HLOOKUP(8,$AJ$11:$AR$15,$E$10+1) ->  | AR17: =HLOOKUP(9,$AJ$11:$AR$15,$E$10+1) -> 
B18: * | C18: Basis Points | E18: 0.25 | F18: City Tax | H18: =+'Combined LG'!H18 -> 0 | I18: * | V18: ='YW LG 2018 V5.0c'!S19 ->  | W18: ='YW LG 2018 V5.0c'!T19 ->  | X18: =(+W18*V18)/100 ->  | Y18: ='YW LG 2018 V5.0c'!X19 ->  | Z18: =+$E$18 -> 0.25 | AA18: =Y18+Z18 ->  | AB18: =100*($E$15*$E$17+($E$16*(AA18/100))/(1-$E$19)) ->  | AC18: ='YW LG 2018 V5.0c'!AE19 ->  | AD18: =$E$6/(1-AC18) ->  | AE18: =IF(OR(OR(AD18=AD12,AD18=(AD12+1)),AD18=(AD12-1)),"yes","not yet") ->  | AF18: =100*(1-AC18) ->  | AI18: 1 | AJ18: =AF3 ->  | AK18: =AF9 ->  | AL18: =AF15 ->  | AM18: =AF21 ->  | AN18: =AF27 ->  | AO18: =AF33 ->  | AP18: =AF39 ->  | AQ18: =AF45 -> 0 | AR18: =AF51 -> 0
B19: * | C19: Tax Rate | E19: =+'Combined LG'!E19 -> 0.002 | F19: Bad Debts | H19: =+'Combined LG'!H19 -> 0.006 | I19: * | AI19: 2 | AJ19: =AF4 ->  | AK19: =AF10 ->  | AL19: =AF16 ->  | AM19: =AF22 ->  | AN19: =AF28 ->  | AO19: =AF34 ->  | AP19: =AF40 ->  | AQ19: =AF46 -> 0 | AR19: =AF52 -> 0
H20: - | V20: 4th Turnover | W20: M | X20: ROR | Y20: ROE | AI20: 3 | AJ20: =AF5 ->  | AK20: =AF11 ->  | AL20: =AF17 ->  | AM20: =AF23 ->  | AN20: =AF29 ->  | AO20: =AF35 ->  | AP20: =AF41 ->  | AQ20: =AF47 -> 0 | AR20: =AF53 -> 0
F21: Revenue Sensitive | H21: =SUM(H16:H19) -> 0.025275 | V21: ='YW LG 2018 V5.0c'!S21 ->  | W21: ='YW LG 2018 V5.0c'!T21 ->  | X21: =(+W21*V21)/100 ->  | Y21: ='YW LG 2018 V5.0c'!X21 ->  | Z21: =+$E$18 -> 0.25 | AA21: =Y21+Z21 ->  | AB21: =100*($E$15*$E$17+($E$16*(AA21/100))/(1-$E$19)) ->  | AC21: ='YW LG 2018 V5.0c'!AE21 ->  | AD21: =$E$6/(1-AC21) ->  | AE21: =IF(OR(OR(AD21=AD15,AD21=(AD15+1)),AD21=(AD7-1)),"yes","not yet") ->  | AF21: =100*(1-AC21) ->  | AI21: 4 | AJ21: =AF6 ->  | AK21: =AF12 ->  | AL21: =AF18 ->  | AM21: =AF24 ->  | AN21: =AF30 ->  | AO21: =AF36 ->  | AP21: =AF42 ->  | AQ21: =AF48 -> 0 | AR21: =AF54 -> 0
V22: ='YW LG 2018 V5.0c'!S22 ->  | W22: ='YW LG 2018 V5.0c'!T22 ->  | X22: =(+W22*V22)/100 ->  | Y22: ='YW LG 2018 V5.0c'!X22 ->  | Z22: =+$E$18 -> 0.25 | AA22: =Y22+Z22 ->  | AB22: =100*($E$15*$E$17+($E$16*(AA22/100))/(1-$E$19)) ->  | AC22: ='YW LG 2018 V5.0c'!AE22 ->  | AD22: =$E$6/(1-AC22) ->  | AE22: =IF(OR(OR(AD22=AD16,AD22=(AD16+1)),AD22=(AD16-1)),"yes","not yet") ->  | AF22: =100*(1-AC22) -> 
F23: Conversion Factor | H23: =((+H13/100)-H21) ->  | V23: ='YW LG 2018 V5.0c'!S23 ->  | W23: ='YW LG 2018 V5.0c'!T23 ->  | X23: =(+W23*V23)/100 ->  | Y23: ='YW LG 2018 V5.0c'!X23 ->  | Z23: =+$E$18 -> 0.25 | AA23: =Y23+Z23 ->  | AB23: =100*($E$15*$E$17+($E$16*(AA23/100))/(1-$E$19)) ->  | AC23: ='YW LG 2018 V5.0c'!AE23 ->  | AD23: =$E$6/(1-AC23) ->  | AE23: =IF(OR(OR(AD23=AD17,AD23=(AD17+1)),AD23=(AD17-1)),"yes","not yet") ->  | AF23: =100*(1-AC23) ->  | AJ23: yes
V24: ='YW LG 2018 V5.0c'!S24 ->  | W24: ='YW LG 2018 V5.0c'!T24 ->  | X24: =(+W24*V24)/100 ->  | Y24: ='YW LG 2018 V5.0c'!X24 ->  | Z24: =+$E$18 -> 0.25 | AA24: =Y24+Z24 ->  | AB24: =100*($E$15*$E$17+($E$16*(AA24/100))/(1-$E$19)) ->  | AC24: ='YW LG 2018 V5.0c'!AE24 ->  | AD24: =$E$6/(1-AC24) ->  | AE24: =IF(OR(OR(AD24=AD18,AD24=(AD18+1)),AD24=(AD18-1)),"yes","not yet") ->  | AF24: =100*(1-AC24) ->  | AJ24: =HLOOKUP($AJ$23,$AJ$17:$AR$21,$E$10+1) -> 
C26: Company Reference | V26: 5th Turnover | W26: M | X26: ROR | Y26: ROE | AJ26: =HLOOKUP(1,$AJ$11:$AR$15,$E$10+1) ->  | AK26: =HLOOKUP(2,$AJ$11:$AR$15,$E$10+1) ->  | AL26: =HLOOKUP(3,$AJ$11:$AR$15,$E$10+1) ->  | AM26: =HLOOKUP(4,$AJ$11:$AR$15,$E$10+1) ->  | AN26: =HLOOKUP(5,$AJ$11:$AR$15,$E$10+1) ->  | AO26: =HLOOKUP(6,$AJ$11:$AR$15,$E$10+1) ->  | AP26: =HLOOKUP(7,$AJ$11:$AR$15,$E$10+1) ->  | AQ26: =HLOOKUP(8,$AJ$11:$AR$15,$E$10+1) ->  | AR26: =HLOOKUP(9,$AJ$11:$AR$15,$E$10+1) -> 
C27: Annl Price Increase (PI) $ | E27: =+E4 ->  | V27: ='YW LG 2018 V5.0c'!S26 ->  | W27: ='YW LG 2018 V5.0c'!T26 ->  | X27: =(+W27*V27)/100 ->  | Y27: ='YW LG 2018 V5.0c'!X26 ->  | Z27: =+$E$18 -> 0.25 | AA27: =Y27+Z27 ->  | AB27: =100*($E$15*$E$17+($E$16*(AA27/100))/(1-$E$19)) ->  | AC27: ='YW LG 2018 V5.0c'!AE26 ->  | AD27: =$E$6/(1-AC27) ->  | AE27: =IF(OR(OR(AD27=AD21,AD27=(AD21+1)),AD27=(AD13-1)),"yes","not yet") ->  | AF27: =100*(1-AC27) ->  | AI27: 1 | AJ27: =V3 ->  | AK27: =V9 ->  | AL27: =V15 ->  | AM27: =V21 ->  | AN27: =V27 ->  | AO27: =V33 ->  | AP27: =V39 ->  | AQ27: =V45 -> 0 | AR27: =V51 -> 0
C28: Monthly PI $ | E28: =+E27/12 ->  | V28: ='YW LG 2018 V5.0c'!S27 ->  | W28: ='YW LG 2018 V5.0c'!T27 ->  | X28: =(+W28*V28)/100 ->  | Y28: ='YW LG 2018 V5.0c'!X27 ->  | Z28: =+$E$18 -> 0.25 | AA28: =Y28+Z28 ->  | AB28: =100*($E$15*$E$17+($E$16*(AA28/100))/(1-$E$19)) ->  | AC28: ='YW LG 2018 V5.0c'!AE27 ->  | AD28: =$E$6/(1-AC28) ->  | AE28: =IF(OR(OR(AD28=AD22,AD28=(AD22+1)),AD28=(AD22-1)),"yes","not yet") ->  | AF28: =100*(1-AC28) ->  | AI28: 2 | AJ28: =V4 ->  | AK28: =V10 ->  | AL28: =V16 ->  | AM28: =V22 ->  | AN28: =V28 ->  | AO28: =V34 ->  | AP28: =V40 ->  | AQ28: =V46 -> 0 | AR28: =V52 -> 0
C29: Percentage PI | E29: =+E4/E5 ->  | V29: ='YW LG 2018 V5.0c'!S28 ->  | W29: ='YW LG 2018 V5.0c'!T28 ->  | X29: =(+W29*V29)/100 ->  | Y29: ='YW LG 2018 V5.0c'!X28 ->  | Z29: =+$E$18 -> 0.25 | AA29: =Y29+Z29 ->  | AB29: =100*($E$15*$E$17+($E$16*(AA29/100))/(1-$E$19)) ->  | AC29: ='YW LG 2018 V5.0c'!AE28 ->  | AD29: =$E$6/(1-AC29) ->  | AE29: =IF(OR(OR(AD29=AD23,AD29=(AD23+1)),AD29=(AD23-1)),"yes","not yet") ->  | AF29: =100*(1-AC29) ->  | AI29: 3 | AJ29: =V5 ->  | AK29: =V11 ->  | AL29: =V17 ->  | AM29: =V23 ->  | AN29: =V29 ->  | AO29: =V35 ->  | AP29: =V41 ->  | AQ29: =V47 -> 0 | AR29: =V53 -> 0
V30: ='YW LG 2018 V5.0c'!S29 ->  | W30: ='YW LG 2018 V5.0c'!T29 ->  | X30: =(+W30*V30)/100 ->  | Y30: ='YW LG 2018 V5.0c'!X29 ->  | Z30: =+$E$18 -> 0.25 | AA30: =Y30+Z30 ->  | AB30: =100*($E$15*$E$17+($E$16*(AA30/100))/(1-$E$19)) ->  | AC30: ='YW LG 2018 V5.0c'!AE29 ->  | AD30: =$E$6/(1-AC30) ->  | AE30: =IF(OR(OR(AD30=AD24,AD30=(AD24+1)),AD30=(AD24-1)),"yes","not yet") ->  | AF30: =100*(1-AC30) ->  | AI30: 4 | AJ30: =V6 ->  | AK30: =V12 ->  | AL30: =V18 ->  | AM30: =V24 ->  | AN30: =V30 ->  | AO30: =V36 ->  | AP30: =V42 ->  | AQ30: =V48 -> 0 | AR30: =V54 -> 0
V32: 6th Turnover | W32: M | X32: ROR | Y32: ROE | AJ32: yes
V33: ='YW LG 2018 V5.0c'!S31 ->  | W33: ='YW LG 2018 V5.0c'!T31 ->  | X33: =(+W33*V33)/100 ->  | Y33: ='YW LG 2018 V5.0c'!X31 ->  | Z33: =+$E$18 -> 0.25 | AA33: =Y33+Z33 ->  | AB33: =100*($E$15*$E$17+($E$16*(AA33/100))/(1-$E$19)) ->  | AC33: ='YW LG 2018 V5.0c'!AE31 ->  | AD33: =ROUND($E$6/(1-AC33),0) ->  | AE33: =IF(OR(OR(AD33=AD27,AD33=(AD27+1)),AD33=(AD19-1)),"yes","not yet") ->  | AF33: =100*(1-AC33) ->  | AJ33: =HLOOKUP($AJ$32,$AJ$26:$AR$30,$E$10+1) -> 
V34: ='YW LG 2018 V5.0c'!S32 ->  | W34: ='YW LG 2018 V5.0c'!T32 ->  | X34: =(+W34*V34)/100 ->  | Y34: ='YW LG 2018 V5.0c'!X32 ->  | Z34: =+$E$18 -> 0.25 | AA34: =Y34+Z34 ->  | AB34: =100*($E$15*$E$17+($E$16*(AA34/100))/(1-$E$19)) ->  | AC34: ='YW LG 2018 V5.0c'!AE32 ->  | AD34: =ROUND($E$6/(1-AC34),0) ->  | AE34: =IF(OR(OR(AD34=AD28,AD34=(AD28+1)),AD34=(AD28-1)),"yes","not yet") ->  | AF34: =100*(1-AC34) -> 
V35: ='YW LG 2018 V5.0c'!S33 ->  | W35: ='YW LG 2018 V5.0c'!T33 ->  | X35: =(+W35*V35)/100 ->  | Y35: ='YW LG 2018 V5.0c'!X33 ->  | Z35: =+$E$18 -> 0.25 | AA35: =Y35+Z35 ->  | AB35: =100*($E$15*$E$17+($E$16*(AA35/100))/(1-$E$19)) ->  | AC35: ='YW LG 2018 V5.0c'!AE33 ->  | AD35: =ROUND($E$6/(1-AC35),0) ->  | AE35: =IF(OR(OR(AD35=AD29,AD35=(AD29+1)),AD35=(AD29-1)),"yes","not yet") ->  | AF35: =100*(1-AC35) ->  | AJ35: =HLOOKUP(1,$AJ$11:$AR$15,$E$10+1) ->  | AK35: =HLOOKUP(2,$AJ$11:$AR$15,$E$10+1) ->  | AL35: =HLOOKUP(3,$AJ$11:$AR$15,$E$10+1) ->  | AM35: =HLOOKUP(4,$AJ$11:$AR$15,$E$10+1) ->  | AN35: =HLOOKUP(5,$AJ$11:$AR$15,$E$10+1) ->  | AO35: =HLOOKUP(6,$AJ$11:$AR$15,$E$10+1) ->  | AP35: =HLOOKUP(7,$AJ$11:$AR$15,$E$10+1) ->  | AQ35: =HLOOKUP(8,$AJ$11:$AR$15,$E$10+1) ->  | AR35: =HLOOKUP(9,$AJ$11:$AR$15,$E$10+1) -> 
V36: ='YW LG 2018 V5.0c'!S34 ->  | W36: ='YW LG 2018 V5.0c'!T34 ->  | X36: =(+W36*V36)/100 ->  | Y36: ='YW LG 2018 V5.0c'!X34 ->  | Z36: =+$E$18 -> 0.25 | AA36: =Y36+Z36 ->  | AB36: =100*($E$15*$E$17+($E$16*(AA36/100))/(1-$E$19)) ->  | AC36: ='YW LG 2018 V5.0c'!AE34 ->  | AD36: =ROUND($E$6/(1-AC36),0) ->  | AE36: =IF(OR(OR(AD36=AD30,AD36=(AD30+1)),AD36=(AD30-1)),"yes","not yet") ->  | AF36: =100*(1-AC36) ->  | AI36: 1 | AJ36: =AD3 ->  | AK36: =AD9 ->  | AL36: =AD15 ->  | AM36: =AD21 ->  | AN36: =AD27 ->  | AO36: =AD33 ->  | AP36: =AD39 ->  | AQ36: =AD45 -> 0 | AR36: =AD51 -> 0
AI37: 2 | AJ37: =AD4 ->  | AK37: =AD10 ->  | AL37: =AD16 ->  | AM37: =AD22 ->  | AN37: =AD28 ->  | AO37: =AD34 ->  | AP37: =AD40 ->  | AQ37: =AD46 -> 0 | AR37: =AD52 -> 0
V38: 7th turnover | W38: M | X38: ROR | Y38: ROE | AI38: 3 | AJ38: =AD5 ->  | AK38: =AD11 ->  | AL38: =AD17 ->  | AM38: =AD23 ->  | AN38: =AD29 ->  | AO38: =AD35 ->  | AP38: =AD41 ->  | AQ38: =AD47 -> 0 | AR38: =AD53 -> 0
V39: ='YW LG 2018 V5.0c'!S36 ->  | W39: ='YW LG 2018 V5.0c'!T36 ->  | X39: =(+W39*V39)/100 ->  | Y39: ='YW LG 2018 V5.0c'!X36 ->  | Z39: =+$E$18 -> 0.25 | AA39: =Y39+Z39 ->  | AB39: =100*($E$15*$E$17+($E$16*(AA39/100))/(1-$E$19)) ->  | AC39: ='YW LG 2018 V5.0c'!AE36 ->  | AD39: =ROUND($E$6/(1-AC39),0) ->  | AE39: =IF(OR(OR(AD39=AD33,AD39=(AD33+1)),AD39=(AD25-1)),"yes","not yet") ->  | AF39: =100*(1-AC39) ->  | AI39: 4 | AJ39: =AD6 ->  | AK39: =AD12 ->  | AL39: =AD18 ->  | AM39: =AD24 ->  | AN39: =AD30 ->  | AO39: =AD36 ->  | AP39: =AD42 ->  | AQ39: =AD48 -> 0 | AR39: =AD54 -> 0
V40: ='YW LG 2018 V5.0c'!S37 ->  | W40: ='YW LG 2018 V5.0c'!T37 ->  | X40: =(+W40*V40)/100 ->  | Y40: ='YW LG 2018 V5.0c'!X37 ->  | Z40: =+$E$18 -> 0.25 | AA40: =Y40+Z40 ->  | AB40: =100*($E$15*$E$17+($E$16*(AA40/100))/(1-$E$19)) ->  | AC40: ='YW LG 2018 V5.0c'!AE37 ->  | AD40: =ROUND($E$6/(1-AC40),0) ->  | AE40: =IF(OR(OR(AD40=AD34,AD40=(AD34+1)),AD40=(AD34-1)),"yes","not yet") ->  | AF40: =100*(1-AC40) -> 
V41: ='YW LG 2018 V5.0c'!S38 ->  | W41: ='YW LG 2018 V5.0c'!T38 ->  | X41: =(+W41*V41)/100 ->  | Y41: ='YW LG 2018 V5.0c'!X38 ->  | Z41: =+$E$18 -> 0.25 | AA41: =Y41+Z41 ->  | AB41: =100*($E$15*$E$17+($E$16*(AA41/100))/(1-$E$19)) ->  | AC41: ='YW LG 2018 V5.0c'!AE38 ->  | AD41: =ROUND($E$6/(1-AC41),0) ->  | AE41: =IF(OR(OR(AD41=AD35,AD41=(AD35+1)),AD41=(AD35-1)),"yes","not yet") ->  | AF41: =100*(1-AC41) ->  | AJ41: yes
V42: ='YW LG 2018 V5.0c'!S39 ->  | W42: ='YW LG 2018 V5.0c'!T39 ->  | X42: =(+W42*V42)/100 ->  | Y42: ='YW LG 2018 V5.0c'!X39 ->  | Z42: =+$E$18 -> 0.25 | AA42: =Y42+Z42 ->  | AB42: =100*($E$15*$E$17+($E$16*(AA42/100))/(1-$E$19)) ->  | AC42: ='YW LG 2018 V5.0c'!AE39 ->  | AD42: =ROUND($E$6/(1-AC42),0) ->  | AE42: =IF(OR(OR(AD42=AD36,AD42=(AD36+1)),AD42=(AD36-1)),"yes","not yet") ->  | AF42: =100*(1-AC42) ->  | AJ42: =HLOOKUP($AJ$32,$AJ$35:$AR$39,$E$10+1) -> 
V44: 8th turnover | W44: M | X44: ROR | Y44: ROE
V50: 9th turnover | W50: M | X50: ROR | Y50: ROE

Sheet MF RCY LG 2018 V5.0c
B2: Public Companies | F2: Public Co | I2: LURITO - GALLAGHER FORMULA MODEL 2018 V5.0a | M2: Public Co | R2: CALCULATION TABLES | AH2: Revenue Senstive Taxes (RevS)
K3: (b) + (c) | M3: (d) + (e) | T3: Regession | V3: Regession | W3: Regession | X3: Regession | Z3: Adjusted | AA3: Hauler | AB3: Hauler | AC3: Hauler | AD3: Hauler | AE3: Hauler | AF3: Hauler | AG3: Revenue Req | AH3: Revenue | AI3: Revenue
B4: INPUTS - Test Year | H4: (a) | I4: (b) | J4: (c) | K4: (d) | L4: (e) | M4: (f) | T4: Before Tax | V4: Less | W4: Adjusted | X4: After Tax | Y4: Flotation Costs | Z4: After Tax | AA4: Weighted Cost | AB4: Weighted Cost | AC4: Weighted Cost | AD4: Adjusted | AE4: Before Tax | AF4: Before Tax | AG4: Before RevS | AH4: Increase Before | AI4: Increase After | AJ4: RevS | AK4: Total
B5: Operating Revenue | C5: ='MF RCY'!E5 -> 0 | F5: Line | I5: Historical | J5: Revenue | K5: Proforma | L5: Add: Revenue | M5: Revenue | T5: Profit Ratio | U5: BTROI | V5: WCDebt | W5: BTROE | X5: ROE | Y5: Basis Points | Z5: ROE | AA5: Equity | AB5: Equity BFT | AC5: Debt | AD5: BTROR | AE5: Profit Ratio | AF5: Operating Ratio | AG5: Taxes | AH5: RevS Taxes | AI5: RevS Taxes | AJ5: Taxes | AK5: Revenue Req
B6: Operating Expenses | C6: ='MF RCY'!E6 -> 0 | F6: No. | J6: Change | L6: Sensitive Taxes | M6: Requirement | R6: 1 | S6: =Revenue/Investment*100 ->  | T6: =EXP(y_inter1-(slope*LN(+S6))) ->  | U6: =(+S6*T6/100)/100 ->  | V6: =regDebt_weighted -> 0.03586 | W6: =+U6-V6 ->  | X6: =+((W6*(1-0.34))-Pfd_weighted)/Equity_percent ->  | Y6: =+C15 -> 0.0025 | Z6: =+X6+Y6 ->  | AA6: =Z6*equityP ->  | AB6: =+AA6/(1-taxrate) ->  | AC6: =debtP*Debt_Rate -> 0.02134266423 | AD6: =AC6+AB6 ->  | AE6: =AD6/(S6/100) ->  | AF6: =1-AE6 ->  | AG6: =expenses/(AF6) ->  | AH6: =+AG6-Revenue ->  | AI6: =+AH6/$J$49 ->  | AJ6: =+AI6*$J$47 ->  | AK6: =ROUND(+AJ6+AG6,5) -> 
B7: Investment | C7: ='MF RCY'!E7 -> 0 | F7: 1 | H7: Operating Revenue | I7: =IF(A64=TRUE,C5,0) -> 0 | J7: =(+$I8/($R50))-I7 ->  | K7: =+I7+J7 ->  | L7: =((+J7/J49*K35)-J7) ->  | M7: =IFERROR(+K7+L7,0.00001) -> 1e-05 | R7: 2 | S7: =Revenue/Investment*100 ->  | T7: =EXP(y_inter1-(slope*LN(+S7))) ->  | U7: =(+S7*T7/100)/100 ->  | V7: =regDebt_weighted -> 0.03586 | W7: =+U7-V7 ->  | X7: =+((W7*(1-0.34))-Pfd_weighted)/Equity_percent ->  | Y7: =+Y6 -> 0.0025 | Z7: =+X7+Y7 ->  | AA7: =Z7*equityP ->  | AB7: =+AA7/(1-taxrate) ->  | AC7: =debtP*Debt_Rate -> 0.02134266423 | AD7: =AC7+AB7 ->  | AE7: =AD7/(S7/100) ->  | AF7: =1-AE7 ->  | AG7: =expenses/(AF7) ->  | AH7: =+AG7-Revenue ->  | AI7: =+AH7/$J$49 ->  | AJ7: =+AI7*$J$47 ->  | AK7: =ROUND(+AJ7+AG7,5) -> 
B8: Capital Structure-Debt % | C8: 0.5135130141 | F8: =+F7+1 -> 2 | H8: Operating Expenses | I8: =IF(A64=TRUE,C6,0) -> 0 | K8: =+I8 -> 0 | L8: =+L7 ->  | M8: =IFERROR(+K8+L8,0.00001) -> 1e-05 | R8: 3 | S8: =Revenue/Investment*100 ->  | T8: =EXP(y_inter1-(slope*LN(+S8))) ->  | U8: =(+S8*T8/100)/100 ->  | V8: =regDebt_weighted -> 0.03586 | W8: =+U8-V8 ->  | X8: =+((W8*(1-0.34))-Pfd_weighted)/Equity_percent ->  | Y8: =+Y7 -> 0.0025 | Z8: =+X8+Y8 ->  | AA8: =Z8*equityP ->  | AB8: =+AA8/(1-taxrate) ->  | AC8: =debtP*Debt_Rate -> 0.02134266423 | AD8: =AC8+AB8 ->  | AE8: =AD8/(S8/100) ->  | AF8: =1-AE8 ->  | AG8: =expenses/(AF8) ->  | AH8: =+AG8-Revenue ->  | AI8: =+AH8/$J$49 ->  | AJ8: =+AI8*$J$47 ->  | AK8: =ROUND(+AJ8+AG8,5) -> 
B9: Capital Structure-Debt Rate | C9: 0.04156207076 | F9: =+F8+1 -> 3 | H9: Operating Income | I9: =+I7-I8 -> 0 | K9: =+K7-K8 ->  | M9: =+M7-M8 -> 0 | R9: 4 | S9: =Revenue/Investment*100 ->  | T9: =EXP(y_inter1-(slope*LN(+S9))) ->  | U9: =(+S9*T9/100)/100 ->  | V9: =regDebt_weighted -> 0.03586 | W9: =+U9-V9 ->  | X9: =+((W9*(1-0.34))-Pfd_weighted)/Equity_percent ->  | Y9: =+Y8 -> 0.0025 | Z9: =+X9+Y9 ->  | AA9: =Z9*equityP ->  | AB9: =+AA9/(1-taxrate) ->  | AC9: =debtP*Debt_Rate -> 0.02134266423 | AD9: =AC9+AB9 ->  | AE9: =AD9/(S9/100) ->  | AF9: =1-AE9 ->  | AG9: =expenses/(AF9) ->  | AH9: =+AG9-Revenue ->  | AI9: =+AH9/$J$49 ->  | AJ9: =+AI9*$J$47 ->  | AK9: =ROUND(+AJ9+AG9,5) -> 
B10: Federal Income Tax Rate | C10: 0.215 | F10: 4 | R10: 2nd Iteration
B11: B&O Tax Rate | C11: 0.015 | F11: 5 | H11: Interest Expense | I11: =+K11 -> 0 | K11: =+M27 -> 0 | M11: =+K11 -> 0 | R11: 1 | S11: =IF((AK6/Investment*100)>0,(AK6/Investment*100),0) ->  | T11: =EXP(y_inter1-(slope*LN(S11))) ->  | U11: =(+S11*T11/100)/100 ->  | V11: =regDebt_weighted -> 0.03586 | W11: =+U11-V11 ->  | X11: =+((W11*(1-0.34))-Pfd_weighted)/Equity_percent ->  | Y11: =+Y9 -> 0.0025 | Z11: =+X11+Y11 ->  | AA11: =Z11*equityP ->  | AB11: =+AA11/(1-taxrate) ->  | AC11: =debtP*Debt_Rate -> 0.02134266423 | AD11: =+AC11+AB11 ->  | AE11: =+AD11/(S11/100) ->  | AF11: =1-AE11 ->  | AG11: =expenses/(AF11) ->  | AH11: =+AG11-Revenue ->  | AI11: =+AH11/$J$49 ->  | AJ11: =+AI11*$J$47 ->  | AK11: =ROUND(+AJ11+AG11,5) -> 
B12: WUTC Fee | C12: 0.004275 | F12: 6 | H12: Income Tax Expense | I12: =IF(I14<0,0,+J38*I14) ->  | J12: =+K12-I12 ->  | K12: =+(K9-K11)*taxrate ->  | M12: =+K12 ->  | R12: 2 | S12: =IF((AK7/Investment*100)>0,(AK7/Investment*100),0) ->  | T12: =EXP(y_inter2-(slope*LN(+S12))) ->  | U12: =(+S12*T12/100)/100 ->  | V12: =regDebt_weighted -> 0.03586 | W12: =+U12-V12 ->  | X12: =+((W12*(1-0.34))-Pfd_weighted)/Equity_percent ->  | Y12: =+Y11 -> 0.0025 | Z12: =+X12+Y12 ->  | AA12: =Z12*equityP ->  | AB12: =+AA12/(1-taxrate) ->  | AC12: =debtP*Debt_Rate -> 0.02134266423 | AD12: =+AC12+AB12 ->  | AE12: =+AD12/(S12/100) ->  | AF12: =1-AE12 ->  | AG12: =expenses/(AF12) ->  | AH12: =+AG12-Revenue ->  | AI12: =+AH12/$J$49 ->  | AJ12: =+AI12*$J$47 ->  | AK12: =ROUND(+AJ12+AG12,5) -> 
B13: City Tax | C13: 0 | F13: 7 | R13: 3 | S13: =IF((AK8/Investment*100)>0,(AK8/Investment*100),0) ->  | T13: =EXP(y_inter3-(slope*LN(S13))) ->  | U13: =(+S13*T13/100)/100 ->  | V13: =regDebt_weighted -> 0.03586 | W13: =+U13-V13 ->  | X13: =+((W13*(1-0.34))-Pfd_weighted)/Equity_percent ->  | Y13: =+Y12 -> 0.0025 | Z13: =+X13+Y13 ->  | AA13: =Z13*equityP ->  | AB13: =+AA13/(1-taxrate) ->  | AC13: =debtP*Debt_Rate -> 0.02134266423 | AD13: =+AC13+AB13 ->  | AE13: =+AD13/(S13/100) ->  | AF13: =1-AE13 ->  | AG13: =expenses/(AF13) ->  | AH13: =+AG13-Revenue ->  | AI13: =+AH13/$J$49 ->  | AJ13: =+AI13*$J$47 ->  | AK13: =ROUND(+AJ13+AG13,5) -> 
B14: Bad Debts | C14: 0.006 | F14: 8 | H14: Net Income | I14: =+I9-SUM(I11:I13) ->  | K14: =+K9-SUM(K11:K13) ->  | M14: =+M9-SUM(M11:M13) ->  | R14: 4 | S14: =IF((AK9/Investment*100)>0,(AK9/Investment*100),0) ->  | T14: =EXP(y_inter4-(slope*LN(S14))) ->  | U14: =(+S14*T14/100)/100 ->  | V14: =regDebt_weighted -> 0.03586 | W14: =+U14-V14 ->  | X14: =+((W14*(1-0.34))-Pfd_weighted)/Equity_percent ->  | Y14: =+Y13 -> 0.0025 | Z14: =+X14+Y14 ->  | AA14: =Z14*equityP ->  | AB14: =+AA14/(1-taxrate) ->  | AC14: =debtP*Debt_Rate -> 0.02134266423 | AD14: =+AC14+AB14 ->  | AE14: =+AD14/(S14/100) ->  | AF14: =1-AE14 ->  | AG14: =expenses/(AF14) ->  | AH14: =+AG14-Revenue ->  | AI14: =+AH14/$J$49 ->  | AJ14: =+AI14*$J$47 ->  | AK14: =ROUND(+AJ14+AG14,5) -> 
B15: Basis Points - Flotation | C15: 0.0025 | F15: 9 | R15: 3rd Iteration
D16: Yes | F16: 10 | H16: Operating Ratio | I16: =+I8/I7 ->  | K16: =+K8/K7 ->  | M16: =+M8/M7 -> 1 | R16: 1 | S16: =AK11/Investment*100 ->  | T16: =EXP(y_inter1-(slope*LN(+S16))) ->  | U16: =(+S16*T16/100)/100 ->  | V16: =regDebt_weighted -> 0.03586 | W16: =+U16-V16 ->  | X16: =+((W16*(1-0.34))-Pfd_weighted)/Equity_percent ->  | Y16: =+Y14 -> 0.0025 | Z16: =+X16+Y16 ->  | AA16: =Z16*equityP ->  | AB16: =+AA16/(1-taxrate) ->  | AC16: =debtP*Debt_Rate -> 0.02134266423 | AD16: =+AC16+AB16 ->  | AE16: =+AD16/(S16/100) ->  | AF16: =1-AE16 ->  | AG16: =expenses/(AF16) ->  | AH16: =+AG16-Revenue ->  | AI16: =+AH16/$J$49 ->  | AJ16: =+AI16*$J$47 ->  | AK16: =ROUND(+AJ16+AG16,5) -> 
B17: Check when input is complete | D17: No | F17: 11 | R17: 2 | S17: =AK12/Investment*100 ->  | T17: =EXP(y_inter2-(slope*LN(+S17))) ->  | U17: =(+S17*T17/100)/100 ->  | V17: =regDebt_weighted -> 0.03586 | W17: =+U17-V17 ->  | X17: =+((W17*(1-0.34))-Pfd_weighted)/Equity_percent ->  | Y17: =+Y16 -> 0.0025 | Z17: =+X17+Y17 ->  | AA17: =Z17*equityP ->  | AB17: =+AA17/(1-taxrate) ->  | AC17: =debtP*Debt_Rate -> 0.02134266423 | AD17: =+AC17+AB17 ->  | AE17: =+AD17/(S17/100) ->  | AF17: =1-AE17 ->  | AG17: =expenses/(AF17) ->  | AH17: =+AG17-Revenue ->  | AI17: =+AH17/$J$49 ->  | AJ17: =+AI17*$J$47 ->  | AK17: =ROUND(+AJ17+AG17,5) -> 
F18: 12 | H18: Revenue Requirement | R18: 3 | S18: =AK13/Investment*100 ->  | T18: =EXP(y_inter3-(slope*LN(S18))) ->  | U18: =(+S18*T18/100)/100 ->  | V18: =regDebt_weighted -> 0.03586 | W18: =+U18-V18 ->  | X18: =+((W18*(1-0.34))-Pfd_weighted)/Equity_percent ->  | Y18: =+Y17 -> 0.0025 | Z18: =+X18+Y18 ->  | AA18: =Z18*equityP ->  | AB18: =+AA18/(1-taxrate) ->  | AC18: =debtP*Debt_Rate -> 0.02134266423 | AD18: =+AC18+AB18 ->  | AE18: =+AD18/(S18/100) ->  | AF18: =1-AE18 ->  | AG18: =expenses/(AF18) ->  | AH18: =+AG18-Revenue ->  | AI18: =+AH18/$J$49 ->  | AJ18: =+AI18*$J$47 ->  | AK18: =ROUND(+AJ18+AG18,5) -> 
B19: For Intial input: Uncheck Checkbox Until Completed | F19: 13 | I19: Historical Revenue | J19: =+Revenue -> 0 | L19: Revenue Increase before taxes | M19: =+J7 ->  | R19: 4 | S19: =AK14/Investment*100 ->  | T19: =EXP(y_inter4-(slope*LN(S19))) ->  | U19: =(+S19*T19/100)/100 ->  | V19: =regDebt_weighted -> 0.03586 | W19: =+U19-V19 ->  | X19: =+((W19*(1-0.34))-Pfd_weighted)/Equity_percent ->  | Y19: =+Y18 -> 0.0025 | Z19: =+X19+Y19 ->  | AA19: =Z19*equityP ->  | AB19: =+AA19/(1-taxrate) ->  | AC19: =debtP*Debt_Rate -> 0.02134266423 | AD19: =+AC19+AB19 ->  | AE19: =+AD19/(S19/100) ->  | AF19: =1-AE19 ->  | AG19: =expenses/(AF19) ->  | AH19: =+AG19-Revenue ->  | AI19: =+AH19/$J$49 ->  | AJ19: =+AI19*$J$47 ->  | AK19: =ROUND(+AJ19+AG19,5) -> 
F20: 14 | I20: Rate Increase | J20: =+J21-J19 -> 1e-05 | L20: Rev Sensitive Taxes | M20: =+L8 ->  | R20: 4th Iteration
F21: 15 | I21: Revenue Requirement | J21: =+M7 -> 1e-05 | L21: Rate Increase | M21: =+M19+M20 ->  | R21: 1 | S21: =AK16/Investment*100 ->  | T21: =EXP(y_inter1-(slope*LN(+S21))) ->  | U21: =(+S21*T21/100)/100 ->  | V21: =regDebt_weighted -> 0.03586 | W21: =+U21-V21 ->  | X21: =+((W21*(1-0.34))-Pfd_weighted)/Equity_percent ->  | Y21: =+Y19 -> 0.0025 | Z21: =+X21+Y21 ->  | AA21: =Z21*equityP ->  | AB21: =+AA21/(1-taxrate) ->  | AC21: =debtP*Debt_Rate -> 0.02134266423 | AD21: =+AC21+AB21 ->  | AE21: =+AD21/(S21/100) ->  | AF21: =1-AE21 ->  | AG21: =expenses/(AF21) ->  | AH21: =+AG21-Revenue ->  | AI21: =+AH21/$J$49 ->  | AJ21: =+AI21*$J$47 ->  | AK21: =ROUND(+AJ21+AG21,5) -> 
F22: 16 | R22: 2 | S22: =AK17/Investment*100 ->  | T22: =EXP(y_inter2-(slope*LN(+S22))) ->  | U22: =(+S22*T22/100)/100 ->  | V22: =regDebt_weighted -> 0.03586 | W22: =+U22-V22 ->  | X22: =+((W22*(1-0.34))-Pfd_weighted)/Equity_percent ->  | Y22: =+Y21 -> 0.0025 | Z22: =+X22+Y22 ->  | AA22: =Z22*equityP ->  | AB22: =+AA22/(1-taxrate) ->  | AC22: =debtP*Debt_Rate -> 0.02134266423 | AD22: =+AC22+AB22 ->  | AE22: =+AD22/(S22/100) ->  | AF22: =1-AE22 ->  | AG22: =expenses/(AF22) ->  | AH22: =+AG22-Revenue ->  | AI22: =+AH22/$J$49 ->  | AJ22: =+AI22*$J$47 ->  | AK22: =ROUND(+AJ22+AG22,5) -> 
B23: 2018 Version Update Changes | F23: 17 | R23: 3 | S23: =AK18/Investment*100 ->  | T23: =EXP(y_inter3-(slope*LN(S23))) ->  | U23: =(+S23*T23/100)/100 ->  | V23: =regDebt_weighted -> 0.03586 | W23: =+U23-V23 ->  | X23: =+((W23*(1-0.34))-Pfd_weighted)/Equity_percent ->  | Y23: =+Y22 -> 0.0025 | Z23: =+X23+Y23 ->  | AA23: =Z23*equityP ->  | AB23: =+AA23/(1-taxrate) ->  | AC23: =debtP*Debt_Rate -> 0.02134266423 | AD23: =+AC23+AB23 ->  | AE23: =+AD23/(S23/100) ->  | AF23: =1-AE23 ->  | AG23: =expenses/(AF23) ->  | AH23: =+AG23-Revenue ->  | AI23: =+AH23/$J$49 ->  | AJ23: =+AI23*$J$47 ->  | AK23: =ROUND(+AJ23+AG23,5) -> 
B24: ● Allows Income Tax Rate Changes, | F24: 18 | H24: Captial Structure Financing Investment | K24: Financing Cost | R24: 4 | S24: =AK19/Investment*100 ->  | T24: =EXP(y_inter4-(slope*LN(S24))) ->  | U24: =(+S24*T24/100)/100 ->  | V24: =regDebt_weighted -> 0.03586 | W24: =+U24-V24 ->  | X24: =+((W24*(1-0.34))-Pfd_weighted)/Equity_percent ->  | Y24: =+Y23 -> 0.0025 | Z24: =+X24+Y24 ->  | AA24: =Z24*equityP ->  | AB24: =+AA24/(1-taxrate) ->  | AC24: =debtP*Debt_Rate -> 0.02134266423 | AD24: =+AC24+AB24 ->  | AE24: =+AD24/(S24/100) ->  | AF24: =1-AE24 ->  | AG24: =expenses/(AF24) ->  | AH24: =+AG24-Revenue ->  | AI24: =+AH24/$J$49 ->  | AJ24: =+AI24*$J$47 ->  | AK24: =ROUND(+AJ24+AG24,5) -> 
B25: ● Minimizes impact of changes in test-year revenue from | F25: 19 | H25: Type | I25: Percent | J25: Amount | K25: Cost of Capital | L25: Weighted | M25: Amount | R25: 5th Iteration
B26: resulting revenue requirment, | F26: 20 | H26: Equity | I26: =1-I27 -> 0.4864869859 | J26: =+I26*J28 -> 0 | K26: =+K34 ->  | L26: =+K26*I26 ->  | M26: =+J26*K26 ->  | R26: 1 | S26: =AK21/Investment*100 ->  | T26: =EXP(y_inter1-(slope*LN(+S26))) ->  | U26: =(+S26*T26/100)/100 ->  | V26: =regDebt_weighted -> 0.03586 | W26: =+U26-V26 ->  | X26: =+((W26*(1-0.34))-Pfd_weighted)/Equity_percent ->  | Y26: =+Y24 -> 0.0025 | Z26: =+X26+Y26 ->  | AA26: =Z26*equityP ->  | AB26: =+AA26/(1-taxrate) ->  | AC26: =debtP*Debt_Rate -> 0.02134266423 | AD26: =+AC26+AB26 ->  | AE26: =+AD26/(S26/100) ->  | AF26: =1-AE26 ->  | AG26: =expenses/(AF26) ->  | AH26: =+AG26-Revenue ->  | AI26: =+AH26/$J$49 ->  | AJ26: =+AI26*$J$47 ->  | AK26: =ROUND(+AJ26+AG26,5) -> 
B27: ● Corrects interest rate transposition in LG. | F27: 21 | H27: Debt | I27: =IF(A64=TRUE,C8,0) -> 0.5135130141 | J27: =+I27*J28 -> 0 | K27: =IF(A64=TRUE,C9,0) -> 0.04156207076 | L27: =+K27*I27 -> 0.02134266423 | M27: =+K27*J27 -> 0 | R27: 2 | S27: =AK22/Investment*100 ->  | T27: =EXP(y_inter2-(slope*LN(+S27))) ->  | U27: =(+S27*T27/100)/100 ->  | V27: =regDebt_weighted -> 0.03586 | W27: =+U27-V27 ->  | X27: =+((W27*(1-0.34))-Pfd_weighted)/Equity_percent ->  | Y27: =+Y26 -> 0.0025 | Z27: =+X27+Y27 ->  | AA27: =Z27*equityP ->  | AB27: =+AA27/(1-taxrate) ->  | AC27: =debtP*Debt_Rate -> 0.02134266423 | AD27: =+AC27+AB27 ->  | AE27: =+AD27/(S27/100) ->  | AF27: =1-AE27 ->  | AG27: =expenses/(AF27) ->  | AH27: =+AG27-Revenue ->  | AI27: =+AH27/$J$49 ->  | AJ27: =+AI27*$J$47 ->  | AK27: =ROUND(+AJ27+AG27,5) -> 
F28: 22 | H28: Total | I28: =SUM(I26:I27) -> 1 | J28: =IF(A64=TRUE,C7,0) -> 0 | L28: =SUM(L26:L27) ->  | M28: =SUM(M26:M27) ->  | R28: 3 | S28: =AK23/Investment*100 ->  | T28: =EXP(y_inter3-(slope*LN(S28))) ->  | U28: =(+S28*T28/100)/100 ->  | V28: =regDebt_weighted -> 0.03586 | W28: =+U28-V28 ->  | X28: =+((W28*(1-0.34))-Pfd_weighted)/Equity_percent ->  | Y28: =+Y27 -> 0.0025 | Z28: =+X28+Y28 ->  | AA28: =Z28*equityP ->  | AB28: =+AA28/(1-taxrate) ->  | AC28: =debtP*Debt_Rate -> 0.02134266423 | AD28: =+AC28+AB28 ->  | AE28: =+AD28/(S28/100) ->  | AF28: =1-AE28 ->  | AG28: =expenses/(AF28) ->  | AH28: =+AG28-Revenue ->  | AI28: =+AH28/$J$49 ->  | AJ28: =+AI28*$J$47 ->  | AK28: =ROUND(+AJ28+AG28,5) -> 
F29: 23 | R29: 4 | S29: =AK24/Investment*100 ->  | T29: =EXP(y_inter4-(slope*LN(S29))) ->  | U29: =(+S29*T29/100)/100 ->  | V29: =regDebt_weighted -> 0.03586 | W29: =+U29-V29 ->  | X29: =+((W29*(1-0.34))-Pfd_weighted)/Equity_percent ->  | Y29: =+Y28 -> 0.0025 | Z29: =+X29+Y29 ->  | AA29: =Z29*equityP ->  | AB29: =+AA29/(1-taxrate) ->  | AC29: =debtP*Debt_Rate -> 0.02134266423 | AD29: =+AC29+AB29 ->  | AE29: =+AD29/(S29/100) ->  | AF29: =1-AE29 ->  | AG29: =expenses/(AF29) ->  | AH29: =+AG29-Revenue ->  | AI29: =+AH29/$J$49 ->  | AJ29: =+AI29*$J$47 ->  | AK29: =ROUND(+AJ29+AG29,5) -> 
F30: 24 | J30: Before | K30: After | R30: 6th Iteration
F31: 25 | H31: Operating Statistics | J31: Income Tax | K31: Income Tax | R31: 1 | S31: =AK26/Investment*100 ->  | T31: =EXP(y_inter1-(slope*LN(+S31))) ->  | U31: =(+S31*T31/100)/100 ->  | V31: =regDebt_weighted -> 0.03586 | W31: =+U31-V31 ->  | X31: =+((W31*(1-0.34))-Pfd_weighted)/Equity_percent ->  | Y31: =+Y29 -> 0.0025 | Z31: =+X31+Y31 ->  | AA31: =Z31*equityP ->  | AB31: =+AA31/(1-taxrate) ->  | AC31: =debtP*Debt_Rate -> 0.02134266423 | AD31: =+AC31+AB31 ->  | AE31: =+AD31/(S31/100) ->  | AF31: =1-AE31 ->  | AG31: =expenses/(AF31) ->  | AH31: =+AG31-Revenue ->  | AI31: =+AH31/$J$49 ->  | AJ31: =+AI31*$J$47 ->  | AK31: =ROUND(+AJ31+AG31,5) -> 
F32: 26 | R32: 2 | S32: =AK27/Investment*100 ->  | T32: =EXP(y_inter2-(slope*LN(+S32))) ->  | U32: =(+S32*T32/100)/100 ->  | V32: =regDebt_weighted -> 0.03586 | W32: =+U32-V32 ->  | X32: =+((W32*(1-0.34))-Pfd_weighted)/Equity_percent ->  | Y32: =+Y31 -> 0.0025 | Z32: =+X32+Y32 ->  | AA32: =Z32*equityP ->  | AB32: =+AA32/(1-taxrate) ->  | AC32: =debtP*Debt_Rate -> 0.02134266423 | AD32: =+AC32+AB32 ->  | AE32: =+AD32/(S32/100) ->  | AF32: =1-AE32 ->  | AG32: =expenses/(AF32) ->  | AH32: =+AG32-Revenue ->  | AI32: =+AH32/$J$49 ->  | AJ32: =+AI32*$J$47 ->  | AK32: =ROUND(+AJ32+AG32,5) -> 
F33: 27 | H33: Return on Investment | J33: =+K9/J28 ->  | K33: =+(M14+M11)/J28 ->  | R33: 3 | S33: =AK28/Investment*100 ->  | T33: =EXP(y_inter3-(slope*LN(S33))) ->  | U33: =(+S33*T33/100)/100 ->  | V33: =regDebt_weighted -> 0.03586 | W33: =+U33-V33 ->  | X33: =+((W33*(1-0.34))-Pfd_weighted)/Equity_percent ->  | Y33: =+Y32 -> 0.0025 | Z33: =+X33+Y33 ->  | AA33: =Z33*equityP ->  | AB33: =+AA33/(1-taxrate) ->  | AC33: =debtP*Debt_Rate -> 0.02134266423 | AD33: =+AC33+AB33 ->  | AE33: =+AD33/(S33/100) ->  | AF33: =1-AE33 ->  | AG33: =expenses/(AF33) ->  | AH33: =+AG33-Revenue ->  | AI33: =+AH33/$J$49 ->  | AJ33: =+AI33*$J$47 ->  | AK33: =ROUND(+AJ33+AG33,5) -> 
F34: 28 | H34: Return on Equity | J34: =+(M9-M11)/J26 ->  | K34: =+M14/J26 ->  | R34: 4 | S34: =AK29/Investment*100 ->  | T34: =EXP(y_inter4-(slope*LN(S34))) ->  | U34: =(+S34*T34/100)/100 ->  | V34: =regDebt_weighted -> 0.03586 | W34: =+U34-V34 ->  | X34: =+((W34*(1-0.34))-Pfd_weighted)/Equity_percent ->  | Y34: =+Y33 -> 0.0025 | Z34: =+X34+Y34 ->  | AA34: =Z34*equityP ->  | AB34: =+AA34/(1-taxrate) ->  | AC34: =debtP*Debt_Rate -> 0.02134266423 | AD34: =+AC34+AB34 ->  | AE34: =+AD34/(S34/100) ->  | AF34: =1-AE34 ->  | AG34: =expenses/(AF34) ->  | AH34: =+AG34-Revenue ->  | AI34: =+AH34/$J$49 ->  | AJ34: =+AI34*$J$47 ->  | AK34: =ROUND(+AJ34+AG34,5) -> 
F35: 29 | H35: Operating Ratio | J35: =+K8/K7 ->  | K35: =+M8/M7 -> 1 | R35: 7th Iteration
F36: 30 | H36: Profit Margin | J36: =+K9/K7 ->  | K36: =+J36 ->  | R36: 1 | S36: =AK31/Investment*100 ->  | T36: =EXP(y_inter1-(slope*LN(+S36))) ->  | U36: =(+S36*T36/100)/100 ->  | V36: =regDebt_weighted -> 0.03586 | W36: =+U36-V36 ->  | X36: =+((W36*(1-0.34))-Pfd_weighted)/Equity_percent ->  | Y36: =+Y34 -> 0.0025 | Z36: =+X36+Y36 ->  | AA36: =Z36*equityP ->  | AB36: =+AA36/(1-taxrate) ->  | AC36: =debtP*Debt_Rate -> 0.02134266423 | AD36: =+AC36+AB36 ->  | AE36: =+AD36/(S36/100) ->  | AF36: =1-AE36 ->  | AG36: =expenses/(AF36) ->  | AH36: =+AG36-Revenue ->  | AI36: =+AH36/$J$49 ->  | AJ36: =+AI36*$J$47 ->  | AK36: =ROUND(+AJ36+AG36,5) -> 
F37: 31 | H37: Final turnover | J37: =+S39/100 ->  | K37: =+J37 ->  | R37: 2 | S37: =AK32/Investment*100 ->  | T37: =EXP(y_inter2-(slope*LN(+S37))) ->  | U37: =(+S37*T37/100)/100 ->  | V37: =regDebt_weighted -> 0.03586 | W37: =+U37-V37 ->  | X37: =+((W37*(1-0.34))-Pfd_weighted)/Equity_percent ->  | Y37: =+Y36 -> 0.0025 | Z37: =+X37+Y37 ->  | AA37: =Z37*equityP ->  | AB37: =+AA37/(1-taxrate) ->  | AC37: =debtP*Debt_Rate -> 0.02134266423 | AD37: =+AC37+AB37 ->  | AE37: =+AD37/(S37/100) ->  | AF37: =1-AE37 ->  | AG37: =expenses/(AF37) ->  | AH37: =+AG37-Revenue ->  | AI37: =+AH37/$J$49 ->  | AJ37: =+AI37*$J$47 ->  | AK37: =ROUND(+AJ37+AG37,5) -> 
F38: 32 | H38: Tax Rate | J38: =+C10 -> 0.215 | K38: =+J38 -> 0.215 | R38: 3 | S38: =AK33/Investment*100 ->  | T38: =EXP(y_inter3-(slope*LN(S38))) ->  | U38: =(+S38*T38/100)/100 ->  | V38: =regDebt_weighted -> 0.03586 | W38: =+U38-V38 ->  | X38: =+((W38*(1-0.34))-Pfd_weighted)/Equity_percent ->  | Y38: =+Y37 -> 0.0025 | Z38: =+X38+Y38 ->  | AA38: =Z38*equityP ->  | AB38: =+AA38/(1-taxrate) ->  | AC38: =debtP*Debt_Rate -> 0.02134266423 | AD38: =+AC38+AB38 ->  | AE38: =+AD38/(S38/100) ->  | AF38: =1-AE38 ->  | AG38: =expenses/(AF38) ->  | AH38: =+AG38-Revenue ->  | AI38: =+AH38/$J$49 ->  | AJ38: =+AI38*$J$47 ->  | AK38: =ROUND(+AJ38+AG38,5) -> 
F39: 33 | R39: 4 | S39: =AK34/Investment*100 ->  | T39: =EXP(y_inter4-(slope*LN(S39))) ->  | U39: =(+S39*T39/100)/100 ->  | V39: =regDebt_weighted -> 0.03586 | W39: =+U39-V39 ->  | X39: =+((W39*(1-0.34))-Pfd_weighted)/Equity_percent ->  | Y39: =+Y38 -> 0.0025 | Z39: =+X39+Y39 ->  | AA39: =Z39*equityP ->  | AB39: =+AA39/(1-taxrate) ->  | AC39: =debtP*Debt_Rate -> 0.02134266423 | AD39: =+AC39+AB39 ->  | AE39: =+AD39/(S39/100) ->  | AF39: =1-AE39 ->  | AG39: =expenses/(AF39) ->  | AH39: =+AG39-Revenue ->  | AI39: =+AH39/$J$49 ->  | AJ39: =+AI39*$J$47 ->  | AK39: =ROUND(+AJ39+AG39,5) -> 
F40: 34
F41: 35 | H41: Revenue Sensitive Taxes Charges | R41: Curve
F42: 36 | J42: Rate | K42: Taxes | R42: Lookup Table
F43: 37 | H43: B & O Tax | J43: =IF(A64=TRUE,C11,0) -> 0.015 | K43: =+J43*($J$7/$J$49) ->  | R43: 0 | S43: 1 | U43: Profit Margin | V43: =VLOOKUP(R48,R36:AG39,14) -> 
F44: 38 | H44: WUTC Fee | J44: =IF(A64=TRUE,C12,0) -> 0.004275 | K44: =+J44*($J$7/$J$49) ->  | R44: 50 | S44: 2 | U44: Operating Ratio | V44: =ROUND(1-V43,6) -> 
F45: 39 | H45: City Tax | J45: =IF(A64=TRUE,C13,0) -> 0 | K45: =+J45*($J$7/$J$49) ->  | R45: 125 | S45: 3 | U45: Percent Chg | V45: =+M7/Revenue-1 -> 
F46: 40 | H46: Bad Debts | J46: =IF(A64=TRUE,C14,0) -> 0.006 | K46: =+J46*($J$7/$J$49) ->  | R46: 401 | S46: 4
F47: 41 | H47: Revenue Sensitive | J47: =SUM(J43:J46) -> 0.025275 | K47: =+K43+K44+K45+K46 ->  | R47: =VLOOKUP(R48,R36:S39,2) ->  | S47: Curve turnover | X47: @EXP(5.72260-(.68367*@LN(T)))
F48: 42 | R48: =VLOOKUP(S36,R43:S46,2) ->  | S48: Curve No. Used | X48: @EXP(5.70827-(.68367*@LN(T)))
F49: 43 | H49: Conversion Factor | J49: =((K35)-J47) -> 0.974725 | X49: @EXP(5.69850-(.68367*@LN(T)))
R50: =+V44 ->  | S50: Operating Ratio | X50: @EXP(5.69220-(.68367*@LN(T)))
S53: Base Utility from LG Sample Study | W53: Regression Results
S54: Percent | T54: Cost | U54: Weighted | W54: Y intercept (1) | X54: 5.7226 | Y54: Y intercept (3) | Z54: 5.6985
R55: Debt | S55: 0.562 | T55: 0.0638 | U55: =ROUND(+S55*T55,5) -> 0.03586 | W55: Y intercept (2) | X55: 5.70827 | Y55: Y intercept (4) | Z55: 5.6922
R56: Pfd. | S56: 0.094 | T56: 0.0659 | U56: =ROUND(+S56*T56,5) -> 0.00619
R57: Equity | S57: 0.344 | X57: Slope | Y57: 0.68367
S58: =SUM(S55:S57) -> 1
X60: Operating Statistics | Y60: Pre-tax | Z60: After Tax
X62: Return on Investment | Y62: =+J33 -> 
X63: Return on Equity
A64: TRUE | X64: Operating Ratio | Z64: 1
X65: Profit Margin
X66: Final turnover
X67: Tax Rate | Y67: 0.215 | Z67: 0.215

Sheet MF RCY
B1: NEW IMPROVED LURITO - GALLAGHER FORMULA | AE1: !??! | AF1: OP/RATIO | AI1: curve
G2: NOTE: | N2: FORMULAS | U2: 1st Revenue | V2: 1st Turnover | W2: M | X2: ROR | Y2: ROE | AA2: Adj ROE | AB2: Pre Tax ROE | AC2: Adj M | AD2: Revenues | AE2: Decision | AI2: lookup table
B3: !!! | C3: Revenue Requirement | E3: =E5+E4 ->  | F3: !!!<-- | H3: Red numbers are input/linked fields. | N3: 1. less than 50 | Q3: @EXP(5.72260-(.68367*@LN(T))) | U3: =$E$6*1.25 -> 0 | V3: ='MF RCY LG 2018 V5.0c'!S6 ->  | W3: =EXP(5.7226-(0.68367*LN(+V3))) ->  | X3: =(+W3*V3)/100 ->  | Y3: ='MF RCY LG 2018 V5.0c'!X6 ->  | Z3: =+$E$18 -> 0.25 | AA3: =Y3+Z3 ->  | AB3: =100*($E$15*$E$17+($E$16*(AA3/100))/(1-$E$19)) ->  | AC3: ='MF RCY LG 2018 V5.0c'!AE6 ->  | AD3: =$E$6/(1-AC3) ->  | AE3: =IF(AD3=$U$3,"yes","not yet") ->  | AF3: =100*(1-AC3) ->  | AI3: 0 | AJ3: 1
B4: !!! | C4: Revenue Deficiency | E4: =(+E6-((H13/100)*E5))/H23 ->  | F4: !!!<-- | H4: Black are formula calculations | N4: 2. Between 50 and 125 | Q4: @EXP(5.70827-(.68367*@LN(T))) | U4: =$E$6*1.25 -> 0 | V4: ='MF RCY LG 2018 V5.0c'!S7 ->  | W4: ='MF RCY LG 2018 V5.0c'!T7 ->  | X4: =(+W4*V4)/100 ->  | Y4: ='MF RCY LG 2018 V5.0c'!X7 ->  | Z4: =+$E$18 -> 0.25 | AA4: =Y4+Z4 ->  | AB4: =100*($E$15*$E$17+($E$16*(AA4/100))/(1-$E$19)) ->  | AC4: ='MF RCY LG 2018 V5.0c'!AE7 ->  | AD4: =$E$6/(1-AC4) ->  | AE4: =IF(AD4=$U$4,"yes","not yet") ->  | AF4: =100*(1-AC4) ->  | AI4: 50 | AJ4: 2
B5: * | C5: Revenue | E5: =Proforma!R26 -> 0 | F5: * p/f before rates | N5: 3. Between 125 and 140 | Q5: @EXP(5.69850-(.68367*@LN(T))) | U5: =$E$6*1.25 -> 0 | V5: ='MF RCY LG 2018 V5.0c'!S8 ->  | W5: ='MF RCY LG 2018 V5.0c'!T8 ->  | X5: =(+W5*V5)/100 ->  | Y5: ='MF RCY LG 2018 V5.0c'!X8 ->  | Z5: =+$E$18 -> 0.25 | AA5: =Y5+Z5 ->  | AB5: =100*($E$15*$E$17+($E$16*(AA5/100))/(1-$E$19)) ->  | AC5: ='MF RCY LG 2018 V5.0c'!AE8 ->  | AD5: =$E$6/(1-AC5) ->  | AE5: =IF(AD5=$U$5,"yes","not yet") ->  | AF5: =100*(1-AC5) ->  | AI5: 125 | AJ5: 3
B6: * | C6: Expenses | E6: =+Proforma!R391 -> 0 | F6: * p/f before rates | N6: 4. greater than 400 | Q6: @EXP(5.69220-(.68367*@LN(T))) | U6: =$E$6*1.25 -> 0 | V6: ='MF RCY LG 2018 V5.0c'!S9 ->  | W6: ='MF RCY LG 2018 V5.0c'!T9 ->  | X6: =(+W6*V6)/100 ->  | Y6: ='MF RCY LG 2018 V5.0c'!X9 ->  | Z6: =+$E$18 -> 0.25 | AA6: =Y6+Z6 ->  | AB6: =100*($E$15*$E$17+($E$16*(AA6/100))/(1-$E$19)) ->  | AC6: ='MF RCY LG 2018 V5.0c'!AE9 ->  | AD6: =$E$6/(1-AC6) ->  | AE6: =IF(AD6=$U$6,"yes","not yet") ->  | AF6: =100*(1-AC6) ->  | AI6: 401 | AJ6: 4
B7: * | C7: Avg. Investment - | E7: ='Ave Inv. Summary'!M66 -> 0 | F7: * p/f before rates
C8: curve turnover | E8: =V3 ->  | F8: (calculated) | V8: 2nd Turnover | W8: M | X8: ROR | Y8: ROE | AI8: lookup tables
C9: final turnover | E9: =HLOOKUP($AJ$32,$AJ$26:$AR$30,$E$10+1) ->  | F9: (calculated) | V9: ='MF RCY LG 2018 V5.0c'!S11 ->  | W9: ='MF RCY LG 2018 V5.0c'!T11 ->  | X9: =(+W9*V9)/100 ->  | Y9: ='MF RCY LG 2018 V5.0c'!X11 ->  | Z9: =+$E$18 -> 0.25 | AA9: =Y9+Z9 ->  | AB9: =100*($E$15*$E$17+($E$16*(AA9/100))/(1-$E$19)) ->  | AC9: ='MF RCY LG 2018 V5.0c'!AE11 ->  | AD9: =$E$6/(1-AC9) ->  | AE9: =IF(OR(OR(AD9=AD3,AD9=(AD3+1)),AD9=(AD8187-1)),"yes","not yet") ->  | AF9: =100*(1-AC9) -> 
C10: curve No. used | E10: =VLOOKUP(E8,AI3:AJ6,2) ->  | F10: (calculated) | V10: ='MF RCY LG 2018 V5.0c'!S12 ->  | W10: ='MF RCY LG 2018 V5.0c'!T12 ->  | X10: =(+W10*V10)/100 ->  | Y10: ='MF RCY LG 2018 V5.0c'!X12 ->  | Z10: =+$E$18 -> 0.25 | AA10: =Y10+Z10 ->  | AB10: =100*($E$15*$E$17+($E$16*(AA10/100))/(1-$E$19)) ->  | AC10: ='MF RCY LG 2018 V5.0c'!AE12 ->  | AD10: =$E$6/(1-AC10) ->  | AE10: =IF(OR(OR(AD10=AD4,AD10=(AD4+1)),AD10=(AD4-1)),"yes","not yet") ->  | AF10: =100*(1-AC10) -> 
V11: ='MF RCY LG 2018 V5.0c'!S13 ->  | W11: ='MF RCY LG 2018 V5.0c'!T13 ->  | X11: =(+W11*V11)/100 ->  | Y11: ='MF RCY LG 2018 V5.0c'!X13 ->  | Z11: =+$E$18 -> 0.25 | AA11: =Y11+Z11 ->  | AB11: =100*($E$15*$E$17+($E$16*(AA11/100))/(1-$E$19)) ->  | AC11: ='MF RCY LG 2018 V5.0c'!AE13 ->  | AD11: =$E$6/(1-AC11) ->  | AE11: =IF(OR(OR(AD11=AD5,AD11=(AD5+1)),AD11=(AD5-1)),"yes","not yet") ->  | AF11: =100*(1-AC11) ->  | AJ11: 1 | AK11: 2 | AL11: 3 | AM11: 4 | AN11: 5 | AO11: 6 | AP11: 7 | AQ11: 8 | AR11: 9
C12: Company actual | V12: ='MF RCY LG 2018 V5.0c'!S14 ->  | W12: ='MF RCY LG 2018 V5.0c'!T14 ->  | X12: =(+W12*V12)/100 ->  | Y12: ='MF RCY LG 2018 V5.0c'!X14 ->  | Z12: =+$E$18 -> 0.25 | AA12: =Y12+Z12 ->  | AB12: =100*($E$15*$E$17+($E$16*(AA12/100))/(1-$E$19)) ->  | AC12: ='MF RCY LG 2018 V5.0c'!AE14 ->  | AD12: =$E$6/(1-AC12) ->  | AE12: =IF(OR(OR(AD12=AD6,AD12=(AD6+1)),AD12=(AD6-1)),"yes","not yet") ->  | AF12: =100*(1-AC12) ->  | AJ12: =AE3 ->  | AK12: =AE9 ->  | AL12: =AE15 ->  | AM12: =AE21 ->  | AN12: =AE27 ->  | AO12: =AE33 ->  | AP12: =AE39 ->  | AQ12: =AE45 -> 0 | AR12: =AE51 -> 0
C13: capital structure: | E13: !!! | F13: OPERATING RATIO -> | H13: =HLOOKUP($AJ$23,$AJ$17:$AR$21,$E$10+1) ->  | I13: !!!<-- | AJ13: =AE4 ->  | AK13: =AE10 ->  | AL13: =AE16 ->  | AM13: =AE22 ->  | AN13: =AE28 ->  | AO13: =AE34 ->  | AP13: =AE40 ->  | AQ13: =AE46 -> 0 | AR13: =AE52 -> 0
C14: - | D14: - | H14: = | V14: 3rd Turnover | W14: M | X14: ROR | Y14: ROE | AJ14: =AE5 ->  | AK14: =AE11 ->  | AL14: =AE17 ->  | AM14: =AE23 ->  | AN14: =AE29 ->  | AO14: =AE35 ->  | AP14: =AE41 ->  | AQ14: =AE47 -> 0 | AR14: =AE53 -> 0
B15: * | C15: Actual Debt Ratio | E15: =+'Combined LG'!E15 -> 0.5077173987 | F15: Conversion factor data: | V15: ='MF RCY LG 2018 V5.0c'!S16 ->  | W15: ='MF RCY LG 2018 V5.0c'!T16 ->  | X15: =(+W15*V15)/100 ->  | Y15: ='MF RCY LG 2018 V5.0c'!X16 ->  | Z15: =+$E$18 -> 0.25 | AA15: =Y15+Z15 ->  | AB15: =100*($E$15*$E$17+($E$16*(AA15/100))/(1-$E$19)) ->  | AC15: ='MF RCY LG 2018 V5.0c'!AE16 ->  | AD15: =$E$6/(1-AC15) ->  | AE15: =IF(OR(OR(AD15=AD9,AD15=(AD9+1)),AD15=(AD1-1)),"yes","not yet") ->  | AF15: =100*(1-AC15) ->  | AJ15: =AE6 ->  | AK15: =AE12 ->  | AL15: =AE18 ->  | AM15: =AE24 ->  | AN15: =AE30 ->  | AO15: =AE36 ->  | AP15: =AE42 ->  | AQ15: =AE48 -> 0 | AR15: =AE54 -> 0
B16: * | C16: Actual Equity Ratio | E16: =+'Combined LG'!E16 -> 0.4922826013 | F16: B & O Tax | H16: =+'Combined LG'!H16 -> 0.015 | I16: * | V16: ='MF RCY LG 2018 V5.0c'!S17 ->  | W16: ='MF RCY LG 2018 V5.0c'!T17 ->  | X16: =(+W16*V16)/100 ->  | Y16: ='MF RCY LG 2018 V5.0c'!X17 ->  | Z16: =+$E$18 -> 0.25 | AA16: =Y16+Z16 ->  | AB16: =100*($E$15*$E$17+($E$16*(AA16/100))/(1-$E$19)) ->  | AC16: ='MF RCY LG 2018 V5.0c'!AE17 ->  | AD16: =$E$6/(1-AC16) ->  | AE16: =IF(OR(OR(AD16=AD10,AD16=(AD10+1)),AD16=(AD10-1)),"yes","not yet") ->  | AF16: =100*(1-AC16) -> 
B17: * | C17: Actual Cost of Debt | E17: =+'Combined LG'!E17 -> 0.03992720522 | F17: WUTC Fee | H17: =+'Combined LG'!H17 -> 0.004275 | I17: * | V17: ='MF RCY LG 2018 V5.0c'!S18 ->  | W17: ='MF RCY LG 2018 V5.0c'!T18 ->  | X17: =(+W17*V17)/100 ->  | Y17: ='MF RCY LG 2018 V5.0c'!X18 ->  | Z17: =+$E$18 -> 0.25 | AA17: =Y17+Z17 ->  | AB17: =100*($E$15*$E$17+($E$16*(AA17/100))/(1-$E$19)) ->  | AC17: ='MF RCY LG 2018 V5.0c'!AE18 ->  | AD17: =$E$6/(1-AC17) ->  | AE17: =IF(OR(OR(AD17=AD11,AD17=(AD11+1)),AD17=(AD11-1)),"yes","not yet") ->  | AF17: =100*(1-AC17) ->  | AJ17: =HLOOKUP(1,$AJ$11:$AR$15,$E$10+1) ->  | AK17: =HLOOKUP(2,$AJ$11:$AR$15,$E$10+1) ->  | AL17: =HLOOKUP(3,$AJ$11:$AR$15,$E$10+1) ->  | AM17: =HLOOKUP(4,$AJ$11:$AR$15,$E$10+1) ->  | AN17: =HLOOKUP(5,$AJ$11:$AR$15,$E$10+1) ->  | AO17: =HLOOKUP(6,$AJ$11:$AR$15,$E$10+1) ->  | AP17: =HLOOKUP(7,$AJ$11:$AR$15,$E$10+1) ->  | AQ17: =HLOOKUP(8,$AJ$11:$AR$15,$E$10+1) ->  | AR17: =HLOOKUP(9,$AJ$11:$AR$15,$E$10+1) -> 
B18: * | C18: Basis Points | E18: 0.25 | F18: City Tax | H18: =+'Combined LG'!H18 -> 0 | I18: * | V18: ='MF RCY LG 2018 V5.0c'!S19 ->  | W18: ='MF RCY LG 2018 V5.0c'!T19 ->  | X18: =(+W18*V18)/100 ->  | Y18: ='MF RCY LG 2018 V5.0c'!X19 ->  | Z18: =+$E$18 -> 0.25 | AA18: =Y18+Z18 ->  | AB18: =100*($E$15*$E$17+($E$16*(AA18/100))/(1-$E$19)) ->  | AC18: ='MF RCY LG 2018 V5.0c'!AE19 ->  | AD18: =$E$6/(1-AC18) ->  | AE18: =IF(OR(OR(AD18=AD12,AD18=(AD12+1)),AD18=(AD12-1)),"yes","not yet") ->  | AF18: =100*(1-AC18) ->  | AI18: 1 | AJ18: =AF3 ->  | AK18: =AF9 ->  | AL18: =AF15 ->  | AM18: =AF21 ->  | AN18: =AF27 ->  | AO18: =AF33 ->  | AP18: =AF39 ->  | AQ18: =AF45 -> 0 | AR18: =AF51 -> 0
B19: * | C19: Tax Rate | E19: =+'Combined LG'!E19 -> 0.002 | F19: Bad Debts | H19: =+'Combined LG'!H19 -> 0.006 | I19: * | AI19: 2 | AJ19: =AF4 ->  | AK19: =AF10 ->  | AL19: =AF16 ->  | AM19: =AF22 ->  | AN19: =AF28 ->  | AO19: =AF34 ->  | AP19: =AF40 ->  | AQ19: =AF46 -> 0 | AR19: =AF52 -> 0
H20: - | V20: 4th Turnover | W20: M | X20: ROR | Y20: ROE | AI20: 3 | AJ20: =AF5 ->  | AK20: =AF11 ->  | AL20: =AF17 ->  | AM20: =AF23 ->  | AN20: =AF29 ->  | AO20: =AF35 ->  | AP20: =AF41 ->  | AQ20: =AF47 -> 0 | AR20: =AF53 -> 0
F21: Revenue Sensitive | H21: =SUM(H16:H19) -> 0.025275 | V21: ='MF RCY LG 2018 V5.0c'!S21 ->  | W21: ='MF RCY LG 2018 V5.0c'!T21 ->  | X21: =(+W21*V21)/100 ->  | Y21: ='MF RCY LG 2018 V5.0c'!X21 ->  | Z21: =+$E$18 -> 0.25 | AA21: =Y21+Z21 ->  | AB21: =100*($E$15*$E$17+($E$16*(AA21/100))/(1-$E$19)) ->  | AC21: ='MF RCY LG 2018 V5.0c'!AE21 ->  | AD21: =$E$6/(1-AC21) ->  | AE21: =IF(OR(OR(AD21=AD15,AD21=(AD15+1)),AD21=(AD7-1)),"yes","not yet") ->  | AF21: =100*(1-AC21) ->  | AI21: 4 | AJ21: =AF6 ->  | AK21: =AF12 ->  | AL21: =AF18 ->  | AM21: =AF24 ->  | AN21: =AF30 ->  | AO21: =AF36 ->  | AP21: =AF42 ->  | AQ21: =AF48 -> 0 | AR21: =AF54 -> 0
V22: ='MF RCY LG 2018 V5.0c'!S22 ->  | W22: ='MF RCY LG 2018 V5.0c'!T22 ->  | X22: =(+W22*V22)/100 ->  | Y22: ='MF RCY LG 2018 V5.0c'!X22 ->  | Z22: =+$E$18 -> 0.25 | AA22: =Y22+Z22 ->  | AB22: =100*($E$15*$E$17+($E$16*(AA22/100))/(1-$E$19)) ->  | AC22: ='MF RCY LG 2018 V5.0c'!AE22 ->  | AD22: =$E$6/(1-AC22) ->  | AE22: =IF(OR(OR(AD22=AD16,AD22=(AD16+1)),AD22=(AD16-1)),"yes","not yet") ->  | AF22: =100*(1-AC22) -> 
F23: Conversion Factor | H23: =((+H13/100)-H21) ->  | V23: ='MF RCY LG 2018 V5.0c'!S23 ->  | W23: ='MF RCY LG 2018 V5.0c'!T23 ->  | X23: =(+W23*V23)/100 ->  | Y23: ='MF RCY LG 2018 V5.0c'!X23 ->  | Z23: =+$E$18 -> 0.25 | AA23: =Y23+Z23 ->  | AB23: =100*($E$15*$E$17+($E$16*(AA23/100))/(1-$E$19)) ->  | AC23: ='MF RCY LG 2018 V5.0c'!AE23 ->  | AD23: =$E$6/(1-AC23) ->  | AE23: =IF(OR(OR(AD23=AD17,AD23=(AD17+1)),AD23=(AD17-1)),"yes","not yet") ->  | AF23: =100*(1-AC23) ->  | AJ23: yes
V24: ='MF RCY LG 2018 V5.0c'!S24 ->  | W24: ='MF RCY LG 2018 V5.0c'!T24 ->  | X24: =(+W24*V24)/100 ->  | Y24: ='MF RCY LG 2018 V5.0c'!X24 ->  | Z24: =+$E$18 -> 0.25 | AA24: =Y24+Z24 ->  | AB24: =100*($E$15*$E$17+($E$16*(AA24/100))/(1-$E$19)) ->  | AC24: ='MF RCY LG 2018 V5.0c'!AE24 ->  | AD24: =$E$6/(1-AC24) ->  | AE24: =IF(OR(OR(AD24=AD18,AD24=(AD18+1)),AD24=(AD18-1)),"yes","not yet") ->  | AF24: =100*(1-AC24) ->  | AJ24: =HLOOKUP($AJ$23,$AJ$17:$AR$21,$E$10+1) -> 
C25: Company Reference
C26: Annl Price Increase (PI) $ | E26: =+E4 ->  | V26: 5th Turnover | W26: M | X26: ROR | Y26: ROE | AJ26: =HLOOKUP(1,$AJ$11:$AR$15,$E$10+1) ->  | AK26: =HLOOKUP(2,$AJ$11:$AR$15,$E$10+1) ->  | AL26: =HLOOKUP(3,$AJ$11:$AR$15,$E$10+1) ->  | AM26: =HLOOKUP(4,$AJ$11:$AR$15,$E$10+1) ->  | AN26: =HLOOKUP(5,$AJ$11:$AR$15,$E$10+1) ->  | AO26: =HLOOKUP(6,$AJ$11:$AR$15,$E$10+1) ->  | AP26: =HLOOKUP(7,$AJ$11:$AR$15,$E$10+1) ->  | AQ26: =HLOOKUP(8,$AJ$11:$AR$15,$E$10+1) ->  | AR26: =HLOOKUP(9,$AJ$11:$AR$15,$E$10+1) -> 
C27: Monthly PI $ | E27: =+E26/12 ->  | V27: ='MF RCY LG 2018 V5.0c'!S26 ->  | W27: ='MF RCY LG 2018 V5.0c'!T26 ->  | X27: =(+W27*V27)/100 ->  | Y27: ='MF RCY LG 2018 V5.0c'!X26 ->  | Z27: =+$E$18 -> 0.25 | AA27: =Y27+Z27 ->  | AB27: =100*($E$15*$E$17+($E$16*(AA27/100))/(1-$E$19)) ->  | AC27: ='MF RCY LG 2018 V5.0c'!AE26 ->  | AD27: =$E$6/(1-AC27) ->  | AE27: =IF(OR(OR(AD27=AD21,AD27=(AD21+1)),AD27=(AD13-1)),"yes","not yet") ->  | AF27: =100*(1-AC27) ->  | AI27: 1 | AJ27: =V3 ->  | AK27: =V9 ->  | AL27: =V15 ->  | AM27: =V21 ->  | AN27: =V27 ->  | AO27: =V33 ->  | AP27: =V39 ->  | AQ27: =V45 -> 0 | AR27: =V51 -> 0
C28: Percentage PI | E28: =+E4/E5 ->  | V28: ='MF RCY LG 2018 V5.0c'!S27 ->  | W28: ='MF RCY LG 2018 V5.0c'!T27 ->  | X28: =(+W28*V28)/100 ->  | Y28: ='MF RCY LG 2018 V5.0c'!X27 ->  | Z28: =+$E$18 -> 0.25 | AA28: =Y28+Z28 ->  | AB28: =100*($E$15*$E$17+($E$16*(AA28/100))/(1-$E$19)) ->  | AC28: ='MF RCY LG 2018 V5.0c'!AE27 ->  | AD28: =$E$6/(1-AC28) ->  | AE28: =IF(OR(OR(AD28=AD22,AD28=(AD22+1)),AD28=(AD22-1)),"yes","not yet") ->  | AF28: =100*(1-AC28) ->  | AI28: 2 | AJ28: =V4 ->  | AK28: =V10 ->  | AL28: =V16 ->  | AM28: =V22 ->  | AN28: =V28 ->  | AO28: =V34 ->  | AP28: =V40 ->  | AQ28: =V46 -> 0 | AR28: =V52 -> 0
V29: ='MF RCY LG 2018 V5.0c'!S28 ->  | W29: ='MF RCY LG 2018 V5.0c'!T28 ->  | X29: =(+W29*V29)/100 ->  | Y29: ='MF RCY LG 2018 V5.0c'!X28 ->  | Z29: =+$E$18 -> 0.25 | AA29: =Y29+Z29 ->  | AB29: =100*($E$15*$E$17+($E$16*(AA29/100))/(1-$E$19)) ->  | AC29: ='MF RCY LG 2018 V5.0c'!AE28 ->  | AD29: =$E$6/(1-AC29) ->  | AE29: =IF(OR(OR(AD29=AD23,AD29=(AD23+1)),AD29=(AD23-1)),"yes","not yet") ->  | AF29: =100*(1-AC29) ->  | AI29: 3 | AJ29: =V5 ->  | AK29: =V11 ->  | AL29: =V17 ->  | AM29: =V23 ->  | AN29: =V29 ->  | AO29: =V35 ->  | AP29: =V41 ->  | AQ29: =V47 -> 0 | AR29: =V53 -> 0
C30: Annual MF RCY Yards | E30: =SUMIFS('Com Lifts'!$A:$A,'Com Lifts'!$F:$F,"U") -> 3169.67616 | V30: ='MF RCY LG 2018 V5.0c'!S29 ->  | W30: ='MF RCY LG 2018 V5.0c'!T29 ->  | X30: =(+W30*V30)/100 ->  | Y30: ='MF RCY LG 2018 V5.0c'!X29 ->  | Z30: =+$E$18 -> 0.25 | AA30: =Y30+Z30 ->  | AB30: =100*($E$15*$E$17+($E$16*(AA30/100))/(1-$E$19)) ->  | AC30: ='MF RCY LG 2018 V5.0c'!AE29 ->  | AD30: =$E$6/(1-AC30) ->  | AE30: =IF(OR(OR(AD30=AD24,AD30=(AD24+1)),AD30=(AD24-1)),"yes","not yet") ->  | AF30: =100*(1-AC30) ->  | AI30: 4 | AJ30: =V6 ->  | AK30: =V12 ->  | AL30: =V18 ->  | AM30: =V24 ->  | AN30: =V30 ->  | AO30: =V36 ->  | AP30: =V42 ->  | AQ30: =V48 -> 0 | AR30: =V54 -> 0
C31: MF RCY Revenue/Yd | E31: =E3/E30 ->  | F31: =E31*3.5 -> 
V32: 6th Turnover | W32: M | X32: ROR | Y32: ROE | AJ32: yes
C33: Pre-Rate Case MF $/Yd | E33: 0 | V33: ='MF RCY LG 2018 V5.0c'!S31 ->  | W33: ='MF RCY LG 2018 V5.0c'!T31 ->  | X33: =(+W33*V33)/100 ->  | Y33: ='MF RCY LG 2018 V5.0c'!X31 ->  | Z33: =+$E$18 -> 0.25 | AA33: =Y33+Z33 ->  | AB33: =100*($E$15*$E$17+($E$16*(AA33/100))/(1-$E$19)) ->  | AC33: ='MF RCY LG 2018 V5.0c'!AE31 ->  | AD33: =ROUND($E$6/(1-AC33),0) ->  | AE33: =IF(OR(OR(AD33=AD27,AD33=(AD27+1)),AD33=(AD19-1)),"yes","not yet") ->  | AF33: =100*(1-AC33) ->  | AJ33: =HLOOKUP($AJ$32,$AJ$26:$AR$30,$E$10+1) -> 
V34: ='MF RCY LG 2018 V5.0c'!S32 ->  | W34: ='MF RCY LG 2018 V5.0c'!T32 ->  | X34: =(+W34*V34)/100 ->  | Y34: ='MF RCY LG 2018 V5.0c'!X32 ->  | Z34: =+$E$18 -> 0.25 | AA34: =Y34+Z34 ->  | AB34: =100*($E$15*$E$17+($E$16*(AA34/100))/(1-$E$19)) ->  | AC34: ='MF RCY LG 2018 V5.0c'!AE32 ->  | AD34: =ROUND($E$6/(1-AC34),0) ->  | AE34: =IF(OR(OR(AD34=AD28,AD34=(AD28+1)),AD34=(AD28-1)),"yes","not yet") ->  | AF34: =100*(1-AC34) -> 
V35: ='MF RCY LG 2018 V5.0c'!S33 ->  | W35: ='MF RCY LG 2018 V5.0c'!T33 ->  | X35: =(+W35*V35)/100 ->  | Y35: ='MF RCY LG 2018 V5.0c'!X33 ->  | Z35: =+$E$18 -> 0.25 | AA35: =Y35+Z35 ->  | AB35: =100*($E$15*$E$17+($E$16*(AA35/100))/(1-$E$19)) ->  | AC35: ='MF RCY LG 2018 V5.0c'!AE33 ->  | AD35: =ROUND($E$6/(1-AC35),0) ->  | AE35: =IF(OR(OR(AD35=AD29,AD35=(AD29+1)),AD35=(AD29-1)),"yes","not yet") ->  | AF35: =100*(1-AC35) ->  | AJ35: =HLOOKUP(1,$AJ$11:$AR$15,$E$10+1) ->  | AK35: =HLOOKUP(2,$AJ$11:$AR$15,$E$10+1) ->  | AL35: =HLOOKUP(3,$AJ$11:$AR$15,$E$10+1) ->  | AM35: =HLOOKUP(4,$AJ$11:$AR$15,$E$10+1) ->  | AN35: =HLOOKUP(5,$AJ$11:$AR$15,$E$10+1) ->  | AO35: =HLOOKUP(6,$AJ$11:$AR$15,$E$10+1) ->  | AP35: =HLOOKUP(7,$AJ$11:$AR$15,$E$10+1) ->  | AQ35: =HLOOKUP(8,$AJ$11:$AR$15,$E$10+1) ->  | AR35: =HLOOKUP(9,$AJ$11:$AR$15,$E$10+1) -> 
V36: ='MF RCY LG 2018 V5.0c'!S34 ->  | W36: ='MF RCY LG 2018 V5.0c'!T34 ->  | X36: =(+W36*V36)/100 ->  | Y36: ='MF RCY LG 2018 V5.0c'!X34 ->  | Z36: =+$E$18 -> 0.25 | AA36: =Y36+Z36 ->  | AB36: =100*($E$15*$E$17+($E$16*(AA36/100))/(1-$E$19)) ->  | AC36: ='MF RCY LG 2018 V5.0c'!AE34 ->  | AD36: =ROUND($E$6/(1-AC36),0) ->  | AE36: =IF(OR(OR(AD36=AD30,AD36=(AD30+1)),AD36=(AD30-1)),"yes","not yet") ->  | AF36: =100*(1-AC36) ->  | AI36: 1 | AJ36: =AD3 ->  | AK36: =AD9 ->  | AL36: =AD15 ->  | AM36: =AD21 ->  | AN36: =AD27 ->  | AO36: =AD33 ->  | AP36: =AD39 ->  | AQ36: =AD45 -> 0 | AR36: =AD51 -> 0
AI37: 2 | AJ37: =AD4 ->  | AK37: =AD10 ->  | AL37: =AD16 ->  | AM37: =AD22 ->  | AN37: =AD28 ->  | AO37: =AD34 ->  | AP37: =AD40 ->  | AQ37: =AD46 -> 0 | AR37: =AD52 -> 0
V38: 7th turnover | W38: M | X38: ROR | Y38: ROE | AI38: 3 | AJ38: =AD5 ->  | AK38: =AD11 ->  | AL38: =AD17 ->  | AM38: =AD23 ->  | AN38: =AD29 ->  | AO38: =AD35 ->  | AP38: =AD41 ->  | AQ38: =AD47 -> 0 | AR38: =AD53 -> 0
V39: ='MF RCY LG 2018 V5.0c'!S36 ->  | W39: ='MF RCY LG 2018 V5.0c'!T36 ->  | X39: =(+W39*V39)/100 ->  | Y39: ='MF RCY LG 2018 V5.0c'!X36 ->  | Z39: =+$E$18 -> 0.25 | AA39: =Y39+Z39 ->  | AB39: =100*($E$15*$E$17+($E$16*(AA39/100))/(1-$E$19)) ->  | AC39: ='MF RCY LG 2018 V5.0c'!AE36 ->  | AD39: =ROUND($E$6/(1-AC39),0) ->  | AE39: =IF(OR(OR(AD39=AD33,AD39=(AD33+1)),AD39=(AD25-1)),"yes","not yet") ->  | AF39: =100*(1-AC39) ->  | AI39: 4 | AJ39: =AD6 ->  | AK39: =AD12 ->  | AL39: =AD18 ->  | AM39: =AD24 ->  | AN39: =AD30 ->  | AO39: =AD36 ->  | AP39: =AD42 ->  | AQ39: =AD48 -> 0 | AR39: =AD54 -> 0
V40: ='MF RCY LG 2018 V5.0c'!S37 ->  | W40: ='MF RCY LG 2018 V5.0c'!T37 ->  | X40: =(+W40*V40)/100 ->  | Y40: ='MF RCY LG 2018 V5.0c'!X37 ->  | Z40: =+$E$18 -> 0.25 | AA40: =Y40+Z40 ->  | AB40: =100*($E$15*$E$17+($E$16*(AA40/100))/(1-$E$19)) ->  | AC40: ='MF RCY LG 2018 V5.0c'!AE37 ->  | AD40: =ROUND($E$6/(1-AC40),0) ->  | AE40: =IF(OR(OR(AD40=AD34,AD40=(AD34+1)),AD40=(AD34-1)),"yes","not yet") ->  | AF40: =100*(1-AC40) -> 
V41: ='MF RCY LG 2018 V5.0c'!S38 ->  | W41: ='MF RCY LG 2018 V5.0c'!T38 ->  | X41: =(+W41*V41)/100 ->  | Y41: ='MF RCY LG 2018 V5.0c'!X38 ->  | Z41: =+$E$18 -> 0.25 | AA41: =Y41+Z41 ->  | AB41: =100*($E$15*$E$17+($E$16*(AA41/100))/(1-$E$19)) ->  | AC41: ='MF RCY LG 2018 V5.0c'!AE38 ->  | AD41: =ROUND($E$6/(1-AC41),0) ->  | AE41: =IF(OR(OR(AD41=AD35,AD41=(AD35+1)),AD41=(AD35-1)),"yes","not yet") ->  | AF41: =100*(1-AC41) ->  | AJ41: yes
V42: ='MF RCY LG 2018 V5.0c'!S39 ->  | W42: ='MF RCY LG 2018 V5.0c'!T39 ->  | X42: =(+W42*V42)/100 ->  | Y42: ='MF RCY LG 2018 V5.0c'!X39 ->  | Z42: =+$E$18 -> 0.25 | AA42: =Y42+Z42 ->  | AB42: =100*($E$15*$E$17+($E$16*(AA42/100))/(1-$E$19)) ->  | AC42: ='MF RCY LG 2018 V5.0c'!AE39 ->  | AD42: =ROUND($E$6/(1-AC42),0) ->  | AE42: =IF(OR(OR(AD42=AD36,AD42=(AD36+1)),AD42=(AD36-1)),"yes","not yet") ->  | AF42: =100*(1-AC42) ->  | AJ42: =HLOOKUP($AJ$32,$AJ$35:$AR$39,$E$10+1) -> 
V44: 8th turnover | W44: M | X44: ROR | Y44: ROE
V50: 9th turnover | W50: M | X50: ROR | Y50: ROE

Sheet Alloc Summary
B8: Allocations
C9: Truck Hours | D9: Actual | E9: =+Proforma!J5 -> Pay Diff Adj | F9: Container Count | G9: Customer Count | H9: =+Proforma!J6 -> Prev Alloc Costs
B10: Regulated | C10: ='Truck Hrs Sum'!E29 -> 0.808182041 | D10: =SUMIF(Proforma!$H$8:$H$393,$D$9,Proforma!$K$8:$K$393)/SUMIF(Proforma!$H$8:$H$393,$D$9,Proforma!$F$8:$F$393) -> 0.9958675429 | F10: ='Container Counts'!$H$118 -> 0.9877 | G10: ='Customer Counts'!H99 -> 0.502 | H10: =(SUMIF(Proforma!$H$8:$H$393,$C$9,Proforma!$K$8:$K$393)+SUMIF(Proforma!$H$8:$H$393,$D$9,Proforma!$K$8:$K$393)+SUMIF(Proforma!$H$8:$H$393,$F$9,Proforma!$K$8:$K$393)+SUMIF(Proforma!$H$8:$H$393,$G$9,Proforma!$K$8:$K$393))/(SUMIF(Proforma!$H$8:$H$393,$C$9,Proforma!$F$8:$F$393)+SUMIF(Proforma!$H$8:$H$393,$D$9,Proforma!$F$8:$F$393)+SUMIF(Proforma!$H$8:$H$393,$F$9,Proforma!$F$8:$F$393)+SUMIF(Proforma!$H$8:$H$393,$G$9,Proforma!$F$8:$F$393)) -> 0.9201112868
B11: Unregulated | C11: =1-C10 -> 0.191817959 | D11: =1-D10 -> 0.004132457078 | F11: =1-F10 -> 0.0123 | G11: =1-G10 -> 0.498 | H11: =1-H10 -> 0.07988871324
B12: Of Total $ | C12: =SUMIF(Proforma!$H$8:$H$393,C$9,Proforma!$F$8:$F$393)/1000 -> 1539.827111 | D12: =SUMIF(Proforma!$H$8:$H$393,D$9,Proforma!$F$8:$F$393)/1000 -> 2272.89508 | E12: =SUMIF(Proforma!$H$8:$H$393,E$9,Proforma!$F$8:$F$393)/1000 -> 0 | F12: =SUMIF(Proforma!$H$8:$H$393,F$9,Proforma!$F$8:$F$393)/1000 -> 2.45108 | G12: =SUMIF(Proforma!$H$8:$H$393,G$9,Proforma!$F$8:$F$393)/1000 -> 0 | H12: =SUMIF(Proforma!$H$8:$H$393,H$9,Proforma!$F$8:$F$393)/1000 -> 351.8283037
B13: Of Non-Regulated | C13: =SUMIF(Proforma!$H$8:$H$393,C$9,Proforma!$J$8:$J$393)/1000 -> 295.3664938 | D13: =SUMIF(Proforma!$H$8:$H$393,D$9,Proforma!$J$8:$J$393)/1000 -> 7.063081361 | E13: =SUMIF(Proforma!$H$8:$H$393,E$9,Proforma!$J$8:$J$393)/1000 -> 0 | F13: =SUMIF(Proforma!$H$8:$H$393,F$9,Proforma!$J$8:$J$393)/1000 -> 0.030148284 | G13: =SUMIF(Proforma!$H$8:$H$393,G$9,Proforma!$J$8:$J$393)/1000 -> 0 | H13: =SUMIF(Proforma!$H$8:$H$393,H$9,Proforma!$J$8:$J$393)/1000 -> 28.10711047
B14: Of Regulated | C14: =SUMIF(Proforma!$H$8:$H$393,C$9,Proforma!$K$8:$K$393)/1000 -> 1244.460618 | D14: =SUMIF(Proforma!$H$8:$H$393,D$9,Proforma!$K$8:$K$393)/1000 -> 2263.502439 | E14: =SUMIF(Proforma!$H$8:$H$393,E$9,Proforma!$K$8:$K$393)/1000 -> 0 | F14: =SUMIF(Proforma!$H$8:$H$393,F$9,Proforma!$K$8:$K$393)/1000 -> 2.420931716 | G14: =SUMIF(Proforma!$H$8:$H$393,G$9,Proforma!$K$8:$K$393)/1000 -> 0 | H14: =SUMIF(Proforma!$H$8:$H$393,H$9,Proforma!$K$8:$K$393)/1000 -> 323.7211932
C16: =+C9 -> Truck Hours | D16: Actual | E16: Pay Diff Adj | F16: Container Count | G16: Customer Count | H16: Prev Alloc Costs
B17: Garbage | C17: ='Truck Hrs Sum'!H25 -> 1 | D17: =SUMIF(Proforma!$M$8:$M$3708,D$16,Proforma!$O$8:$O$393)/SUMIF(Proforma!$M$8:$M$3708,D$16,Proforma!$K$8:$K$393) -> 0.9594899928 | E17: ='Truck Hrs Sum'!E43 -> 1 | F17: ='Container Counts'!H121 -> 1 | G17: ='Customer Counts'!H102 -> 1 | H17: =(SUMIF(Proforma!$M$8:$M$393,$C$16,Proforma!$O$8:$O$393)+SUMIF(Proforma!$M$8:$M$393,$D$16,Proforma!$O$8:$O$393)+SUMIF(Proforma!$M$8:$M$393,$E$16,Proforma!$O$8:$O$393)+SUMIF(Proforma!$M$8:$M$393,$F$16,Proforma!$O$8:$O$393)+SUMIF(Proforma!$M$8:$M$393,$G$16,Proforma!$O$8:$O$393))/(SUMIF(Proforma!$M$8:$M$393,$C$16,Proforma!$K$8:$K$393)+SUMIF(Proforma!$M$8:$M$393,$D$16,Proforma!$K$8:$K$393)+SUMIF(Proforma!$M$8:$M$393,$E$16,Proforma!$K$8:$K$393)+SUMIF(Proforma!$M$8:$M$393,$F$16,Proforma!$K$8:$K$393)+SUMIF(Proforma!$M$8:$M$393,$G$16,Proforma!$K$8:$K$393)) -> 0.9738790684
B18: Recycle | C18: ='Truck Hrs Sum'!H26 -> 0 | D18: =SUMIF(Proforma!$M$8:$M$3708,D$16,Proforma!$P$8:$P$393)/SUMIF(Proforma!$M$8:$M$3708,D$16,Proforma!$K$8:$K$393) -> 0 | E18: ='Truck Hrs Sum'!E44 -> 0 | F18: ='Container Counts'!H122 -> 0 | G18: ='Customer Counts'!H103 -> 0 | H18: =(SUMIF(Proforma!$M$8:$M$393,$C$16,Proforma!$P$8:$P$393)+SUMIF(Proforma!$M$8:$M$393,$D$16,Proforma!$P$8:$P$393)+SUMIF(Proforma!$M$8:$M$393,$E$16,Proforma!$P$8:$P$393)+SUMIF(Proforma!$M$8:$M$393,$F$16,Proforma!$P$8:$P$393)+SUMIF(Proforma!$M$8:$M$393,$G$16,Proforma!$P$8:$P$393))/(SUMIF(Proforma!$M$8:$M$393,$C$16,Proforma!$K$8:$K$393)+SUMIF(Proforma!$M$8:$M$393,$D$16,Proforma!$K$8:$K$393)+SUMIF(Proforma!$M$8:$M$393,$E$16,Proforma!$K$8:$K$393)+SUMIF(Proforma!$M$8:$M$393,$F$16,Proforma!$K$8:$K$393)+SUMIF(Proforma!$M$8:$M$393,$G$16,Proforma!$K$8:$K$393)) -> 0
B19: Yardwaste | C19: ='Truck Hrs Sum'!H27 -> 0 | D19: =SUMIF(Proforma!$M$8:$M$3708,D$16,Proforma!$Q$8:$Q$393)/SUMIF(Proforma!$M$8:$M$3708,D$16,Proforma!$K$8:$K$393) -> 0 | E19: ='Truck Hrs Sum'!E45 -> 0 | F19: ='Container Counts'!H123 -> 0 | G19: ='Customer Counts'!H104 -> 0 | H19: =(SUMIF(Proforma!$M$8:$M$393,$C$16,Proforma!$Q$8:$Q$393)+SUMIF(Proforma!$M$8:$M$393,$D$16,Proforma!$Q$8:$Q$393)+SUMIF(Proforma!$M$8:$M$393,$E$16,Proforma!$Q$8:$Q$393)+SUMIF(Proforma!$M$8:$M$393,$F$16,Proforma!$Q$8:$Q$393)+SUMIF(Proforma!$M$8:$M$393,$G$16,Proforma!$Q$8:$Q$393))/(SUMIF(Proforma!$M$8:$M$393,$C$16,Proforma!$K$8:$K$393)+SUMIF(Proforma!$M$8:$M$393,$D$16,Proforma!$K$8:$K$393)+SUMIF(Proforma!$M$8:$M$393,$E$16,Proforma!$K$8:$K$393)+SUMIF(Proforma!$M$8:$M$393,$F$16,Proforma!$K$8:$K$393)+SUMIF(Proforma!$M$8:$M$393,$G$16,Proforma!$K$8:$K$393)) -> 0
B20: Multi-family Recycle | C20: ='Truck Hrs Sum'!H28 -> 0 | D20: =SUMIF(Proforma!$M$8:$M$3708,D$16,Proforma!$R$8:$R$393)/SUMIF(Proforma!$M$8:$M$3708,D$16,Proforma!$K$8:$K$393) -> 0 | E20: ='Truck Hrs Sum'!E46 -> 0 | F20: ='Container Counts'!H124 -> 0 | G20: ='Customer Counts'!H105 -> 0 | H20: =(SUMIF(Proforma!$M$8:$M$393,$C$16,Proforma!$R$8:$R$393)+SUMIF(Proforma!$M$8:$M$393,$D$16,Proforma!$R$8:$R$393)+SUMIF(Proforma!$M$8:$M$393,$E$16,Proforma!$R$8:$R$393)+SUMIF(Proforma!$M$8:$M$393,$F$16,Proforma!$R$8:$R$393)+SUMIF(Proforma!$M$8:$M$393,$G$16,Proforma!$R$8:$R$393))/(SUMIF(Proforma!$M$8:$M$393,$C$16,Proforma!$K$8:$K$393)+SUMIF(Proforma!$M$8:$M$393,$D$16,Proforma!$K$8:$K$393)+SUMIF(Proforma!$M$8:$M$393,$E$16,Proforma!$K$8:$K$393)+SUMIF(Proforma!$M$8:$M$393,$F$16,Proforma!$K$8:$K$393)+SUMIF(Proforma!$M$8:$M$393,$G$16,Proforma!$K$8:$K$393)) -> 0
B21: =+B14 -> Of Regulated | C21: =SUMIF(Proforma!$M$8:$M$3708,C$16,Proforma!$K$8:$K$393)/1000 -> 551.9846145 | D21: =SUMIF(Proforma!$M$8:$M$3708,D$16,Proforma!$K$8:$K$393)/1000 -> 2263.502439 | E21: =SUMIF(Proforma!$M$8:$M$3708,E$16,Proforma!$K$8:$K$393)/1000 -> 692.4760031 | F21: =SUMIF(Proforma!$M$8:$M$3708,F$16,Proforma!$K$8:$K$393)/1000 -> 2.420931716 | G21: =SUMIF(Proforma!$M$8:$M$3708,G$16,Proforma!$K$8:$K$393)/1000 -> 0 | H21: =SUMIF(Proforma!$M$8:$M$3708,H$16,Proforma!$K$8:$K$393)/1000 -> 323.7211932
B22: Of MSW | C22: =SUMIF(Proforma!$M$8:$M$3708,C$16,Proforma!$O$8:$O$393)/1000 -> 551.9846145 | D22: =SUMIF(Proforma!$M$8:$M$3708,D$16,Proforma!$O$8:$O$393)/1000 -> 2171.807939 | E22: =SUMIF(Proforma!$M$8:$M$3708,E$16,Proforma!$O$8:$O$393)/1000 -> 692.4760031 | F22: =SUMIF(Proforma!$M$8:$M$3708,F$16,Proforma!$O$8:$O$393)/1000 -> 2.420931716 | G22: =SUMIF(Proforma!$M$8:$M$3708,G$16,Proforma!$O$8:$O$393)/1000 -> 0 | H22: =SUMIF(Proforma!$M$8:$M$3708,H$16,Proforma!$O$8:$O$393)/1000 -> 323.7211932
B23: Of RCY | C23: =SUMIF(Proforma!$M$8:$M$3708,C$16,Proforma!$P$8:$P$393)/1000 -> 0 | D23: =SUMIF(Proforma!$M$8:$M$3708,D$16,Proforma!$P$8:$P$393)/1000 -> 0 | E23: =SUMIF(Proforma!$M$8:$M$3708,E$16,Proforma!$P$8:$P$393)/1000 -> 0 | F23: =SUMIF(Proforma!$M$8:$M$3708,F$16,Proforma!$P$8:$P$393)/1000 -> 0 | G23: =SUMIF(Proforma!$M$8:$M$3708,G$16,Proforma!$P$8:$P$393)/1000 -> 0 | H23: =SUMIF(Proforma!$M$8:$M$3708,H$16,Proforma!$P$8:$P$393)/1000 -> 0
B24: Of YW | C24: =SUMIF(Proforma!$M$8:$M$3708,C$16,Proforma!$Q$8:$Q$393)/1000 -> 0 | D24: =SUMIF(Proforma!$M$8:$M$3708,D$16,Proforma!$Q$8:$Q$393)/1000 -> 0 | E24: =SUMIF(Proforma!$M$8:$M$3708,E$16,Proforma!$Q$8:$Q$393)/1000 -> 0 | F24: =SUMIF(Proforma!$M$8:$M$3708,F$16,Proforma!$Q$8:$Q$393)/1000 -> 0 | G24: =SUMIF(Proforma!$M$8:$M$3708,G$16,Proforma!$Q$8:$Q$393)/1000 -> 0 | H24: =SUMIF(Proforma!$M$8:$M$3708,H$16,Proforma!$Q$8:$Q$393)/1000 -> 0
B25: Of MF RCY | C25: =SUMIF(Proforma!$M$8:$M$3708,C$16,Proforma!$R$8:$R$393)/1000 -> 0 | D25: =SUMIF(Proforma!$M$8:$M$3708,D$16,Proforma!$R$8:$R$393)/1000 -> 0 | E25: =SUMIF(Proforma!$M$8:$M$3708,E$16,Proforma!$R$8:$R$393)/1000 -> 0 | F25: =SUMIF(Proforma!$M$8:$M$3708,F$16,Proforma!$R$8:$R$393)/1000 -> 0 | G25: =SUMIF(Proforma!$M$8:$M$3708,G$16,Proforma!$R$8:$R$393)/1000 -> 0 | H25: =SUMIF(Proforma!$M$8:$M$3708,H$16,Proforma!$R$8:$R$393)/1000 -> 0

Sheet Proforma
A1: Allocation Worksheet
A2: General Rate Case | J2: Customer Count | K2: =+'Alloc Summary'!G10 -> 0.502 | O2: =+'Alloc Summary'!$G17 -> 1 | P2: =+'Alloc Summary'!$G18 -> 0 | Q2: =+'Alloc Summary'!$G19 -> 0 | R2: =+'Alloc Summary'!$G20 -> 0
J3: Truck Hours | K3: =+'Alloc Summary'!C10 -> 0.808182041 | O3: =+'Alloc Summary'!$C17 -> 1 | P3: =+'Alloc Summary'!$C18 -> 0 | Q3: =+'Alloc Summary'!$C19 -> 0 | R3: =+'Alloc Summary'!$C20 -> 0
J4: Container Count | K4: =+'Alloc Summary'!F10 -> 0.9877 | O4: =+'Alloc Summary'!$F17 -> 1 | P4: =+'Alloc Summary'!$F18 -> 0 | Q4: =+'Alloc Summary'!$F19 -> 0 | R4: =+'Alloc Summary'!$F20 -> 0
J5: Pay Diff Adj | K5: =+'Alloc Summary'!E10 -> 0 | O5: ='Alloc Summary'!E17 -> 1 | P5: ='Alloc Summary'!E18 -> 0 | Q5: ='Alloc Summary'!E19 -> 0 | R5: ='Alloc Summary'!E20 -> 0
J6: Prev Alloc Costs | K6: =+'Alloc Summary'!H10 -> 0.9201112868 | O6: =+'Alloc Summary'!$H17 -> 0.9738790684 | P6: =+'Alloc Summary'!$H18 -> 0 | Q6: =+'Alloc Summary'!$H19 -> 0 | R6: =+'Alloc Summary'!$H20 -> 0
C8: Division | D8: Restating | E8: Proforma | F8: Adjusted | H8: Allocation | J8: Unregulated | K8: Regulated | M8: Allocation | O8: Regulated | P8: Regulated | Q8: Regulated | R8: =+Q8 -> Regulated
A9: Account # | B9: Account Description | C9: Total | D9: Adjustment | E9: Adjustment | F9: Proforma | H9: Methodology | J9: Operations | K9: Operations | M9: Methodology | O9: Garbage | P9: Recycle | Q9: Yardwaste | R9: MF Recycle
A10: REVENUE
A11: 3011** | B11: =+'P&L - ITD3 (Acct Desc)'!$A$89 -> Ind O/S | C11: =+VLOOKUP($B11,'P&L - ITD3 (Acct Desc)'!A$1:R$1417,2,FALSE) -> 369026.94 | D11: =+'PF Restate'!$G11 -> -91199.13 | E11: =+'PF Adj'!$G11 -> 0 | F11: =SUM(C11:E11) -> 277827.81 | H11: Actual | J11: =F11-K11 -> 38627.72 | K11: ='Revenue Lookup'!Q106+E11 -> 239200.09 | M11: =H11 -> Actual | O11: =K11-SUM(P11:R11) -> 239200.09 | P11: 0 | Q11: 0 | R11: =SUM('IND (+MF) Price Out'!N8:N9) -> 0
B12: Disposal Pass Through | D12: =+'PF Restate'!$G12 -> 91199.13 | E12: =+'PF Adj'!$G12 -> 0 | F12: =SUM(C12:E12) -> 91199.13 | H12: Actual | J12: =F12-K12 -> 0 | K12: =-'Revenue Lookup'!Q79 -> 91199.13 | M12: Actual | O12: =K12-SUM(P12:R12) -> 91199.13 | P12: 0 | Q12: 0 | R12: 0
B13: Franchise Fee | D13: ='PF Restate'!C13 -> 0 | E13: =+'PF Adj'!$G13 -> 0 | F13: 0 | H13: Actual | J13: =F13-K13 -> 0 | M13: Actual
A14: 3012** | B14: =+'P&L - ITD3 (Acct Desc)'!$A$173 -> Com O/S | C14: =+VLOOKUP($B14,'P&L - ITD3 (Acct Desc)'!A$1:R$1417,2,FALSE) -> 827153.32 | D14: =+'PF Restate'!$G14 -> 0 | E14: =+'PF Adj'!$G14 -> 0 | F14: 827153.32 | H14: Actual | J14: 33318.33 | K14: =+'Revenue Lookup'!Q72-SUM('Revenue Lookup'!Q49:Q69)+E14 -> 793834.99 | M14: Actual | O14: =K14-SUM(P14:R14) -> 793834.99 | P14: 0 | Q14: 0 | R14: 0
B15: Franchise Fee | D15: ='PF Restate'!C15 -> 0 | E15: =+'PF Adj'!$G15 -> 0 | F15: 0 | H15: Actual | J15: 0 | M15: Actual
A16: 3013** | B16: =+'P&L - ITD3 (Acct Desc)'!$A$251 -> Resi O/S | C16: =+VLOOKUP($B16,'P&L - ITD3 (Acct Desc)'!A$1:R$1417,2,FALSE) -> 639292.65 | D16: =+'PF Restate'!$G16 -> 0 | E16: =+'PF Adj'!$G16 -> 0 | F16: 639292.65 | H16: Actual | J16: 2567.47 | K16: ='Revenue Lookup'!Q37+E16 -> 636725.18 | M16: Actual | O16: =K16-SUM(P16:R16) -> 636725.18 | P16: =+'Price Out Summ'!C11 -> 0 | Q16: =+'Price Out Summ'!C13 -> 0 | R16: 0
B17: Franchise Fee | D17: ='PF Restate'!C17 -> 0 | E17: =+'PF Adj'!$G17 -> 0 | F17: 0 | H17: Actual | J17: 0 | M17: Actual
A19: 3111** | B19: =+'P&L - ITD3 (Acct Desc)'!$A$430 -> Ind I/C | C19: =+VLOOKUP($B19,'P&L - ITD3 (Acct Desc)'!A$1:R$1417,2,FALSE) -> 105972.73 | D19: =+'PF Restate'!$G19+'PF Restate'!C19 -> 0 | E19: =+'PF Adj'!$G19 -> 0 | F19: =SUM(C19:E19) -> 105972.73 | H19: Actual | J19: =F19-K19 -> 0 | K19: =F19 -> 105972.73 | M19: =H19 -> Actual | O19: =K19-SUM(P19:R19) -> 105972.73 | P19: 0 | Q19: 0 | R19: 0
B20: IC SOM | D20: ='PF Restate'!D20 -> 0 | F20: 0 | H20: Actual | J20: 0 | M20: Actual
A21: 3112** | B21: =+'P&L - ITD3 (Acct Desc)'!$A$433 -> Com I/C | C21: =+VLOOKUP($B21,'P&L - ITD3 (Acct Desc)'!A$1:R$1417,2,FALSE) -> 7489.2 | D21: =+'PF Restate'!$G21+'PF Restate'!C22 -> 0 | E21: =+'PF Adj'!$G21 -> 0 | F21: 7489.2 | H21: Actual | J21: 0 | K21: =F21 -> 7489.2 | M21: Actual | O21: =K21-SUM(P21:R21) -> 7489.2 | P21: 0 | Q21: 0 | R21: 0
B22: IC SOM | D22: ='PF Restate'!D22 -> 0 | F22: 0 | H22: Actual | J22: 0 | M22: Actual
A23: 3113** | B23: =+'P&L - ITD3 (Acct Desc)'!$A$436 -> Resi I/C | C23: =+VLOOKUP($B23,'P&L - ITD3 (Acct Desc)'!A$1:R$1417,2,FALSE) -> 1656.48 | D23: =+'PF Restate'!$G23+'PF Restate'!C24 -> 0 | E23: =+'PF Adj'!$G23 -> 0 | F23: 1656.48 | H23: Actual | J23: 0 | K23: =F23 -> 1656.48 | M23: Actual | O23: =K23-SUM(P23:R23) -> 1656.48 | P23: 0 | Q23: 0 | R23: 0
B24: IC SOM | D24: ='PF Restate'!D24 -> 0 | F24: 0 | H24: Actual | J24: 0 | M24: Actual
B26: =+'P&L - ITD3 (Acct Desc)'!$A$444 -> Gross Revenue | C26: =+VLOOKUP($B26,'P&L - ITD3 (Acct Desc)'!A$1:R$1417,2,FALSE) -> 1950591.32 | D26: =SUM(D11:D25) -> 0 | E26: =SUM(E11:E25) -> 0 | F26: =SUM(C26:E26) -> 1950591.32 | J26: =F26-K26 -> 74513.52 | K26: =SUM(K11:K25) -> 1876077.8 | O26: =SUM(O11:O25) -> 1876077.8 | P26: =SUM(P11:P25) -> 0 | Q26: =SUM(Q11:Q25) -> 0 | R26: =SUM(R11:R25) -> 0
A27: Check | C27: =+C26-SUM(C11:C25) -> 0
B28: =+'P&L - ITD3 (Acct Desc)'!$A$445 -> Disposal O/S | C28: =+VLOOKUP($B28,'P&L - ITD3 (Acct Desc)'!A$1:R$1417,2,FALSE) -> 0 | D28: =+'PF Restate'!$G28 -> 0 | E28: =+'PF Adj'!$G28 -> 0 | F28: =SUM(C28:E28) -> 0 | H28: Actual | J28: =F28-K28 -> 0 | K28: =F28 -> 0 | M28: =H28 -> Actual | O28: =K28-SUM(P28:R28) -> 0 | P28: 0 | Q28: 0 | R28: 0 | U28: =SUM(K28:K29)/K26 -> 0 | V28: =SUM(J28:J29)/J26 -> 0
B29: =+'P&L - ITD3 (Acct Desc)'!$A$447 -> Diverted O/S | C29: =+VLOOKUP($B29,'P&L - ITD3 (Acct Desc)'!A$1:R$1417,2,FALSE) -> 0 | D29: =+'PF Restate'!$G29 -> 0 | E29: =+'PF Adj'!$G29 -> 0 | F29: =SUM(C29:E29) -> 0 | H29: Actual | J29: =F29-K29 -> 0 | K29: 0 | M29: =H29 -> Actual | O29: =K29-SUM(P29:R29) -> 0 | P29: 0 | Q29: =K29-R29 -> 0 | R29: 0
A30: Disposal I/C - 4178 | B30: Disposal I/C - 4178 | C30: =IFERROR(+VLOOKUP($A30,'P&L - ITD3 (Acct Desc)'!A$1:R$1417,2,FALSE),0) -> 89704.84 | D30: =+'PF Restate'!$G30 -> 0 | E30: =+'PF Adj'!$G30 -> 0 | F30: =SUM(C30:E30) -> 89704.84 | H30: Actual | J30: =F30-K30 -> -1494.29 | K30: =-'Revenue Lookup'!Q79+E30 -> 91199.13 | M30: =H30 -> Actual | O30: =K30-SUM(P30:R30) -> 91199.13 | P30: 0 | Q30: 0 | R30: 0
A31: Subtotal | B31: Total Tipping & Disposal Costs | C31: =SUM(C28:C30) -> 89704.84 | D31: =SUM(D28:D30) -> 0 | E31: =SUM(E28:E30) -> 0 | F31: =SUM(C31:E31) -> 89704.84 | J31: =F31-K31 -> -1494.29 | K31: =SUM(K28:K30) -> 91199.13 | O31: =SUM(O28:O30) -> 91199.13 | P31: =SUM(P28:P30) -> 0 | Q31: =SUM(Q28:Q30) -> 0 | R31: =SUM(R28:R30) -> 0
A33: Subtotal | B33: =+'P&L - ITD3 (Acct Desc)'!$A$466 -> COGS SOM | C33: =+VLOOKUP($B33,'P&L - ITD3 (Acct Desc)'!A$1:R$1417,2,FALSE) -> 0 | D33: ='PF Restate'!$C$19+'PF Restate'!$C$21+'PF Restate'!$C$23 -> 0 | E33: =+'PF Adj'!$G34 -> 0 | F33: =SUM(C33:E33) -> 0 | H33: Actual | J33: =F33-K33 -> 0 | K33: =F33*Disposal!R27/Disposal!R55 -> 0 | M33: =H33 -> Actual | O33: =K33-SUM(P33:R33) -> 0 | P33: =K33-R33 -> 0 | Q33: 0 | R33: 0
A34: Subtotal | B34: =+'P&L - ITD3 (Acct Desc)'!$A$486 -> Fees, Taxes, Royalties | C34: =+VLOOKUP($B34,'P&L - ITD3 (Acct Desc)'!A$1:R$1417,2,FALSE) -> 0 | D34: =+'PF Restate'!$G35 -> 0 | E34: =+'PF Adj'!$G35 -> 0 | F34: 0 | H34: Actual | J34: =F34-K34 -> -8020.232595 | K34: =+K26*'Combined LG'!$H$17 -> 8020.232595 | M34: =H34 -> Actual | O34: =K34-SUM(P34:R34) -> 8020.232595 | P34: =+P26*'Combined LG'!$H$17 -> 0 | Q34: =+Q26*'Combined LG'!$H$17 -> 0 | R34: 0
A35: Subtotal | B35: =+'P&L - ITD3 (Acct Desc)'!$A$495 -> COGS Other | C35: =+VLOOKUP($B35,'P&L - ITD3 (Acct Desc)'!A$1:R$1417,2,FALSE) -> 0 | D35: =+'PF Restate'!$G36 -> 0 | E35: =+'PF Adj'!$G36 -> 0 | F35: 0 | H35: Actual | J35: =F35-K35 -> 0 | K35: 0 | M35: =H35 -> Actual | O35: =K35-SUM(P35:R35) -> 0 | P35: 0 | Q35: 0 | R35: 0
A36: Subtotal | B36: subcontract | C36: =+VLOOKUP($B36,'P&L - ITD3 (Acct Desc)'!A$1:R$1417,2,FALSE) -> 57 | D36: =+'PF Restate'!$G37 -> 0 | E36: =+'PF Adj'!$G37 -> 0 | F36: 57 | H36: Actual | J36: =F36-K36 -> 57 | K36: 0 | M36: =H36 -> Actual | O36: =K36-SUM(P36:R36) -> 0 | P36: 0 | Q36: 0 | R36: 0
B37: =+'P&L - ITD3 (Acct Desc)'!$A$496 -> Revenue Reduction | C37: =+VLOOKUP($B37,'P&L - ITD3 (Acct Desc)'!A$1:R$1417,2,FALSE) -> 89761.84 | D37: =SUM(D31:D36) -> 0 | E37: =SUM(E31:E36) -> 0 | F37: 89761.84 | J37: =F37-K37 -> -9457.522595 | K37: =SUM(K31:K36) -> 99219.36259 | O37: =SUM(O31:O36) -> 99219.36259 | P37: =SUM(P31:P36) -> 0 | Q37: =SUM(Q31:Q36) -> 0 | R37: =SUM(R31:R36) -> 0
A38: Check | C38: =+C37-SUM(C31:C36) -> 0 | F38: 0
B39: =+'P&L - ITD3 (Acct Desc)'!$A$497 -> NET REVENUE | C39: =+VLOOKUP($B39,'P&L - ITD3 (Acct Desc)'!A$1:R$1417,2,FALSE) -> 1860829.48 | D39: =D26-D37 -> 0 | E39: =E26-E37 -> 0 | F39: 1860829.48 | J39: =F39-K39 -> 83971.04259 | K39: =K26-K37 -> 1776858.437 | O39: =O26-O37 -> 1776858.437 | P39: =P26-P37 -> 0 | Q39: =Q26-Q37 -> 0 | R39: =R26-R37 -> 0
A41: EXPENSES
A44: =+'P&L - ITD3 (Acct #)'!$A$508 -> 500 500010 | B44: =+'P&L - ITD3 (Acct Desc)'!$A$508 -> 500010 Drivers | C44: =+VLOOKUP($A44,'P&L - ITD3 (Acct #)'!$A:$F,2,FALSE) -> 425280.48 | D44: =+'PF Restate'!$G45 -> 0 | E44: =+'PF Adj'!$G45 -> 301082.4137 | F44: =SUM(C44:E44) -> 726362.8937 | H44: Truck Hours | J44: =F44-K44 -> 139329.4478 | K44: =F44*VLOOKUP(H44,$J$2:$K$6,2,FALSE) -> 587033.4459 | M44: Pay Diff Adj | O44: =K44-SUM(P44:R44) -> 587033.4459 | P44: =$K44*VLOOKUP($M44,$J$2:$R$6,MATCH(P$9,$J$9:$R$9,0),FALSE) -> 0 | Q44: =$K44*VLOOKUP($M44,$J$2:$R$6,MATCH(Q$9,$J$9:$R$9,0),FALSE) -> 0 | R44: =$K44*VLOOKUP($M44,$J$2:$R$6,MATCH(R$9,$J$9:$R$9,0),FALSE) -> 0
A45: =+'P&L - ITD3 (Acct #)'!$A$514 -> 500 500020 | B45: =+'P&L - ITD3 (Acct Desc)'!$A$514 -> 500020 Collection Helper | C45: =+VLOOKUP($A45,'P&L - ITD3 (Acct #)'!$A:$F,2,FALSE) -> 130458.62 | D45: =+'PF Restate'!$G46 -> 0 | E45: =+'PF Adj'!$G46 -> 0 | F45: 130458.62 | H45: Truck Hours | J45: =F45-K45 -> 25024.30623 | K45: =F45*VLOOKUP(H45,$J$2:$K$6,2,FALSE) -> 105434.3138 | M45: Pay Diff Adj | O45: =K45-SUM(P45:R45) -> 105434.3138 | P45: =$K45*VLOOKUP($M45,$J$2:$R$6,MATCH(P$9,$J$9:$R$9,0),FALSE) -> 0 | Q45: 0 | R45: 0
A46: =+'P&L - ITD3 (Acct #)'!$A$520 -> 500 500030 | B46: =+'P&L - ITD3 (Acct Desc)'!$A$520 -> 500030 Operators | C46: =+VLOOKUP($A46,'P&L - ITD3 (Acct #)'!$A:$F,2,FALSE) -> 10.2 | D46: =+'PF Restate'!$G47 -> 0 | E46: =+'PF Adj'!$G47 -> 0 | F46: 10.2 | H46: Truck Hours | J46: 1.956543182 | K46: 8.243456818 | M46: Pay Diff Adj | O46: 8.243456818 | P46: 0 | Q46: 0 | R46: 0
A47: =+'P&L - ITD3 (Acct #)'!$A$526 -> 500 500040 | B47: =+'P&L - ITD3 (Acct Desc)'!$A$526 -> 500040 Secondary | C47: =+VLOOKUP($A47,'P&L - ITD3 (Acct #)'!$A:$F,2,FALSE) -> 0 | D47: =+'PF Restate'!$G48 -> 0 | E47: =+'PF Adj'!$G48 -> 0 | F47: 0 | H47: Truck Hours | J47: 0 | K47: 0 | M47: Pay Diff Adj | O47: 0 | P47: 0 | Q47: 0 | R47: 0
A48: =+'P&L - ITD3 (Acct #)'!$A$532 -> 500 500050 | B48: =+'P&L - ITD3 (Acct Desc)'!$A$532 -> 500050 Container Delivery | C48: =+VLOOKUP($A48,'P&L - ITD3 (Acct #)'!$A:$F,2,FALSE) -> 0 | D48: =+'PF Restate'!$G49 -> 0 | E48: =+'PF Adj'!$G49 -> 0 | F48: 0 | H48: Truck Hours | J48: 0 | K48: 0 | M48: Pay Diff Adj | O48: 0 | P48: 0 | Q48: 0 | R48: 0
A49: =+'P&L - ITD3 (Acct #)'!$A$533 -> 500055 0000 | B49: =+'P&L - ITD3 (Acct Desc)'!$A$533 -> Temp Labor-Oper Labor | C49: =+VLOOKUP($A49,'P&L - ITD3 (Acct #)'!$A:$F,2,FALSE) -> 0 | D49: =+'PF Restate'!$G50 -> 0 | E49: =+'PF Adj'!$G50 -> 0 | F49: 0 | H49: Truck Hours | J49: 0 | K49: 0 | M49: =H49 -> Truck Hours | O49: 0 | P49: 0 | Q49: 0 | R49: 0
A50: 500060 0000 | B50: Bonus Pay Non-Corp-Oper Labor | C50: =+VLOOKUP($A50,'P&L - ITD3 (Acct #)'!$A:$F,2,FALSE) -> 142.14 | D50: =+'PF Restate'!$G51 -> -142.14 | E50: =+'PF Adj'!$G51 -> 0 | F50: =SUM(C50:E50) -> 0 | H50: Truck Hours | J50: =F50-K50 -> 0 | K50: =F50*VLOOKUP(H50,$J$2:$K$6,2,FALSE) -> 0 | M50: =H50 -> Truck Hours | O50: =K50-SUM(P50:R50) -> 0 | P50: 0 | Q50: 0 | R50: 0
A51: =+'P&L - ITD3 (Acct #)'!$A$536 -> 500170 0000 | B51: =+'P&L - ITD3 (Acct Desc)'!$A$536 -> Payroll Taxes - Oper Labor | C51: =+VLOOKUP($A51,'P&L - ITD3 (Acct #)'!$A:$F,2,FALSE) -> 49456.54 | D51: =+'PF Restate'!$G52 -> 0 | E51: =+'PF Adj'!$G52 -> 22919.6874 | F51: 72376.2274 | H51: Truck Hours | J51: 13883.06022 | K51: 58493.16717 | M51: Truck Hours | O51: 58493.16717 | P51: 0 | Q51: 0 | R51: 0
A52: =+'P&L - ITD3 (Acct #)'!$A$537 -> 500172 0000 | B52: =+'P&L - ITD3 (Acct Desc)'!$A$537 -> Personal Time - Oper Labor | C52: =+VLOOKUP($A52,'P&L - ITD3 (Acct #)'!$A:$F,2,FALSE) -> 2867.28 | D52: =+'PF Restate'!$G53 -> 0 | E52: =+'PF Adj'!$G53 -> 0 | F52: 2867.28 | H52: Truck Hours | J52: 549.9957976 | K52: 2317.284202 | M52: Truck Hours | O52: 2317.284202 | P52: 0 | Q52: 0 | R52: 0
A53: =+'P&L - ITD3 (Acct #)'!$A$540 -> 500173 0000 | B53: =+'P&L - ITD3 (Acct Desc)'!$A$540 -> Holiday Pay - Oper Labor | C53: =+VLOOKUP($A53,'P&L - ITD3 (Acct #)'!$A:$F,2,FALSE) -> 11863.28 | D53: =+'PF Restate'!$G54 -> 0 | E53: =+'PF Adj'!$G54 -> 0 | F53: 11863.28 | H53: Truck Hours | J53: 2275.590157 | K53: 9587.689843 | M53: Truck Hours | O53: 9587.689843 | P53: 0 | Q53: 0 | R53: 0
A54: =+'P&L - ITD3 (Acct #)'!$A$541 -> 500174 0000 | B54: =+'P&L - ITD3 (Acct Desc)'!$A$541 -> Vacation/Sick - Oper Labor | C54: =+VLOOKUP($A54,'P&L - ITD3 (Acct #)'!$A:$F,2,FALSE) -> 36563.3 | D54: =+'PF Restate'!$G55 -> 0 | E54: =+'PF Adj'!$G55 -> 0 | F54: 36563.3 | H54: Truck Hours | J54: 7013.497582 | K54: 29549.80242 | M54: Truck Hours | O54: 29549.80242 | P54: 0 | Q54: 0 | R54: 0
A55: =+'P&L - ITD3 (Acct #)'!$A$547 -> 500 500175 | B55: =+'P&L - ITD3 (Acct Desc)'!$A$547 -> 500175 Benefits Non-Corp - Oper Labor | C55: =+VLOOKUP($A55,'P&L - ITD3 (Acct #)'!$A:$F,2,FALSE) -> 66466.18 | D55: =+'PF Restate'!$G56 -> 0 | E55: =+'PF Adj'!$G56 -> 43142.83332 | F55: 109609.0133 | H55: Truck Hours | J55: 21024.97723 | K55: 88584.0361 | M55: Truck Hours | O55: 88584.0361 | P55: 0 | Q55: 0 | R55: 0
A56: =+'P&L - ITD3 (Acct #)'!$A$548 -> 500176 0000 | B56: =+'P&L - ITD3 (Acct Desc)'!$A$548 -> Benefits Corp - Oper Labor | C56: =+VLOOKUP($A56,'P&L - ITD3 (Acct #)'!$A:$F,2,FALSE) -> 105999 | D56: =+'PF Restate'!$G57 -> 0 | E56: =+'PF Adj'!$G57 -> 0 | F56: 105999 | H56: Truck Hours | J56: =F56-K56 -> 20332.51184 | K56: =F56*VLOOKUP(H56,$J$2:$K$6,2,FALSE) -> 85666.48816 | M56: Truck Hours | O56: 85666.48816 | P56: 0 | Q56: 0 | R56: 0
A57: =+'P&L - ITD3 (Acct #)'!A550 -> 500186 0000 | B57: =+'P&L - ITD3 (Acct Desc)'!A550 -> Union Dues - Oper Labor | C57: =+VLOOKUP($A57,'P&L - ITD3 (Acct #)'!$A:$F,2,FALSE) -> -13.5 | D57: =+'PF Restate'!$G57 -> 0 | E57: =+'PF Adj'!$G57 -> 0 | F57: =SUM(C57:E57) -> -13.5 | H57: Truck Hours | J57: =F57-K57 -> -2.589542447 | K57: =F57*VLOOKUP(H57,$J$2:$K$6,2,FALSE) -> -10.91045755 | M57: =H57 -> Truck Hours | O57: =K57-SUM(P57:R57) -> -10.91045755 | P57: 0 | Q57: 0 | R57: 0
A58: =+'P&L - ITD3 (Acct #)'!$A$551 -> 500188 0000 | B58: =+'P&L - ITD3 (Acct Desc)'!$A$551 -> Uniforms & Safety - Oper Labor | C58: =+VLOOKUP($A58,'P&L - ITD3 (Acct #)'!$A:$F,2,FALSE) -> 5850.12 | D58: =+'PF Restate'!$G58 -> 0 | E58: =+'PF Adj'!$G58 -> 0 | F58: 5850.12 | H58: Truck Hours | J58: =F58-K58 -> 1122.158079 | K58: =F58*VLOOKUP(H58,$J$2:$K$6,2,FALSE) -> 4727.961921 | M58: Truck Hours | O58: 4727.961921 | P58: 0 | Q58: 0 | R58: 0
A59: =+'P&L - ITD3 (Acct #)'!$A$553 -> 500998 0000 | B59: =+'P&L - ITD3 (Acct Desc)'!$A$553 -> Oper Labor Alloc-In | C59: =+VLOOKUP($A59,'P&L - ITD3 (Acct #)'!$A:$F,2,FALSE) -> 0 | D59: =+'PF Restate'!$G59 -> 0 | E59: =+'PF Adj'!$G59 -> 0 | F59: 0 | H59: Truck Hours | J59: =F59-K59 -> 0 | K59: =F59*VLOOKUP(H59,$J$2:$K$6,2,FALSE) -> 0 | M59: Truck Hours | O59: 0 | P59: 0 | Q59: 0 | R59: 0
A60: =+'P&L - ITD3 (Acct #)'!$A$557 -> 500999 0000 | B60: =+'P&L - ITD3 (Acct Desc)'!$A$557 -> Oper Labor Alloc-Out | C60: =+VLOOKUP($A60,'P&L - ITD3 (Acct #)'!$A:$F,2,FALSE) -> -238518.57 | D60: =+'PF Restate'!$G60 -> 0 | E60: =+'PF Adj'!$G60 -> 0 | F60: -238518.57 | H60: Truck Hours | J60: =F60-K60 -> -45752.14529 | K60: =F60*VLOOKUP(H60,$J$2:$K$6,2,FALSE) -> -192766.4247 | M60: Truck Hours | O60: -192766.4247 | P60: 0 | Q60: 0 | R60: 0
A61: =+'P&L - ITD3 (Acct #)'!$A$558 -> Operating Labor | B61: =+'P&L - ITD3 (Acct Desc)'!$A$558 -> Operating Labor | C61: =+VLOOKUP($B61,'P&L - ITD3 (Acct Desc)'!A$1:R$1417,2,FALSE) -> 596425.07 | D61: =SUM(D43:D60) -> -142.14 | E61: =SUM(E43:E60) -> 367144.9344 | F61: 963427.8644 | J61: =SUM(J43:J60) -> 184802.7666 | K61: =SUM(K43:K60) -> 778625.0978 | O61: =SUM(O43:O60) -> 778625.0978 | P61: =SUM(P43:P60) -> 0 | Q61: =SUM(Q43:Q60) -> 0 | R61: =SUM(R43:R60) -> 0
A62: Check | C62: =+C61-SUM(C44:C60) -> 0 | F62: 0
A63: =+'P&L - ITD3 (Acct #)'!$A$565 -> 510 510010 | B63: =+'P&L - ITD3 (Acct Desc)'!$A$565 -> 510010 Mgr/Supervision | C63: =+VLOOKUP($A63,'P&L - ITD3 (Acct #)'!$A:$F,2,FALSE) -> 81239.05 | D63: =+'PF Restate'!$G63 -> 0 | E63: =+'PF Adj'!$G63 -> 0 | F63: 81239.05 | H63: Truck Hours | J63: =F63-K63 -> 15583.10877 | K63: =F63*VLOOKUP(H63,$J$2:$K$6,2,FALSE) -> 65655.94123 | M63: =H63 -> Truck Hours | O63: =K63-SUM(P63:R63) -> 65655.94123 | P63: =$K63*VLOOKUP($M63,$J$2:$R$6,MATCH(P$9,$J$9:$R$9,0),FALSE) -> 0 | Q63: 0 | R63: 0
A64: =+'P&L - ITD3 (Acct #)'!$A$572 -> 510 510020 | B64: =+'P&L - ITD3 (Acct Desc)'!$A$572 -> 510020 Dispatchers | C64: =+VLOOKUP($A64,'P&L - ITD3 (Acct #)'!$A:$F,2,FALSE) -> 0 | D64: =+'PF Restate'!$G64 -> 0 | E64: =+'PF Adj'!$G64 -> 0 | F64: =SUM(C64:E64) -> 0 | H64: Truck Hours | J64: 0 | K64: 0 | M64: Truck Hours | O64: 0 | P64: 0 | Q64: 0 | R64: 0
A65: =+'P&L - ITD3 (Acct #)'!$A$573 -> 510055 0000 | B65: =+'P&L - ITD3 (Acct Desc)'!$A$573 -> Temporary Labor - Sup Labor | C65: =+VLOOKUP($A65,'P&L - ITD3 (Acct #)'!$A:$F,2,FALSE) -> 0 | D65: =+'PF Restate'!$G65 -> 0 | E65: =+'PF Adj'!$G65 -> 0 | F65: 0 | H65: Truck Hours | J65: 0 | K65: 0 | M65: Truck Hours | O65: 0 | P65: 0 | Q65: 0 | R65: 0
A66: 510060 0000 | B66: Bonus Pay Non-Corp - Sup Labor | C66: =+VLOOKUP($A66,'P&L - ITD3 (Acct #)'!$A:$F,2,FALSE) -> 0 | D66: =+'PF Restate'!$G66 -> 0 | E66: =+'PF Adj'!$G66 -> 0 | F66: 0 | H66: Truck Hours | J66: =F66-K66 -> 0 | K66: =F66*VLOOKUP(H66,$J$2:$K$6,2,FALSE) -> 0 | M66: =H66 -> Truck Hours | O66: =K66-SUM(P66:R66) -> 0 | P66: 0 | Q66: 0 | R66: 0
A67: =+'P&L - ITD3 (Acct #)'!$A$575 -> 510061 0000 | B67: =+'P&L - ITD3 (Acct Desc)'!$A$575 -> Bonus Pay Corp - Sup Labor | C67: =+VLOOKUP($A67,'P&L - ITD3 (Acct #)'!$A:$F,2,FALSE) -> 1705.14 | D67: =+'PF Restate'!$G67 -> -1705.14 | E67: =+'PF Adj'!$G67 -> 0 | F67: 0 | H67: Truck Hours | J67: 0 | K67: 0 | M67: Truck Hours | O67: 0 | P67: 0 | Q67: 0 | R67: 0
A68: =+'P&L - ITD3 (Acct #)'!$A$576 -> 510170 0000 | B68: =+'P&L - ITD3 (Acct Desc)'!$A$576 -> Payroll Taxes - Sup Labor | C68: =+VLOOKUP($A68,'P&L - ITD3 (Acct #)'!$A:$F,2,FALSE) -> 7000.16 | D68: =+'PF Restate'!$G68 -> 0 | E68: =+'PF Adj'!$G68 -> 0 | F68: 7000.16 | H68: Truck Hours | J68: 1342.756404 | K68: 5657.403596 | M68: Truck Hours | O68: 5657.403596 | P68: 0 | Q68: 0 | R68: 0
A69: =+'P&L - ITD3 (Acct #)'!$A$577 -> 510172 0000 | B69: =+'P&L - ITD3 (Acct Desc)'!$A$577 -> Personal Time - Sup Labor | C69: =+VLOOKUP($A69,'P&L - ITD3 (Acct #)'!$A:$F,2,FALSE) -> 0 | D69: =+'PF Restate'!$G69 -> 0 | E69: =+'PF Adj'!$G69 -> 0 | F69: 0 | H69: Truck Hours | J69: 0 | K69: 0 | M69: Truck Hours | O69: 0 | P69: 0 | Q69: 0 | R69: 0
A70: =+'P&L - ITD3 (Acct #)'!$A$580 -> 510173 0000 | B70: =+'P&L - ITD3 (Acct Desc)'!$A$580 -> Holiday Pay - Sup Labor | C70: =+VLOOKUP($A70,'P&L - ITD3 (Acct #)'!$A:$F,2,FALSE) -> 0 | D70: =+'PF Restate'!$G70 -> 0 | E70: =+'PF Adj'!$G70 -> 0 | F70: 0 | H70: Truck Hours | J70: 0 | K70: 0 | M70: Truck Hours | O70: 0 | P70: 0 | Q70: 0 | R70: 0
A71: =+'P&L - ITD3 (Acct #)'!$A$581 -> 510174 0000 | B71: =+'P&L - ITD3 (Acct Desc)'!$A$581 -> Vacation/Sick - Sup Labor | C71: =+VLOOKUP($A71,'P&L - ITD3 (Acct #)'!$A:$F,2,FALSE) -> 3359.84 | D71: =+'PF Restate'!$G71 -> 0 | E71: =+'PF Adj'!$G71 -> 0 | F71: 3359.84 | H71: Truck Hours | J71: 644.4776515 | K71: 2715.362348 | M71: Truck Hours | O71: 2715.362348 | P71: 0 | Q71: 0 | R71: 0
A72: 510175 0000 | B72: Benefits Non-Corp - Sup Labor | C72: =+VLOOKUP($A72,'P&L - ITD3 (Acct #)'!$A:$F,2,FALSE) -> 0 | D72: =+'PF Restate'!$G72 -> 0 | E72: =+'PF Adj'!$G72 -> 0 | F72: 0 | H72: Truck Hours | J72: =F72-K72 -> 0 | K72: =F72*VLOOKUP(H72,$J$2:$K$6,2,FALSE) -> 0 | M72: =H72 -> Truck Hours | O72: =K72-SUM(P72:R72) -> 0 | P72: 0 | Q72: 0 | R72: 0
A73: 510175 0100 | B73: Op Supv Multi Employer Pension | C73: =+VLOOKUP($A73,'P&L - ITD3 (Acct #)'!$A:$F,2,FALSE) -> 0 | D73: =+'PF Restate'!$G73 -> 0 | E73: =+'PF Adj'!$G73 -> 0 | F73: 0 | H73: Truck Hours | J73: =F73-K73 -> 0 | K73: =F73*VLOOKUP(H73,$J$2:$K$6,2,FALSE) -> 0 | M73: =H73 -> Truck Hours | O73: =K73-SUM(P73:R73) -> 0 | P73: 0 | Q73: 0 | R73: 0
A74: =+'P&L - ITD3 (Acct #)'!$A$587 -> 510176 0000 | B74: =+'P&L - ITD3 (Acct Desc)'!$A$587 -> Benefits Corp - Sup Labor | C74: =+VLOOKUP($A74,'P&L - ITD3 (Acct #)'!$A:$F,2,FALSE) -> 9047.86 | D74: =+'PF Restate'!$G74 -> 0 | E74: =+'PF Adj'!$G74 -> 12657.93705 | F74: 21705.79705 | H74: Truck Hours | J74: 4163.56169 | K74: 17542.23536 | M74: Truck Hours | O74: 17542.23536 | P74: 0 | Q74: 0 | R74: 0
A75: =+'P&L - ITD3 (Acct #)'!$A$588 -> 510177 0000 | B75: =+'P&L - ITD3 (Acct Desc)'!$A$588 -> Employer 401k - Sup Labor | C75: =+VLOOKUP($A75,'P&L - ITD3 (Acct #)'!$A:$F,2,FALSE) -> 1842.34 | D75: =+'PF Restate'!$G75 -> 0 | E75: =+'PF Adj'!$G75 -> 0 | F75: 1842.34 | H75: Truck Hours | J75: =F75-K75 -> 353.3938987 | K75: =F75*VLOOKUP(H75,$J$2:$K$6,2,FALSE) -> 1488.946101 | M75: Truck Hours | O75: 1488.946101 | P75: 0 | Q75: 0 | R75: 0
A76: =+'P&L - ITD3 (Acct #)'!$A$590 -> 510188 0000 | B76: =+'P&L - ITD3 (Acct Desc)'!$A$590 -> Uniforms & Safety - Sup Labor | C76: =+VLOOKUP($A76,'P&L - ITD3 (Acct #)'!$A:$F,2,FALSE) -> 189.99 | D76: =+'PF Restate'!$G76 -> 0 | E76: =+'PF Adj'!$G76 -> 0 | F76: 189.99 | H76: Truck Hours | J76: =F76-K76 -> 36.44349404 | K76: =F76*VLOOKUP(H76,$J$2:$K$6,2,FALSE) -> 153.546506 | M76: Truck Hours | O76: 153.546506 | P76: 0 | Q76: 0 | R76: 0
A77: =+'P&L - ITD3 (Acct #)'!$A$602 -> 510 510998 | B77: =+'P&L - ITD3 (Acct Desc)'!$A$602 -> 510998 Ops Supv Alloc-In | C77: =+VLOOKUP($A77,'P&L - ITD3 (Acct #)'!$A:$F,2,FALSE) -> 0 | D77: =+'PF Restate'!$G77 -> 0 | E77: =+'PF Adj'!$G77 -> 0 | F77: 0 | H77: Truck Hours | J77: =F77-K77 -> 0 | K77: =F77*VLOOKUP(H77,$J$2:$K$6,2,FALSE) -> 0 | M77: Truck Hours | O77: 0 | P77: 0 | Q77: 0 | R77: 0
A78: =+'P&L - ITD3 (Acct #)'!$A$603 -> 510999 0000 | B78: =+'P&L - ITD3 (Acct Desc)'!$A$603 -> Ops Supv Alloc-Out | C78: =+VLOOKUP($A78,'P&L - ITD3 (Acct #)'!$A:$F,2,FALSE) -> 0 | D78: =+'PF Restate'!$G78 -> 0 | E78: =+'PF Adj'!$G78 -> 0 | F78: 0 | H78: Truck Hours | J78: =F78-K78 -> 0 | K78: =F78*VLOOKUP(H78,$J$2:$K$6,2,FALSE) -> 0 | M78: =H78 -> Truck Hours | O78: 0 | P78: 0 | Q78: 0 | R78: 0
B79: =+'P&L - ITD3 (Acct Desc)'!$A$604 -> Oper Supervisory Labor | C79: =+VLOOKUP($B79,'P&L - ITD3 (Acct Desc)'!A$1:R$1417,2,FALSE) -> 104384.38 | D79: =SUM(D63:D78) -> -1705.14 | E79: =SUM(E63:E78) -> 12657.93705 | F79: 115337.1771 | J79: =SUM(J63:J78) -> 22123.7419 | K79: =SUM(K63:K78) -> 93213.43515 | O79: =SUM(O63:O78) -> 93213.43515 | P79: =SUM(P63:P78) -> 0 | Q79: =SUM(Q63:Q78) -> 0 | R79: =SUM(R63:R78) -> 0
A80: Check | C80: =+C79-SUM(C63:C78) -> 0 | Y80: 510060 0000 | Z80: 156.32
A81: =+'P&L - ITD3 (Acct #)'!$A$611 -> 520 520010 | B81: =+'P&L - ITD3 (Acct Desc)'!$A$611 -> 520010 TShop Mgr/Supv-Default | C81: =+VLOOKUP($A81,'P&L - ITD3 (Acct #)'!$A:$F,2,FALSE) -> 0 | D81: =+'PF Restate'!$G81 -> 0 | E81: =+'PF Adj'!$G81 -> 0 | F81: =SUM(C81:E81) -> 0 | H81: Truck Hours | J81: =F81-K81 -> 0 | K81: =F81*VLOOKUP(H81,$J$2:$K$6,2,FALSE) -> 0 | M81: =H81 -> Truck Hours | O81: =K81-SUM(P81:R81) -> 0 | P81: =$K81*VLOOKUP($M81,$J$2:$R$6,MATCH(P$9,$J$9:$R$9,0),FALSE) -> 0 | Q81: 0 | R81: 0
A82: =+'P&L - ITD3 (Acct #)'!$A$618 -> 520 520020 | B82: =+'P&L - ITD3 (Acct Desc)'!$A$618 -> 520020 TShop Mech/Welder-Default | C82: =+VLOOKUP($A82,'P&L - ITD3 (Acct #)'!$A:$F,2,FALSE) -> 0 | D82: =+'PF Restate'!$G82 -> 0 | E82: =+'PF Adj'!$G82 -> 0 | F82: 0 | H82: Truck Hours | J82: 0 | K82: 0 | M82: =H82 -> Truck Hours | O82: 0 | P82: 0 | Q82: 0 | R82: 0
A83: =+'P&L - ITD3 (Acct #)'!$A$625 -> 520 520030 | B83: =+'P&L - ITD3 (Acct Desc)'!$A$625 -> 520030 TShop Support-Default | C83: =+VLOOKUP($A83,'P&L - ITD3 (Acct #)'!$A:$F,2,FALSE) -> 0 | D83: =+'PF Restate'!$G83 -> 0 | E83: =+'PF Adj'!$G83 -> 0 | F83: 0 | H83: Truck Hours | J83: 0 | K83: 0 | M83: Truck Hours | O83: 0 | P83: 0 | Q83: 0 | R83: 0
A84: =+'P&L - ITD3 (Acct #)'!$A$626 -> 520055 0000 | B84: =+'P&L - ITD3 (Acct Desc)'!$A$626 -> TShop Temp Labor | C84: =+VLOOKUP($A84,'P&L - ITD3 (Acct #)'!$A:$F,2,FALSE) -> 0 | D84: =+'PF Restate'!$G84 -> 0 | E84: =+'PF Adj'!$G84 -> 0 | F84: 0 | H84: Truck Hours | J84: 0 | K84: 0 | M84: Truck Hours | O84: 0 | P84: 0 | Q84: 0 | R84: 0
A85: =+'P&L - ITD3 (Acct #)'!$A$627 -> 520060 0000 | B85: =+'P&L - ITD3 (Acct Desc)'!$A$627 -> TShop Bonus Non-Corp | C85: =+VLOOKUP($A85,'P&L - ITD3 (Acct #)'!$A:$F,2,FALSE) -> 0 | D85: =+'PF Restate'!$G85 -> 0 | E85: =+'PF Adj'!$G85 -> 0 | F85: 0 | H85: Truck Hours | J85: 0 | K85: 0 | M85: Truck Hours | O85: 0 | P85: 0 | Q85: 0 | R85: 0
A86: =+'P&L - ITD3 (Acct #)'!$A$628 -> 520061 0000 | B86: =+'P&L - ITD3 (Acct Desc)'!$A$628 -> TShop Bonus Pay Corp | C86: =+VLOOKUP($A86,'P&L - ITD3 (Acct #)'!$A:$F,2,FALSE) -> 0 | D86: =+'PF Restate'!$G86 -> 0 | E86: =+'PF Adj'!$G86 -> 0 | F86: 0 | H86: Truck Hours | J86: 0 | K86: 0 | M86: Truck Hours | O86: 0 | P86: 0 | Q86: 0 | R86: 0
A87: =+'P&L - ITD3 (Acct #)'!$A$629 -> 520170 0000 | B87: =+'P&L - ITD3 (Acct Desc)'!$A$629 -> TShop Payroll Tax | C87: =+VLOOKUP($A87,'P&L - ITD3 (Acct #)'!$A:$F,2,FALSE) -> 0 | D87: =+'PF Restate'!$G87 -> 0 | E87: =+'PF Adj'!$G87 -> 0 | F87: 0 | H87: Truck Hours | J87: 0 | K87: 0 | M87: Truck Hours | O87: 0 | P87: 0 | Q87: 0 | R87: 0
A88: =+'P&L - ITD3 (Acct #)'!$A$630 -> 520172 0000 | B88: =+'P&L - ITD3 (Acct Desc)'!$A$630 -> TShop Personal Time | C88: =+VLOOKUP($A88,'P&L - ITD3 (Acct #)'!$A:$F,2,FALSE) -> 0 | D88: =+'PF Restate'!$G88 -> 0 | E88: =+'PF Adj'!$G88 -> 0 | F88: 0 | H88: Truck Hours | J88: 0 | K88: 0 | M88: Truck Hours | O88: 0 | P88: 0 | Q88: 0 | R88: 0
A89: =+'P&L - ITD3 (Acct #)'!$A$633 -> 520173 0000 | B89: =+'P&L - ITD3 (Acct Desc)'!$A$633 -> TShop Holiday Pay | C89: =+VLOOKUP($A89,'P&L - ITD3 (Acct #)'!$A:$F,2,FALSE) -> 0 | D89: =+'PF Restate'!$G89 -> 0 | E89: =+'PF Adj'!$G89 -> 0 | F89: 0 | H89: Truck Hours | J89: 0 | K89: 0 | M89: Truck Hours | O89: 0 | P89: 0 | Q89: 0 | R89: 0
A90: =+'P&L - ITD3 (Acct #)'!$A$634 -> 520174 0000 | B90: =+'P&L - ITD3 (Acct Desc)'!$A$634 -> TShop Vacation/Sick | C90: =+VLOOKUP($A90,'P&L - ITD3 (Acct #)'!$A:$F,2,FALSE) -> 0 | D90: =+'PF Restate'!$G90 -> 0 | E90: =+'PF Adj'!$G90 -> 0 | F90: 0 | H90: Truck Hours | J90: 0 | K90: 0 | M90: Truck Hours | O90: 0 | P90: 0 | Q90: 0 | R90: 0 | Y90: 510175 0000
A91: =+'P&L - ITD3 (Acct #)'!$A$639 -> 520 520175 | B91: =+'P&L - ITD3 (Acct Desc)'!$A$639 -> 520175 TShop Benefits Non-Corp | C91: =+VLOOKUP($A91,'P&L - ITD3 (Acct #)'!$A:$F,2,FALSE) -> 0 | D91: =+'PF Restate'!$G91 -> 0 | E91: =+'PF Adj'!$G91 -> 0 | F91: 0 | H91: Truck Hours | J91: 0 | K91: 0 | M91: Truck Hours | O91: 0 | P91: 0 | Q91: 0 | R91: 0 | Y91: 510175 0100
A92: =+'P&L - ITD3 (Acct #)'!$A$640 -> 520176 0000 | B92: =+'P&L - ITD3 (Acct Desc)'!$A$640 -> TShop Benefits Corp | C92: =+VLOOKUP($A92,'P&L - ITD3 (Acct #)'!$A:$F,2,FALSE) -> 0 | D92: =+'PF Restate'!$G92 -> 0 | E92: =+'PF Adj'!$G92 -> 0 | F92: 0 | H92: Truck Hours | J92: 0 | K92: 0 | M92: Truck Hours | O92: 0 | P92: 0 | Q92: 0 | R92: 0
A93: =+'P&L - ITD3 (Acct #)'!$A$641 -> 520177 0000 | B93: =+'P&L - ITD3 (Acct Desc)'!$A$641 -> TShop Employer 401k | C93: =+VLOOKUP($A93,'P&L - ITD3 (Acct #)'!$A:$F,2,FALSE) -> 0 | D93: =+'PF Restate'!$G93 -> 0 | E93: =+'PF Adj'!$G93 -> 0 | F93: 0 | H93: Truck Hours | J93: =F93-K93 -> 0 | K93: =F93*VLOOKUP(H93,$J$2:$K$6,2,FALSE) -> 0 | M93: Truck Hours | O93: 0 | P93: 0 | Q93: 0 | R93: 0
A94: =+'P&L - ITD3 (Acct #)'!$A$643 -> 520188 0000 | B94: =+'P&L - ITD3 (Acct Desc)'!$A$643 -> TShop Uniforms & Safety | C94: =+VLOOKUP($A94,'P&L - ITD3 (Acct #)'!$A:$F,2,FALSE) -> 0 | D94: =+'PF Restate'!$G94 -> 0 | E94: =+'PF Adj'!$G94 -> 0 | F94: 0 | H94: Truck Hours | J94: =F94-K94 -> 0 | K94: =F94*VLOOKUP(H94,$J$2:$K$6,2,FALSE) -> 0 | M94: Truck Hours | O94: 0 | P94: 0 | Q94: 0 | R94: 0
A95: =+'P&L - ITD3 (Acct #)'!$A$644 -> 520998 0000 | B95: =+'P&L - ITD3 (Acct Desc)'!$A$644 -> TShop Labor Alloc-In | C95: =+VLOOKUP($A95,'P&L - ITD3 (Acct #)'!$A:$F,2,FALSE) -> 0 | D95: =+'PF Restate'!$G95 -> 0 | E95: =+'PF Adj'!$G95 -> 0 | F95: 0 | H95: Truck Hours | J95: =F95-K95 -> 0 | K95: =F95*VLOOKUP(H95,$J$2:$K$6,2,FALSE) -> 0 | M95: Truck Hours | O95: 0 | P95: 0 | Q95: 0 | R95: 0
A96: =+'P&L - ITD3 (Acct #)'!$A$645 -> 520999 0000 | B96: =+'P&L - ITD3 (Acct Desc)'!$A$645 -> TShop Labor Alloc-Out | C96: =+VLOOKUP($A96,'P&L - ITD3 (Acct #)'!$A:$F,2,FALSE) -> 0 | D96: =+'PF Restate'!$G96 -> 0 | E96: =+'PF Adj'!$G96 -> 0 | F96: =SUM(C96:E96) -> 0 | H96: Truck Hours | J96: =F96-K96 -> 0 | K96: =F96*VLOOKUP(H96,$J$2:$K$6,2,FALSE) -> 0 | M96: Truck Hours | O96: 0 | P96: 0 | Q96: 0 | R96: 0
B97: =+'P&L - ITD3 (Acct Desc)'!$A$646 -> Truck/Equipment Shop Labor | C97: =+VLOOKUP($B97,'P&L - ITD3 (Acct Desc)'!A$1:R$1417,2,FALSE) -> 0 | D97: =SUM(D81:D96) -> 0 | E97: =SUM(E81:E96) -> 0 | F97: 0 | J97: =SUM(J81:J96) -> 0 | K97: =SUM(K81:K96) -> 0 | O97: =SUM(O81:O96) -> 0 | P97: =SUM(P81:P96) -> 0 | Q97: =SUM(Q81:Q96) -> 0 | R97: =SUM(R81:R96) -> 0
A98: Check | C98: =+C97-SUM(C81:C96) -> 0
A99: =+'P&L - ITD3 (Acct #)'!$A$660 -> 525 525020 | B99: =+'P&L - ITD3 (Acct Desc)'!$A$660 -> 525020 CShop Mech/Welder-Default | C99: =+VLOOKUP($A99,'P&L - ITD3 (Acct #)'!$A:$F,2,FALSE) -> 0 | D99: =+'PF Restate'!$G99 -> 0 | E99: =+'PF Adj'!$G99 -> 0 | F99: =SUM(C99:E99) -> 0 | H99: Container Count | J99: =F99-K99 -> 0 | K99: =F99*VLOOKUP(H99,$J$2:$K$6,2,FALSE) -> 0 | M99: =H99 -> Container Count | O99: =K99-SUM(P99:R99) -> 0 | P99: =$K99*VLOOKUP($M99,$J$2:$R$6,MATCH(P$9,$J$9:$R$9,0),FALSE) -> 0 | Q99: 0 | R99: 0
A100: =+'P&L - ITD3 (Acct #)'!$A$667 -> 525 525030 | B100: =+'P&L - ITD3 (Acct Desc)'!$A$667 -> 525030 CShop Support-Default | C100: =+VLOOKUP($A100,'P&L - ITD3 (Acct #)'!$A:$F,2,FALSE) -> 0 | D100: =+'PF Restate'!$G100 -> 0 | E100: =+'PF Adj'!$G100 -> 0 | F100: 0 | H100: Container Count | J100: 0 | K100: 0 | M100: Container Count | O100: 0 | P100: 0 | Q100: 0 | R100: 0
A101: =+'P&L - ITD3 (Acct #)'!$A$668 -> 525055 0000 | B101: =+'P&L - ITD3 (Acct Desc)'!$A$668 -> CShop Temp Labor | C101: =+VLOOKUP($A101,'P&L - ITD3 (Acct #)'!$A:$F,2,FALSE) -> 0 | D101: =+'PF Restate'!$G101 -> 0 | E101: =+'PF Adj'!$G101 -> 0 | F101: 0 | H101: Container Count | J101: 0 | K101: 0 | M101: Container Count | O101: 0 | P101: 0 | Q101: 0 | R101: 0
A102: =+'P&L - ITD3 (Acct #)'!$A$669 -> 525060 0000 | B102: =+'P&L - ITD3 (Acct Desc)'!$A$669 -> CShop Bonus Pay Non-Corp | C102: =+VLOOKUP($A102,'P&L - ITD3 (Acct #)'!$A:$F,2,FALSE) -> 0 | D102: =+'PF Restate'!$G102 -> 0 | E102: =+'PF Adj'!$G102 -> 0 | F102: 0 | H102: Container Count | J102: 0 | K102: 0 | M102: Container Count | O102: 0 | P102: 0 | Q102: 0 | R102: 0
A103: =+'P&L - ITD3 (Acct #)'!$A$670 -> 525061 0000 | B103: =+'P&L - ITD3 (Acct Desc)'!$A$670 -> CShop Bonus Pay Corp | C103: =+VLOOKUP($A103,'P&L - ITD3 (Acct #)'!$A:$F,2,FALSE) -> 0 | D103: =+'PF Restate'!$G103 -> 0 | E103: =+'PF Adj'!$G103 -> 0 | F103: 0 | H103: Container Count | J103: 0 | K103: 0 | M103: Container Count | O103: 0 | P103: 0 | Q103: 0 | R103: 0
A104: =+'P&L - ITD3 (Acct #)'!$A$671 -> 525170 0000 | B104: =+'P&L - ITD3 (Acct Desc)'!$A$671 -> CShop Payroll Tax | C104: =+VLOOKUP($A104,'P&L - ITD3 (Acct #)'!$A:$F,2,FALSE) -> 0 | D104: =+'PF Restate'!$G104 -> 0 | E104: =+'PF Adj'!$G104 -> 0 | F104: 0 | H104: Container Count | J104: 0 | K104: 0 | M104: Container Count | O104: 0 | P104: 0 | Q104: 0 | R104: 0
A105: =+'P&L - ITD3 (Acct #)'!$A$672 -> 525172 0000 | B105: =+'P&L - ITD3 (Acct Desc)'!$A$672 -> CShop Personal Time | C105: =+VLOOKUP($A105,'P&L - ITD3 (Acct #)'!$A:$F,2,FALSE) -> 0 | D105: =+'PF Restate'!$G105 -> 0 | E105: =+'PF Adj'!$G105 -> 0 | F105: 0 | H105: Container Count | J105: 0 | K105: 0 | M105: Container Count | O105: 0 | P105: 0 | Q105: 0 | R105: 0
A106: =+'P&L - ITD3 (Acct #)'!$A$675 -> 525173 0000 | B106: =+'P&L - ITD3 (Acct Desc)'!$A$675 -> CShop Holiday Pay | C106: =+VLOOKUP($A106,'P&L - ITD3 (Acct #)'!$A:$F,2,FALSE) -> 0 | D106: =+'PF Restate'!$G106 -> 0 | E106: =+'PF Adj'!$G106 -> 0 | F106: 0 | H106: Container Count | J106: 0 | K106: 0 | M106: Container Count | O106: 0 | P106: 0 | Q106: 0 | R106: 0
A107: =+'P&L - ITD3 (Acct #)'!$A$676 -> 525174 0000 | B107: =+'P&L - ITD3 (Acct Desc)'!$A$676 -> CShop Vacation/Sick | C107: =+VLOOKUP($A107,'P&L - ITD3 (Acct #)'!$A:$F,2,FALSE) -> 0 | D107: =+'PF Restate'!$G107 -> 0 | E107: =+'PF Adj'!$G107 -> 0 | F107: 0 | H107: Container Count | J107: 0 | K107: 0 | M107: Container Count | O107: 0 | P107: 0 | Q107: 0 | R107: 0
A108: =+'P&L - ITD3 (Acct #)'!$A$681 -> 525 525175 | B108: =+'P&L - ITD3 (Acct Desc)'!$A$681 -> 525175 CShop Benefits Non-Corp | C108: =+VLOOKUP($A108,'P&L - ITD3 (Acct #)'!$A:$F,2,FALSE) -> 0 | D108: =+'PF Restate'!$G108 -> 0 | E108: =+'PF Adj'!$G108 -> 0 | F108: 0 | H108: Container Count | J108: 0 | K108: 0 | M108: Container Count | O108: 0 | P108: 0 | Q108: 0 | R108: 0
A109: =+'P&L - ITD3 (Acct #)'!$A$682 -> 525176 0000 | B109: =+'P&L - ITD3 (Acct Desc)'!$A$682 -> CShop Benefits Corp | C109: =+VLOOKUP($A109,'P&L - ITD3 (Acct #)'!$A:$F,2,FALSE) -> 0 | D109: =+'PF Restate'!$G110 -> 0 | E109: =+'PF Adj'!$G110 -> 0 | F109: 0 | H109: Container Count | J109: 0 | K109: 0 | M109: Container Count | O109: 0 | P109: 0 | Q109: 0 | R109: 0
A110: 525177 0000 | B110: CShop Employer 401k | C110: =+VLOOKUP($A110,'P&L - ITD3 (Acct #)'!$A:$F,2,FALSE) -> 0 | D110: =+'PF Restate'!$G111 -> 0 | E110: =+'PF Adj'!$G111 -> 0 | F110: =SUM(C110:E110) -> 0 | H110: Container Count | J110: =F110-K110 -> 0 | K110: =F110*VLOOKUP(H110,$J$2:$K$6,2,FALSE) -> 0 | M110: =H110 -> Container Count | O110: =K110-SUM(P110:R110) -> 0 | P110: 0 | Q110: 0 | R110: 0
A111: =+'P&L - ITD3 (Acct #)'!$A$685 -> 525188 0000 | B111: =+'P&L - ITD3 (Acct Desc)'!$A$685 -> CShop Uniforms & Safety | C111: =+VLOOKUP($A111,'P&L - ITD3 (Acct #)'!$A:$F,2,FALSE) -> 0 | D111: =+'PF Restate'!$G111 -> 0 | E111: =+'PF Adj'!$G111 -> 0 | F111: 0 | H111: Container Count | J111: 0 | K111: 0 | M111: Container Count | O111: 0 | P111: 0 | Q111: 0 | R111: 0
A112: =+'P&L - ITD3 (Acct #)'!$A$686 -> 525998 0000 | B112: =+'P&L - ITD3 (Acct Desc)'!$A$686 -> CShop Labor Alloc-In | C112: =+VLOOKUP($A112,'P&L - ITD3 (Acct #)'!$A:$F,2,FALSE) -> 0 | D112: =+'PF Restate'!$G112 -> 0 | E112: =+'PF Adj'!$G112 -> 0 | F112: 0 | H112: Container Count | J112: 0 | K112: 0 | M112: Container Count | O112: 0 | P112: 0 | Q112: 0 | R112: 0
A113: =+'P&L - ITD3 (Acct #)'!$A$687 -> 525999 0000 | B113: =+'P&L - ITD3 (Acct Desc)'!$A$687 -> CShop Labor Alloc-Out | C113: =+VLOOKUP($A113,'P&L - ITD3 (Acct #)'!$A:$F,2,FALSE) -> 0 | D113: =+'PF Restate'!$G113 -> 0 | E113: =+'PF Adj'!$G113 -> 0 | F113: 0 | H113: Container Count | J113: 0 | K113: 0 | M113: Container Count | O113: 0 | P113: 0 | Q113: 0 | R113: 0
